Workbook

Sheet III Tool Overview
C2: Informing Investment to tackle health Inequalities in Scotland (III) - Income (v 1.1)
C3: What is the nature of the intervention? There are five options here, showing the effect of different policies to change the income distribution in Scotland. These are (1) Introduction of a Living Wage, (2) 10% rise in Working Tax Credit, (3) 10% rise in council tax, (4) 10% rise in JSA/IS and (5) 1p on standard rate of income tax . These policies are taken from the paper by Comerford & Eiser (2014).
X4: Geographies
X5: Scotland
G6: Population | H6: Greater Glasgow & Clyde Health Board | X6: Ayrshire & Arran Health Board
G7: Intervention name | H7: Income | X7: Borders Health Board
G8: Additional number of people treated | H8: 0 | I8: =IF(H8>#REF!,"Too high - please check & re-enter","") ->  | X8: Dumfries & Galloway Health Board | Y8: 10% rise in JSA/IS
G9: Number treated at baseline | H9: 0 | X9: Fife Health Board | Y9: 1p on standard rate of income tax
G10: Income intervention | H10: 10% rise in JSA/IS | X10: Forth Valley Health Board
G11: Total direct cost of intervention (£m, 2012 prices) | H11: =(D35*H8)/1000000 -> 0 | X11: Grampian Health Board
X12: Greater Glasgow & Clyde Health Board
X13: Highland Health Board
X14: Lanarkshire Health Board
C15: Baseline Information: Income | G15: Model Outcomes (whole population) | H15: 2 years | I15: 10 years | J15: 20 years | X15: Lothian Health Board
C16: Baseline year | D16: =Calculations!C1 -> 2012 | G16: Years of life gained | H16: =Calculations!S86+Calculations!S107+Calculations!S129+Calculations!S150+Calculations!S172+Calculations!S193+Calculations!S215+Calculations!S236+Calculations!S258+Calculations!S279 -> 1288.381718 | I16: =Calculations!Y86+Calculations!Y107+Calculations!Y129+Calculations!Y150+Calculations!Y172+Calculations!Y193+Calculations!Y215+Calculations!Y236+Calculations!Y258+Calculations!Y279 -> 9747.306752 | J16: =Calculations!AB86+Calculations!AB107+Calculations!AB129+Calculations!AB150+Calculations!AB172+Calculations!AB193+Calculations!AB215+Calculations!AB236+Calculations!AB258+Calculations!AB279 -> 17583.66528 | X16: Orkney Health Board
C17: Age group | D17: All | G17: Continuous inpatient stays prevented | H17: =Calculations!AE86+Calculations!AE107+Calculations!AE129+Calculations!AE150+Calculations!AE172+Calculations!AE193+Calculations!AE215+Calculations!AE236+Calculations!AE258+Calculations!AE279 -> 807.8145735 | I17: =Calculations!AK86+Calculations!AK107+Calculations!AK129+Calculations!AK150+Calculations!AK172+Calculations!AK193+Calculations!AK215+Calculations!AK236+Calculations!AK258+Calculations!AK279 -> 6269.917287 | J17: =Calculations!AN86+Calculations!AN107+Calculations!AN129+Calculations!AN150+Calculations!AN172+Calculations!AN193+Calculations!AN215+Calculations!AN236+Calculations!AN258+Calculations!AN279 -> 11527.80781 | X17: Shetland Health Board
C18: Number of people affected by intervention | D18: =HLOOKUP('III Tool Overview'!$H$6,Baseline_Data_2012!$B$1:$AV$280,Baseline_Data_2012!AW272,FALSE) -> 1137320 | X18: Tayside Health Board
C19: Of which, Q1 only: | D19: =HLOOKUP('III Tool Overview'!$H$6,Baseline_Data_2012!$B$1:$AV$280,Baseline_Data_2012!AW273,FALSE) -> 421784 | G19: Model Outcomes (Most deprived SIMD quintile) | H19: 2 years | I19: 10 years | J19: 20 years | X19: Western Isles Health Board
C20: Of which, Q1 & Q2: | D20: =HLOOKUP('III Tool Overview'!$H$6,Baseline_Data_2012!$B$1:$AV$280,Baseline_Data_2012!AW274,FALSE) -> 620109 | G20: Years of life gained | H20: =Calculations!S86+Calculations!S107 -> 1236.85088 | I20: =Calculations!Y86+Calculations!Y107 -> 9325.502633 | J20: =Calculations!AB86+Calculations!AB107 -> 16772.43561 | X20: Aberdeen City Local Authority
G21: Continuous inpatient stays prevented | H21: =Calculations!AE86+Calculations!AE107 -> 770.2012535 | I21: =Calculations!AK86+Calculations!AK107 -> 5953.279125 | J21: =Calculations!AN86+Calculations!AN107 -> 10912.68541 | X21: Aberdeenshire Local Authority
C22: Annual continuous inpatient stays (2012) | D22: =HLOOKUP('III Tool Overview'!$H$6,Baseline_Data_2012!$B$1:$AV$280,Baseline_Data_2012!AW278,FALSE) -> 302228 | X22: Angus Local Authority
C23: Of which, Q1 only: | D23: =HLOOKUP('III Tool Overview'!$H$6,Baseline_Data_2012!$B$1:$AV$280,Baseline_Data_2012!AW279,FALSE) -> 130770 | G23: Model Outcomes (comparative health inequalities) | H23: 2 years | I23: 10 years | J23: 20 years | X23: Argyll & Bute Local Authority
C24: Of which, Q1 & Q2: | D24: =HLOOKUP('III Tool Overview'!$H$6,Baseline_Data_2012!$B$1:$AV$280,Baseline_Data_2012!AW280,FALSE) -> 184477 | G24: RII: Years of life lost (without intervention) | H24: =RII!H20 -> 3.317185476 | I24: =RII!H39 -> 3.155528254 | J24: =RII!H58 -> 3.022630544 | X24: Clackmannanshire Local Authority
G25: RII: Years of life lost (with intervention) | H25: =RII!S20 -> 3.2993595 | I25: =RII!S39 -> 3.139695946 | J25: =RII!S58 -> 3.008314731 | X25: Dumfries & Galloway Local Authority
G26: RII: years of life lost (difference) | H26: =H25-H24 -> -0.0178259765 | I26: =I25-I24 -> -0.01583230773 | J26: -0.01431581355 | X26: Dundee City Local Authority
G27: RII: continuous inpatient stays (without intervention) | H27: =RII!H77 -> 2.579187087 | I27: =RII!H96 -> 2.417020062 | J27: =RII!H115 -> 2.253835734 | X27: East Ayrshire Local Authority
G28: RII: continuous inpatient stays (with intervention) | H28: =RII!S77 -> 2.564585918 | I28: =RII!S96 -> 2.404427597 | J28: =RII!S115 -> 2.242920125 | X28: East Dunbartonshire Local Authority
G29: RII: continuous inpatient stays (difference) | H29: =H28-H27 -> -0.01460116877 | I29: =I28-I27 -> -0.01259246597 | J29: -0.01091560909 | X29: East Lothian Local Authority
X30: East Renfrewshire Local Authority
G31: Direct financial savings | H31: 2 years | I31: 10 years | J31: 20 years | X31: Edinburgh, City of Local Authority
G32: Reduced continuous inpatient stays (£m) - all | H32: =(H17*2445)/1000000 -> 1.975106632 | I32: =(I17*2445)/1000000 -> 15.32994777 | J32: =(J17*2445)/1000000 -> 28.1854901 | X32: Eilean Siar Local Authority
G33: Reduced continuous inpatient stays (£m) - MDQ | H33: =(H21*2445)/1000000 -> 1.883142065 | I33: =(I21*2445)/1000000 -> 14.55576746 | J33: 26.68151582 | X33: Falkirk Local Authority
X34: Fife Local Authority
G35: How are costs and financial savings estimated? | X35: Glasgow City Local Authority
G36: Geue et al. (2012) estimated the cost of a continuous inpatient stay at £2113 in 2006/07 - this has been adjusted to 2012/13 prices. Please note that for the income interventions we have not attempted to estimate the direct costs. | X36: Highland Local Authority
X37: Inverclyde Local Authority
C38: An error was identified in the previous version of this tool connected to the rounding of decimal places in Excel. This resulted in areas with very small population showing no impact from income interventions (when in fact, there was an impact, albeit small), and introduced some minor discrepancies into the modelled figures for larger areas. This version addresses these problems. | X38: Midlothian Local Authority
X39: Moray Local Authority
X40: North Ayrshire Local Authority
X41: North Lanarkshire Local Authority
X42: Orkney Islands Local Authority
X43: Perth & Kinross Local Authority
X44: Renfrewshire Local Authority
X45: Scottish Borders Local Authority
X46: Shetland Islands Local Authority
X47: South Ayrshire Local Authority
X48: South Lanarkshire Local Authority
X49: Stirling Local Authority
X50: West Dunbartonshire Local Authority
X51: West Lothian Local Authority
X56: Options
X57: Introduction of a Living Wage
X58: 10% rise in Working Tax Credit
X59: 10% rise in council tax
X60: 10% rise in JSA/IS
X61: 1p on standard rate of income tax

Sheet Baseline_Data_2012
A1: POPULATION (2012) | B1: Scotland | C1: Ayrshire & Arran Health Board | D1: Borders Health Board | E1: Dumfries & Galloway Health Board | F1: Fife Health Board | G1: Forth Valley Health Board | H1: Grampian Health Board | I1: Greater Glasgow & Clyde Health Board | J1: Highland Health Board | K1: Lanarkshire Health Board | L1: Lothian Health Board | M1: Orkney Health Board | N1: Shetland Health Board | O1: Tayside Health Board | P1: Western Isles Health Board | Q1: Aberdeen City Local Authority | R1: Aberdeenshire Local Authority | S1: Angus Local Authority | T1: Argyll & Bute Local Authority | U1: Clackmannanshire Local Authority | V1: Dumfries & Galloway Local Authority | W1: Dundee City Local Authority | X1: East Ayrshire Local Authority | Y1: East Dunbartonshire Local Authority | Z1: East Lothian Local Authority | AA1: East Renfrewshire Local Authority | AB1: Edinburgh, City of Local Authority | AC1: Eilean Siar Local Authority | AD1: Falkirk Local Authority | AE1: Fife Local Authority | AF1: Glasgow City Local Authority | AG1: Highland Local Authority | AH1: Inverclyde Local Authority | AI1: Midlothian Local Authority | AJ1: Moray Local Authority | AK1: North Ayrshire Local Authority | AL1: North Lanarkshire Local Authority | AM1: Orkney Islands Local Authority | AN1: Perth & Kinross Local Authority | AO1: Renfrewshire Local Authority | AP1: Scottish Borders Local Authority | AQ1: Shetland Islands Local Authority | AR1: South Ayrshire Local Authority | AS1: South Lanarkshire Local Authority | AT1: Stirling Local Authority | AU1: West Dunbartonshire Local Authority | AV1: West Lothian Local Authority | AW1: 1
AW2: 2
A3: All, by SIMD | AW3: 3
A4: Total | B4: =B11+B18 -> 5313600 | C4: =C11+C18 -> 373190 | D4: 113710 | E4: 150830 | F4: 366220 | G4: 299100 | H4: 573420 | I4: 1137320 | J4: 319810 | K4: 652230 | L4: 843720 | M4: 21530 | N4: 23210 | O4: 411750 | P4: 27560 | Q4: 224970 | R4: 255540 | S4: 116210 | T4: 86900 | U4: 51280 | V4: 150830 | W4: 147800 | X4: 122720 | Y4: 105880 | Z4: 100850 | AA4: 91030 | AB4: 482640 | AC4: 27560 | AD4: 156800 | AE4: 366220 | AF4: 595080 | AG4: 232910 | AH4: 80680 | AI4: 84240 | AJ4: 92910 | AK4: 137560 | AL4: 337870 | AM4: 21530 | AN4: 147740 | AO4: 174310 | AP4: 113710 | AQ4: 23210 | AR4: 112910 | AS4: 314360 | AT4: 91020 | AU4: 90340 | AV4: 175990 | AW4: 4
A5: Q 1 | B5: =B12+B19 -> 1076082 | C5: 106129 | D5: 6593 | E5: 11471 | F5: 67730 | G5: 45857 | H5: 36050 | I5: 421784 | J5: 27647 | K5: 172315 | L5: 107011 | M5: 0 | N5: 0 | O5: 73495 | P5: 0 | Q5: 30357 | R5: 4588 | S5: 10531 | T5: 7767 | U5: 13478 | V5: 11471 | W5: 54439 | X5: 36315 | Y5: 4433 | Z5: 4962 | AA5: 6830 | AB5: 65832 | AC5: 0 | AD5: 23088 | AE5: 67730 | AF5: 291581 | AG5: 19880 | AH5: 34829 | AI5: 8620 | AJ5: 1105 | AK5: 50912 | AL5: 110413 | AM5: 0 | AN5: 8525 | AO5: 50067 | AP5: 6593 | AQ5: 0 | AR5: 18902 | AS5: 61902 | AT5: 9291 | AU5: 34044 | AV5: 27597 | AW5: 5
A6: Q 2 | B6: =B13+B20 -> 1065342 | C6: 103370 | D6: 17468 | E6: 34938 | F6: 81378 | G6: 70392 | H6: 74134 | I6: 198325 | J6: 62172 | K6: 170175 | L6: 164673 | M6: 4526 | N6: 1368 | O6: 70570 | P6: 11853 | Q6: 41595 | R6: 21314 | S6: 20321 | T6: 14946 | U6: 9212 | V6: 34938 | W6: 31462 | X6: 38738 | Y6: 17407 | Z6: 20070 | AA6: 8135 | AB6: 68377 | AC6: 11853 | AD6: 42475 | AE6: 81378 | AF6: 107894 | AG6: 47226 | AH6: 12321 | AI6: 26488 | AJ6: 11225 | AK6: 30123 | AL6: 97135 | AM6: 4526 | AN6: 18787 | AO6: 27350 | AP6: 17468 | AQ6: 1368 | AR6: 34509 | AS6: 73040 | AT6: 18705 | AU6: 25218 | AV6: 49738 | AW6: 6
A7: Q 3 | B7: =B14+B21 -> 1073886 | C7: 57580 | D7: 34499 | E7: 58150 | F7: 73468 | G7: 57383 | H7: 126653 | I7: 158193 | J7: 106230 | K7: 140309 | L7: 160239 | M7: 4253 | N7: 9175 | O7: 72047 | P7: 15707 | Q7: 37758 | R7: 52614 | S7: 25793 | T7: 34195 | U7: 12628 | V7: 58150 | W7: 18149 | X7: 15518 | Y7: 8787 | Z7: 25848 | AA7: 7380 | AB7: 75036 | AC7: 15707 | AD7: 30589 | AE7: 73468 | AF7: 76891 | AG7: 72035 | AH7: 10511 | AI7: 17782 | AJ7: 36281 | AK7: 20236 | AL7: 62631 | AM7: 4253 | AN7: 28105 | AO7: 36484 | AP7: 34499 | AQ7: 9175 | AR7: 21826 | AS7: 77678 | AT7: 14166 | AU7: 18140 | AV7: 41573 | AW7: 7
A8: Q 4 | B8: 1063254 | C8: 57543 | D8: 48000 | E8: 35638 | F8: 67672 | G8: 65043 | H8: 153078 | I8: 152770 | J8: 95915 | K8: 92067 | L8: 149112 | M8: 12091 | N8: 11010 | O8: 123315 | P8: 0 | Q8: 26369 | R8: 93637 | S8: 43656 | T8: 21502 | U8: 8966 | V8: 35638 | W8: 19293 | X8: 17333 | Y8: 20805 | Z8: 32046 | AA8: 14942 | AB8: 72159 | AC8: 0 | AD8: 30686 | AE8: 67672 | AF8: 67014 | AG8: 74413 | AH8: 13214 | AI8: 16903 | AJ8: 33072 | AK8: 23990 | AL8: 39877 | AM8: 12091 | AN8: 60366 | AO8: 28647 | AP8: 48000 | AQ8: 11010 | AR8: 16220 | AS8: 52190 | AT8: 25391 | AU8: 8148 | AV8: 28004 | AW8: 8
A9: Q 5 | B9: =B16+B23 -> 1035036 | C9: 48568 | D9: 7150 | E9: 10633 | F9: 75972 | G9: 60425 | H9: 183505 | I9: 206248 | J9: 27846 | K9: 77364 | L9: 262685 | M9: 660 | N9: 1657 | O9: 72323 | P9: 0 | Q9: 88891 | R9: 83387 | S9: 15909 | T9: 8490 | U9: 6996 | V9: 10633 | W9: 24457 | X9: 14816 | Y9: 54448 | Z9: 17924 | AA9: 53743 | AB9: 201236 | AC9: 0 | AD9: 29962 | AE9: 75972 | AF9: 51700 | AG9: 19356 | AH9: 9805 | AI9: 14447 | AJ9: 11227 | AK9: 12299 | AL9: 27814 | AM9: 660 | AN9: 31957 | AO9: 31762 | AP9: 7150 | AQ9: =AQ16+AQ23 -> 1657 | AR9: 21453 | AS9: 49550 | AT9: 23467 | AU9: 4790 | AV9: 29078 | AW9: 9
A10: Males, by SIMD | AW10: 10
A11: Males | B11: =SUM(B25:B44) -> 2577140 | C11: =SUM(C25:C44) -> 178654 | D11: 55179 | E11: 73206 | F11: 177448 | G11: 145353 | H11: 283622 | I11: 546961 | J11: 156214 | K11: 314535 | L11: 410312 | M11: 10693 | N11: 11771 | O11: 199589 | P11: 13603 | Q11: 111301 | R11: 126725 | S11: 56456 | T11: 42184 | U11: 25093 | V11: 73206 | W11: 71096 | X11: 59419 | Y11: 51270 | Z11: 48315 | AA11: 43361 | AB11: 235183 | AC11: 13603 | AD11: 76547 | AE11: 177448 | AF11: 286906 | AG11: 114030 | AH11: 38580 | AI11: 40607 | AJ11: 45596 | AK11: 65417 | AL11: 163399 | AM11: 10693 | AN11: 72037 | AO11: 83793 | AP11: 55179 | AQ11: 11771 | AR11: 53818 | AS11: 151136 | AT11: 43713 | AU11: 43051 | AV11: 86207 | AW11: 11
A12: Q 1 | B12: =SUM(B66:B85) -> 514542 | C12: =SUM(C66:C85) -> 50443 | D12: 3158 | E12: 5523 | F12: 32711 | G12: 22080 | H12: 17755 | I12: 199875 | J12: 13455 | K12: 82410 | L12: 51725 | M12: 0 | N12: 0 | O12: 35407 | P12: 0 | Q12: 14810 | R12: 2384 | S12: 5048 | T12: 3794 | U12: 6487 | V12: 5523 | W12: 26226 | X12: 17382 | Y12: 2118 | Z12: 2396 | AA12: 3139 | AB12: 31941 | AC12: 0 | AD12: 11174 | AE12: 32711 | AF12: 138465 | AG12: 9661 | AH12: 16590 | AI12: 4134 | AJ12: 561 | AK12: 23997 | AL12: 53001 | AM12: 0 | AN12: 4133 | AO12: 23679 | AP12: 3158 | AQ12: 0 | AR12: 9064 | AS12: 29409 | AT12: 4419 | AU12: 15884 | AV12: 13254 | AW12: 12
A13: Q 2 | B13: =SUM(B107:B126) -> 514954 | C13: =SUM(C107:C126) -> 49006 | D13: 8428 | E13: 16775 | F13: 39383 | G13: 33898 | H13: 36286 | I13: 96493 | J13: 29904 | K13: 81719 | L13: 79787 | M13: 2245 | N13: 702 | O13: 34514 | P13: 5814 | Q13: 20619 | R13: 10424 | S13: 9753 | T13: 7109 | U13: 4445 | V13: 16775 | W13: 15304 | X13: 18559 | Y13: 8242 | Z13: 9458 | AA13: 3815 | AB13: 33503 | AC13: 5814 | AD13: 20518 | AE13: 39383 | AF13: 53444 | AG13: 22795 | AH13: 5977 | AI13: 12675 | AJ13: 5243 | AK13: 14149 | AL13: 46777 | AM13: 2245 | AN13: 9457 | AO13: 13009 | AP13: 8428 | AQ13: 702 | AR13: 16298 | AS13: 34942 | AT13: 8935 | AU13: 12006 | AV13: 24151 | AW13: 13
A14: Q 3 | B14: =SUM(B148:B167) -> 525433 | C14: =SUM(C148:C167) -> 28108 | D14: 16896 | E14: 28323 | F14: 35729 | G14: 28191 | H14: 62407 | I14: 77297 | J14: 52233 | K14: 67839 | L14: 78941 | M14: 2109 | N14: 4654 | O14: 34917 | P14: 7789 | Q14: 18800 | R14: 25883 | S14: 12583 | T14: 16498 | U14: 6429 | V14: 28323 | W14: 8732 | X14: 7836 | Y14: 4506 | Z14: 12241 | AA14: 3514 | AB14: 37550 | AC14: 7789 | AD14: 14958 | AE14: 35729 | AF14: 37737 | AG14: 35735 | AH14: 5008 | AI14: 8490 | AJ14: 17724 | AK14: 9685 | AL14: 30428 | AM14: 2109 | AN14: 13602 | AO14: 17728 | AP14: 16896 | AQ14: 4654 | AR14: 10587 | AS14: 37411 | AT14: 6804 | AU14: 8804 | AV14: 20660 | AW14: 14
A15: Q 4 | B15: =SUM(B189:B208) -> 518750 | C15: =SUM(C189:C208) -> 27723 | D15: 23238 | E15: 17459 | F15: 32779 | G15: 31613 | H15: 75845 | I15: 73566 | J15: 47055 | K15: 44906 | L15: 72686 | M15: 6015 | N15: 5575 | O15: 60290 | P15: 0 | Q15: 13023 | R15: 46578 | S15: 21482 | T15: 10487 | U15: 4375 | V15: 17459 | W15: 9210 | X15: 8439 | Y15: 9987 | Z15: 15579 | AA15: 7082 | AB15: 35200 | AC15: 0 | AD15: 14985 | AE15: 32779 | AF15: 32464 | AG15: 36568 | AH15: 6227 | AI15: 8261 | AJ15: 16244 | AK15: 11641 | AL15: 19491 | AM15: 6015 | AN15: 29598 | AO15: 13822 | AP15: 23238 | AQ15: 5575 | AR15: 7643 | AS15: 25415 | AT15: 12253 | AU15: 3984 | AV15: 13646 | AW15: 15
A16: Q 5 | B16: =SUM(B230:B249) -> 503461 | C16: =SUM(C230:C249) -> 23374 | D16: 3459 | E16: 5126 | F16: 36846 | G16: 29571 | H16: 91329 | I16: 99730 | J16: 13567 | K16: 37661 | L16: 127173 | M16: 324 | N16: 840 | O16: 34461 | P16: 0 | Q16: 44049 | R16: 41456 | S16: 7590 | T16: 4296 | U16: 3357 | V16: 5126 | W16: 11624 | X16: 7203 | Y16: 26417 | Z16: 8641 | AA16: 25811 | AB16: 96989 | AC16: 0 | AD16: 14912 | AE16: 36846 | AF16: 24796 | AG16: 9271 | AH16: 4778 | AI16: 7047 | AJ16: 5824 | AK16: 5945 | AL16: 13702 | AM16: 324 | AN16: 15247 | AO16: 15555 | AP16: 3459 | AQ16: 840 | AR16: 10226 | AS16: 23959 | AT16: 11302 | AU16: 2373 | AV16: 14496 | AW16: 16
A17: Females, by SIMD | AW17: 17
A18: Females | B18: =SUM(B45:B64) -> 2736460 | C18: =SUM(C45:C64) -> 194536 | D18: 58531 | E18: 77624 | F18: 188772 | G18: 153747 | H18: 289798 | I18: 590359 | J18: 163596 | K18: 337695 | L18: 433408 | M18: 10837 | N18: 11439 | O18: 212161 | P18: 13957 | Q18: 113669 | R18: 128815 | S18: 59754 | T18: 44716 | U18: 26187 | V18: 77624 | W18: 76704 | X18: 63301 | Y18: 54610 | Z18: 52535 | AA18: 47669 | AB18: 247457 | AC18: 13957 | AD18: 80253 | AE18: 188772 | AF18: 308174 | AG18: 118880 | AH18: 42100 | AI18: 43633 | AJ18: 47314 | AK18: 72143 | AL18: 174471 | AM18: 10837 | AN18: 75703 | AO18: 90517 | AP18: 58531 | AQ18: 11439 | AR18: 59092 | AS18: 163224 | AT18: 47307 | AU18: 47289 | AV18: 89783 | AW18: 18
A19: Q 1 | B19: =SUM(B86:B105) -> 561540 | C19: =SUM(C86:C105) -> 55686 | D19: 3435 | E19: 5948 | F19: 35019 | G19: 23777 | H19: 18295 | I19: 221909 | J19: 14192 | K19: 89905 | L19: 55286 | M19: 0 | N19: 0 | O19: 38088 | P19: 0 | Q19: 15547 | R19: 2204 | S19: 5483 | T19: 3973 | U19: 6991 | V19: 5948 | W19: 28213 | X19: 18933 | Y19: 2315 | Z19: 2566 | AA19: 3691 | AB19: 33891 | AC19: 0 | AD19: 11914 | AE19: 35019 | AF19: 153116 | AG19: 10219 | AH19: 18239 | AI19: 4486 | AJ19: 544 | AK19: 26915 | AL19: 57412 | AM19: 0 | AN19: 4392 | AO19: 26388 | AP19: 3435 | AQ19: 0 | AR19: 9838 | AS19: 32493 | AT19: 4872 | AU19: 18160 | AV19: 14343 | AW19: 19
A20: Q 2 | B20: =SUM(B127:B146) -> 550388 | C20: =SUM(C127:C146) -> 54364 | D20: 9040 | E20: 18163 | F20: 41995 | G20: 36494 | H20: 37848 | I20: 101832 | J20: 32268 | K20: 88456 | L20: 84886 | M20: 2281 | N20: 666 | O20: 36056 | P20: 6039 | Q20: 20976 | R20: 10890 | S20: 10568 | T20: 7837 | U20: 4767 | V20: 18163 | W20: 16158 | X20: 20179 | Y20: 9165 | Z20: 10612 | AA20: 4320 | AB20: 34874 | AC20: 6039 | AD20: 21957 | AE20: 41995 | AF20: 54450 | AG20: 24431 | AH20: 6344 | AI20: 13813 | AJ20: 5982 | AK20: 15974 | AL20: 50358 | AM20: 2281 | AN20: 9330 | AO20: 14341 | AP20: 9040 | AQ20: 666 | AR20: 18211 | AS20: 38098 | AT20: 9770 | AU20: 13212 | AV20: 25587 | AW20: 20
A21: Q 3 | B21: =SUM(B168:B187) -> 548453 | C21: =SUM(C168:C187) -> 29472 | D21: 17603 | E21: 29827 | F21: 37739 | G21: 29192 | H21: 64246 | I21: 80896 | J21: 53997 | K21: 72470 | L21: 81298 | M21: 2144 | N21: 4521 | O21: 37130 | P21: 7918 | Q21: 18958 | R21: 26731 | S21: 13210 | T21: 17697 | U21: 6199 | V21: 29827 | W21: 9417 | X21: 7682 | Y21: 4281 | Z21: 13607 | AA21: 3866 | AB21: 37486 | AC21: 7918 | AD21: 15631 | AE21: 37739 | AF21: 39154 | AG21: 36300 | AH21: 5503 | AI21: 9292 | AJ21: 18557 | AK21: 10551 | AL21: 32203 | AM21: 2144 | AN21: 14503 | AO21: 18756 | AP21: 17603 | AQ21: 4521 | AR21: 11239 | AS21: 40267 | AT21: 7362 | AU21: 9336 | AV21: 20913 | AW21: 21
A22: Q 4 | B22: =SUM(B209:B228) -> 544504 | C22: =SUM(C209:C228) -> 29820 | D22: 24762 | E22: 18179 | F22: 34893 | G22: 33430 | H22: 77233 | I22: 79204 | J22: 48860 | K22: 47161 | L22: 76426 | M22: 6076 | N22: 5435 | O22: 63025 | P22: 0 | Q22: 13346 | R22: 47059 | S22: 22174 | T22: 11015 | U22: 4591 | V22: 18179 | W22: 10083 | X22: 8894 | Y22: 10818 | Z22: 16467 | AA22: 7860 | AB22: 36959 | AC22: 0 | AD22: 15701 | AE22: 34893 | AF22: 34550 | AG22: 37845 | AH22: 6987 | AI22: 8642 | AJ22: 16828 | AK22: 12349 | AL22: 20386 | AM22: 6076 | AN22: 30768 | AO22: 14825 | AP22: 24762 | AQ22: 5435 | AR22: 8577 | AS22: 26775 | AT22: 13138 | AU22: 4164 | AV22: 14358 | AW22: 22
A23: Q 5 | B23: =SUM(B250:B269) -> 531575 | C23: =SUM(C250:C269) -> 25194 | D23: 3691 | E23: 5507 | F23: 39126 | G23: 30854 | H23: 92176 | I23: 106518 | J23: 14279 | K23: 39703 | L23: 135512 | M23: 336 | N23: 817 | O23: 37862 | P23: 0 | Q23: 44842 | R23: 41931 | S23: 8319 | T23: 4194 | U23: 3639 | V23: 5507 | W23: 12833 | X23: 7613 | Y23: 28031 | Z23: 9283 | AA23: 27932 | AB23: 104247 | AC23: 0 | AD23: 15050 | AE23: 39126 | AF23: 26904 | AG23: 10085 | AH23: 5027 | AI23: 7400 | AJ23: 5403 | AK23: 6354 | AL23: 14112 | AM23: 336 | AN23: 16710 | AO23: 16207 | AP23: 3691 | AQ23: 817 | AR23: 11227 | AS23: 25591 | AT23: 12165 | AU23: 2417 | AV23: 14582 | AW23: 23
A24: age/sex breakdown: All | AW24: 24
A25: Male 0 | B25: =B66+B107+B148+B189+B230 -> 30180 | C25: =C66+C107+C148+C189+C230 -> 1991 | D25: 572 | E25: 703 | F25: 2130 | G25: 1692 | H25: 3251 | I25: 6755 | J25: 1642 | K25: 3870 | L25: 4985 | M25: 122 | N25: 143 | O25: 2178 | P25: 146 | Q25: 1363 | R25: 1438 | S25: 582 | T25: 385 | U25: 324 | V25: 703 | W25: 890 | X25: 758 | Y25: 465 | Z25: 578 | AA25: 464 | AB25: 2762 | AC25: 146 | AD25: 949 | AE25: 2130 | AF25: 3896 | AG25: 1257 | AH25: 411 | AI25: 553 | AJ25: 450 | AK25: 732 | AL25: 2028 | AM25: 122 | AN25: 706 | AO25: 976 | AP25: 572 | AQ25: 143 | AR25: 501 | AS25: 1842 | AT25: 419 | AU25: 543 | AV25: 1092 | AW25: 25
A26: Male 1-4 | B26: =B67+B108+B149+B190+B231 -> 120848 | C26: =C67+C108+C149+C190+C231 -> 8069 | D26: 2330 | E26: 3081 | F26: 8713 | G26: 6727 | H26: 13448 | I26: 25647 | J26: 6903 | K26: 15379 | L26: 20193 | M26: 447 | N26: 597 | O26: 8743 | P26: 571 | Q26: 4886 | R26: 6402 | S26: 2365 | T26: 1678 | U26: 1138 | V26: 3081 | W26: 3302 | X26: 2784 | Y26: 2224 | Z26: 2456 | AA26: 2070 | AB26: 10889 | AC26: 571 | AD26: 3749 | AE26: 8713 | AF26: 13510 | AG26: 5225 | AH26: 1748 | AI26: 2037 | AJ26: 2160 | AK26: 3005 | AL26: 8333 | AM26: 447 | AN26: 3076 | AO26: 3893 | AP26: 2330 | AQ26: 597 | AR26: 2280 | AS26: 7046 | AT26: 1840 | AU26: 2202 | AV26: 4811 | AW26: 26
A27: Male 5-9 | B27: =B68+B109+B150+B191+B232 -> 141094 | C27: 9833 | D27: 3032 | E27: 3938 | F27: 9980 | G27: 8412 | H27: 14853 | I27: 29122 | J27: 8599 | K27: 18771 | L27: 22138 | M27: 546 | N27: 714 | O27: 10414 | P27: 742 | Q27: 4877 | R27: 7466 | S27: 3128 | T27: 2198 | U27: 1398 | V27: 3938 | W27: 3589 | X27: 3311 | Y27: 2934 | Z27: 2946 | AA27: 2814 | AB27: 11111 | AC27: 742 | AD27: 4492 | AE27: 9980 | AF27: 14124 | AG27: 6401 | AH27: 2141 | AI27: 2475 | AJ27: 2510 | AK27: 3748 | AL27: 10255 | AM27: 546 | AN27: 3697 | AO27: 4631 | AP27: 3032 | AQ27: 714 | AR27: 2774 | AS27: 8516 | AT27: 2522 | AU27: 2478 | AV27: 5606 | AW27: 27
A28: Male 10-14 | B28: 144077 | C28: 10371 | D28: 3087 | E28: 4060 | F28: 10067 | G28: 8616 | H28: 15218 | I28: 30070 | J28: 9174 | K28: 18877 | L28: 21293 | M28: 560 | N28: 701 | O28: 11268 | P28: 715 | Q28: 4772 | R28: 7640 | S28: 3375 | T28: 2408 | U28: 1481 | V28: 4060 | W28: 3595 | X28: 3395 | Y28: 3288 | Z28: 2867 | AA28: 3120 | AB28: 10600 | AC28: 715 | AD28: 4355 | AE28: 10067 | AF28: 14319 | AG28: 6766 | AH28: 2167 | AI28: 2476 | AJ28: 2806 | AK28: 3882 | AL28: 10048 | AM28: 560 | AN28: 4298 | AO28: 4785 | AP28: 3087 | AQ28: 701 | AR28: 3094 | AS28: 8829 | AT28: 2780 | AU28: 2391 | AV28: 5350 | AW28: 28
A29: Male 15-19 | B29: 163400 | C29: 11686 | D29: 3315 | E29: 4483 | F29: 11222 | G29: 9685 | H29: 17397 | I29: 35205 | J29: 9678 | K29: 20607 | L29: 24857 | M29: 687 | N29: 753 | O29: 13043 | P29: 782 | Q29: 6296 | R29: 7980 | S29: 3604 | T29: 2714 | U29: 1628 | V29: 4483 | W29: 4836 | X29: 3905 | Y29: 3573 | Z29: 3201 | AA29: 3161 | AB29: 13333 | AC29: 782 | AD29: 4900 | AE29: 11222 | AF29: 17695 | AG29: 6964 | AH29: 2471 | AI29: 2607 | AJ29: 3121 | AK29: 4525 | AL29: 10952 | AM29: 687 | AN29: 4603 | AO29: 5440 | AP29: 3315 | AQ29: 753 | AR29: 3256 | AS29: 9655 | AT29: 3157 | AU29: 2865 | AV29: 5716 | AW29: 29
A30: Male 20-24 | B30: 184447 | C30: 10758 | D30: 2640 | E30: 3839 | F30: 11911 | G30: 9716 | H30: 21333 | I30: 45388 | J30: 8360 | K30: 19844 | L30: 33660 | M30: 601 | N30: 649 | O30: 15074 | P30: 674 | Q30: 11664 | R30: 6964 | S30: 3226 | T30: 2302 | U30: 1455 | V30: 3839 | W30: 7764 | X30: 3742 | Y30: 3340 | Z30: 2681 | AA30: 2751 | AB30: 23278 | AC30: 674 | AD30: 4507 | AE30: 11911 | AF30: 28182 | AG30: 6058 | AH30: 2596 | AI30: 2492 | AJ30: 2705 | AK30: 3944 | AL30: 10702 | AM30: 601 | AN30: 4084 | AO30: 5610 | AP30: 2640 | AQ30: 649 | AR30: 3072 | AS30: 9142 | AT30: 3754 | AU30: 2909 | AV30: 5209 | AW30: 30
A31: Male 25-29 | B31: 170737 | C31: 9516 | D31: 2413 | E31: 3654 | F31: 9999 | G31: 8265 | H31: 20401 | I31: 42472 | J31: 8299 | K31: 18619 | L31: 32173 | M31: 558 | N31: 665 | O31: 13074 | P31: 629 | Q31: 11039 | R31: 6708 | S31: 2945 | T31: 2021 | U31: 1433 | V31: 3654 | W31: 6122 | X31: 3468 | Y31: 2478 | Z31: 2358 | AA31: 1811 | AB31: 22340 | AC31: 629 | AD31: 4409 | AE31: 9999 | AF31: 27678 | AG31: 6278 | AH31: 2346 | AI31: 2209 | AJ31: 2654 | AK31: 3379 | AL31: 10191 | AM31: 558 | AN31: 4007 | AO31: 5365 | AP31: 2413 | AQ31: 665 | AR31: 2669 | AS31: 8428 | AT31: 2423 | AU31: 2794 | AV31: 5266 | AW31: 31
A32: Male 30-34 | B32: 163281 | C32: 9372 | D32: 2472 | E32: 3278 | F32: 10234 | G32: 8491 | H32: 19323 | I32: 38169 | J32: 8342 | K32: 19830 | L32: 30283 | M32: 526 | N32: 687 | O32: 11609 | P32: 665 | Q32: 9493 | R32: 7327 | S32: 2966 | T32: 1900 | U32: 1496 | V32: 3278 | W32: 4642 | X32: 3307 | Y32: 2163 | Z32: 2381 | AA32: 1879 | AB32: 20191 | AC32: 665 | AD32: 4852 | AE32: 10234 | AF32: 24507 | AG32: 6442 | AH32: 2101 | AI32: 2283 | AJ32: 2503 | AK32: 3391 | AL32: 10679 | AM32: 526 | AN32: 4001 | AO32: 5014 | AP32: 2472 | AQ32: 687 | AR32: 2674 | AS32: 9151 | AT32: 2143 | AU32: 2505 | AV32: 5428 | AW32: 32
A33: Male 35-39 | B33: 158158 | C33: 9821 | D33: 2858 | E33: 3558 | F33: 10638 | G33: 8999 | H33: 18614 | I33: 33738 | J33: 8305 | K33: 20124 | L33: 28782 | M33: 546 | N33: 775 | O33: 10640 | P33: 760 | Q33: 7748 | R33: 8394 | S33: 3083 | T33: 2018 | U33: 1543 | V33: 3558 | W33: 3759 | X33: 3489 | Y33: 2586 | Z33: 2990 | AA33: 2358 | AB33: 17480 | AC33: 760 | AD33: 5117 | AE33: 10638 | AF33: 19435 | AG33: 6287 | AH33: =AH74+AH115+AH156+AH197+AH238 -> 2082 | AI33: 2452 | AJ33: 2472 | AK33: 3520 | AL33: 10629 | AM33: 546 | AN33: 3798 | AO33: 4854 | AP33: 2858 | AQ33: 775 | AR33: 2812 | AS33: 9495 | AT33: 2339 | AU33: 2423 | AV33: 5860 | AW33: 33
A34: Male 40-44 | B34: 186186 | C34: 12583 | D34: 4067 | E34: 4808 | F34: 12949 | G34: 11318 | H34: 20449 | I34: 38976 | J34: 10483 | K34: 24295 | L34: 30408 | M34: 719 | N34: 808 | O34: 13303 | P34: 1020 | Q34: 7482 | R34: 9587 | S34: 3902 | T34: 2700 | U34: 2011 | V34: 4808 | W34: 4471 | X34: 4441 | Y34: 3541 | Z34: 3648 | AA34: 3039 | AB34: 16730 | AC34: 1020 | AD34: 6165 | AE34: 12949 | AF34: 20659 | AG34: 7783 | AH34: 2630 | AI34: 2956 | AJ34: 3380 | AK34: 4539 | AL34: 12524 | AM34: 719 | AN34: 4930 | AO34: 6054 | AP34: 4067 | AQ34: 808 | AR34: 3603 | AS34: 11771 | AT34: 3142 | AU34: 3053 | AV34: 7074 | AW34: 34
A35: Male 45-49 | B35: 199540 | C35: 13868 | D35: 4547 | E35: 5778 | F35: 13722 | G35: 11831 | H35: 21336 | I35: 41923 | J35: 12272 | K35: 25296 | L35: 31011 | M35: 904 | N35: 949 | O35: 15072 | P35: 1031 | Q35: 7588 | R35: 10168 | S35: 4450 | T35: 3259 | U35: 2111 | V35: 5778 | W35: 4790 | X35: 4763 | Y35: 4148 | Z35: 4032 | AA35: 3591 | AB35: 16636 | AC35: 1031 | AD35: 6272 | AE35: 13722 | AF35: 20573 | AG35: 9013 | AH35: 3252 | AI35: 3174 | AJ35: 3580 | AK35: 5042 | AL35: 13118 | AM35: 904 | AN35: 5832 | AO35: 6810 | AP35: 4547 | AQ35: 949 | AR35: 4063 | AS35: 12178 | AT35: 3448 | AU35: 3549 | AV35: 7169 | AW35: 35
A36: Male 50-54 | B36: 188241 | C36: 13538 | D36: 4366 | E36: 5589 | F36: 13115 | G36: 10768 | H36: 20166 | I36: 39644 | J36: 11967 | K36: 23715 | L36: 28287 | M36: 834 | N36: 863 | O36: 14320 | P36: 1069 | Q36: 7248 | R36: 9611 | S36: 4213 | T36: 3231 | U36: 1898 | V36: 5589 | W36: 4761 | X36: 4424 | Y36: 4103 | Z36: 3795 | AA36: 3513 | AB36: 15100 | AC36: 1069 | AD36: 5697 | AE36: 13115 | AF36: 18842 | AG36: 8736 | AH36: 3184 | AI36: 3007 | AJ36: 3307 | AK36: 4922 | AL36: 11880 | AM36: 834 | AN36: 5346 | AO36: 6643 | AP36: 4366 | AQ36: 863 | AR36: 4192 | AS36: 11835 | AT36: 3173 | AU36: 3359 | AV36: 6385 | AW36: 36
A37: Male 55-59 | B37: 166198 | C37: 12207 | D37: 4031 | E37: 5250 | F37: 11560 | G37: 9129 | H37: 18536 | I37: 33871 | J37: 11366 | K37: 20620 | L37: 24112 | M37: 802 | N37: 782 | O37: 12931 | P37: 1001 | Q37: 6691 | R37: 8811 | S37: 3852 | T37: 3133 | U37: 1663 | V37: 5250 | W37: 4109 | X37: 3942 | Y37: 3697 | Z37: 3272 | AA37: 3053 | AB37: 13071 | AC37: 1001 | AD37: 4705 | AE37: 11560 | AF37: 16055 | AG37: 8233 | AH37: 2622 | AI37: 2705 | AJ37: 3034 | AK37: 4443 | AL37: 10197 | AM37: 802 | AN37: 4970 | AO37: 5499 | AP37: 4031 | AQ37: 782 | AR37: 3822 | AS37: 10423 | AT37: 2761 | AU37: 2945 | AV37: 5064 | AW37: 37
A38: Male 60-64 | B38: 157797 | C38: 12296 | D38: 4170 | E38: 5572 | F38: 11387 | G38: 9044 | H38: 17552 | I38: 29777 | J38: 11515 | K38: 18711 | L38: 22293 | M38: 756 | N38: 826 | O38: 12810 | P38: 1088 | Q38: 6031 | R38: 8550 | S38: 4043 | T38: 3238 | U38: 1668 | V38: 5572 | W38: 3836 | X38: 3846 | Y38: 3336 | Z38: 2931 | AA38: 2630 | AB38: 11805 | AC38: 1088 | AD38: 4695 | AE38: 11387 | AF38: 13647 | AG38: 8277 | AH38: 2496 | AI38: 2696 | AJ38: 2971 | AK38: 4525 | AL38: 9375 | AM38: 756 | AN38: 4931 | AO38: 5041 | AP38: 4170 | AQ38: 826 | AR38: 3925 | AS38: 9336 | AT38: 2681 | AU38: 2627 | AV38: 4861 | AW38: 38
A39: Male 65-69 | B39: 137334 | C39: 11350 | D39: 3870 | E39: 5102 | F39: 10484 | G39: 7941 | H39: 14197 | I39: 25389 | J39: 10312 | K39: 16132 | L39: 18831 | M39: 717 | N39: 681 | O39: 11415 | P39: 913 | Q39: 4578 | R39: 6990 | S39: 3587 | T39: 3163 | U39: 1436 | V39: 5102 | W39: 3343 | X39: 3483 | Y39: 2961 | Z39: 2718 | AA39: 2251 | AB39: 9633 | AC39: 913 | AD39: 4108 | AE39: 10484 | AF39: 11242 | AG39: 7149 | AH39: 2199 | AI39: 2314 | AJ39: 2629 | AK39: 4124 | AL39: 7968 | AM39: 717 | AN39: 4485 | AO39: 4493 | AP39: 3870 | AQ39: 681 | AR39: 3743 | AS39: 8164 | AT39: 2397 | AU39: 2243 | AV39: 4166 | AW39: 39
A40: Male 70-74 | B40: 101619 | C40: 8383 | D40: 2799 | E40: 3983 | F40: 7437 | G40: 5744 | H40: 10436 | I40: 19215 | J40: 7441 | K40: 11992 | L40: 13754 | M40: 576 | N40: 478 | O40: 8658 | P40: 723 | Q40: 3443 | R40: 4904 | S40: 2672 | T40: 2332 | U40: 981 | V40: 3983 | W40: 2607 | X40: 2519 | Y40: 2298 | Z40: 2035 | AA40: 1769 | AB40: 7006 | AC40: 723 | AD40: 2934 | AE40: 7437 | AF40: 8536 | AG40: 5109 | AH40: 1603 | AI40: 1656 | AJ40: 2089 | AK40: 3120 | AL40: 6011 | AM40: 576 | AN40: 3379 | AO40: 3392 | AP40: 2799 | AQ40: 478 | AR40: 2744 | AS40: 5981 | AT40: 1829 | AU40: 1617 | AV40: 3057 | AW40: 40
A41: Male 75-79 | B41: 78407 | C41: 6373 | D41: 2102 | E41: 3188 | F41: 5681 | G41: 4479 | H41: 8098 | I41: 15150 | J41: 5461 | K41: 8892 | L41: 10817 | M41: 359 | N41: 339 | O41: 6961 | P41: 507 | Q41: 2798 | R41: 3706 | S41: 2086 | T41: 1660 | U41: 723 | V41: 3188 | W41: 2152 | X41: 1915 | Y41: 1988 | Z41: 1551 | AA41: 1436 | AB41: 5943 | AC41: 507 | AD41: 2343 | AE41: 5681 | AF41: 6715 | AG41: =AG82+AG123+AG164+AG205+AG246 -> 3801 | AH41: 1218 | AI41: 1223 | AJ41: 1594 | AK41: 2252 | AL41: 4264 | AM41: 359 | AN41: 2723 | AO41: 2554 | AP41: 2102 | AQ41: 339 | AR41: 2206 | AS41: 4628 | AT41: 1413 | AU41: 1239 | AV41: 2100 | AW41: 41
A42: Male 80-84 | B42: 50919 | C42: 3981 | D42: 1494 | E42: 1968 | F42: 3656 | G42: 2697 | H42: 5219 | I42: 9924 | J42: 3663 | K42: 5533 | L42: 7202 | M42: 250 | N42: 211 | O42: 4785 | P42: 336 | Q42: 1924 | R42: 2331 | S42: 1425 | T42: 1109 | U42: 449 | V42: 1968 | W42: 1489 | X42: 1185 | Y42: 1297 | Z42: 1090 | AA42: 933 | AB42: 4098 | AC42: 336 | AD42: 1353 | AE42: 3656 | AF42: 4416 | AG42: 2554 | AH42: 788 | AI42: 779 | AJ42: 964 | AK42: 1430 | AL42: 2672 | AM42: 250 | AN42: 1871 | AO42: 1682 | AP42: 1494 | AQ42: 211 | AR42: 1366 | AS42: 2861 | AT42: 895 | AU42: 808 | AV42: 1235 | AW42: 42
A43: Male 85-89 | B43: =B84+B125+B166+B207+B248 -> 24838 | C43: 1943 | D43: 731 | E43: 989 | F43: 1839 | G43: 1282 | H43: 2680 | I43: 4663 | J43: 1763 | K43: 2495 | L43: 3715 | M43: 124 | N43: 106 | O43: 2332 | P43: 176 | Q43: 976 | R43: 1240 | S43: 659 | T43: 535 | U43: 174 | V43: 989 | W43: 746 | X43: 543 | Y43: 611 | Z43: 581 | AA43: 514 | AB43: 2215 | AC43: 176 | AD43: 686 | AE43: 1839 | AF43: 2068 | AG43: 1228 | AH43: 384 | AI43: 363 | AJ43: 464 | AK43: 659 | AL43: 1156 | AM43: 124 | AN43: 927 | AO43: 739 | AP43: 731 | AQ43: 106 | AR43: 741 | AS43: 1339 | AT43: 422 | AU43: 347 | AV43: 556 | AW43: 43
A44: Male 90+ | B44: 9839 | C44: 715 | D44: 283 | E44: 385 | F44: 724 | G44: 517 | H44: 1115 | I44: 1863 | J44: 669 | K44: 933 | L44: 1518 | M44: 59 | N44: 44 | O44: 959 | P44: 55 | Q44: 404 | R44: 508 | S44: 293 | T44: 200 | U44: 83 | V44: 385 | W44: 293 | X44: 199 | Y44: 239 | Z44: 204 | AA44: 204 | AB44: 962 | AC44: 55 | AD44: 259 | AE44: 724 | AF44: 807 | AG44: 469 | AH44: 141 | AI44: 150 | AJ44: 203 | AK44: 235 | AL44: 417 | AM44: 59 | AN44: 373 | AO44: 318 | AP44: 283 | AQ44: 44 | AR44: 281 | AS44: 516 | AT44: 175 | AU44: 154 | AV44: 202 | AW44: 44
A45: Female 0 | B45: =B86+B127+B168+B209+B250 -> 28511 | C45: 1902 | D45: 549 | E45: 664 | F45: 1960 | G45: 1622 | H45: 3135 | I45: 6403 | J45: 1590 | K45: 3471 | L45: 4768 | M45: 93 | N45: 115 | O45: 2139 | P45: 100 | Q45: 1314 | R45: 1362 | S45: 561 | T45: 425 | U45: 294 | V45: 664 | W45: 880 | X45: 681 | Y45: 428 | Z45: 570 | AA45: 417 | AB45: 2725 | AC45: 100 | AD45: 890 | AE45: 1960 | AF45: 3761 | AG45: 1165 | AH45: 354 | AI45: 500 | AJ45: 459 | AK45: 711 | AL45: 1857 | AM45: 93 | AN45: 698 | AO45: 932 | AP45: 549 | AQ45: 115 | AR45: 510 | AS45: 1614 | AT45: 438 | AU45: 511 | AV45: 973 | AW45: 45
A46: Female 1-4 | B46: =B87+B128+B169+B210+B251 -> 116332 | C46: =C87+C128+C169+C210+C251 -> 7798 | D46: 2270 | E46: 3034 | F46: 8204 | G46: 6625 | H46: 12764 | I46: 24652 | J46: 6512 | K46: 15057 | L46: 19612 | M46: 439 | N46: 498 | O46: 8384 | P46: 483 | Q46: 4626 | R46: 6112 | S46: 2424 | T46: 1639 | U46: 1175 | V46: 3034 | W46: 3077 | X46: 2666 | Y46: 2101 | Z46: 2436 | AA46: 2001 | AB46: 10681 | AC46: 483 | AD46: 3739 | AE46: 8204 | AF46: 13118 | AG46: 4873 | AH46: 1592 | AI46: 2052 | AJ46: 2026 | AK46: 2947 | AL46: 8088 | AM46: 439 | AN46: 2883 | AO46: 3809 | AP46: 2270 | AQ46: 498 | AR46: 2185 | AS46: 6969 | AT46: 1711 | AU46: 2031 | AV46: 4443 | AW46: 46
A47: Female 5-9 | B47: =B88+B129+B170+B211+B252 -> 134447 | C47: 9485 | D47: 2861 | E47: 3685 | F47: 9606 | G47: 7925 | H47: 14190 | I47: 27930 | J47: 8180 | K47: 17990 | L47: 20731 | M47: 540 | N47: 651 | O47: 9937 | P47: 736 | Q47: 4675 | R47: 7085 | S47: 2944 | T47: 2050 | U47: 1311 | V47: 3685 | W47: 3391 | X47: 3157 | Y47: 2719 | Z47: 2806 | AA47: 2764 | AB47: 10227 | AC47: 736 | AD47: 4268 | AE47: 9606 | AF47: 13594 | AG47: 6130 | AH47: 1976 | AI47: 2324 | AJ47: 2430 | AK47: 3602 | AL47: 9703 | AM47: 540 | AN47: 3602 | AO47: 4529 | AP47: 2861 | AQ47: 651 | AR47: 2726 | AS47: 8287 | AT47: 2346 | AU47: 2348 | AV47: 5374 | AW47: 47
A48: Female 10-14 | B48: 137520 | C48: 9945 | D48: 3086 | E48: 3736 | F48: 9471 | G48: 8212 | H48: 14121 | I48: 28752 | J48: 8529 | K48: 18274 | L48: 20730 | M48: 546 | N48: 695 | O48: 10680 | P48: 743 | Q48: 4419 | R48: 7135 | S48: 3139 | T48: 2232 | U48: 1419 | V48: 3736 | W48: 3413 | X48: 3322 | Y48: 3010 | Z48: 2853 | AA48: 2935 | AB48: 10083 | AC48: 743 | AD48: 4150 | AE48: 9471 | AF48: 13712 | AG48: 6297 | AH48: 2037 | AI48: 2474 | AJ48: 2567 | AK48: 3757 | AL48: 9767 | AM48: 546 | AN48: 4128 | AO48: 4691 | AP48: 3086 | AQ48: 695 | AR48: 2866 | AS48: 8507 | AT48: 2643 | AU48: 2367 | AV48: 5320 | AW48: 48
A49: Female 15-19 | B49: 156383 | C49: 11094 | D49: 3145 | E49: 4258 | F49: 11188 | G49: 9114 | H49: 16773 | I49: 33831 | J49: 8857 | K49: 19351 | L49: 23871 | M49: 624 | N49: 691 | O49: 12800 | P49: 786 | Q49: 6528 | R49: 7354 | S49: 3428 | T49: 2396 | U49: 1551 | V49: 4258 | W49: 5071 | X49: 3644 | Y49: 3203 | Z49: 3158 | AA49: 2950 | AB49: 12823 | AC49: 786 | AD49: 4390 | AE49: 11188 | AF49: 17549 | AG49: 6461 | AH49: 2420 | AI49: 2463 | AJ49: 2891 | AK49: 4250 | AL49: 10160 | AM49: 624 | AN49: 4301 | AO49: 5038 | AP49: 3145 | AQ49: 691 | AR49: 3200 | AS49: 9191 | AT49: 3173 | AU49: 2671 | AV49: 5427 | AW49: 49
A50: Female 20-24 | B50: 186192 | C50: 10743 | D50: 2613 | E50: 3791 | F50: 12448 | G50: 9838 | H50: 20816 | I50: 46867 | J50: 7403 | K50: 19475 | L50: 35828 | M50: 529 | N50: 607 | O50: 14699 | P50: 535 | Q50: 12364 | R50: 6173 | S50: 2819 | T50: 1902 | U50: 1380 | V50: 3791 | W50: 8282 | X50: 3688 | Y50: 2941 | Z50: 2952 | AA50: 2527 | AB50: 25356 | AC50: 535 | AD50: 4387 | AE50: 12448 | AF50: 30508 | AG50: 5501 | AH50: 2488 | AI50: 2474 | AJ50: 2279 | AK50: 3995 | AL50: 10568 | AM50: 529 | AN50: 3598 | AO50: 5445 | AP50: 2613 | AQ50: 607 | AR50: 3060 | AS50: 8907 | AT50: 4071 | AU50: 2958 | AV50: 5046 | AW50: 50
A51: Female 25-29 | B51: 176313 | C51: 10190 | D51: 2589 | E51: 3685 | F51: 10593 | G51: 8654 | H51: 20188 | I51: 42769 | J51: 8362 | K51: 20393 | L51: 34004 | M51: 586 | N51: 616 | O51: 13085 | P51: 599 | Q51: 10773 | R51: 6777 | S51: 3019 | T51: 1965 | U51: 1438 | V51: 3685 | W51: 6003 | X51: 3599 | Y51: 2105 | Z51: 2547 | AA51: 1843 | AB51: 23631 | AC51: 599 | AD51: 4665 | AE51: 10593 | AF51: 28322 | AG51: 6397 | AH51: 2321 | AI51: 2285 | AJ51: 2638 | AK51: 3684 | AL51: 11116 | AM51: 586 | AN51: 4063 | AO51: 5299 | AP51: 2589 | AQ51: 616 | AR51: 2907 | AS51: 9277 | AT51: 2551 | AU51: 2879 | AV51: 5541 | AW51: 51
A52: Female 30-34 | B52: 169681 | C52: 10283 | D52: 2617 | E52: 3727 | F52: 10904 | G52: 9104 | H52: 18718 | I52: 39381 | J52: 8511 | K52: 21125 | L52: 31470 | M52: 564 | N52: 668 | O52: 11907 | P52: 702 | Q52: 8582 | R52: 7622 | S52: 3180 | T52: 1918 | U52: 1527 | V52: 3727 | W52: 4856 | X52: 3592 | Y52: 2431 | Z52: 2705 | AA52: 2188 | AB52: 20480 | AC52: 702 | AD52: 5139 | AE52: 10904 | AF52: 24282 | AG52: 6593 | AH52: 2267 | AI52: 2572 | AJ52: 2514 | AK52: 3777 | AL52: 11270 | AM52: 564 | AN52: 3871 | AO52: 5375 | AP52: 2617 | AQ52: 668 | AR52: 2914 | AS52: 9855 | AT52: 2438 | AU52: 2838 | AV52: 5713 | AW52: 52
A53: Female 35-39 | B53: 163850 | C53: 10887 | D53: 3184 | E53: 3875 | F53: 11045 | G53: 9685 | H53: 18030 | I53: 35092 | J53: 9096 | K53: 20966 | L53: 28389 | M53: 603 | N53: 736 | O53: 11464 | P53: 798 | Q53: 6846 | R53: 8438 | S53: 3376 | T53: 2279 | U53: 1588 | V53: 3875 | W53: 3988 | X53: 3698 | Y53: 2926 | Z53: 3162 | AA53: 2698 | AB53: 16507 | AC53: 798 | AD53: 5406 | AE53: 11045 | AF53: 19093 | AG53: 6817 | AH53: =AH94+AH135+AH176+AH217+AH258 -> 2364 | AI53: 2604 | AJ53: 2746 | AK53: 4096 | AL53: 11042 | AM53: 603 | AN53: 4100 | AO53: 5276 | AP53: 3184 | AQ53: 736 | AR53: 3093 | AS53: 9924 | AT53: 2691 | AU53: 2735 | AV53: 6116 | AW53: 53
A54: Female 40-44 | B54: 199274 | C54: 14227 | D54: 4344 | E54: 5307 | F54: 13820 | G54: 11901 | H54: 20945 | I54: 42783 | J54: 11770 | K54: 25997 | L54: 31327 | M54: 765 | N54: 835 | O54: 14265 | P54: 988 | Q54: 7296 | R54: 10172 | S54: 4212 | T54: 3125 | U54: 2022 | V54: 5307 | W54: 4553 | X54: 4883 | Y54: 4023 | Z54: 4141 | AA54: 3630 | AB54: 16355 | AC54: 988 | AD54: 6371 | AE54: 13820 | AF54: 21499 | AG54: 8645 | AH54: 3111 | AI54: 3365 | AJ54: 3477 | AK54: 5222 | AL54: 13651 | AM54: 765 | AN54: 5500 | AO54: 7037 | AP54: 4344 | AQ54: 835 | AR54: 4122 | AS54: 12346 | AT54: 3508 | AU54: 3483 | AV54: 7466 | AW54: 54
A55: Female 45-49 | B55: 210765 | C55: 15476 | D55: 4797 | E55: 6135 | F55: 14417 | G55: 12233 | H55: 22033 | I55: 45684 | J55: 13019 | K55: 27047 | L55: 31560 | M55: 877 | N55: 875 | O55: 15590 | P55: 1022 | Q55: 7625 | R55: 10721 | S55: 4492 | T55: 3503 | U55: 2190 | V55: 6135 | W55: 5134 | X55: 5205 | Y55: 4593 | Z55: 4266 | AA55: 4044 | AB55: 16433 | AC55: 1022 | AD55: 6348 | AE55: 14417 | AF55: 22273 | AG55: 9516 | AH55: 3477 | AI55: 3432 | AJ55: 3687 | AK55: 5752 | AL55: 13842 | AM55: 877 | AN55: 5964 | AO55: 7394 | AP55: 4797 | AQ55: 875 | AR55: 4519 | AS55: 13205 | AT55: 3695 | AU55: 3903 | AV55: 7429 | AW55: 55
A56: Female 50-54 | B56: 196466 | C56: 14343 | D56: 4430 | E56: 5872 | F56: 13586 | G56: 11019 | H56: 20140 | I56: 42903 | J56: 12387 | K56: 24993 | L56: 29148 | M56: 753 | N56: 824 | O56: 15062 | P56: 1006 | Q56: 7325 | R56: 9482 | S56: 4450 | T56: 3416 | U56: 1955 | V56: 5872 | W56: 5163 | X56: 4576 | Y56: 4475 | Z56: 3945 | AA56: 3740 | AB56: 15519 | AC56: 1006 | AD56: 5757 | AE56: 13586 | AF56: 20696 | AG56: 8971 | AH56: 3321 | AI56: 3174 | AJ56: 3333 | AK56: 5283 | AL56: 12548 | AM56: 753 | AN56: 5449 | AO56: 7049 | AP56: 4430 | AQ56: 824 | AR56: 4484 | AS56: 12445 | AT56: 3307 | AU56: 3622 | AV56: 6510 | AW56: 56
A57: Female 55-59 | B57: 173090 | C57: 13268 | D57: 4151 | E57: 5550 | F57: 12010 | G57: 9549 | H57: 18379 | I57: 35586 | J57: 11675 | K57: 22099 | L57: 24790 | M57: 783 | N57: 790 | O57: 13495 | P57: 965 | Q57: 6358 | R57: 8889 | S57: 4051 | T57: 3205 | U57: 1711 | V57: 5550 | W57: 4238 | X57: 4151 | Y57: 3956 | Z57: 3358 | AA57: 3220 | AB57: 13172 | AC57: 965 | AD57: 4986 | AE57: 12010 | AF57: 16608 | AG57: 8470 | AH57: 2819 | AI57: 2864 | AJ57: 3132 | AK57: 4946 | AL57: 10954 | AM57: 783 | AN57: 5206 | AO57: 5811 | AP57: 4151 | AQ57: 790 | AR57: 4171 | AS57: 11145 | AT57: 2852 | AU57: 3172 | AV57: 5396 | AW57: 57
A58: Female 60-64 | B58: 164841 | C58: 13057 | D58: 4238 | E58: 5582 | F58: 12188 | G58: 9464 | H58: 17270 | I58: 31567 | J58: 11811 | K58: 20091 | L58: 23646 | M58: 770 | N58: 715 | O58: 13414 | P58: 1028 | Q58: 5895 | R58: 8249 | S58: 4147 | T58: 3505 | U58: 1741 | V58: 5582 | W58: 4142 | X58: 4041 | Y58: 3633 | Z58: 3250 | AA58: 2913 | AB58: 12434 | AC58: 1028 | AD58: 4980 | AE58: 12188 | AF58: 13985 | AG58: 8306 | AH58: 2685 | AI58: 2830 | AJ58: 3126 | AK58: 4859 | AL58: 10069 | AM58: 770 | AN58: 5125 | AO58: 5443 | AP58: 4238 | AQ58: 715 | AR58: 4157 | AS58: 10022 | AT58: 2743 | AU58: 2908 | AV58: 5132 | AW58: 58
A59: Female 65-69 | B59: 148398 | C59: 12251 | D59: 4043 | E59: 5476 | F59: 11182 | G59: 8530 | H59: 15017 | I59: 28073 | J59: 10565 | K59: 17901 | L59: 20678 | M59: 710 | N59: 635 | O59: 12398 | P59: 939 | Q59: 4956 | R59: 7101 | S59: 3899 | T59: 3259 | U59: 1608 | V59: 5476 | W59: 3664 | X59: 3692 | Y59: 3384 | Z59: 2929 | AA59: 2640 | AB59: 10651 | AC59: 939 | AD59: 4258 | AE59: 11182 | AF59: 12247 | AG59: 7306 | AH59: 2416 | AI59: 2566 | AJ59: 2960 | AK59: 4516 | AL59: 8964 | AM59: 710 | AN59: 4835 | AO59: 4925 | AP59: 4043 | AQ59: 635 | AR59: 4043 | AS59: 8937 | AT59: 2664 | AU59: 2461 | AV59: 4532 | AW59: 59
A60: Female 70-74 | B60: 119914 | C60: 9751 | D60: 3152 | E60: 4299 | F60: 8418 | G60: 6841 | H60: 11817 | I60: 24133 | J60: 8322 | K60: 14675 | L60: 16532 | M60: 598 | N60: 508 | O60: 10099 | P60: 769 | Q60: 4175 | R60: 5368 | S60: 2984 | T60: 2574 | U60: 1138 | V60: 4299 | W60: 3247 | X60: 2871 | Y60: 2828 | Z60: 2376 | AA60: 2103 | AB60: 8779 | AC60: 769 | AD60: 3571 | AE60: 8418 | AF60: 11086 | AG60: 5748 | AH60: 1980 | AI60: 1885 | AJ60: 2274 | AK60: 3682 | AL60: 7308 | AM60: 598 | AN60: 3868 | AO60: 4069 | AP60: 3152 | AQ60: 508 | AR60: 3198 | AS60: 7367 | AT60: 2132 | AU60: 2067 | AV60: 3492 | AW60: 60
A61: Female 75-79 | B61: 102204 | C61: 8075 | D61: 2588 | E61: 3611 | F61: 7162 | G61: 5592 | H61: 10004 | I61: 21773 | J61: 6792 | K61: 12339 | L61: 14053 | M61: 416 | N61: 387 | O61: 8731 | P61: 681 | Q61: 3793 | R61: 4252 | S61: 2536 | T61: 2126 | U61: 904 | V61: 3611 | W61: 2969 | X61: 2457 | Y61: 2432 | Z61: 2011 | AA61: 1929 | AB61: 7881 | AC61: 681 | AD61: 2913 | AE61: 7162 | AF61: 10328 | AG61: =AG102+AG143+AG184+AG225+AG266 -> 4666 | AH61: 1752 | AI61: 1601 | AJ61: 1959 | AK61: 2889 | AL61: 6069 | AM61: 416 | AN61: 3226 | AO61: 3584 | AP61: 2588 | AQ61: 387 | AR61: 2729 | AS61: 6270 | AT61: 1775 | AU61: 1748 | AV61: 2560 | AW61: 61
A62: Female 80-84 | B62: 77714 | C62: 5960 | D62: 1927 | E62: 2773 | F62: 5251 | G62: 4053 | H62: 7885 | I62: 16597 | J62: 5127 | K62: 8846 | L62: 11221 | M62: 316 | N62: 290 | O62: 6955 | P62: 513 | Q62: 3197 | R62: 3230 | S62: 2016 | T62: 1576 | U62: 643 | V62: 2773 | W62: 2380 | X62: 1756 | Y62: 1759 | Z62: 1550 | AA62: 1560 | AB62: 6771 | AC62: 513 | AD62: 2114 | AE62: 5251 | AF62: 7978 | AG62: 3551 | AH62: 1403 | AI62: 1125 | AJ62: 1458 | AK62: 2143 | AL62: 4095 | AM62: 316 | AN62: 2559 | AO62: 2534 | AP62: 1927 | AQ62: 290 | AR62: 2061 | AS62: 4751 | AT62: 1296 | AU62: 1363 | AV62: 1775 | AW62: 62
A63: Female 85-89 | B63: =B104+B145+B186+B227+B268 -> 47499 | C63: 3602 | D63: 1239 | E63: 1635 | F63: 3424 | G63: 2400 | H63: 4869 | I63: 9839 | J63: 3162 | K63: 4968 | L63: 7006 | M63: 189 | N63: 184 | O63: 4635 | P63: 347 | Q63: 1904 | R63: 2089 | S63: 1364 | T63: 973 | U63: 375 | V63: 1635 | W63: 1507 | X63: 1015 | Y63: 1093 | Z63: 956 | AA63: 953 | AB63: 4374 | AC63: 347 | AD63: 1226 | AE63: 3424 | AF63: 4732 | AG63: 2189 | AH63: 835 | AI63: 677 | AJ63: 876 | AK63: 1240 | AL63: 2281 | AM63: 189 | AN63: 1764 | AO63: 1441 | AP63: 1239 | AQ63: 184 | AR63: 1347 | AS63: 2687 | AT63: 799 | AU63: 785 | AV63: 999 | AW63: 63
A64: Female 90+ | B64: 27066 | C64: 2199 | D64: 708 | E64: 929 | F64: 1895 | G64: 1386 | H64: 2704 | I64: 5744 | J64: 1926 | K64: 2637 | L64: 4044 | M64: 136 | N64: 119 | O64: 2422 | P64: 217 | Q64: 1018 | R64: 1204 | S64: 713 | T64: 648 | U64: 217 | V64: 929 | W64: 746 | X64: 607 | Y64: 570 | Z64: 564 | AA64: 614 | AB64: 2575 | AC64: 217 | AD64: 695 | AE64: 1895 | AF64: 2803 | AG64: 1278 | AH64: 482 | AI64: 366 | AJ64: 482 | AK64: 792 | AL64: 1119 | AM64: 136 | AN64: 963 | AO64: 836 | AP64: 708 | AQ64: 119 | AR64: 800 | AS64: 1518 | AT64: 474 | AU64: 439 | AV64: 539 | AW64: 64
A65: age/sex breakdown: Q1 | AW65: 65
A66: Male 0 | B66: 7747 | C66: 750 | D66: 49 | E66: 87 | F66: 558 | G66: 354 | H66: 289 | I66: 2880 | J66: 197 | K66: 1152 | L66: 819 | O66: 612 | Q66: 239 | R66: 47 | S66: 93 | T66: 51 | U66: 121 | V66: 87 | W66: 438 | X66: 285 | Y66: 29 | Z66: 45 | AA66: 41 | AB66: 503 | AC66: 0 | AD66: 174 | AE66: 558 | AF66: 2061 | AG66: 146 | AH66: 193 | AI66: 90 | AJ66: 3 | AK66: 324 | AL66: 719 | AM66: 0 | AN66: 81 | AO66: 332 | AP66: 49 | AQ66: 0 | AR66: 141 | AS66: 433 | AT66: 59 | AU66: 224 | AV66: 181 | AW66: 66
A67: Male 1-4 | B67: 29238 | C67: 2712 | D67: 184 | E67: 341 | F67: 2075 | G67: 1279 | H67: 1125 | I67: 10860 | J67: 829 | K67: 4353 | L67: 3398 | O67: 2082 | Q67: 940 | R67: 153 | S67: 289 | T67: 199 | U67: 386 | V67: 341 | W67: 1534 | X67: 961 | Y67: 148 | Z67: 163 | AA67: 217 | AB67: 2151 | AC67: 0 | AD67: 666 | AE67: 2075 | AF67: 7404 | AG67: 630 | AH67: 837 | AI67: 242 | AJ67: 32 | AK67: 1313 | AL67: 2890 | AM67: 0 | AN67: 259 | AO67: 1260 | AP67: 184 | AQ67: 0 | AR67: 438 | AS67: 1463 | AT67: 227 | AU67: 994 | AV67: 842 | AW67: 67
A68: Male 5-9 | B68: 31097 | C68: 3004 | D68: 240 | E68: 380 | F68: 2045 | G68: 1381 | H68: 1017 | I68: 11586 | J68: 842 | K68: 5092 | L68: 3320 | O68: 2190 | Q68: 870 | R68: 129 | S68: 317 | T68: 206 | U68: 421 | V68: 380 | W68: 1644 | X68: 1063 | Y68: 153 | Z68: 136 | AA68: 199 | AB68: 1986 | AC68: 0 | AD68: 682 | AE68: 2045 | AF68: 7983 | AG68: 636 | AH68: 964 | AI68: 263 | AJ68: 18 | AK68: 1480 | AL68: 3378 | AM68: 0 | AN68: 229 | AO68: 1265 | AP68: 240 | AQ68: 0 | AR68: 461 | AS68: 1714 | AT68: 278 | AU68: 1022 | AV68: 935 | AW68: 68
A69: Male 10-14 | B69: 30405 | C69: 2919 | D69: 213 | E69: 297 | F69: 2036 | G69: 1353 | H69: 1005 | I69: 11479 | J69: 815 | K69: 5037 | L69: 3150 | O69: 2101 | Q69: 862 | R69: 107 | S69: 319 | T69: 222 | U69: 433 | V69: 297 | W69: 1536 | X69: 962 | Y69: 152 | Z69: 158 | AA69: 206 | AB69: 1928 | AC69: 0 | AD69: 620 | AE69: 2036 | AF69: 8000 | AG69: 593 | AH69: 911 | AI69: 276 | AJ69: 36 | AK69: 1465 | AL69: 3353 | AM69: 0 | AN69: 246 | AO69: 1243 | AP69: 213 | AQ69: 0 | AR69: 492 | AS69: 1684 | AT69: 300 | AU69: 967 | AV69: 788 | AW69: 69
A70: Male 15-19 | B70: 33526 | C70: 3517 | D70: 206 | E70: 377 | F70: 2094 | G70: 1429 | H70: 981 | I70: 12763 | J70: 976 | K70: 5514 | L70: 3380 | O70: 2289 | Q70: 791 | R70: 156 | S70: 381 | T70: 283 | U70: 454 | V70: 377 | W70: 1677 | X70: 1238 | Y70: 181 | Z70: 192 | AA70: 228 | AB70: 2006 | AC70: 0 | AD70: 657 | AE70: 2094 | AF70: 8745 | AG70: 693 | AH70: 1095 | AI70: 299 | AJ70: 34 | AK70: 1752 | AL70: 3638 | AM70: 0 | AN70: 231 | AO70: 1395 | AP70: 206 | AQ70: 0 | AR70: 527 | AS70: 1876 | AT70: 318 | AU70: 1119 | AV70: 883 | AW70: 70
A71: Male 20-24 | B71: 38154 | C71: 3650 | D71: 196 | E71: 439 | F71: 2128 | G71: 1601 | H71: 1484 | I71: 15516 | J71: 942 | K71: 5581 | L71: 3697 | O71: 2920 | Q71: 1278 | R71: 168 | S71: 333 | T71: 282 | U71: 428 | V71: 439 | W71: 2223 | X71: 1250 | Y71: 143 | Z71: 167 | AA71: 216 | AB71: 2337 | AC71: 0 | AD71: 800 | AE71: 2128 | AF71: 11199 | AG71: 660 | AH71: 1120 | AI71: 285 | AJ71: 38 | AK71: 1704 | AL71: 3674 | AM71: 0 | AN71: 364 | AO71: 1719 | AP71: 196 | AQ71: 0 | AR71: 696 | AS71: 1907 | AT71: 373 | AU71: 1119 | AV71: 908 | AW71: 71
A72: Male 25-29 | B72: 38609 | C72: 3254 | D72: 164 | E72: 337 | F72: 2161 | G72: 1479 | H72: 1557 | I72: 15963 | J72: 1020 | K72: 5536 | L72: 4069 | O72: 3069 | Q72: 1295 | R72: 229 | S72: 394 | T72: 255 | U72: 410 | V72: 337 | W72: 2349 | X72: 1067 | Y72: 105 | Z72: 166 | AA72: 230 | AB72: 2678 | AC72: 0 | AD72: 727 | AE72: 2161 | AF72: 11470 | AG72: 765 | AH72: 1153 | AI72: 295 | AJ72: 33 | AK72: 1495 | AL72: 3626 | AM72: 0 | AN72: 326 | AO72: 1866 | AP72: 164 | AQ72: 0 | AR72: 692 | AS72: 1910 | AT72: 342 | AU72: 1139 | AV72: 930 | AW72: 72
A73: Male 30-34 | B73: 36193 | C73: 3066 | D73: 216 | E73: 305 | F73: 2066 | G73: 1398 | H73: 1581 | I73: 14711 | J73: 822 | K73: 5532 | L73: 3984 | O73: 2512 | Q73: 1325 | R73: 224 | S73: 379 | T73: 202 | U73: 430 | V73: 305 | W73: 1759 | X73: 987 | Y73: 141 | Z73: 140 | AA73: 193 | AB73: 2708 | AC73: 0 | AD73: 723 | AE73: 2066 | AF73: 10655 | AG73: 620 | AH73: 978 | AI73: 249 | AJ73: 32 | AK73: 1472 | AL73: 3446 | AM73: 0 | AN73: 374 | AO73: 1766 | AP73: 216 | AQ73: 0 | AR73: 607 | AS73: 2086 | AT73: 245 | AU73: 978 | AV73: 887 | AW73: 73
A74: Male 35-39 | B74: 32115 | C74: 2894 | D74: 186 | E74: 307 | F74: 1982 | G74: 1276 | H74: 1333 | I74: 12405 | J74: 760 | K74: 5246 | L74: 3726 | O74: 2000 | Q74: 1096 | R74: 194 | S74: 301 | T74: 180 | U74: 386 | V74: 307 | W74: 1451 | X74: 976 | Y74: 109 | Z74: 142 | AA74: 180 | AB74: 2440 | AC74: 0 | AD74: 681 | AE74: 1982 | AF74: 8908 | AG74: 580 | AH74: 883 | AI74: 260 | AJ74: 43 | AK74: 1319 | AL74: 3282 | AM74: 0 | AN74: 248 | AO74: 1396 | AP74: 186 | AQ74: 0 | AR74: 599 | AS74: 1964 | AT74: 209 | AU74: 929 | AV74: 884 | AW74: 74
A75: Male 40-44 | B75: 36315 | C75: 3384 | D75: 227 | E75: 352 | F75: 2326 | G75: 1578 | H75: 1217 | I75: 14280 | J75: 874 | K75: 5959 | L75: 3787 | O75: 2331 | Q75: 1016 | R75: 166 | S75: 327 | T75: 243 | U75: 454 | V75: 352 | W75: 1720 | X75: 1234 | Y75: 154 | Z75: 180 | AA75: 219 | AB75: 2327 | AC75: 0 | AD75: 847 | AE75: 2326 | AF75: 9901 | AG75: 631 | AH75: 1146 | AI75: 300 | AJ75: 35 | AK75: 1613 | AL75: 3798 | AM75: 0 | AN75: 284 | AO75: 1792 | AP75: 227 | AQ75: 0 | AR75: 537 | AS75: 2161 | AT75: 277 | AU75: 1068 | AV75: 980 | AW75: 75
A76: Male 45-49 | B76: 38167 | C76: 3640 | D76: 265 | E76: 425 | F76: 2379 | G76: 1650 | H76: 1217 | I76: 15132 | J76: 988 | K76: 6202 | L76: 3819 | O76: 2450 | Q76: 1020 | R76: 149 | S76: 353 | T76: 297 | U76: 503 | V76: 425 | W76: 1788 | X76: 1310 | Y76: 151 | Z76: 180 | AA76: 267 | AB76: 2396 | AC76: 0 | AD76: 818 | AE76: 2379 | AF76: 10255 | AG76: 691 | AH76: 1358 | AI76: 268 | AJ76: 48 | AK76: 1733 | AL76: 4094 | AM76: 0 | AN76: 309 | AO76: 1811 | AP76: 265 | AQ76: 0 | AR76: 597 | AS76: 2108 | AT76: 329 | AU76: 1290 | AV76: 975 | AW76: 76
A77: Male 50-54 | B77: 35452 | C77: 3583 | D77: 199 | E77: 370 | F77: 2355 | G77: 1554 | H77: 1174 | I77: 13975 | J77: 928 | K77: 5803 | L77: 3270 | O77: 2241 | Q77: 960 | R77: 167 | S77: 296 | T77: 268 | U77: 460 | V77: 370 | W77: 1684 | X77: 1238 | Y77: 164 | Z77: 188 | AA77: 237 | AB77: 1949 | AC77: 0 | AD77: 792 | AE77: 2355 | AF77: 9380 | AG77: 660 | AH77: 1252 | AI77: 282 | AJ77: 47 | AK77: 1713 | AL77: 3725 | AM77: 0 | AN77: 261 | AO77: 1835 | AP77: 199 | AQ77: 0 | AR77: 632 | AS77: 2078 | AT77: 302 | AU77: 1107 | AV77: 851 | AW77: 77
A78: Male 55-59 | B78: 30023 | C78: 3169 | D78: 157 | E78: 328 | F78: 1926 | G78: 1300 | H78: 972 | I78: 11576 | J78: 834 | K78: 5021 | L78: 2731 | O78: 2009 | Q78: 820 | R78: 120 | S78: 272 | T78: 248 | U78: 405 | V78: 328 | W78: 1522 | X78: 1064 | Y78: 133 | Z78: 127 | AA78: 161 | AB78: 1685 | AC78: 0 | AD78: 615 | AE78: 1926 | AF78: 7881 | AG78: 586 | AH78: 1019 | AI78: 244 | AJ78: 32 | AK78: 1476 | AL78: 3073 | AM78: 0 | AN78: 215 | AO78: 1379 | AP78: 157 | AQ78: 0 | AR78: 629 | AS78: 1948 | AT78: 280 | AU78: 1003 | AV78: 675 | AW78: 78
A79: Male 60-64 | B79: 27632 | C79: 2972 | D79: 197 | E79: 355 | F79: 1863 | G79: 1279 | H79: 924 | I79: 10223 | J79: 769 | K79: 4645 | L79: 2517 | O79: 1888 | Q79: 769 | R79: 112 | S79: 297 | T79: 242 | U79: 369 | V79: 355 | W79: 1382 | X79: 1001 | Y79: 110 | Z79: 124 | AA79: 158 | AB79: 1483 | AC79: 0 | AD79: 643 | AE79: 1863 | AF79: 6780 | AG79: 527 | AH79: 1075 | AI79: 212 | AJ79: 43 | AK79: 1436 | AL79: 2933 | AM79: 0 | AN79: 209 | AO79: 1240 | AP79: 197 | AQ79: 0 | AR79: 535 | AS79: 1712 | AT79: 267 | AU79: 860 | AV79: 698 | AW79: 79
A80: Male 65-69 | B80: 23363 | C80: 2604 | D80: 185 | E80: 284 | F80: 1634 | G80: 1094 | H80: 632 | I80: 8623 | J80: 653 | K80: 4052 | L80: 2033 | O80: 1569 | Q80: 528 | R80: 84 | S80: 217 | T80: 217 | U80: 302 | V80: 284 | W80: 1198 | X80: 876 | Y80: 90 | Z80: 95 | AA80: 114 | AB80: 1144 | AC80: 0 | AD80: 572 | AE80: 1634 | AF80: 5858 | AG80: 436 | AH80: 871 | AI80: 176 | AJ80: 20 | AK80: 1258 | AL80: 2505 | AM80: 0 | AN80: 154 | AO80: 999 | AP80: 185 | AQ80: 0 | AR80: 470 | AS80: 1547 | AT80: 220 | AU80: 691 | AV80: 618 | AW80: 80
A81: Male 70-74 | B81: 18365 | C81: 2133 | D81: 96 | E81: 228 | F81: 1198 | G81: 806 | H81: 444 | I81: 7014 | J81: 502 | K81: 3174 | L81: 1533 | O81: 1237 | Q81: 362 | R81: 60 | S81: 182 | T81: 169 | U81: 228 | V81: 228 | W81: 911 | X81: 742 | Y81: 70 | Z81: 86 | AA81: 121 | AB81: 810 | AC81: 0 | AD81: 400 | AE81: 1198 | AF81: 4691 | AG81: 333 | AH81: 689 | AI81: 144 | AJ81: 22 | AK81: 1009 | AL81: 2016 | AM81: 0 | AN81: 144 | AO81: 926 | AP81: 96 | AQ81: 0 | AR81: 382 | AS81: 1158 | AT81: 178 | AU81: 517 | AV81: 493 | AW81: 81
A82: Male 75-79 | B82: 13854 | C82: 1570 | D82: 81 | E82: 148 | F82: 847 | G82: 630 | H82: 393 | I82: 5348 | J82: 334 | K82: 2337 | L82: 1238 | O82: 928 | Q82: 311 | R82: 57 | S82: 150 | T82: 97 | U82: 143 | V82: 148 | W82: 697 | X82: 552 | Y82: 43 | Z82: 57 | AA82: 89 | AB82: 691 | AC82: 0 | AD82: 371 | AE82: 847 | AF82: 3588 | AG82: 237 | AH82: 509 | AI82: 107 | AJ82: 25 | AK82: 713 | AL82: 1450 | AM82: 0 | AN82: 81 | AO82: 730 | AP82: 81 | AQ82: 0 | AR82: 305 | AS82: 887 | AT82: 116 | AU82: 389 | AV82: 383 | AW82: 82
A83: Male 80-84 | B83: 8729 | C83: 989 | D83: 48 | E83: 94 | F83: 593 | G83: 386 | H83: 232 | I83: 3443 | J83: 222 | K83: 1369 | L83: 763 | O83: 590 | Q83: 187 | R83: 33 | S83: 94 | T83: 87 | U83: 96 | V83: 94 | W83: 417 | X83: 359 | Y83: 27 | Z83: 33 | AA83: 38 | AB83: 438 | AC83: 0 | AD83: 229 | AE83: 593 | AF83: 2318 | AG83: 135 | AH83: 342 | AI83: 84 | AJ83: 12 | AK83: 444 | AL83: 867 | AM83: 0 | AN83: 79 | AO83: 458 | AP83: 48 | AQ83: 0 | AR83: 186 | AS83: 502 | AT83: 61 | AU83: 260 | AV83: 208 | AW83: 83
A84: Male 85-89 | B84: 4001 | C84: 455 | D84: 36 | E84: 43 | F84: 320 | G84: 185 | H84: 129 | I84: 1496 | J84: 113 | K84: 595 | L84: 352 | O84: 277 | Q84: 103 | R84: 22 | S84: 36 | T84: 33 | U84: 38 | V84: 43 | W84: 213 | X84: 155 | Y84: 8 | Z84: 11 | AA84: 19 | AB84: 201 | AC84: 0 | AD84: 122 | AE84: 320 | AF84: 993 | AG84: 80 | AH84: 144 | AI84: 39 | AJ84: 4 | AK84: 199 | AL84: 399 | AM84: 0 | AN84: 28 | AO84: 196 | AP84: 36 | AQ84: 0 | AR84: 101 | AS84: 196 | AT84: 25 | AU84: 136 | AV84: 101 | AW84: 84
A85: Male 90+ | B85: 1557 | C85: 178 | D85: 13 | E85: 26 | F85: 125 | G85: 68 | H85: 49 | I85: 602 | J85: 35 | K85: 210 | L85: 139 | O85: 112 | Q85: 38 | R85: 7 | S85: 18 | T85: 13 | U85: 20 | V85: 26 | W85: 83 | X85: 62 | Y85: 7 | Z85: 6 | AA85: 6 | AB85: 80 | AC85: 0 | AD85: 35 | AE85: 125 | AF85: 395 | AG85: 22 | AH85: 51 | AI85: 19 | AJ85: 4 | AK85: 79 | AL85: 135 | AM85: 0 | AN85: 11 | AO85: 71 | AP85: 13 | AQ85: 0 | AR85: 37 | AS85: 75 | AT85: 13 | AU85: 72 | AV85: 34 | AW85: 85
A86: Female 0 | B86: 7441 | C86: 704 | D86: 64 | E86: 85 | F86: 519 | G86: 340 | H86: 304 | I86: 2812 | J86: 189 | K86: 1041 | L86: 828 | O86: 555 | Q86: 265 | R86: 33 | S86: 71 | T86: 56 | U86: 113 | V86: 85 | W86: 418 | X86: 242 | Y86: 28 | Z86: 35 | AA86: 43 | AB86: 529 | AC86: 0 | AD86: 175 | AE86: 519 | AF86: 1991 | AG86: 133 | AH86: 170 | AI86: 73 | AJ86: 6 | AK86: 346 | AL86: 649 | AM86: 0 | AN86: 66 | AO86: 336 | AP86: 64 | AQ86: 0 | AR86: 116 | AS86: 392 | AT86: 52 | AU86: 244 | AV86: 191 | AW86: 86
A87: Female 1-4 | B87: 28152 | C87: 2637 | D87: 212 | E87: 319 | F87: 1836 | G87: 1183 | H87: 1054 | I87: 10584 | J87: 755 | K87: 4294 | L87: 3315 | O87: 1963 | Q87: 888 | R87: 144 | S87: 297 | T87: 205 | U87: 369 | V87: 319 | W87: 1411 | X87: 862 | Y87: 153 | Z87: 138 | AA87: 189 | AB87: 2147 | AC87: 0 | AD87: 609 | AE87: 1836 | AF87: 7312 | AG87: 550 | AH87: 727 | AI87: 246 | AJ87: 22 | AK87: 1280 | AL87: 2788 | AM87: 0 | AN87: 255 | AO87: 1265 | AP87: 212 | AQ87: 0 | AR87: 495 | AS87: 1506 | AT87: 205 | AU87: 938 | AV87: 784 | AW87: 87
A88: Female 5-9 | B88: 30018 | C88: 2941 | D88: 200 | E88: 375 | F88: 1963 | G88: 1292 | H88: 963 | I88: 11286 | J88: 785 | K88: 4954 | L88: 3156 | O88: 2103 | Q88: 841 | R88: 97 | S88: 296 | T88: 219 | U88: 389 | V88: 375 | W88: 1579 | X88: 1026 | Y88: 142 | Z88: 152 | AA88: 241 | AB88: 1917 | AC88: 0 | AD88: 625 | AE88: 1963 | AF88: 7639 | AG88: 566 | AH88: 887 | AI88: 221 | AJ88: 25 | AK88: 1443 | AL88: 3242 | AM88: 0 | AN88: 228 | AO88: 1353 | AP88: 200 | AQ88: 0 | AR88: 472 | AS88: 1712 | AT88: 278 | AU88: 1024 | AV88: 866 | AW88: 88
A89: Female 10-14 | B89: 29394 | C89: 2909 | D89: 218 | E89: 319 | F89: 1912 | G89: 1276 | H89: 902 | I89: 11050 | J89: 770 | K89: 4930 | L89: 3053 | O89: 2055 | Q89: 778 | R89: 87 | S89: 328 | T89: 191 | U89: 377 | V89: 319 | W89: 1497 | X89: 975 | Y89: 127 | Z89: 160 | AA89: 213 | AB89: 1806 | AC89: 0 | AD89: 622 | AE89: 1912 | AF89: 7571 | AG89: 579 | AH89: 831 | AI89: 256 | AJ89: 37 | AK89: 1438 | AL89: 3246 | AM89: 0 | AN89: 230 | AO89: 1332 | AP89: 218 | AQ89: 0 | AR89: 496 | AS89: 1684 | AT89: 277 | AU89: 976 | AV89: 831 | AW89: 89
A90: Female 15-19 | B90: 33041 | C90: 3557 | D90: 215 | E90: 366 | F90: 2172 | G90: 1462 | H90: 1035 | I90: 12420 | J90: 843 | K90: 5382 | L90: 3295 | O90: 2294 | Q90: 876 | R90: 124 | S90: 358 | T90: 240 | U90: 458 | V90: 366 | W90: 1660 | X90: 1205 | Y90: 145 | Z90: 193 | AA90: 242 | AB90: 1905 | AC90: 0 | AD90: 673 | AE90: 2172 | AF90: 8475 | AG90: 603 | AH90: 1040 | AI90: 292 | AJ90: 35 | AK90: 1726 | AL90: 3526 | AM90: 0 | AN90: 276 | AO90: 1435 | AP90: 215 | AQ90: 0 | AR90: 626 | AS90: 1856 | AT90: 331 | AU90: 1083 | AV90: 905 | AW90: 90
A91: Female 20-24 | B91: 41964 | C91: 3863 | D91: 245 | E91: 515 | F91: 2428 | G91: 1861 | H91: 1765 | I91: 16949 | J91: 991 | K91: 5836 | L91: 4277 | O91: 3234 | Q91: 1506 | R91: 216 | S91: 400 | T91: 239 | U91: 499 | V91: 515 | W91: 2459 | X91: 1282 | Y91: 149 | Z91: 173 | AA91: 270 | AB91: 2784 | AC91: 0 | AD91: 914 | AE91: 2428 | AF91: 12147 | AG91: 752 | AH91: 1214 | AI91: 340 | AJ91: 43 | AK91: 1807 | AL91: 3841 | AM91: 0 | AN91: 375 | AO91: 1881 | AP91: 245 | AQ91: 0 | AR91: 774 | AS91: 1995 | AT91: 448 | AU91: 1288 | AV91: 980 | AW91: 91
A92: Female 25-29 | B92: 43616 | C92: 3720 | D92: 247 | E92: 408 | F92: 2510 | G92: 1672 | H92: 1773 | I92: 17673 | J92: 1077 | K92: 6455 | L92: 4808 | O92: 3273 | Q92: 1521 | R92: 227 | S92: 448 | T92: 256 | U92: 484 | V92: 408 | W92: 2405 | X92: 1313 | Y92: 151 | Z92: 161 | AA92: 247 | AB92: 3210 | AC92: 0 | AD92: 832 | AE92: 2510 | AF92: 12734 | AG92: 821 | AH92: 1222 | AI92: 301 | AJ92: 25 | AK92: 1641 | AL92: 4162 | AM92: 0 | AN92: 420 | AO92: 1995 | AP92: 247 | AQ92: 0 | AR92: 766 | AS92: 2293 | AT92: 356 | AU92: 1324 | AV92: 1136 | AW92: 92
A93: Female 30-34 | B93: 39128 | C93: 3276 | D93: 219 | E93: 415 | F93: 2243 | G93: 1527 | H93: 1422 | I93: 15870 | J93: 927 | K93: 5960 | L93: 4469 | O93: 2800 | Q93: 1232 | R93: 165 | S93: 417 | T93: 203 | U93: 452 | V93: 415 | W93: 2037 | X93: 1096 | Y93: 152 | Z93: 176 | AA93: 271 | AB93: 3006 | AC93: 0 | AD93: 788 | AE93: 2243 | AF93: 11278 | AG93: 724 | AH93: 1088 | AI93: 288 | AJ93: 25 | AK93: 1587 | AL93: 3720 | AM93: 0 | AN93: 346 | AO93: 1877 | AP93: 219 | AQ93: 0 | AR93: 593 | AS93: 2240 | AT93: 287 | AU93: 1204 | AV93: 999 | AW93: 93
A94: Female 35-39 | B94: 33576 | C94: 3212 | D94: 225 | E94: 323 | F94: 1932 | G94: 1472 | H94: 1209 | I94: 13183 | J94: 817 | K94: 5454 | L94: 3568 | O94: 2181 | Q94: 1050 | R94: 133 | S94: 300 | T94: 210 | U94: 452 | V94: 323 | W94: 1610 | X94: 1081 | Y94: 135 | Z94: 165 | AA94: 227 | AB94: 2230 | AC94: 0 | AD94: 731 | AE94: 1932 | AF94: 9236 | AG94: 607 | AH94: 989 | AI94: 264 | AJ94: 26 | AK94: 1587 | AL94: 3454 | AM94: 0 | AN94: 271 | AO94: 1521 | AP94: 225 | AQ94: 0 | AR94: 544 | AS94: 2000 | AT94: 289 | AU94: 1075 | AV94: 909 | AW94: 94
A95: Female 40-44 | B95: 39423 | C95: 3943 | D95: 230 | E95: 385 | F95: 2513 | G95: 1654 | H95: 1217 | I95: 15931 | J95: 960 | K95: 6422 | L95: 3772 | O95: 2396 | Q95: 1038 | R95: 143 | S95: 357 | T95: 263 | U95: 504 | V95: 385 | W95: 1755 | X95: 1374 | Y95: 168 | Z95: 169 | AA95: 272 | AB95: 2309 | AC95: 0 | AD95: 784 | AE95: 2513 | AF95: 10906 | AG95: 697 | AH95: 1358 | AI95: 314 | AJ95: 36 | AK95: 1881 | AL95: 4181 | AM95: 0 | AN95: 284 | AO95: 1937 | AP95: 230 | AQ95: 0 | AR95: 688 | AS95: 2241 | AT95: 366 | AU95: 1290 | AV95: 980 | AW95: 95
A96: Female 45-49 | B96: 40563 | C96: 4178 | D96: 214 | E96: 432 | F96: 2589 | G96: 1738 | H96: 1224 | I96: 16547 | J96: 972 | K96: 6529 | L96: 3631 | O96: 2509 | Q96: 1020 | R96: 161 | S96: 339 | T96: 261 | U96: 521 | V96: 432 | W96: 1872 | X96: 1490 | Y96: 187 | Z96: 212 | AA96: 295 | AB96: 2109 | AC96: 0 | AD96: 856 | AE96: 2589 | AF96: 11376 | AG96: 711 | AH96: 1378 | AI96: 307 | AJ96: 43 | AK96: 2065 | AL96: 4208 | AM96: 0 | AN96: 298 | AO96: 1915 | AP96: 214 | AQ96: 0 | AR96: 623 | AS96: 2321 | AT96: 361 | AU96: 1396 | AV96: 1003 | AW96: 96
A97: Female 50-54 | B97: 37487 | C97: 3817 | D97: 202 | E97: 368 | F97: 2291 | G97: 1588 | H97: 1101 | I97: 15201 | J97: 928 | K97: 6024 | L97: 3496 | O97: 2471 | Q97: 920 | R97: 149 | S97: 381 | T97: 275 | U97: 470 | V97: 368 | W97: 1838 | X97: 1271 | Y97: 172 | Z97: 189 | AA97: 250 | AB97: 2090 | AC97: 0 | AD97: 789 | AE97: 2291 | AF97: 10386 | AG97: 653 | AH97: 1321 | AI97: 309 | AJ97: 32 | AK97: 1887 | AL97: 3807 | AM97: 0 | AN97: 252 | AO97: 1840 | AP97: 202 | AQ97: 0 | AR97: 659 | AS97: 2217 | AT97: 329 | AU97: 1232 | AV97: 908 | AW97: 97
A98: Female 55-59 | B98: 31645 | C98: 3455 | D98: 195 | E98: 333 | F98: 1945 | G98: 1357 | H98: 970 | I98: 12165 | J98: 853 | K98: 5466 | L98: 2853 | O98: 2053 | Q98: 812 | R98: 127 | S98: 290 | T98: 249 | U98: 418 | V98: 333 | W98: 1519 | X98: 1134 | Y98: 140 | Z98: 154 | AA98: 187 | AB98: 1663 | AC98: 0 | AD98: 638 | AE98: 1945 | AF98: 8195 | AG98: 604 | AH98: 1137 | AI98: 243 | AJ98: 31 | AK98: 1693 | AL98: 3378 | AM98: 0 | AN98: 244 | AO98: 1432 | AP98: 195 | AQ98: 0 | AR98: 628 | AS98: 2088 | AT98: 301 | AU98: 1074 | AV98: 793 | AW98: 98
A99: Female 60-64 | B99: 28929 | C99: 3178 | D99: 191 | E99: 290 | F99: 1951 | G99: 1237 | H99: 818 | I99: 10733 | J99: 796 | K99: 5148 | L99: 2671 | O99: 1916 | Q99: 690 | R99: 98 | S99: 251 | T99: 260 | U99: 380 | V99: 290 | W99: 1450 | X99: 1079 | Y99: 109 | Z99: 152 | AA99: 194 | AB99: 1501 | AC99: 0 | AD99: 625 | AE99: 1951 | AF99: 7120 | AG99: 536 | AH99: 1086 | AI99: 251 | AJ99: 30 | AK99: 1561 | AL99: 3202 | AM99: 0 | AN99: 215 | AO99: 1264 | AP99: 191 | AQ99: 0 | AR99: 538 | AS99: 1946 | AT99: 232 | AU99: 960 | AV99: 767 | AW99: 99
A100: Female 65-69 | B100: 25631 | C100: 2787 | D100: 173 | E100: 308 | F100: 1737 | G100: 1098 | H100: 658 | I100: 9752 | J100: 687 | K100: 4499 | L100: 2228 | O100: 1704 | Q100: 540 | R100: 81 | S100: 274 | T100: 214 | U100: 355 | V100: 308 | W100: 1261 | X100: 931 | Y100: 99 | Z100: 97 | AA100: 148 | AB100: 1253 | AC100: 0 | AD100: 541 | AE100: 1737 | AF100: 6567 | AG100: 473 | AH100: 968 | AI100: 213 | AJ100: 37 | AK100: 1389 | AL100: 2805 | AM100: 0 | AN100: 169 | AO100: 1173 | AP100: 173 | AQ100: 0 | AR100: 467 | AS100: 1694 | AT100: 202 | AU100: 797 | AV100: 665 | AW100: 100
A101: Female 70-74 | B101: 22967 | C101: 2549 | D101: 129 | E101: 247 | F101: 1422 | G101: 986 | H101: 556 | I101: 9292 | J101: 580 | K101: 3927 | L101: 1865 | O101: 1414 | Q101: 460 | R101: 59 | S101: 211 | T101: 184 | U101: 256 | V101: 247 | W101: 1063 | X101: 812 | Y101: 87 | Z101: 80 | AA101: 142 | AB101: 1061 | AC101: 0 | AD101: 551 | AE101: 1422 | AF101: 6289 | AG101: 396 | AH101: 883 | AI101: 169 | AJ101: 37 | AK101: 1277 | AL101: 2451 | AM101: 0 | AN101: 140 | AO101: 1213 | AP101: 129 | AQ101: 0 | AR101: 460 | AS101: 1476 | AT101: 179 | AU101: 678 | AV101: 555 | AW101: 101
A102: Female 75-79 | B102: 20241 | C102: 2065 | D102: 99 | E102: 196 | F102: 1216 | G102: 884 | H102: 550 | I102: 8488 | J102: 474 | K102: 3338 | L102: 1675 | O102: 1256 | Q102: 448 | R102: 71 | S102: 182 | T102: 142 | U102: 202 | V102: 196 | W102: 941 | X102: 732 | Y102: 58 | Z102: 74 | AA102: 118 | AB102: 976 | AC102: 0 | AD102: 505 | AE102: 1216 | AF102: 5754 | AG102: 332 | AH102: 834 | AI102: 146 | AJ102: 31 | AK102: 974 | AL102: 2102 | AM102: 0 | AN102: 133 | AO102: 1105 | AP102: 99 | AQ102: 0 | AR102: 359 | AS102: 1236 | AT102: 177 | AU102: 619 | AV102: 479 | AW102: 102
A103: Female 80-84 | B103: 15085 | C103: 1545 | D103: 91 | E103: 157 | F103: 932 | G103: 618 | H103: 426 | I103: 6305 | J103: 409 | K103: 2332 | L103: 1243 | O103: 1027 | Q103: 366 | R103: 48 | S103: 160 | T103: 159 | U103: 150 | V103: 157 | W103: 765 | X103: 555 | Y103: 51 | Z103: 52 | AA103: 74 | AB103: 765 | AC103: 0 | AD103: 355 | AE103: 932 | AF103: 4321 | AG103: 250 | AH103: 599 | AI103: 123 | AJ103: 12 | AK103: 717 | AL103: 1465 | AM103: 0 | AN103: 102 | AO103: 785 | AP103: 91 | AQ103: 0 | AR103: 273 | AS103: 867 | AT103: 113 | AU103: 475 | AV103: 303 | AW103: 103
A104: Female 85-89 | B104: 8509 | C104: 832 | D104: 45 | E104: 80 | F104: 596 | G104: 340 | H104: 238 | I104: 3556 | J104: 253 | K104: 1254 | L104: 706 | O104: 609 | Q104: 198 | R104: 31 | S104: 91 | T104: 97 | U104: 95 | V104: 80 | W104: 470 | X104: 285 | Y104: 39 | Z104: 23 | AA104: 43 | AB104: 420 | AC104: 0 | AD104: 196 | AE104: 596 | AF104: 2381 | AG104: 156 | AH104: 327 | AI104: 91 | AJ104: 9 | AK104: 379 | AL104: 807 | AM104: 0 | AN104: 48 | AO104: 457 | AP104: 45 | AQ104: 0 | AR104: 168 | AS104: 447 | AT104: 49 | AU104: 309 | AV104: 172 | AW104: 104
A105: Female 90+ | B105: 4730 | C105: 518 | D105: 21 | E105: 27 | F105: 312 | G105: 192 | H105: 110 | I105: 2112 | J105: 126 | K105: 660 | L105: 377 | O105: 275 | Q105: 98 | R105: 10 | S105: 32 | T105: 50 | U105: 47 | V105: 27 | W105: 203 | X105: 188 | Y105: 23 | Z105: 11 | AA105: 25 | AB105: 210 | AC105: 0 | AD105: 105 | AE105: 312 | AF105: 1438 | AG105: 76 | AH105: 180 | AI105: 39 | AJ105: 2 | AK105: 237 | AL105: 378 | AM105: 0 | AN105: 40 | AO105: 272 | AP105: 21 | AQ105: 0 | AR105: 93 | AS105: 282 | AT105: 40 | AU105: 174 | AV105: 117 | AW105: 105
A106: age/sex breakdown: Q2 | AW106: 106
A107: Male 0 | B107: 6416 | C107: 530 | D107: 107 | E107: 190 | F107: 487 | G107: 426 | H107: 481 | I107: 1182 | J107: 384 | K107: 1027 | L107: 1078 | M107: 20 | N107: 17 | O107: 429 | P107: 58 | Q107: 275 | R107: 141 | S107: 142 | T107: 84 | U107: 65 | V107: 190 | W107: 180 | X107: 216 | Y107: 86 | Z107: 115 | AA107: 36 | AB107: 444 | AC107: 58 | AD107: 259 | AE107: 487 | AF107: 699 | AG107: 300 | AH107: 57 | AI107: 173 | AJ107: 65 | AK107: 158 | AL107: 615 | AM107: 20 | AN107: 107 | AO107: 156 | AP107: 107 | AQ107: 17 | AR107: 156 | AS107: 412 | AT107: 102 | AU107: 148 | AV107: 346 | AW107: 107
A108: Male 1-4 | B108: 24399 | C108: 2151 | D108: 388 | E108: 777 | F108: 1976 | G108: 1560 | H108: 1814 | I108: 4339 | J108: 1532 | K108: 3991 | L108: 4004 | M108: 100 | N108: 38 | O108: 1492 | P108: 237 | Q108: 931 | R108: 591 | S108: 470 | T108: 348 | U108: 184 | V108: 777 | W108: 601 | X108: 821 | Y108: 435 | Z108: 480 | AA108: 177 | AB108: 1490 | AC108: 237 | AD108: 952 | AE108: 1976 | AF108: 2348 | AG108: 1184 | AH108: 284 | AI108: 710 | AJ108: 292 | AK108: 619 | AL108: 2402 | AM108: 100 | AN108: 421 | AO108: 563 | AP108: 388 | AQ108: 38 | AR108: 711 | AS108: 1589 | AT108: 424 | AU108: 532 | AV108: 1324 | AW108: 108
A109: Male 5-9 | B109: 27132 | C109: 2624 | D109: 412 | E109: 936 | F109: 2218 | G109: 1895 | H109: 1688 | I109: 4529 | J109: 1794 | K109: 4739 | L109: 4324 | M109: 95 | N109: 47 | O109: 1565 | P109: 266 | Q109: 837 | R109: 587 | S109: 502 | T109: 438 | U109: 237 | V109: 936 | W109: 599 | X109: 972 | Y109: 457 | Z109: 579 | AA109: 233 | AB109: 1425 | AC109: 266 | AD109: 1128 | AE109: 2218 | AF109: 2189 | AG109: 1356 | AH109: 305 | AI109: 791 | AJ109: 264 | AK109: 782 | AL109: 2881 | AM109: 95 | AN109: 464 | AO109: 707 | AP109: 412 | AQ109: 47 | AR109: 870 | AS109: 1858 | AT109: 530 | AU109: 638 | AV109: 1529 | AW109: 109
A110: Male 10-14 | B110: 27129 | C110: 2902 | D110: 381 | E110: 951 | F110: 2170 | G110: 1890 | H110: 1586 | I110: 4797 | J110: 1645 | K110: 4646 | L110: 4135 | M110: 106 | N110: 28 | O110: 1598 | P110: 294 | Q110: 782 | R110: 539 | S110: 525 | T110: 397 | U110: 232 | V110: 951 | W110: 602 | X110: 1074 | Y110: 506 | Z110: 504 | AA110: 244 | AB110: 1354 | AC110: 294 | AD110: 1120 | AE110: 2170 | AF110: 2374 | AG110: 1248 | AH110: 322 | AI110: 753 | AJ110: 265 | AK110: 861 | AL110: 2747 | AM110: 106 | AN110: 471 | AO110: 705 | AP110: 381 | AQ110: 28 | AR110: 967 | AS110: 1899 | AT110: 538 | AU110: 646 | AV110: 1524 | AW110: 110
A111: Male 15-19 | B111: 31657 | C111: 3146 | D111: 501 | E111: 1084 | F111: 2407 | G111: 2139 | H111: 2034 | I111: 5941 | J111: 1873 | K111: 5136 | L111: 4712 | M111: 140 | N111: 51 | O111: 2196 | P111: 297 | Q111: 1112 | R111: 615 | S111: 629 | T111: 458 | U111: 272 | V111: 1084 | W111: 1068 | X111: 1173 | Y111: 555 | Z111: 580 | AA111: 294 | AB111: 1714 | AC111: 297 | AD111: 1319 | AE111: 2407 | AF111: 3126 | AG111: 1415 | AH111: 379 | AI111: 832 | AJ111: 307 | AK111: 969 | AL111: 2985 | AM111: 140 | AN111: 499 | AO111: 828 | AP111: 501 | AQ111: 51 | AR111: 1004 | AS111: 2151 | AT111: 548 | AU111: 759 | AV111: 1586 | AW111: 111
A112: Male 20-24 | B112: 38654 | C112: 2903 | D112: 518 | E112: 956 | F112: 2502 | G112: 2265 | H112: 3317 | I112: 8740 | J112: 1726 | K112: 5179 | L112: 6306 | M112: 147 | N112: 52 | O112: 3744 | P112: 299 | Q112: 2280 | R112: 707 | S112: 640 | T112: 407 | U112: 230 | V112: 956 | W112: 2224 | X112: 1132 | Y112: 593 | Z112: 567 | AA112: 255 | AB112: 3367 | AC112: 299 | AD112: 1192 | AE112: 2502 | AF112: 5671 | AG112: 1319 | AH112: 483 | AI112: 848 | AJ112: 330 | AK112: 846 | AL112: 3003 | AM112: 147 | AN112: 880 | AO112: 923 | AP112: 518 | AQ112: 52 | AR112: 925 | AS112: 2176 | AT112: 843 | AU112: 815 | AV112: 1524 | AW112: 112
A113: Male 25-29 | B113: 38727 | C113: 2938 | D113: 497 | E113: 914 | F113: 2406 | G113: 2254 | H113: 3450 | I113: 9010 | J113: 1797 | K113: 5163 | L113: 6610 | M113: 156 | N113: 44 | O113: 3233 | P113: 255 | Q113: 2384 | R113: 710 | S113: 646 | T113: 395 | U113: 275 | V113: 914 | W113: 1608 | X113: 1179 | Y113: 512 | Z113: 558 | AA113: 206 | AB113: 3638 | AC113: 255 | AD113: 1314 | AE113: 2406 | AF113: 6060 | AG113: 1402 | AH113: 416 | AI113: 740 | AJ113: 356 | AK113: 831 | AL113: 3041 | AM113: 156 | AN113: 979 | AO113: 1022 | AP113: 497 | AQ113: 44 | AR113: 928 | AS113: 2122 | AT113: 665 | AU113: 794 | AV113: 1674 | AW113: 113
A114: Male 30-34 | B114: 35787 | C114: 2653 | D114: 481 | E114: 828 | F114: 2483 | G114: 2218 | H114: 2846 | I114: 7883 | J114: 1805 | K114: 5304 | L114: 6154 | M114: 120 | N114: 47 | O114: 2697 | P114: 268 | Q114: 1844 | R114: 674 | S114: 676 | T114: 362 | U114: 255 | V114: 828 | W114: 1172 | X114: 1071 | Y114: 463 | Z114: 533 | AA114: 218 | AB114: 3376 | AC114: 268 | AD114: 1386 | AE114: 2483 | AF114: 5192 | AG114: 1443 | AH114: 427 | AI114: 707 | AJ114: 328 | AK114: 702 | AL114: 3180 | AM114: 120 | AN114: 849 | AO114: 838 | AP114: 481 | AQ114: 47 | AR114: 880 | AS114: 2124 | AT114: 577 | AU114: 745 | AV114: 1538 | AW114: 114
A115: Male 35-39 | B115: 32305 | C115: 2674 | D115: 459 | E115: 878 | F115: 2363 | G115: 2117 | H115: 2380 | I115: 6368 | J115: 1647 | K115: 5237 | L115: 5610 | M115: 125 | N115: 50 | O115: 2064 | P115: 333 | Q115: 1418 | R115: 672 | S115: 590 | T115: 372 | U115: 265 | V115: 878 | W115: 837 | X115: 1051 | Y115: 477 | Z115: 540 | AA115: 220 | AB115: 2666 | AC115: 333 | AD115: 1313 | AE115: 2363 | AF115: 3892 | AG115: 1275 | AH115: 353 | AI115: 743 | AJ115: 290 | AK115: 772 | AL115: 3115 | AM115: 125 | AN115: 637 | AO115: 778 | AP115: 459 | AQ115: 50 | AR115: 851 | AS115: 2122 | AT115: 539 | AU115: 648 | AV115: 1661 | AW115: 115
A116: Male 40-44 | B116: 36351 | C116: 3509 | D116: 581 | E116: 1136 | F116: 2882 | G116: 2605 | H116: 2403 | I116: 6755 | J116: 1932 | K116: 6064 | L116: 5752 | M116: 131 | N116: 26 | O116: 2149 | P116: 426 | Q116: 1337 | R116: 689 | S116: 663 | T116: 449 | U116: 385 | V116: 1136 | W116: 837 | X116: 1340 | Y116: 546 | Z116: 627 | AA116: 251 | AB116: 2465 | AC116: 426 | AD116: 1529 | AE116: 2882 | AF116: 3807 | AG116: 1483 | AH116: 374 | AI116: 794 | AJ116: 377 | AK116: 987 | AL116: 3470 | AM116: 131 | AN116: 649 | AO116: 916 | AP116: 581 | AQ116: 26 | AR116: 1182 | AS116: 2594 | AT116: 691 | AU116: 861 | AV116: 1866 | AW116: 116
A117: Male 45-49 | B117: 38035 | C117: 3819 | D117: 628 | E117: 1259 | F117: 3003 | G117: 2678 | H117: 2348 | I117: 7048 | J117: 2213 | K117: 6223 | L117: 5848 | M117: 168 | N117: 63 | O117: 2301 | P117: 436 | Q117: 1295 | R117: 670 | S117: 718 | T117: 524 | U117: 380 | V117: 1259 | W117: 931 | X117: 1468 | Y117: 678 | Z117: 771 | AA117: 327 | AB117: 2238 | AC117: 436 | AD117: 1615 | AE117: 3003 | AF117: 3604 | AG117: 1689 | AH117: 488 | AI117: 995 | AJ117: 383 | AK117: 1139 | AL117: 3506 | AM117: 168 | AN117: 652 | AO117: 994 | AP117: 628 | AQ117: 63 | AR117: 1212 | AS117: 2717 | AT117: 683 | AU117: 957 | AV117: 1844 | AW117: 117
A118: Male 50-54 | B118: 35899 | C118: 3569 | D118: 641 | E118: 1206 | F118: 2774 | G118: 2417 | H118: 2371 | I118: 6613 | J118: 2226 | K118: 5889 | L118: 5299 | M118: 144 | N118: 48 | O118: 2236 | P118: 466 | Q118: 1279 | R118: 716 | S118: 672 | T118: 519 | U118: 330 | V118: 1206 | W118: 909 | X118: 1313 | Y118: 635 | Z118: 683 | AA118: 321 | AB118: 2072 | AC118: 466 | AD118: 1432 | AE118: 2774 | AF118: 3362 | AG118: 1707 | AH118: 459 | AI118: 914 | AJ118: 376 | AK118: 1064 | AL118: 3215 | AM118: 144 | AN118: 655 | AO118: 912 | AP118: 641 | AQ118: 48 | AR118: 1192 | AS118: 2674 | AT118: 655 | AU118: 924 | AV118: 1630 | AW118: 118
A119: Male 55-59 | B119: 31719 | C119: 3203 | D119: 595 | E119: 1151 | F119: 2662 | G119: 1984 | H119: 2140 | I119: 5548 | J119: 2061 | K119: 5342 | L119: 4497 | M119: 162 | N119: 45 | O119: 1872 | P119: 457 | Q119: 1178 | R119: 614 | S119: 586 | T119: 517 | U119: 281 | V119: 1151 | W119: 710 | X119: 1187 | Y119: 521 | Z119: 583 | AA119: 256 | AB119: 1731 | AC119: 457 | AD119: 1252 | AE119: 2662 | AF119: 2810 | AG119: 1544 | AH119: 382 | AI119: 838 | AJ119: 348 | AK119: 958 | AL119: 2969 | AM119: 162 | AN119: 576 | AO119: 750 | AP119: 595 | AQ119: 45 | AR119: 1058 | AS119: 2373 | AT119: 451 | AU119: 829 | AV119: 1345 | AW119: 119
A120: Male 60-64 | B120: 30376 | C120: 3344 | D120: 569 | E120: 1183 | F120: 2479 | G120: 2127 | H120: 2089 | I120: 4799 | J120: 2063 | K120: 4848 | L120: 4313 | M120: 150 | N120: 43 | O120: 1877 | P120: 492 | Q120: 1039 | R120: 694 | S120: 631 | T120: 470 | U120: 280 | V120: 1183 | W120: 776 | X120: 1241 | Y120: 438 | Z120: 562 | AA120: 236 | AB120: 1579 | AC120: 492 | AD120: 1365 | AE120: 2479 | AF120: 2313 | AG120: 1593 | AH120: 372 | AI120: 800 | AJ120: 356 | AK120: 988 | AL120: 2641 | AM120: 150 | AN120: 470 | AO120: 704 | AP120: 569 | AQ120: 43 | AR120: 1115 | AS120: 2207 | AT120: 482 | AU120: 736 | AV120: 1372 | AW120: 120
A121: Male 65-69 | B121: 26690 | C121: 3075 | D121: 496 | E121: 1085 | F121: 2256 | G121: 1807 | H121: 1654 | I121: 4182 | J121: 1813 | K121: 4416 | L121: 3685 | M121: 166 | N121: 45 | O121: 1598 | P121: 412 | Q121: 774 | R121: 603 | S121: 527 | T121: 460 | U121: 287 | V121: 1085 | W121: 676 | X121: 1122 | Y121: 386 | Z121: 529 | AA121: 164 | AB121: 1266 | AC121: 412 | AD121: 1146 | AE121: 2256 | AF121: 1891 | AG121: 1353 | AH121: 311 | AI121: 691 | AJ121: 277 | AK121: 833 | AL121: 2437 | AM121: 166 | AN121: 395 | AO121: 702 | AP121: 496 | AQ121: 45 | AR121: 1120 | AS121: 1979 | AT121: 374 | AU121: 728 | AV121: 1199 | AW121: 121
A122: Male 70-74 | B122: 20368 | C122: 2275 | D122: 385 | E122: 874 | F122: 1607 | G122: 1368 | H122: 1314 | I122: 3278 | J122: 1356 | K122: 3337 | L122: 2838 | M122: 130 | N122: 21 | O122: 1267 | P122: 318 | Q122: 629 | R122: 434 | S122: 419 | T122: 378 | U122: 197 | V122: 874 | W122: 560 | X122: 796 | Y122: 334 | Z122: 450 | AA122: 130 | AB122: 964 | AC122: 318 | AD122: 861 | AE122: 1607 | AF122: 1447 | AG122: 978 | AH122: 227 | AI122: 542 | AJ122: 251 | AK122: 676 | AL122: 1872 | AM122: 130 | AN122: 288 | AO122: 619 | AP122: 385 | AQ122: 21 | AR122: 803 | AS122: 1465 | AT122: 310 | AU122: 521 | AV122: 882 | AW122: 122
A123: Male 75-79 | B123: 15971 | C123: 1793 | D123: 319 | E123: 691 | F123: 1318 | G123: 1079 | H123: 1152 | I123: 2623 | J123: 985 | K123: 2508 | L123: 2201 | M123: 84 | N123: 15 | O123: 968 | P123: 235 | Q123: 579 | R123: 380 | S123: 305 | T123: 263 | U123: 144 | V123: 691 | W123: 450 | X123: 684 | Y123: 285 | Z123: 373 | AA123: 126 | AB123: 797 | AC123: 235 | AD123: 666 | AE123: 1318 | AF123: 1210 | AG123: 722 | AH123: 173 | AI123: 372 | AJ123: 193 | AK123: 487 | AL123: 1342 | AM123: 84 | AN123: 213 | AO123: 475 | AP123: 319 | AQ123: 15 | AR123: 622 | AS123: 1166 | AT123: 269 | AU123: 354 | AV123: 659 | AW123: 123
A124: Male 80-84 | B124: 10257 | C124: 1138 | D124: 278 | E124: 405 | F124: 823 | G124: 636 | H124: 733 | I124: 1698 | J124: 606 | K124: 1625 | L124: 1419 | M124: 49 | N124: 11 | O124: 681 | P124: 155 | Q124: 394 | R124: 223 | S124: 207 | T124: 162 | U124: 102 | V124: 405 | W124: 338 | X124: 440 | Y124: 179 | Z124: 251 | AA124: 76 | AB124: 492 | AC124: 155 | AD124: 385 | AE124: 823 | AF124: 855 | AG124: 444 | AH124: 90 | AI124: 259 | AJ124: 116 | AK124: 296 | AL124: 872 | AM124: 49 | AN124: 136 | AO124: 267 | AP124: 278 | AQ124: 11 | AR124: 402 | AS124: 753 | AT124: 149 | AU124: 231 | AV124: 417 | AW124: 124
A125: Male 85-89 | B125: 5089 | C125: 553 | D125: 135 | E125: 192 | F125: 415 | G125: 315 | H125: 336 | I125: 851 | J125: 326 | K125: 750 | L125: 718 | M125: 32 | N125: 9 | O125: 376 | P125: 81 | Q125: 174 | R125: 119 | S125: 134 | T125: 79 | U125: 39 | V125: 192 | W125: 153 | X125: 209 | Y125: 110 | Z125: 130 | AA125: 39 | AB125: 298 | AC125: 81 | AD125: 198 | AE125: 415 | AF125: 426 | AG125: 247 | AH125: 60 | AI125: 127 | AJ125: 43 | AK125: 134 | AL125: 352 | AM125: 32 | AN125: 89 | AO125: 108 | AP125: 135 | AQ125: 9 | AR125: 210 | AS125: 398 | AT125: 78 | AU125: 108 | AV125: 163 | AW125: 125
A126: Male 90+ | B126: 1993 | C126: 207 | D126: 57 | E126: 79 | F126: 152 | G126: 118 | H126: 150 | I126: 309 | J126: 120 | K126: 295 | L126: 284 | M126: 20 | N126: 2 | O126: 171 | P126: 29 | Q126: 78 | R126: 46 | S126: 71 | T126: 27 | U126: 5 | V126: 79 | W126: 73 | X126: 70 | Y126: 46 | Z126: 43 | AA126: 6 | AB126: 127 | AC126: 29 | AD126: 86 | AE126: 152 | AF126: 168 | AG126: 93 | AH126: 15 | AI126: 46 | AJ126: 26 | AK126: 47 | AL126: 132 | AM126: 20 | AN126: 27 | AO126: 42 | AP126: 57 | AQ126: 2 | AR126: 90 | AS126: 163 | AT126: 27 | AU126: 32 | AV126: 68 | AW126: 126
A127: Female 0 | B127: 5999 | C127: 531 | D127: 113 | E127: 177 | F127: 450 | G127: 396 | H127: 485 | I127: 1130 | J127: 376 | K127: 882 | L127: 964 | M127: 22 | N127: 8 | O127: 425 | P127: 40 | Q127: 288 | R127: 131 | S127: 128 | T127: 83 | U127: 44 | V127: 177 | W127: 187 | X127: 220 | Y127: 91 | Z127: 139 | AA127: 36 | AB127: 403 | AC127: 40 | AD127: 250 | AE127: 450 | AF127: 675 | AG127: 293 | AH127: 61 | AI127: 151 | AJ127: 66 | AK127: 148 | AL127: 521 | AM127: 22 | AN127: 110 | AO127: 142 | AP127: 113 | AQ127: 8 | AR127: 163 | AS127: 361 | AT127: 102 | AU127: 125 | AV127: 271 | AW127: 127
A128: Female 1-4 | B128: 23206 | C128: 2150 | D128: 344 | E128: 810 | F128: 1800 | G128: 1592 | H128: 1646 | I128: 4024 | J128: 1368 | K128: 3776 | L128: 3879 | M128: 88 | N128: 32 | O128: 1488 | P128: 209 | Q128: 886 | R128: 512 | S128: 519 | T128: 331 | U128: 210 | V128: 810 | W128: 569 | X128: 826 | Y128: 339 | Z128: 454 | AA128: 178 | AB128: 1533 | AC128: 209 | AD128: 972 | AE128: 1800 | AF128: 2141 | AG128: 1037 | AH128: 256 | AI128: 646 | AJ128: 248 | AK128: 613 | AL128: 2277 | AM128: 88 | AN128: 400 | AO128: 602 | AP128: 344 | AQ128: 32 | AR128: 711 | AS128: 1499 | AT128: 410 | AU128: 508 | AV128: 1246 | AW128: 128
A129: Female 5-9 | B129: 25324 | C129: 2497 | D129: 378 | E129: 858 | F129: 2073 | G129: 1784 | H129: 1645 | I129: 4245 | J129: 1641 | K129: 4412 | L129: 3853 | M129: 120 | N129: 29 | O129: 1529 | P129: 260 | Q129: 825 | R129: 506 | S129: 475 | T129: 389 | U129: 193 | V129: 858 | W129: 611 | X129: 928 | Y129: 405 | Z129: 486 | AA129: 195 | AB129: 1224 | AC129: 260 | AD129: 1105 | AE129: 2073 | AF129: 2095 | AG129: 1252 | AH129: 279 | AI129: 699 | AJ129: 314 | AK129: 782 | AL129: 2710 | AM129: 120 | AN129: 443 | AO129: 653 | AP129: 378 | AQ129: 29 | AR129: 787 | AS129: 1702 | AT129: 486 | AU129: 618 | AV129: 1444 | AW129: 129
A130: Female 10-14 | B130: 25891 | C130: 2711 | D130: 346 | E130: 919 | F130: 2110 | G130: 1830 | H130: 1498 | I130: 4449 | J130: 1630 | K130: 4448 | L130: 3925 | M130: 123 | N130: 33 | O130: 1552 | P130: 317 | Q130: 750 | R130: 512 | S130: 534 | T130: 344 | U130: 226 | V130: 919 | W130: 553 | X130: 1042 | Y130: 451 | Z130: 511 | AA130: 252 | AB130: 1184 | AC130: 317 | AD130: 1073 | AE130: 2110 | AF130: 2160 | AG130: 1286 | AH130: 292 | AI130: 755 | AJ130: 236 | AK130: 842 | AL130: 2610 | AM130: 123 | AN130: 465 | AO130: 702 | AP130: 346 | AQ130: 33 | AR130: 827 | AS130: 1838 | AT130: 531 | AU130: 592 | AV130: 1475 | AW130: 130
A131: Female 15-19 | B131: 30623 | C131: 2989 | D131: 454 | E131: 978 | F131: 2283 | G131: 2031 | H131: 2030 | I131: 5755 | J131: 1765 | K131: 4811 | L131: 4780 | M131: 138 | N131: 25 | O131: 2266 | P131: 318 | Q131: 1065 | R131: 617 | S131: 660 | T131: 396 | U131: 252 | V131: 978 | W131: 1081 | X131: 1108 | Y131: 483 | Z131: 602 | AA131: 291 | AB131: 1834 | AC131: 318 | AD131: 1214 | AE131: 2283 | AF131: 3196 | AG131: 1369 | AH131: 352 | AI131: 802 | AJ131: 348 | AK131: 939 | AL131: 2748 | AM131: 138 | AN131: 525 | AO131: 721 | AP131: 454 | AQ131: 25 | AR131: 942 | AS131: 2063 | AT131: 565 | AU131: 712 | AV131: 1542 | AW131: 131
A132: Female 20-24 | B132: 39463 | C132: 3116 | D132: 657 | E132: 957 | F132: 2566 | G132: 2416 | H132: 3433 | I132: 8306 | J132: 1706 | K132: 5207 | L132: 7047 | M132: 123 | N132: 59 | O132: 3636 | P132: 234 | Q132: 2410 | R132: 671 | S132: 613 | T132: 423 | U132: 289 | V132: 957 | W132: 2301 | X132: 1169 | Y132: 577 | Z132: 676 | AA132: 260 | AB132: 3958 | AC132: 234 | AD132: 1242 | AE132: 2566 | AF132: 5414 | AG132: 1283 | AH132: 393 | AI132: 857 | AJ132: 352 | AK132: 905 | AL132: 3030 | AM132: 123 | AN132: 722 | AO132: 890 | AP132: 657 | AQ132: 59 | AR132: 1042 | AS132: 2177 | AT132: 885 | AU132: 772 | AV132: 1556 | AW132: 132
A133: Female 25-29 | B133: 39452 | C133: 3069 | D133: 557 | E133: 996 | F133: 2633 | G133: 2342 | H133: 3302 | I133: 8267 | J133: 1948 | K133: 5680 | L133: 7139 | M133: 122 | N133: 33 | O133: 3103 | P133: 261 | Q133: 2199 | R133: 725 | S133: 704 | T133: 437 | U133: 269 | V133: 996 | W133: 1557 | X133: 1164 | Y133: 534 | Z133: 652 | AA133: 227 | AB133: 3993 | AC133: 261 | AD133: 1380 | AE133: 2633 | AF133: 5429 | AG133: 1511 | AH133: 402 | AI133: 763 | AJ133: 378 | AK133: 880 | AL133: 3342 | AM133: 122 | AN133: 842 | AO133: 914 | AP133: 557 | AQ133: 33 | AR133: 1025 | AS133: 2338 | AT133: 693 | AU133: 761 | AV133: 1731 | AW133: 133
A134: Female 30-34 | B134: 36523 | C134: 3141 | D134: 457 | E134: 1020 | F134: 2596 | G134: 2394 | H134: 2545 | I134: 7542 | J134: 1850 | K134: 5678 | L134: 6427 | M134: 103 | N134: 46 | O134: 2422 | P134: 302 | Q134: 1586 | R134: 651 | S134: 662 | T134: 403 | U134: 297 | V134: 1020 | W134: 1072 | X134: 1210 | Y134: 536 | Z134: 616 | AA134: 255 | AB134: 3310 | AC134: 302 | AD134: 1390 | AE134: 2596 | AF134: 4755 | AG134: 1447 | AH134: 353 | AI134: 843 | AJ134: 308 | AK134: 870 | AL134: 3386 | AM134: 103 | AN134: 688 | AO134: 872 | AP134: 457 | AQ134: 46 | AR134: 1061 | AS134: 2292 | AT134: 707 | AU134: 771 | AV134: 1658 | AW134: 134
A135: Female 35-39 | B135: 32575 | C135: 2997 | D135: 456 | E135: 913 | F135: 2421 | G135: 2305 | H135: 2165 | I135: 6286 | J135: 1892 | K135: 5342 | L135: 5402 | M135: 130 | N135: 40 | O135: 1888 | P135: 338 | Q135: 1195 | R135: 644 | S135: 637 | T135: 473 | U135: 283 | V135: 913 | W135: 718 | X135: 1107 | Y135: 537 | Z135: 583 | AA135: 238 | AB135: 2397 | AC135: 338 | AD135: 1376 | AE135: 2421 | AF135: 3505 | AG135: 1419 | AH135: 394 | AI135: 805 | AJ135: 326 | AK135: 931 | AL135: 3167 | AM135: 130 | AN135: 533 | AO135: 844 | AP135: 456 | AQ135: 40 | AR135: 959 | AS135: 2175 | AT135: 646 | AU135: 768 | AV135: 1617 | AW135: 135
A136: Female 40-44 | B136: 38713 | C136: 4013 | D136: 566 | E136: 1302 | F136: 2981 | G136: 2715 | H136: 2430 | I136: 7129 | J136: 2286 | K136: 6575 | L136: 5970 | M136: 140 | N136: 49 | O136: 2170 | P136: 387 | Q136: 1254 | R136: 757 | S136: 695 | T136: 557 | U136: 356 | V136: 1302 | W136: 834 | X136: 1545 | Y136: 698 | Z136: 739 | AA136: 335 | AB136: 2197 | AC136: 387 | AD136: 1594 | AE136: 2981 | AF136: 3646 | AG136: 1729 | AH136: 436 | AI136: 997 | AJ136: 419 | AK136: 1215 | AL136: 3795 | AM136: 140 | AN136: 641 | AO136: 1072 | AP136: 566 | AQ136: 49 | AR136: 1253 | AS136: 2780 | AT136: 765 | AU136: 942 | AV136: 2037 | AW136: 136
A137: Female 45-49 | B137: 40145 | C137: 4277 | D137: 667 | E137: 1331 | F137: 3161 | G137: 2807 | H137: 2442 | I137: 7559 | J137: 2472 | K137: 6676 | L137: 5827 | M137: 177 | N137: 44 | O137: 2258 | P137: 447 | Q137: 1287 | R137: 776 | S137: 668 | T137: 568 | U137: 411 | V137: 1331 | W137: 963 | X137: 1591 | Y137: 726 | Z137: 826 | AA137: 374 | AB137: 2073 | AC137: 447 | AD137: 1658 | AE137: 3161 | AF137: 3689 | AG137: 1904 | AH137: 564 | AI137: 1017 | AJ137: 379 | AK137: 1292 | AL137: 3756 | AM137: 177 | AN137: 627 | AO137: 1118 | AP137: 667 | AQ137: 44 | AR137: 1394 | AS137: 2920 | AT137: 738 | AU137: 1088 | AV137: 1911 | AW137: 137
A138: Female 50-54 | B138: 37880 | C138: 3845 | D138: 613 | E138: 1378 | F138: 3028 | G138: 2547 | H138: 2350 | I138: 7222 | J138: 2301 | K138: 6274 | L138: 5443 | M138: 150 | N138: 37 | O138: 2264 | P138: 428 | Q138: 1280 | R138: 677 | S138: 693 | T138: 559 | U138: 342 | V138: 1378 | W138: 965 | X138: 1397 | Y138: 714 | Z138: 755 | AA138: 324 | AB138: 1936 | AC138: 428 | AD138: 1549 | AE138: 3028 | AF138: 3586 | AG138: 1742 | AH138: 508 | AI138: 1009 | AJ138: 393 | AK138: 1133 | AL138: 3516 | AM138: 150 | AN138: 606 | AO138: 1071 | AP138: 613 | AQ138: 37 | AR138: 1315 | AS138: 2758 | AT138: 656 | AU138: 1019 | AV138: 1743 | AW138: 138
A139: Female 55-59 | B139: 33208 | C139: 3457 | D139: 600 | E139: 1212 | F139: 2727 | G139: 2127 | H139: 2200 | I139: 5762 | J139: 2139 | K139: 5693 | L139: 4683 | M139: 159 | N139: 55 | O139: 1984 | P139: 410 | Q139: 1114 | R139: 662 | S139: 618 | T139: 492 | U139: 263 | V139: 1212 | W139: 809 | X139: 1270 | Y139: 573 | Z139: 642 | AA139: 268 | AB139: 1655 | AC139: 410 | AD139: 1387 | AE139: 2727 | AF139: 2773 | AG139: 1647 | AH139: 417 | AI139: 882 | AJ139: 424 | AK139: 1004 | AL139: 3129 | AM139: 159 | AN139: 557 | AO139: 817 | AP139: 600 | AQ139: 55 | AR139: 1183 | AS139: 2564 | AT139: 477 | AU139: 914 | AV139: 1504 | AW139: 139
A140: Female 60-64 | B140: 32038 | C140: 3526 | D140: 558 | E140: 1188 | F140: 2648 | G140: 2230 | H140: 2252 | I140: 5186 | J140: 2135 | K140: 5280 | L140: 4539 | M140: 155 | N140: 43 | O140: 1825 | P140: 473 | Q140: 1065 | R140: 767 | S140: 593 | T140: 535 | U140: 337 | V140: 1188 | W140: 783 | X140: 1230 | Y140: 504 | Z140: 610 | AA140: 250 | AB140: 1572 | AC140: 473 | AD140: 1401 | AE140: 2648 | AF140: 2338 | AG140: 1600 | AH140: 409 | AI140: 883 | AJ140: 420 | AK140: 1105 | AL140: 2915 | AM140: 155 | AN140: 449 | AO140: 837 | AP140: 558 | AQ140: 43 | AR140: 1191 | AS140: 2365 | AT140: 492 | AU140: 848 | AV140: 1474 | AW140: 140
A141: Female 65-69 | B141: 29567 | C141: 3402 | D141: 631 | E141: 1162 | F141: 2407 | G141: 2019 | H141: 1861 | I141: 4761 | J141: 1887 | K141: 4961 | L141: 4137 | M141: 156 | N141: 35 | O141: 1758 | P141: 390 | Q141: 882 | R141: 649 | S141: 556 | T141: 512 | U141: 326 | V141: 1162 | W141: 739 | X141: 1238 | Y141: 527 | Z141: 589 | AA141: 201 | AB141: 1395 | AC141: 390 | AD141: 1240 | AE141: 2407 | AF141: 2069 | AG141: 1375 | AH141: 358 | AI141: 786 | AJ141: 330 | AK141: 965 | AL141: 2824 | AM141: 156 | AN141: 463 | AO141: 831 | AP141: 631 | AQ141: 35 | AR141: 1199 | AS141: 2137 | AT141: 453 | AU141: 775 | AV141: 1367 | AW141: 141
A142: Female 70-74 | B142: 24832 | C142: 2716 | D142: 469 | E142: 949 | F142: 1888 | G142: 1676 | H142: 1653 | I142: 4163 | J142: 1596 | K142: 4129 | L142: 3461 | M142: 122 | N142: 28 | O142: 1633 | P142: 349 | Q142: 822 | R142: 514 | S142: 513 | T142: 438 | U142: 235 | V142: 949 | W142: 788 | X142: 982 | Y142: 442 | Z142: 540 | AA142: 192 | AB142: 1232 | AC142: 349 | AD142: 1032 | AE142: 1888 | AF142: 1893 | AG142: 1158 | AH142: 265 | AI142: 598 | AJ142: 317 | AK142: 808 | AL142: 2304 | AM142: 122 | AN142: 332 | AO142: 720 | AP142: 469 | AQ142: 28 | AR142: 926 | AS142: 1825 | AT142: 409 | AU142: 651 | AV142: 1091 | AW142: 142
A143: Female 75-79 | B143: 22083 | C143: 2396 | D143: 433 | E143: 839 | F143: 1706 | G143: 1362 | H143: 1520 | I143: 4051 | J143: 1327 | K143: 3588 | L143: 3002 | M143: 88 | N143: 22 | O143: 1415 | P143: 334 | Q143: 804 | R143: 439 | S143: 436 | T143: 385 | U143: 180 | V143: 839 | W143: 675 | X143: 895 | Y143: 403 | Z143: 484 | AA143: 205 | AB143: 1121 | AC143: 334 | AD143: 851 | AE143: 1706 | AF143: 1928 | AG143: 942 | AH143: 273 | AI143: 538 | AJ143: 277 | AK143: 658 | AL143: 1948 | AM143: 88 | AN143: 304 | AO143: 718 | AP143: 433 | AQ143: 22 | AR143: 843 | AS143: 1640 | AT143: 331 | AU143: 524 | AV143: 859 | AW143: 143
A144: Female 80-84 | B144: 16804 | C144: 1766 | D144: 353 | E144: 603 | F144: 1297 | G144: 970 | H144: 1240 | I144: 3193 | J144: 996 | K144: 2659 | L144: 2233 | M144: 72 | N144: 24 | O144: 1155 | P144: 243 | Q144: 671 | R144: 335 | S144: 379 | T144: 244 | U144: 129 | V144: 603 | W144: 489 | X144: 643 | Y144: 318 | Z144: 348 | AA144: 138 | AB144: 917 | AC144: 243 | AD144: 622 | AE144: 1297 | AF144: 1588 | AG144: 752 | AH144: 199 | AI144: 404 | AJ144: 234 | AK144: 465 | AL144: 1276 | AM144: 72 | AN144: 287 | AO144: 497 | AP144: 353 | AQ144: 24 | AR144: 658 | AS144: 1383 | AT144: 219 | AU144: 453 | AV144: 564 | AW144: 144
A145: Female 85-89 | B145: 10292 | C145: 1096 | D145: 254 | E145: 358 | F145: 783 | G145: 601 | H145: 751 | I145: 1809 | J145: 579 | K145: 1598 | L145: 1391 | M145: 55 | N145: 13 | O145: 828 | P145: 176 | Q145: 391 | R145: 225 | S145: 310 | T145: 149 | U145: 80 | V145: 358 | W145: 311 | X145: 393 | Y145: 182 | Z145: 240 | AA145: 72 | AB145: 604 | AC145: 176 | AD145: 386 | AE145: 783 | AF145: 1009 | AG145: 430 | AH145: 80 | AI145: 233 | AJ145: 135 | AK145: 253 | AL145: 769 | AM145: 55 | AN145: 207 | AO145: 224 | AP145: 254 | AQ145: 13 | AR145: 450 | AS145: 829 | AT145: 135 | AU145: 242 | AV145: 314 | AW145: 145
A146: Female 90+ | B146: 5770 | C146: 669 | D146: 134 | E146: 213 | F146: 437 | G146: 350 | H146: 400 | I146: 993 | J146: 374 | K146: 787 | L146: 784 | M146: 38 | N146: 11 | O146: 457 | P146: 123 | Q146: 202 | R146: 120 | S146: 175 | T146: 119 | U146: 45 | V146: 213 | W146: 153 | X146: 221 | Y146: 125 | Z146: 120 | AA146: 29 | AB146: 336 | AC146: 123 | AD146: 235 | AE146: 437 | AF146: 561 | AG146: 255 | AH146: 53 | AI146: 145 | AJ146: 78 | AK146: 166 | AL146: 335 | AM146: 38 | AN146: 129 | AO146: 96 | AP146: 134 | AQ146: 11 | AR146: 282 | AS146: 452 | AT146: 70 | AU146: 129 | AV146: 183 | AW146: 146
A147: age/sex breakdown: Q3 | AW147: 147
A148: Male 0 | B148: 5844 | C148: 238 | D148: 176 | E148: 246 | F148: 416 | G148: 329 | H148: 684 | I148: 907 | J148: 490 | K148: 817 | L148: 1030 | M148: 27 | N148: 50 | O148: 346 | P148: 88 | Q148: 210 | R148: 281 | S148: 122 | T148: 133 | U148: 70 | V148: 246 | W148: 94 | X148: 49 | Y148: 41 | Z148: 160 | AA148: 40 | AB148: 472 | AC148: 88 | AD148: 185 | AE148: 416 | AF148: 445 | AG148: 357 | AH148: 50 | AI148: 114 | AJ148: 193 | AK148: 94 | AL148: 357 | AM148: 27 | AN148: 130 | AO148: 215 | AP148: 176 | AQ148: 50 | AR148: 95 | AS148: 460 | AT148: 74 | AU148: 116 | AV148: 284 | AW148: 148
A149: Male 1-4 | B149: 23267 | C149: 1184 | D149: 671 | E149: 1144 | F149: 1678 | G149: 1262 | H149: 2769 | I149: 3303 | J149: 2006 | K149: 3310 | L149: 3878 | M149: 69 | N149: 222 | O149: 1437 | P149: 334 | Q149: 656 | R149: 1166 | S149: 517 | T149: 613 | U149: 271 | V149: 1144 | W149: 334 | X149: 303 | Y149: 184 | Z149: 639 | AA149: 163 | AB149: 1603 | AC149: 334 | AD149: 716 | AE149: 1678 | AF149: 1514 | AG149: 1393 | AH149: 190 | AI149: 398 | AJ149: 947 | AK149: 421 | AL149: 1512 | AM149: 69 | AN149: 586 | AO149: 849 | AP149: 671 | AQ149: 222 | AR149: 460 | AS149: 1798 | AT149: 275 | AU149: 403 | AV149: 1238 | AW149: 149
A150: Male 5-9 | B150: 27180 | C150: 1481 | D150: 863 | E150: 1437 | F150: 1929 | G150: 1557 | H150: 3137 | I150: 3616 | J150: 2681 | K150: 3999 | L150: 3951 | M150: 98 | N150: 240 | O150: 1715 | P150: 476 | Q150: 656 | R150: 1403 | S150: 669 | T150: 813 | U150: 307 | V150: 1437 | W150: 391 | X150: 373 | Y150: 240 | Z150: 687 | AA150: 196 | AB150: 1416 | AC150: 476 | AD150: 887 | AE150: 1929 | AF150: 1445 | AG150: 1868 | AH150: 271 | AI150: 481 | AJ150: 1078 | AK150: 518 | AL150: 1910 | AM150: 98 | AN150: 655 | AO150: 984 | AP150: 863 | AQ150: 240 | AR150: 590 | AS150: 2089 | AT150: 363 | AU150: 480 | AV150: 1367 | AW150: 150
A151: Male 10-14 | B151: 27773 | C151: 1597 | D151: 845 | E151: 1611 | F151: 1936 | G151: 1528 | H151: 3313 | I151: 3555 | J151: 3080 | K151: 4052 | L151: 3565 | M151: 82 | N151: 281 | O151: 1907 | P151: 421 | Q151: 666 | R151: 1532 | S151: 743 | T151: 969 | U151: 357 | V151: 1611 | W151: 356 | X151: 426 | Y151: 249 | Z151: 687 | AA151: 210 | AB151: 1221 | AC151: 421 | AD151: 837 | AE151: 1936 | AF151: 1401 | AG151: 2111 | AH151: 254 | AI151: 474 | AJ151: 1115 | AK151: 540 | AL151: 1840 | AM151: 82 | AN151: 808 | AO151: 1023 | AP151: 845 | AQ151: 281 | AR151: 631 | AS151: 2212 | AT151: 334 | AU151: 418 | AV151: 1183 | AW151: 151
A152: Male 15-19 | B152: 31773 | C152: 1844 | D152: 1051 | E152: 1740 | F152: 2007 | G152: 1764 | H152: 3700 | I152: 4737 | J152: 3073 | K152: 4334 | L152: 4308 | M152: 118 | N152: 291 | O152: 2321 | P152: 485 | Q152: 928 | R152: 1591 | S152: 794 | T152: 982 | U152: 388 | V152: 1740 | W152: 654 | X152: 515 | Y152: 256 | Z152: 886 | AA152: 240 | AB152: 1607 | AC152: 485 | AD152: 944 | AE152: 2007 | AF152: 2222 | AG152: 2091 | AH152: 355 | AI152: 505 | AJ152: 1181 | AK152: 671 | AL152: 1969 | AM152: 118 | AN152: 873 | AO152: 1099 | AP152: 1051 | AQ152: 291 | AR152: 658 | AS152: 2365 | AT152: 432 | AU152: 565 | AV152: 1310 | AW152: 152
A153: Male 20-24 | B153: 37024 | C153: 1603 | D153: 901 | E153: 1372 | F153: 2133 | G153: 2037 | H153: 4924 | I153: 7428 | J153: 2553 | K153: 4076 | L153: 6554 | M153: 111 | N153: 245 | O153: 2712 | P153: 375 | Q153: 2449 | R153: 1487 | S153: 733 | T153: 736 | U153: 447 | V153: 1372 | W153: 1260 | X153: 529 | Y153: 361 | Z153: 753 | AA153: 244 | AB153: 4036 | AC153: 375 | AD153: 808 | AE153: 2133 | AF153: 4776 | AG153: 1817 | AH153: 381 | AI153: 494 | AJ153: 988 | AK153: 494 | AL153: 1904 | AM153: 111 | AN153: 719 | AO153: 1115 | AP153: 901 | AQ153: 245 | AR153: 580 | AS153: 2172 | AT153: 782 | AU153: 551 | AV153: 1271 | AW153: 153
A154: Male 25-29 | B154: 36157 | C154: 1294 | D154: 833 | E154: 1325 | F154: 2138 | G154: 1793 | H154: 4597 | I154: 7339 | J154: 2439 | K154: 3917 | L154: 7535 | M154: 120 | N154: 240 | O154: 2213 | P154: 374 | Q154: 2158 | R154: 1408 | S154: 647 | T154: 677 | U154: 447 | V154: 1325 | W154: 858 | X154: 463 | Y154: 390 | Z154: 692 | AA154: 158 | AB154: 5053 | AC154: 374 | AD154: 889 | AE154: 2138 | AF154: 4783 | AG154: 1762 | AH154: 281 | AI154: 433 | AJ154: 1031 | AK154: 366 | AL154: 1804 | AM154: 120 | AN154: 708 | AO154: 1174 | AP154: 833 | AQ154: 240 | AR154: 465 | AS154: 2113 | AT154: 457 | AU154: 553 | AV154: 1357 | AW154: 154
A155: Male 30-34 | B155: 34981 | C155: 1419 | D155: 801 | E155: 1201 | F155: 2162 | G155: 1858 | H155: 4205 | I155: 6546 | J155: 2530 | K155: 4464 | L155: 7140 | M155: 101 | N155: 279 | O155: 1878 | P155: 397 | Q155: 1729 | R155: 1462 | S155: 661 | T155: 727 | U155: 453 | V155: 1201 | W155: 563 | X155: 467 | Y155: 312 | Z155: 675 | AA155: 173 | AB155: 4449 | AC155: 397 | AD155: 1003 | AE155: 2162 | AF155: 4107 | AG155: 1803 | AH155: 269 | AI155: 462 | AJ155: 1014 | AK155: 435 | AL155: 2119 | AM155: 101 | AN155: 654 | AO155: 1177 | AP155: 801 | AQ155: 279 | AR155: 517 | AS155: 2345 | AT155: 402 | AU155: 508 | AV155: 1554 | AW155: 155
A156: Male 35-39 | B156: 32896 | C156: 1534 | D156: 900 | E156: 1338 | F156: 2266 | G156: 1856 | H156: 3814 | I156: 5263 | J156: 2589 | K156: 4543 | L156: 6193 | M156: 109 | N156: 257 | O156: 1807 | P156: 427 | Q156: 1296 | R156: 1550 | S156: 707 | T156: 786 | U156: 447 | V156: 1338 | W156: 445 | X156: 487 | Y156: 293 | Z156: 814 | AA156: 199 | AB156: 3346 | AC156: 427 | AD156: 992 | AE156: 2266 | AF156: 2854 | AG156: 1803 | AH156: 282 | AI156: 515 | AJ156: 968 | AK156: 511 | AL156: 2146 | AM156: 109 | AN156: 655 | AO156: 1095 | AP156: 900 | AQ156: 257 | AR156: 536 | AS156: 2397 | AT156: 417 | AU156: 540 | AV156: 1518 | AW156: 156
A157: Male 40-44 | B157: 38508 | C157: 2001 | D157: 1207 | E157: 1814 | F157: 2704 | G157: 2262 | H157: 4380 | I157: 5629 | J157: 3413 | K157: 5501 | L157: 6158 | M157: 123 | N157: 310 | O157: 2412 | P157: 594 | Q157: 1158 | R157: 1857 | S157: 905 | T157: 1053 | U157: 569 | V157: 1814 | W157: 552 | X157: 602 | Y157: 391 | Z157: 949 | AA157: 246 | AB157: 2808 | AC157: 594 | AD157: 1205 | AE157: 2704 | AF157: 2725 | AG157: 2360 | AH157: 329 | AI157: 635 | AJ157: 1365 | AK157: 706 | AL157: 2469 | AM157: 123 | AN157: 955 | AO157: 1285 | AP157: 1207 | AQ157: 310 | AR157: 693 | AS157: 3032 | AT157: 488 | AU157: 653 | AV157: 1766 | AW157: 157
A158: Male 45-49 | B158: 41010 | C158: 2371 | D158: 1381 | E158: 2219 | F158: 2815 | G158: 2263 | H158: 4650 | I158: 5834 | J158: 4161 | K158: 5695 | L158: 5787 | M158: 174 | N158: 352 | O158: 2713 | P158: 595 | Q158: 1223 | R158: 1995 | S158: 993 | T158: 1258 | U158: 565 | V158: 2219 | W158: 594 | X158: 682 | Y158: 395 | Z158: 913 | AA158: 278 | AB158: 2517 | AC158: 595 | AD158: 1198 | AE158: 2815 | AF158: 2500 | AG158: 2903 | AH158: 459 | AI158: 650 | AJ158: 1432 | AK158: 802 | AL158: 2586 | AM158: 174 | AN158: 1126 | AO158: 1476 | AP158: 1381 | AQ158: 352 | AR158: 887 | AS158: 3109 | AT158: 500 | AU158: 726 | AV158: 1707 | AW158: 158
A159: Male 50-54 | B159: 38342 | C159: 2228 | D159: 1336 | E159: 2224 | F159: 2717 | G159: 2129 | H159: 4207 | I159: 5314 | J159: 4071 | K159: 5187 | L159: 5181 | M159: 198 | N159: 341 | O159: 2606 | P159: 603 | Q159: 1068 | R159: 1879 | S159: 1002 | T159: 1244 | U159: 485 | V159: 2224 | W159: 549 | X159: 590 | Y159: 328 | Z159: 925 | AA159: 262 | AB159: 2187 | AC159: 603 | AD159: 1169 | AE159: 2717 | AF159: 2227 | AG159: 2827 | AH159: 449 | AI159: 629 | AJ159: 1260 | AK159: 781 | AL159: 2200 | AM159: 198 | AN159: 1055 | AO159: 1307 | AP159: 1336 | AQ159: 341 | AR159: 857 | AS159: 2987 | AT159: 475 | AU159: 741 | AV159: 1440 | AW159: 159
A160: Male 55-59 | B160: 33598 | C160: 2000 | D160: 1180 | E160: 2067 | F160: 2276 | G160: 1677 | H160: 3958 | I160: 4441 | J160: 4027 | K160: 4308 | L160: 4301 | M160: 177 | N160: 332 | O160: 2310 | P160: 544 | Q160: 1039 | R160: 1807 | S160: 878 | T160: 1252 | U160: 381 | V160: 2067 | W160: 464 | X160: 530 | Y160: 265 | Z160: 818 | AA160: 250 | AB160: 1769 | AC160: 544 | AD160: 916 | AE160: 2276 | AF160: 1880 | AG160: 2775 | AH160: 364 | AI160: 618 | AJ160: 1112 | AK160: 691 | AL160: 1814 | AM160: 177 | AN160: 968 | AO160: 1081 | AP160: 1180 | AQ160: 332 | AR160: 779 | AS160: 2494 | AT160: 380 | AU160: 601 | AV160: 1096 | AW160: 160
A161: Male 60-64 | B161: 32642 | C161: 2003 | D161: 1289 | E161: 2193 | F161: 2293 | G161: 1678 | H161: 3899 | I161: 3847 | J161: 4280 | K161: 3866 | L161: 3900 | M161: 158 | N161: 354 | O161: 2286 | P161: 596 | Q161: 984 | R161: 1829 | S161: 921 | T161: 1397 | U161: 406 | V161: 2193 | W161: 427 | X161: 490 | Y161: 258 | Z161: 716 | AA161: 211 | AB161: 1486 | AC161: 596 | AD161: 876 | AE161: 2293 | AF161: 1475 | AG161: 2883 | AH161: 304 | AI161: 622 | AJ161: 1086 | AK161: 727 | AL161: 1719 | AM161: 158 | AN161: 938 | AO161: 1040 | AP161: 1289 | AQ161: 354 | AR161: 786 | AS161: 2147 | AT161: 396 | AU161: 559 | AV161: 1076 | AW161: 161
A162: Male 65-69 | B162: 28874 | C162: 1857 | D162: 1218 | E162: 2123 | F162: 2141 | G162: 1484 | H162: 3407 | I162: 3245 | J162: 3850 | K162: 3336 | L162: 3272 | M162: 145 | N162: 300 | O162: 1995 | P162: 501 | Q162: 794 | R162: 1615 | S162: 789 | T162: 1341 | U162: 319 | V162: 2123 | W162: 328 | X162: 488 | Y162: 200 | Z162: 628 | AA162: 187 | AB162: 1213 | AC162: 501 | AD162: 815 | AE162: 2141 | AF162: 1212 | AG162: 2509 | AH162: 284 | AI162: 524 | AJ162: 998 | AK162: 667 | AL162: 1452 | AM162: 145 | AN162: 878 | AO162: 915 | AP162: 1218 | AQ162: 300 | AR162: 702 | AS162: 1884 | AT162: 350 | AU162: 447 | AV162: 907 | AW162: 162
A163: Male 70-74 | B163: 21485 | C163: 1475 | D163: 884 | E163: 1637 | F163: 1604 | G163: 1073 | H163: 2565 | I163: 2296 | J163: 2828 | K163: 2519 | L163: 2353 | M163: 128 | N163: 225 | O163: 1493 | P163: 405 | Q163: 643 | R163: 1136 | S163: 554 | T163: 1018 | U163: 212 | V163: 1637 | W163: 279 | X163: 382 | Y163: 124 | Z163: 479 | AA163: 147 | AB163: 817 | AC163: 405 | AD163: 607 | AE163: 1604 | AF163: 855 | AG163: 1810 | AH163: 176 | AI163: 353 | AJ163: 786 | AK163: 537 | AL163: 1016 | AM163: 128 | AN163: 660 | AO163: 642 | AP163: 884 | AQ163: 225 | AR163: 556 | AS163: 1503 | AT163: 254 | AU163: 352 | AV163: 704 | AW163: 163
A164: Male 75-79 | B164: 16448 | C164: 1004 | D164: 636 | E164: 1295 | F164: 1225 | G164: 810 | H164: 2019 | I164: 1881 | J164: 2002 | K164: 1942 | L164: 1831 | M164: 80 | N164: 159 | O164: 1292 | P164: 272 | Q164: 534 | R164: 900 | S164: 455 | T164: 712 | U164: 150 | V164: 1295 | W164: 264 | X164: 244 | Y164: 106 | Z164: 367 | AA164: 153 | AB164: 732 | AC164: 272 | AD164: 459 | AE164: 1225 | AF164: 653 | AG164: 1290 | AH164: 151 | AI164: 280 | AJ164: 585 | AK164: 358 | AL164: 781 | AM164: 80 | AN164: 573 | AO164: 514 | AP164: 636 | AQ164: 159 | AR164: 402 | AS164: 1161 | AT164: 201 | AU164: 304 | AV164: 452 | AW164: 164
A165: Male 80-84 | B165: 10484 | C165: 606 | D165: 433 | E165: 783 | F165: 752 | G165: 499 | H165: 1247 | I165: 1248 | J165: 1336 | K165: 1207 | L165: 1163 | M165: 53 | N165: 99 | O165: 877 | P165: 181 | Q165: 355 | R165: 552 | S165: 296 | T165: 458 | U165: 89 | V165: 783 | W165: 185 | X165: 138 | Y165: 66 | Z165: 264 | AA165: 85 | AB165: 442 | AC165: 181 | AD165: 281 | AE165: 752 | AF165: 415 | AG165: 878 | AH165: 101 | AI165: 190 | AJ165: 340 | AK165: 235 | AL165: 524 | AM165: 53 | AN165: 396 | AO165: 388 | AP165: 433 | AQ165: 99 | AR165: 233 | AS165: 683 | AT165: 129 | AU165: 193 | AV165: 267 | AW165: 165
A166: Male 85-89 | B166: 5117 | C166: 269 | D166: 205 | E166: 398 | F166: 376 | G166: 239 | H166: 678 | I166: 588 | J166: 611 | K166: 558 | L166: 598 | M166: 26 | N166: 51 | O166: 425 | P166: 95 | Q166: 188 | R166: 316 | S166: 144 | T166: 244 | U166: 37 | V166: 398 | W166: 103 | X166: 61 | Y166: 32 | Z166: 142 | AA166: 48 | AB166: 260 | AC166: 95 | AD166: 133 | AE166: 376 | AF166: 186 | AG166: 367 | AH166: 43 | AI166: 74 | AJ166: 174 | AK166: 89 | AL166: 221 | AM166: 26 | AN166: 178 | AO166: 219 | AP166: 205 | AQ166: 51 | AR166: 119 | AS166: 337 | AT166: 69 | AU166: 60 | AV166: 122 | AW166: 166
A167: Male 90+ | B167: 2030 | C167: 100 | D167: 86 | E167: 156 | F167: 161 | G167: 93 | H167: 254 | I167: 280 | J167: 213 | K167: 208 | L167: 243 | M167: 12 | N167: 26 | O167: 172 | P167: 26 | Q167: 66 | R167: 117 | S167: 53 | T167: 85 | U167: 29 | V167: 156 | W167: 32 | X167: 17 | Y167: 15 | Z167: 47 | AA167: 24 | AB167: 116 | AC167: 26 | AD167: 38 | AE167: 161 | AF167: 62 | AG167: 128 | AH167: 15 | AI167: 39 | AJ167: 71 | AK167: 42 | AL167: 85 | AM167: 12 | AN167: 87 | AO167: 130 | AP167: 86 | AQ167: 26 | AR167: 41 | AS167: 123 | AT167: 26 | AU167: 34 | AV167: 41 | AW167: 167
A168: Female 0 | B168: 5452 | C168: 244 | D168: 172 | E168: 238 | F168: 358 | G168: 321 | H168: 669 | I168: 845 | J168: 459 | K168: 748 | L168: 952 | M168: 17 | N168: 43 | O168: 326 | P168: 60 | Q168: 200 | R168: 281 | S168: 122 | T168: 158 | U168: 79 | V168: 238 | W168: 74 | X168: 67 | Y168: 39 | Z168: 151 | AA168: 35 | AB168: 433 | AC168: 60 | AD168: 155 | AE168: 358 | AF168: 454 | AG168: 301 | AH168: 38 | AI168: 106 | AJ168: 188 | AK168: 83 | AL168: 350 | AM168: 17 | AN168: 130 | AO168: 196 | AP168: 172 | AQ168: 43 | AR168: 94 | AS168: 398 | AT168: 87 | AU168: 83 | AV168: 262 | AW168: 168
A169: Female 1-4 | B169: 22313 | C169: 1069 | D169: 655 | E169: 1089 | F169: 1614 | G169: 1274 | H169: 2755 | I169: 3062 | J169: 1924 | K169: 3267 | L169: 3690 | M169: 83 | N169: 187 | O169: 1370 | P169: 274 | Q169: 689 | R169: 1197 | S169: 510 | T169: 592 | U169: 277 | V169: 1089 | W169: 336 | X169: 280 | Y169: 192 | Z169: 611 | AA169: 149 | AB169: 1571 | AC169: 274 | AD169: 730 | AE169: 1614 | AF169: 1385 | AG169: 1332 | AH169: 193 | AI169: 423 | AJ169: 869 | AK169: 392 | AL169: 1526 | AM169: 83 | AN169: 524 | AO169: 779 | AP169: 655 | AQ169: 187 | AR169: 397 | AS169: 1741 | AT169: 267 | AU169: 364 | AV169: 1085 | AW169: 169
A170: Female 5-9 | B170: 26138 | C170: 1479 | D170: 782 | E170: 1448 | F170: 1904 | G170: 1500 | H170: 2989 | I170: 3474 | J170: 2586 | K170: 3828 | L170: 3751 | M170: 90 | N170: 230 | O170: 1601 | P170: 476 | Q170: 641 | R170: 1354 | S170: 635 | T170: 786 | U170: 334 | V170: 1448 | W170: 325 | X170: 387 | Y170: 249 | Z170: 618 | AA170: 210 | AB170: 1348 | AC170: 476 | AD170: 823 | AE170: 1904 | AF170: 1406 | AG170: 1800 | AH170: 280 | AI170: 513 | AJ170: 994 | AK170: 523 | AL170: 1761 | AM170: 90 | AN170: 641 | AO170: 923 | AP170: 782 | AQ170: 230 | AR170: 569 | AS170: 2067 | AT170: 343 | AU170: 406 | AV170: 1272 | AW170: 170
A171: Female 10-14 | B171: 26417 | C171: 1491 | D171: 979 | E171: 1424 | F171: 1729 | G171: 1483 | H171: 3010 | I171: 3539 | J171: 2800 | K171: 3907 | L171: 3538 | M171: 81 | N171: 253 | O171: 1757 | P171: 426 | Q171: 538 | R171: 1418 | S171: 669 | T171: 919 | U171: 356 | V171: 1424 | W171: 364 | X171: 400 | Y171: 235 | Z171: 681 | AA171: 192 | AB171: 1185 | AC171: 426 | AD171: 774 | AE171: 1729 | AF171: 1447 | AG171: 1881 | AH171: 317 | AI171: 505 | AJ171: 1054 | AK171: 528 | AL171: 1836 | AM171: 81 | AN171: 724 | AO171: 916 | AP171: 979 | AQ171: 253 | AR171: 563 | AS171: 2071 | AT171: 353 | AU171: 432 | AV171: 1167 | AW171: 171
A172: Female 15-19 | B172: 30251 | C172: 1681 | D172: 958 | E172: 1635 | F172: 2038 | G172: 1592 | H172: 3713 | I172: 4573 | J172: 2822 | K172: 3999 | L172: 4152 | M172: 104 | N172: 299 | O172: 2217 | P172: 468 | Q172: 1099 | R172: 1466 | S172: 719 | T172: 947 | U172: 381 | V172: 1635 | W172: 757 | X172: 455 | Y172: 263 | Z172: 987 | AA172: 218 | AB172: 1397 | AC172: 468 | AD172: 810 | AE172: 2038 | AF172: 2291 | AG172: 1875 | AH172: 307 | AI172: 504 | AJ172: 1148 | AK172: 590 | AL172: 1824 | AM172: 104 | AN172: 741 | AO172: 1014 | AP172: 958 | AQ172: 299 | AR172: 636 | AS172: 2175 | AT172: 401 | AU172: 480 | AV172: 1264 | AW172: 172
A173: Female 20-24 | B173: 36234 | C173: 1334 | D173: 733 | E173: 1322 | F173: 2083 | G173: 1965 | H173: 4724 | I173: 7741 | J173: 2102 | K173: 3923 | L173: 7146 | M173: 106 | N173: 219 | O173: 2535 | P173: 301 | Q173: 2408 | R173: 1382 | S173: 608 | T173: 600 | U173: 305 | V173: 1322 | W173: 1279 | X173: 374 | Y173: 273 | Z173: 999 | AA173: 198 | AB173: 4511 | AC173: 301 | AD173: 805 | AE173: 2083 | AF173: 5357 | AG173: 1502 | AH173: 331 | AI173: 446 | AJ173: 934 | AK173: 467 | AL173: 1752 | AM173: 106 | AN173: 648 | AO173: 1046 | AP173: 733 | AQ173: 219 | AR173: 493 | AS173: 2171 | AT173: 855 | AU173: 536 | AV173: 1190 | AW173: 173
A174: Female 25-29 | B174: 36373 | C174: 1219 | D174: 795 | E174: 1316 | F174: 2213 | G174: 1793 | H174: 4584 | I174: 7124 | J174: 2375 | K174: 4242 | L174: 7832 | M174: 125 | N174: 228 | O174: 2189 | P174: 338 | Q174: 2092 | R174: 1426 | S174: 693 | T174: 716 | U174: 381 | V174: 1316 | W174: 742 | X174: 315 | Y174: 189 | Z174: 748 | AA174: 175 | AB174: 5206 | AC174: 338 | AD174: 939 | AE174: 2213 | AF174: 4807 | AG174: 1659 | AH174: 254 | AI174: 471 | AJ174: 1066 | AK174: 425 | AL174: 1898 | AM174: 125 | AN174: 754 | AO174: 1180 | AP174: 795 | AQ174: 228 | AR174: 479 | AS174: 2344 | AT174: 473 | AU174: 519 | AV174: 1407 | AW174: 174
A175: Female 30-34 | B175: 34895 | C175: 1429 | D175: 827 | E175: 1304 | F175: 2349 | G175: 1887 | H175: 4024 | I175: 6180 | J175: 2566 | K175: 4648 | L175: 6894 | M175: 110 | N175: 254 | O175: 2023 | P175: 400 | Q175: 1460 | R175: 1501 | S175: 750 | T175: 747 | U175: 396 | V175: 1304 | W175: 546 | X175: 389 | Y175: 224 | Z175: 743 | AA175: 191 | AB175: 4129 | AC175: 400 | AD175: 1061 | AE175: 2349 | AF175: 3688 | AG175: 1819 | AH175: 292 | AI175: 556 | AJ175: 1063 | AK175: 488 | AL175: 2158 | AM175: 110 | AN175: 727 | AO175: 1237 | AP175: 827 | AQ175: 254 | AR175: 552 | AS175: 2490 | AT175: 430 | AU175: 548 | AV175: 1466 | AW175: 175
A176: Female 35-39 | B176: 33095 | C176: 1711 | D176: 935 | E176: 1528 | F176: 2325 | G176: 1887 | H176: 3748 | I176: 4978 | J176: 2852 | K176: 4555 | L176: 5791 | M176: 100 | N176: 263 | O176: 1962 | P176: 460 | Q176: 1030 | R176: 1560 | S176: 754 | T176: 881 | U176: 404 | V176: 1528 | W176: 482 | X176: 464 | Y176: 248 | Z176: 795 | AA176: 202 | AB176: 2925 | AC176: 460 | AD176: 1033 | AE176: 2325 | AF176: 2577 | AG176: 1971 | AH176: 285 | AI176: 550 | AJ176: 1158 | AK176: 605 | AL176: 2137 | AM176: 100 | AN176: 726 | AO176: 1116 | AP176: 935 | AQ176: 263 | AR176: 642 | AS176: 2418 | AT176: 450 | AU176: 550 | AV176: 1521 | AW176: 176
A177: Female 40-44 | B177: 40181 | C177: 2247 | D177: 1357 | E177: 2005 | F177: 2787 | G177: 2236 | H177: 4460 | I177: 6040 | J177: 3779 | K177: 5743 | L177: 5927 | M177: 136 | N177: 324 | O177: 2539 | P177: 601 | Q177: 1098 | R177: 1945 | S177: 958 | T177: 1198 | U177: 498 | V177: 2005 | W177: 516 | X177: 625 | Y177: 384 | Z177: 1046 | AA177: 290 | AB177: 2403 | AC177: 601 | AD177: 1260 | AE177: 2787 | AF177: 2668 | AG177: 2581 | AH177: 419 | AI177: 691 | AJ177: 1417 | AK177: 778 | AL177: 2600 | AM177: 136 | AN177: 1065 | AO177: 1545 | AP177: 1357 | AQ177: 324 | AR177: 844 | AS177: 3143 | AT177: 478 | AU177: 734 | AV177: 1787 | AW177: 177
A178: Female 45-49 | B178: 42149 | C178: 2459 | D178: 1400 | E178: 2422 | F178: 2945 | G178: 2295 | H178: 4756 | I178: 5977 | J178: 4444 | K178: 5875 | L178: 5687 | M178: 190 | N178: 337 | O178: 2787 | P178: 575 | Q178: 1145 | R178: 2123 | S178: 1012 | T178: 1435 | U178: 523 | V178: 2422 | W178: 605 | X178: 656 | Y178: 320 | Z178: 979 | AA178: 287 | AB178: 2284 | AC178: 575 | AD178: 1216 | AE178: 2945 | AF178: 2570 | AG178: 3009 | AH178: 486 | AI178: 733 | AJ178: 1488 | AK178: 869 | AL178: 2615 | AM178: 190 | AN178: 1170 | AO178: 1543 | AP178: 1400 | AQ178: 337 | AR178: 934 | AS178: 3260 | AT178: 556 | AU178: 771 | AV178: 1691 | AW178: 178
A179: Female 50-54 | B179: 39397 | C179: 2347 | D179: 1385 | E179: 2252 | F179: 2732 | G179: 2027 | H179: 4245 | I179: 5607 | J179: 4292 | K179: 5495 | L179: 5216 | M179: 147 | N179: 335 | O179: 2739 | P179: 578 | Q179: 1078 | R179: 1900 | S179: 1052 | T179: 1348 | U179: 451 | V179: 2252 | W179: 602 | X179: 608 | Y179: 325 | Z179: 944 | AA179: 305 | AB179: 2117 | AC179: 578 | AD179: 1111 | AE179: 2732 | AF179: 2391 | AG179: 2944 | AH179: 505 | AI179: 659 | AJ179: 1267 | AK179: 813 | AL179: 2338 | AM179: 147 | AN179: 1085 | AO179: 1325 | AP179: 1385 | AQ179: 335 | AR179: 926 | AS179: 3157 | AT179: 465 | AU179: 756 | AV179: 1496 | AW179: 179
A180: Female 55-59 | B180: 34971 | C180: 2163 | D180: 1245 | E180: 2190 | F180: 2488 | G180: 1772 | H180: 4040 | I180: 4661 | J180: 4113 | K180: 4659 | L180: 4226 | M180: 148 | N180: 317 | O180: 2394 | P180: 555 | Q180: 1040 | R180: 1881 | S180: 948 | T180: 1315 | U180: 402 | V180: 2190 | W180: 475 | X180: 552 | Y180: 310 | Z180: 811 | AA180: 242 | AB180: 1666 | AC180: 555 | AD180: 959 | AE180: 2488 | AF180: 1907 | AG180: 2798 | AH180: 388 | AI180: 599 | AJ180: 1119 | AK180: 809 | AL180: 2032 | AM180: 148 | AN180: 971 | AO180: 1142 | AP180: 1245 | AQ180: 317 | AR180: 802 | AS180: 2627 | AT180: 411 | AU180: 672 | AV180: 1150 | AW180: 180
A181: Female 60-64 | B181: 33802 | C181: 2041 | D181: 1333 | E181: 2286 | F181: 2440 | G181: 1789 | H181: 3918 | I181: 4110 | J181: 4269 | K181: 4101 | L181: 4117 | M181: 158 | N181: 298 | O181: 2387 | P181: 555 | Q181: 1015 | R181: 1766 | S181: 931 | T181: 1470 | U181: 378 | V181: 2286 | W181: 469 | X181: 514 | Y181: 273 | Z181: 792 | AA181: 266 | AB181: 1489 | AC181: 555 | AD181: 1012 | AE181: 2440 | AF181: 1491 | AG181: 2799 | AH181: 345 | AI181: 672 | AJ181: 1137 | AK181: 728 | AL181: 1822 | AM181: 158 | AN181: 987 | AO181: 1116 | AP181: 1333 | AQ181: 298 | AR181: 799 | AS181: 2279 | AT181: 399 | AU181: 619 | AV181: 1164 | AW181: 181
A182: Female 65-69 | B182: 30988 | C182: 2096 | D182: 1213 | E182: 2211 | F182: 2281 | G182: 1572 | H182: 3602 | I182: 3522 | J182: 3824 | K182: 3868 | L182: 3533 | M182: 158 | N182: 303 | O182: 2256 | P182: 549 | Q182: 860 | R182: 1599 | S182: 874 | T182: 1314 | U182: 347 | V182: 2211 | W182: 409 | X182: 556 | Y182: 238 | Z182: 699 | AA182: 204 | AB182: 1268 | AC182: 549 | AD182: 830 | AE182: 2281 | AF182: 1263 | AG182: 2510 | AH182: 317 | AI182: 561 | AJ182: 1143 | AK182: 752 | AL182: 1653 | AM182: 158 | AN182: 973 | AO182: 1003 | AP182: 1213 | AQ182: 303 | AR182: 788 | AS182: 2215 | AT182: 395 | AU182: 497 | AV182: 1005 | AW182: 182
A183: Female 70-74 | B183: 24726 | C183: 1599 | D183: 935 | E183: 1690 | F183: 1764 | G183: 1332 | H183: 2843 | I183: 2939 | J183: 3007 | K183: 3132 | L183: 2909 | M183: 151 | N183: 217 | O183: 1788 | P183: 420 | Q183: 697 | R183: 1284 | S183: 597 | T183: 1092 | U183: 233 | V183: 1690 | W183: 387 | X183: 395 | Y183: 158 | Z183: 608 | AA183: 200 | AB183: 1077 | AC183: 420 | AD183: 764 | AE183: 1764 | AF183: 1049 | AG183: 1915 | AH183: 265 | AI183: 433 | AJ183: 862 | AK183: 593 | AL183: 1306 | AM183: 151 | AN183: 804 | AO183: 831 | AP183: 935 | AQ183: 217 | AR183: 611 | AS183: 1826 | AT183: 335 | AU183: 436 | AV183: 791 | AW183: 183
A184: Female 75-79 | B184: 20451 | C184: 1218 | D184: 790 | E184: 1383 | F184: 1452 | G184: 1036 | H184: 2474 | I184: 2588 | J184: 2348 | K184: 2648 | L184: 2314 | M184: 91 | N184: 186 | O184: 1576 | P184: 347 | Q184: 727 | R184: 1036 | S184: 518 | T184: 876 | U184: 181 | V184: 1383 | W184: 376 | X184: 304 | Y184: 135 | Z184: 515 | AA184: 191 | AB184: 913 | AC184: 347 | AD184: 590 | AE184: 1452 | AF184: 973 | AG184: 1472 | AH184: 191 | AI184: 373 | AJ184: 711 | AK184: 440 | AL184: 1088 | AM184: 91 | AN184: 682 | AO184: 710 | AP184: 790 | AQ184: 186 | AR184: 474 | AS184: 1560 | AT184: 265 | AU184: 388 | AV184: 513 | AW184: 184
A185: Female 80-84 | B185: 15443 | C185: 849 | D185: 571 | E185: 1071 | F185: 1074 | G185: 756 | H185: 1889 | I185: 1931 | J185: 1737 | K185: 1972 | L185: 1844 | M185: 71 | N185: 107 | O185: 1301 | P185: 270 | Q185: 592 | R185: 789 | S185: 428 | T185: 657 | U185: 127 | V185: 1071 | W185: 304 | X185: 174 | Y185: 104 | Z185: 449 | AA185: 136 | AB185: 767 | AC185: 270 | AD185: 427 | AE185: 1074 | AF185: 742 | AG185: 1080 | AH185: 159 | AI185: 255 | AJ185: 508 | AK185: 331 | AL185: 819 | AM185: 71 | AN185: 569 | AO185: 501 | AP185: 571 | AQ185: 107 | AR185: 344 | AS185: 1153 | AT185: 202 | AU185: 289 | AV185: 373 | AW185: 185
A186: Female 85-89 | B186: 9694 | C186: 498 | D186: 349 | E186: 651 | F186: 746 | G186: 432 | H186: 1169 | I186: 1243 | J186: 1077 | K186: 1184 | L186: 1171 | M186: 42 | N186: 70 | O186: 891 | P186: 171 | Q186: 368 | R186: 521 | S186: 283 | T186: 383 | U186: 93 | V186: 651 | W186: 237 | X186: 107 | Y186: 79 | Z186: 265 | AA186: 102 | AB186: 522 | AC186: 171 | AD186: 221 | AE186: 746 | AF186: 448 | AG186: 694 | AH186: 90 | AI186: 161 | AJ186: 280 | AK186: 195 | AL186: 430 | AM186: 42 | AN186: 371 | AO186: 358 | AP186: 349 | AQ186: 70 | AR186: 196 | AS186: 754 | AT186: 118 | AU186: 166 | AV186: 223 | AW186: 186
A187: Female 90+ | B187: 5483 | C187: 298 | D187: 189 | E187: 362 | F187: 417 | G187: 243 | H187: 634 | I187: 762 | J187: 621 | K187: 676 | L187: 608 | M187: 36 | N187: 51 | O187: 492 | P187: 94 | Q187: 181 | R187: 302 | S187: 149 | T187: 263 | U187: 53 | V187: 362 | W187: 132 | X187: 60 | Y187: 43 | Z187: 166 | AA187: 73 | AB187: 275 | AC187: 94 | AD187: 111 | AE187: 417 | AF187: 240 | AG187: 358 | AH187: 41 | AI187: 81 | AJ187: 151 | AK187: 142 | AL187: 258 | AM187: 36 | AN187: 211 | AO187: 275 | AP187: 189 | AQ187: 51 | AR187: 96 | AS187: 418 | AT187: 79 | AU187: 90 | AV187: 86 | AW187: 187
A188: age/sex breakdown: Q4 | AW188: 188
A189: Male 0 | B189: 5433 | C189: 299 | D189: 202 | E189: 134 | F189: 340 | G189: 320 | H189: 842 | I189: 788 | J189: 471 | K189: 544 | L189: 818 | M189: 70 | N189: 69 | O189: 536 | Q189: 152 | R189: 542 | S189: 178 | T189: 90 | U189: 43 | V189: 134 | W189: 92 | X189: 122 | Y189: 92 | Z189: 194 | AA189: 80 | AB189: 385 | AC189: 0 | AD189: 171 | AE189: 340 | AF189: 383 | AG189: 381 | AH189: 70 | AI189: 91 | AJ189: 148 | AK189: 131 | AL189: 225 | AM189: 70 | AN189: 266 | AO189: 130 | AP189: 202 | AQ189: 69 | AR189: 46 | AS189: 319 | AT189: 106 | AU189: 33 | AV189: 148 | AW189: 189
A190: Male 1-4 | B190: 22890 | C190: 1157 | D190: 954 | E190: 641 | F190: 1398 | G190: 1397 | H190: 3600 | I190: 3086 | J190: 2050 | K190: 2169 | L190: 3413 | M190: 266 | N190: 285 | O190: 2474 | Q190: 477 | R190: 2473 | S190: 847 | T190: 371 | U190: 200 | V190: 641 | W190: 377 | X190: 377 | Y190: 381 | Z190: 806 | AA190: 344 | AB190: 1529 | AC190: 0 | AD190: 707 | AE190: 1398 | AF190: 1270 | AG190: 1679 | AH190: 242 | AI190: 363 | AJ190: 650 | AK190: 485 | AL190: 957 | AM190: 266 | AN190: 1250 | AO190: 660 | AP190: 954 | AQ190: 285 | AR190: 295 | AS190: 1212 | AT190: 490 | AU190: 189 | AV190: 715 | AW190: 190
A191: Male 5-9 | B191: 28329 | C191: 1555 | D191: 1283 | E191: 912 | F191: 1724 | G191: 1860 | H191: 4178 | I191: 3727 | J191: 2591 | K191: 2702 | L191: 3867 | M191: 328 | N191: 341 | O191: 3261 | Q191: 437 | R191: 2850 | S191: 1269 | T191: 526 | U191: 255 | V191: 912 | W191: 422 | X191: 510 | Y191: 547 | Z191: 1056 | AA191: 493 | AB191: 1497 | AC191: 0 | AD191: 932 | AE191: 1724 | AF191: 1388 | AG191: 2065 | AH191: 293 | AI191: 466 | AJ191: 891 | AK191: 710 | AL191: 1191 | AM191: 328 | AN191: 1570 | AO191: 813 | AP191: 1283 | AQ191: 341 | AR191: 335 | AS191: 1511 | AT191: 673 | AU191: 193 | AV191: 848 | AW191: 191
A192: Male 10-14 | B192: 29518 | C192: 1597 | D192: 1420 | E192: 920 | F192: 1897 | G192: 1964 | H192: 4260 | I192: 3823 | J192: 2839 | K192: 2765 | L192: 3674 | M192: 361 | N192: 326 | O192: 3672 | Q192: 415 | R192: 2861 | S192: 1349 | T192: 596 | U192: 245 | V192: 920 | W192: 493 | X192: 469 | Y192: 631 | Z192: 977 | AA192: 520 | AB192: 1378 | AC192: 0 | AD192: 883 | AE192: 1897 | AF192: 1356 | AG192: 2243 | AH192: 344 | AI192: 501 | AJ192: 984 | AK192: 700 | AL192: 1189 | AM192: 361 | AN192: 1830 | AO192: 780 | AP192: 1420 | AQ192: 326 | AR192: 428 | AS192: 1576 | AT192: 836 | AU192: 192 | AV192: 818 | AW192: 192
A193: Male 15-19 | B193: 31769 | C193: 1683 | D193: 1323 | E193: 968 | F193: 2037 | G193: 1963 | H193: 4659 | I193: 4883 | J193: 2842 | K193: 2916 | L193: 3996 | M193: 404 | N193: 354 | O193: 3741 | Q193: 708 | R193: 2910 | S193: 1299 | T193: 651 | U193: 266 | V193: 968 | W193: 509 | X193: 521 | Y193: 704 | Z193: 932 | AA193: 485 | AB193: 1701 | AC193: 0 | AD193: 848 | AE193: 2037 | AF193: 2137 | AG193: 2191 | AH193: 341 | AI193: 521 | AJ193: 1041 | AK193: 752 | AL193: 1331 | AM193: 404 | AN193: 1933 | AO193: 957 | AP193: 1323 | AQ193: 354 | AR193: 410 | AS193: 1585 | AT193: 849 | AU193: 259 | AV193: 842 | AW193: 193
A194: Male 20-24 | B194: 32672 | C194: 1441 | D194: 908 | E194: 844 | F194: 1738 | G194: 1715 | H194: 4932 | I194: 6685 | J194: 2301 | K194: 2621 | L194: 5333 | M194: 323 | N194: 323 | O194: 3508 | Q194: 1695 | R194: 2356 | S194: 1128 | T194: 466 | U194: 223 | V194: 844 | W194: 968 | X194: 459 | Y194: 639 | Z194: 761 | AA194: 457 | AB194: 3387 | AC194: 0 | AD194: 785 | AE194: 1738 | AF194: 4082 | AG194: 1835 | AH194: 369 | AI194: 506 | AJ194: 881 | AK194: 606 | AL194: 1188 | AM194: 323 | AN194: 1412 | AO194: 885 | AP194: 908 | AQ194: 323 | AR194: 376 | AS194: 1433 | AT194: 707 | AU194: 253 | AV194: 679 | AW194: 194
A195: Male 25-29 | B195: 29473 | C195: 1188 | D195: 808 | E195: 846 | F195: 1500 | G195: 1555 | H195: 4671 | I195: 5157 | J195: 2371 | K195: 2404 | L195: 5380 | M195: 274 | N195: 357 | O195: 2962 | Q195: 1513 | R195: 2335 | S195: 998 | T195: 426 | U195: 201 | V195: 846 | W195: 618 | X195: 443 | Y195: 431 | Z195: 625 | AA195: 317 | AB195: 3640 | AC195: 0 | AD195: 771 | AE195: 1500 | AF195: 3212 | AG195: 1945 | AH195: 324 | AI195: 402 | AJ195: 823 | AK195: 480 | AL195: 1081 | AM195: 274 | AN195: 1346 | AO195: 666 | AP195: 808 | AQ195: 357 | AR195: 265 | AS195: 1323 | AT195: 583 | AU195: 207 | AV195: 713 | AW195: 195
A196: Male 30-34 | B196: 29808 | C196: 1332 | D196: 845 | E196: 726 | F196: 1651 | G196: 1762 | H196: 4797 | I196: 4455 | J196: 2567 | K196: 2780 | L196: 5223 | M196: 294 | N196: 323 | O196: 3053 | Q196: 1264 | R196: 2719 | S196: 1001 | T196: 425 | U196: 235 | V196: 726 | W196: 549 | X196: 436 | Y196: 370 | Z196: 755 | AA196: 323 | AB196: 3197 | AC196: 0 | AD196: 952 | AE196: 1651 | AF196: 2680 | AG196: 2142 | AH196: 264 | AI196: 481 | AJ196: 814 | AK196: 573 | AL196: 1237 | AM196: 294 | AN196: 1503 | AO196: 639 | AP196: 845 | AQ196: 323 | AR196: 323 | AS196: 1543 | AT196: 575 | AU196: 179 | AV196: 790 | AW196: 196
A197: Male 35-39 | B197: 31521 | C197: 1597 | D197: 1157 | E197: 805 | F197: 1863 | G197: 2014 | H197: 5109 | I197: 4294 | J197: 2645 | K197: 3048 | L197: 5150 | M197: 295 | N197: 402 | O197: 3142 | Q197: 947 | R197: 3266 | S197: 1137 | T197: 487 | U197: 299 | V197: 805 | W197: 471 | X197: 549 | Y197: 490 | Z197: 1045 | AA197: 403 | AB197: 2705 | AC197: 0 | AD197: 1066 | AE197: 1863 | AF197: 2108 | AG197: 2158 | AH197: 313 | AI197: 532 | AJ197: 896 | AK197: 686 | AL197: 1305 | AM197: 295 | AN197: 1534 | AO197: 792 | AP197: 1157 | AQ197: 402 | AR197: 362 | AS197: 1743 | AT197: 649 | AU197: 188 | AV197: 868 | AW197: 197
A198: Male 40-44 | B198: 38841 | C198: 2090 | D198: 1788 | E198: 1155 | F198: 2384 | G198: 2564 | H198: 5680 | I198: 5236 | J198: 3356 | K198: 3890 | L198: 5618 | M198: 450 | N198: 377 | O198: 4253 | Q198: 835 | R198: 3654 | S198: 1567 | T198: 689 | U198: 362 | V198: 1155 | W198: 606 | X198: 683 | Y198: 675 | Z198: 1310 | AA198: 533 | AB198: 2468 | AC198: 0 | AD198: 1293 | AE198: 2384 | AF198: 2348 | AG198: 2667 | AH198: 430 | AI198: 624 | AJ198: 1191 | AK198: 852 | AL198: 1701 | AM198: 450 | AN198: 2080 | AO198: 976 | AP198: 1788 | AQ198: 377 | AR198: 555 | AS198: 2189 | AT198: 909 | AU198: 274 | AV198: 1216 | AW198: 198
A199: Male 45-49 | B199: 41914 | C199: 2194 | D199: 1984 | E199: 1446 | F199: 2782 | G199: 2680 | H199: 5986 | I199: 5620 | J199: 3784 | K199: 3863 | L199: 5695 | M199: 523 | N199: 452 | O199: 4905 | Q199: 809 | R199: 3888 | S199: 1775 | T199: 877 | U199: 360 | V199: 1446 | W199: 667 | X199: 692 | Y199: 798 | Z199: 1339 | AA199: 541 | AB199: 2489 | AC199: 0 | AD199: 1292 | AE199: 2782 | AF199: 2295 | AG199: 2907 | AH199: 526 | AI199: 646 | AJ199: 1289 | AK199: 914 | AL199: 1683 | AM199: 523 | AN199: 2463 | AO199: 1130 | AP199: 1984 | AQ199: 452 | AR199: 588 | AS199: 2180 | AT199: 1028 | AU199: 330 | AV199: 1221 | AW199: 199
A200: Male 50-54 | B200: 39765 | C200: 2235 | D200: 1921 | E200: 1345 | F200: 2650 | G200: 2458 | H200: 5531 | I200: 5735 | J200: 3661 | K200: 3479 | L200: 5344 | M200: 459 | N200: 422 | O200: 4525 | Q200: 783 | R200: 3518 | S200: 1659 | T200: 855 | U200: 351 | V200: 1345 | W200: 688 | X200: 697 | Y200: 865 | Z200: 1246 | AA200: 593 | AB200: 2311 | AC200: 0 | AD200: 1154 | AE200: 2650 | AF200: 2142 | AG200: 2806 | AH200: 581 | AI200: 630 | AJ200: 1230 | AK200: 908 | AL200: 1506 | AM200: 459 | AN200: 2178 | AO200: 1179 | AP200: 1921 | AQ200: 422 | AR200: 630 | AS200: 1973 | AT200: 953 | AU200: 375 | AV200: 1157 | AW200: 200
... 80 more rows

Sheet Calculations
A1: USING Scotland AS EXAMPLE. NEED TO ADD LOOKUP FOR MORTALITY WHEN UPDATE | B1: YEAR START | C1: 2012 | D1: AGE GROUP | E1: 16+ | I1: Cumulative incidence: years 2, 5, 10 and 20 | Q1: Years of life lost: years 2,5,10 and 20 | AC1: Hospitalisations: years 2,5,10 and 20
A2: Population Group | B2: mid-age | C2: Sex | D2: SIMD | E2: Prevalence exposure | F2: TOTAL POPULATION 2007-11 (annual average - '0s) | G2: Number treated at base | H2: Additional number treated under policy | I2: Baseline-2 | J2: Policy-2 | K2: Baseline-5 | L2: Policy-5 | M2: Baseline-10 | N2: Policy-10 | O2: Baseline-20 | P2: Policy-20 | Q2: Baseline-2 | R2: Policy-2 | S2: Diff YLL-2 | T2: Baseline-5 | U2: Policy-5 | V2: Diff YLL-5 | W2: Baseline-10 | X2: Policy-10 | Y2: Diff YLL-10 | Z2: Baseline-20 | AA2: Policy-20 | AB2: Diff YLL-20 | AC2: Baseline-2 | AD2: Policy-2 | AE2: Diff hosp-2 years | AF2: Baseline-5 | AG2: Policy-5 | AH2: Diff hosp - 5 years | AI2: Baseline-10 | AJ2: Policy-10 | AK2: Diff hosp - 10 years | AL2: Baseline-20 | AM2: Policy-20 | AN2: Diff hosp - 20 years
A3: All, by SIMD
A4: Total | F4: =SUM(F5:F9) -> 112477.6 | G4: =SUM(G5:G9) -> 0 | H4: 112477.6 | I4: 10471.69694 | J4: 10424.18195 | K4: 4217389.276 | L4: 4200916.411 | M4: 96223.60268 | N4: 95908.42471 | O4: 209298.5601 | P4: 208813.7864 | Q4: =SUM(Q5:Q9) -> 282067.176 | R4: 280778.7943 | S4: 1288.381718 | T4: 111946204 | U4: 111466515.4 | V4: 479688.5767 | W4: 2486182.689 | X4: 2476435.382 | Y4: 9747.306752 | Z4: 5095449.945 | AA4: 5077866.279 | AB4: 17583.66528 | AC4: 253885.8202 | AD4: 253078.0056 | AE4: 807.8145735 | AF4: 102620645 | AG4: 102316726.9 | AH4: 303918.0261 | AI4: 2350157.642 | AJ4: 2343887.725 | AK4: 6269.917287 | AL4: 5132780.565 | AM4: 5121252.757 | AN4: 11527.80781
A5: Q 1 | B5: n/a | C5: both | D5: 1 | E5: 1 | F5: =F12+F19 -> 41548.12 | G5: =G12+G19 -> 0 | H5: =H12+H19 -> 41548.12 | I5: =I12+I19 -> 5634.792102 | J5: 5589.157887 | K5: 2212227.22 | L5: 2196468.798 | M5: 48592.52713 | N5: 48291.95437 | O5: 99096.23736 | P5: 98636.57781 | Q5: 149989.7517 | R5: 148752.9008 | S5: =S12+S19 -> 1236.85088 | T5: 58765527.34 | U5: 58305692.33 | V5: 459835.0099 | W5: 1281964.407 | X5: 1272638.905 | Y5: 9325.502633 | Z5: 2559760.917 | AA5: 2542988.482 | AB5: 16772.43561 | AC5: 117693.4877 | AD5: 116923.2864 | AE5: 770.2012535 | AF5: 46925280.14 | AG5: 46636041.89 | AH5: 289238.2412 | AI5: 1052850.677 | AJ5: 1046897.398 | AK5: 5953.279125 | AL5: 2221468.117 | AM5: 2210555.432 | AN5: 10912.68541
A6: Q 2 | B6: n/a | C6: both | D6: 2 | E6: 1 | F6: =F13+F20 -> 19853.72 | G6: 0 | H6: 19853.72 | I6: 1857.752053 | J6: 1856.07513 | K6: 758133.1283 | L6: 757498.3385 | M6: 17530.64996 | N6: 17517.74891 | O6: 38463.20064 | P6: 38441.26798 | Q6: 50243.49295 | R6: 50197.64158 | S6: 45.85136881 | T6: 20045630.94 | U6: 20028004.69 | V6: 17626.24388 | W6: 447676.0006 | X6: 447302.8007 | Y6: 373.1999367 | Z6: 923112.8261 | AA6: 922399.2186 | AB6: 713.6074757 | AC6: 46028.13354 | AD6: 45995.03454 | AE6: 33.09900443 | AF6: 18670733.77 | AG6: 18657844.91 | AH6: 12888.85732 | AI6: 429034.6466 | AJ6: 428757.6333 | AK6: 277.0132628 | AL6: 938130.474 | AM6: 937595.6571 | AN6: 534.816908
A7: Q 3 | B7: n/a | C7: both | D7: 3 | E7: 1 | F7: 15258.78 | G7: 0 | H7: 15258.78 | I7: 1092.06638 | J7: 1091.898753 | K7: 451574.4075 | L7: 451509.2794 | M7: 10674.47763 | N7: 10673.09718 | O7: 24443.10266 | P7: 24440.56626 | Q7: 30220.7912 | R7: 30216.10979 | S7: 4.681414242 | T7: 12173075.55 | U7: 12171244.22 | V7: 1831.327517 | W7: 276033.0874 | X7: 275993.2611 | Y7: 39.82628867 | Z7: 584904.8281 | AA7: 584825.2097 | AB7: 79.61837871 | AC7: 29861.19449 | AD7: 29857.56093 | AE7: 3.633560123 | AF7: 12200942.43 | AG7: 12199504.8 | AH7: 1437.630194 | AI7: 283774.5772 | AJ7: 283742.8989 | AK7: 31.67823663 | AL7: 635199.571 | AM7: 635135.7607 | AN7: 63.81026856
A8: Q 4 | B8: n/a | C8: both | D8: 4 | E8: 1 | F8: 15163.36 | G8: 0 | H8: 15163.36 | I8: 916.303301 | J8: 916.2778504 | K8: 383377.6675 | L8: 383367.551 | M8: 9240.162974 | N8: 9239.940807 | O8: 21916.51203 | P8: 21916.08036 | Q8: 25100.03037 | R8: 25099.32831 | S8: 0.7020665431 | T8: 10162905.21 | U8: 10162627.63 | V8: 277.5818889 | W8: 232056.8551 | X8: 232050.7299 | Y8: 6.125253659 | Z8: 495284.8063 | AA8: 495272.3113 | AB8: 12.49506896 | AC8: 26835.59256 | AD8: 26835.00408 | AE8: 0.5884882827 | AF8: 11014465.35 | AG8: 11014230.21 | AH8: 235.1439458 | AI8: 258060.4283 | AJ8: 258055.1715 | AK8: 5.256821687 | AL8: 585157.3316 | AM8: 585146.5249 | AN8: 10.80667776
A9: Q 5 | B9: n/a | C9: both | D9: 5 | E9: 1 | F9: 20653.62 | G9: 0 | H9: 20653.62 | I9: 970.7831083 | J9: 970.7723288 | K9: 412076.8527 | L9: 412072.4434 | M9: 10185.78498 | N9: 10185.68345 | O9: 25379.50743 | P9: 25379.29394 | Q9: 26513.10982 | R9: 26512.81383 | S9: 0.2959885688 | T9: 10799064.98 | U9: 10798946.57 | V9: 118.4135307 | W9: 248452.3383 | X9: 248449.6857 | Y9: 2.652639956 | Z9: 532386.5667 | AA9: 532381.058 | AB9: 5.508748256 | AC9: 33467.41188 | AD9: 33467.11961 | AE9: 0.2922671673 | AF9: 13809223.28 | AG9: 13809105.13 | AH9: 118.1534605 | AI9: 326437.3128 | AJ9: 326434.623 | AK9: 2.689840648 | AL9: 752825.0712 | AM9: 752819.3826 | AN9: 5.688549163
A10: Males, by SIMD
A11: Males | F11: =SUM(F12:F16) -> 54064.98 | G11: =SUM(G12:G16) -> 0 | H11: 54064.98 | I11: 5043.195771 | J11: 5020.78686 | K11: 2040450.939 | L11: 2032688.944 | M11: 46807.52596 | N11: 46652.18259 | O11: 102513.512 | P11: 102267.584 | Q11: 155680.3553 | R11: 154981.359 | S11: 698.9962716 | T11: 61983749.93 | U11: 61722101.54 | V11: 261648.3959 | W11: 1382074.423 | X11: 1376740.013 | Y11: 5334.410111 | Z11: 2848181.052 | AA11: 2838576.296 | AB11: 9604.755851 | AC11: 114534.8889 | AD11: 114179.6449 | AE11: 355.2439121 | AF11: 46595817.77 | AG11: 46461776.89 | AH11: 134040.8752 | AI11: 1077613.642 | AJ11: 1074856.047 | AK11: 2757.595388 | AL11: 2394744.413 | AM11: 2389758.973 | AN11: 4985.440484
A12: Q 1 | B12: n/a | C12: male | D12: 1 | E12: 1 | F12: =F86 -> 19618.42 | G12: =G86 -> 0 | H12: =H86 -> 19618.42 | I12: =I86 -> 2640.259303 | J12: =J86 -> 2618.765896 | K12: 1045364.238 | L12: 1037952.618 | M12: 23179.0702 | N12: 23031.0004 | O12: 47730.47133 | P12: 47497.44882 | Q12: 81192.28295 | R12: 80521.94914 | S12: 670.3338062 | T12: 31935739.36 | U12: 31685176.98 | V12: 250562.3738 | W12: 699469.4 | X12: 694371.4873 | Y12: 5097.912665 | Z12: 1402840.227 | AA12: 1393690.623 | AB12: 9149.603336 | AC12: 51662.6235 | AD12: 51324.57312 | AE12: 338.0503842 | AF12: 20732211.9 | AG12: 20604893.53 | AH12: 127318.3777 | AI12: 469232.4107 | AJ12: 466620.0957 | AK12: 2612.314966 | AL12: 1003316.256 | AM12: 998612.7163 | AN12: 4703.540149
A13: Q 2 | B13: n/a | C13: male | D13: 2 | E13: 1 | F13: =F129 -> 9671.16 | G13: =G129 -> 0 | H13: =H129 -> 9671.16 | I13: =I129 -> 898.4673259 | J13: 897.6542345 | K13: 366710.22 | L13: 366400.0271 | M13: 8495.542498 | N13: 8489.137552 | O13: 18765.65408 | P13: 18754.40678 | Q13: 27854.35521 | R13: 27828.92039 | S13: 25.43481578 | T13: 11144630.38 | U13: 11134812.9 | V13: 9817.476584 | W13: 250075.8781 | X13: 249867.1026 | Y13: 208.7755169 | Z13: 520092.664 | AA13: 519692.8846 | AB13: 399.7793648 | AC13: 21013.29973 | AD13: 20998.18878 | AE13: 15.1109541 | AF13: 8571997.194 | AG13: 8566102.414 | AH13: 5894.779665 | AI13: 198832.9905 | AJ13: 198706.0645 | AK13: 126.9259618 | AL13: 442745.0581 | AM13: 442500.3486 | AN13: 244.7095497
A14: Q 3 | B14: n/a | C14: male | D14: 3 | E14: 1 | F14: =F172 -> 7399.58 | G14: =G172 -> 0 | H14: =H172 -> 7399.58 | I14: 546.3029999 | J14: 546.2189208 | K14: 225571.9981 | L14: 225539.1891 | M14: 5328.635496 | N14: 5327.932498 | O14: 12231.40142 | P14: 12230.07889 | Q14: 17145.13713 | R14: 17142.47971 | S14: 2.65741348 | T14: 6917962.865 | U14: 6916920.859 | V14: 1042.005829 | W14: 157335.4607 | X14: 157312.7601 | Y14: 22.70062479 | Z14: 334912.05 | AA14: 334866.8788 | AB14: 45.17117473 | AC14: 13741.48066 | AD14: 13739.80791 | AE14: 1.672758791 | AF14: 5645322.222 | AG14: 5644659.428 | AH14: 662.7939799 | AI14: 132502.2745 | AJ14: 132487.6458 | AK14: 14.62871955 | AL14: 301881.485 | AM14: 301852.051 | AN14: 29.43395125
A15: Q 4 | B15: n/a | C15: male | D15: 4 | E15: 1 | F15: =F215 -> 7355.44 | G15: =G215 -> 0 | H15: =H215 -> 7355.44 | I15: 459.8197915 | J15: 459.8069943 | K15: 192137.7579 | L15: 192132.6466 | M15: 4627.937072 | N15: 4627.823586 | O15: 10997.81982 | P15: 10997.59452 | Q15: 14329.90502 | R15: 14329.50399 | S15: 0.4010269124 | T15: 5811574.822 | U15: 5811415.959 | V15: 158.8630137 | W15: 133065.2016 | X15: 133061.6941 | Y15: 3.507497863 | Z15: 285004.7085 | AA15: 284997.6185 | AB15: 7.08994698 | AC15: 12445.89362 | AD15: 12445.62063 | AE15: 0.2729872352 | AF15: 5139847.782 | AG15: 5139738.36 | AH15: 109.4222231 | AI15: 121652.7161 | AJ15: 121650.2599 | AK15: 2.456143355 | AL15: 281220.962 | AM15: 281215.9036 | AN15: 5.058370894
A16: Q 5 | B16: n/a | C16: male | D16: 5 | E16: 1 | F16: =F258 -> 10020.38 | G16: =G258 -> 0 | H16: =H258 -> 10020.38 | I16: 498.3463512 | J16: 498.3408148 | K16: 210666.7255 | L16: 210664.463 | M16: 5176.340695 | N16: 5176.288552 | O16: 12788.16533 | P16: 12788.05499 | Q16: 15158.67499 | R16: 15158.50579 | S16: 0.1692091736 | T16: 6173842.51 | U16: 6173774.833 | V16: 67.67669309 | W16: 142128.4824 | X16: 142126.9686 | Y16: 1.51380614 | Z16: 305331.4024 | AA16: 305328.2904 | AB16: 3.112028042 | AC16: 15671.59135 | AD16: 15671.45452 | AE16: 0.1368277811 | AF16: 6506438.666 | AG16: 6506383.164 | AH16: 55.50160953 | AI16: 155393.2503 | AJ16: 155391.9807 | AK16: 1.269597523 | AL16: 365580.6519 | AM16: 365577.9534 | AN16: 2.698463323
A17: Females, by SIMD
A18: Females | F18: =SUM(F19:F23) -> 58412.62 | G18: =SUM(G19:G23) -> 0 | H18: 58412.62 | I18: 5428.501172 | J18: 5403.395089 | K18: 2176938.337 | L18: 2168227.467 | M18: 49416.07672 | N18: 49256.24212 | O18: 106785.0481 | P18: 106546.2024 | Q18: =SUM(Q19:Q23) -> 126386.8207 | R18: 125797.4353 | S18: 589.3854468 | T18: 49962454.08 | U18: 49744413.9 | V18: 218040.1809 | W18: 1104108.266 | X18: 1099695.369 | Y18: 4412.896641 | Z18: 2247268.893 | AA18: 2239289.984 | AB18: 7978.909433 | AC18: 139350.9313 | AD18: 138898.3607 | AE18: 452.5706614 | AF18: 56024827.2 | AG18: 55854950.05 | AH18: 169877.1509 | AI18: 1272544 | AJ18: 1269031.678 | AK18: 3512.321899 | AL18: 2738036.152 | AM18: 2731493.784 | AN18: 6542.367327
A19: Q 1 | B19: n/a | C19: female | D19: 1 | E19: 1 | F19: =F107 -> 21929.7 | G19: =G107 -> 0 | H19: =H107 -> 21929.7 | I19: =I107 -> 2994.532799 | J19: 2970.391991 | K19: 1166862.983 | L19: =L107 -> 1158516.18 | M19: 25413.45694 | N19: 25260.95397 | O19: 51365.76604 | P19: 51139.12898 | Q19: 68797.46874 | R19: 68230.95167 | S19: 566.517074 | T19: 26829787.98 | U19: 26620515.35 | V19: 209272.6362 | W19: 582495.0072 | X19: 578267.4173 | Y19: 4227.589968 | Z19: 1156920.691 | AA19: 1149297.858 | AB19: 7622.832276 | AC19: 66030.8642 | AD19: 65598.71333 | AE19: 432.1508693 | AF19: 26193068.23 | AG19: 26031148.37 | AH19: 161919.8635 | AI19: 583618.2665 | AJ19: 580277.3023 | AK19: 3340.964159 | AL19: 1218151.861 | AM19: 1211942.716 | AN19: 6209.145259
A20: Q 2 | B20: n/a | C20: female | D20: 2 | E20: 1 | F20: =F150 -> 10182.56 | G20: =G150 -> 0 | H20: =H150 -> 10182.56 | I20: 959.2847271 | J20: 958.4208954 | K20: 391422.9083 | L20: 391098.3114 | M20: 9035.10746 | N20: 9028.611356 | O20: 19697.54655 | P20: 19686.86121 | Q20: 22389.13774 | R20: 22368.72119 | S20: 20.41655303 | T20: 8901000.558 | U20: 8893191.79 | V20: 7808.767298 | W20: 197600.1225 | X20: 197435.6981 | Y20: 164.4244197 | Z20: 403020.1621 | AA20: 402706.334 | AB20: 313.8281109 | AC20: 25014.83381 | AD20: 24996.84576 | AE20: 17.98805033 | AF20: 10098736.58 | AG20: 10091742.5 | AH20: 6994.077651 | AI20: 230201.6561 | AJ20: 230051.5688 | AK20: 150.087301 | AL20: 495385.4159 | AM20: 495095.3085 | AN20: 290.1073583
A21: Q 3 | B21: n/a | C21: female | D21: 3 | E21: 1 | F21: =F193 -> 7859.2 | G21: =G193 -> 0 | H21: =H193 -> 7859.2 | I21: 545.7633799 | J21: 545.6798323 | K21: 226002.4094 | L21: 225970.0904 | M21: 5345.842132 | N21: 5345.164684 | O21: 12211.70123 | P21: 12210.48737 | Q21: 13075.65408 | R21: 13073.63008 | S21: 2.024000762 | T21: 5255112.682 | U21: 5254323.36 | V21: 789.3216886 | W21: 118697.6267 | X21: 118680.501 | Y21: 17.12566387 | Z21: 249992.7781 | AA21: 249958.3309 | AB21: 34.44720398 | AC21: 16119.71383 | AD21: 16117.75302 | AE21: 1.960801332 | AF21: 6555620.206 | AG21: 6554845.37 | AH21: 774.8362137 | AI21: 151272.3026 | AJ21: 151255.2531 | AK21: 17.04951708 | AL21: 333318.086 | AM21: 333283.7097 | AN21: 34.37631731
A22: Q 4 | B22: n/a | C22: female | D22: 4 | E22: 1 | F22: =F236 -> 7807.92 | G22: =G236 -> 0 | H22: =H236 -> 7807.92 | I22: 456.4835096 | J22: 456.4708561 | K22: 191239.9096 | L22: 191234.9044 | M22: 4612.225902 | N22: 4612.117221 | O22: 10918.69221 | P22: 10918.48584 | Q22: 10770.12535 | R22: 10769.82431 | S22: 0.3010396307 | T22: 4351330.39 | U22: 4351211.671 | V22: 118.7188752 | W22: 98991.65353 | X22: 98989.03577 | Y22: 2.617755796 | Z22: 210280.0978 | AA22: 210274.6927 | AB22: 5.405121984 | AC22: 14389.69895 | AD22: 14389.38344 | AE22: 0.3155010475 | AF22: 5874617.567 | AG22: 5874491.846 | AH22: 125.7217227 | AI22: 136407.7122 | AJ22: 136404.9115 | AK22: 2.800678332 | AL22: 303936.3696 | AM22: 303930.6213 | AN22: 5.74830687
A23: Q 5 | B23: n/a | C23: female | D23: 5 | E23: 1 | F23: =F279 -> 10633.24 | G23: =G279 -> 0 | H23: =H279 -> 10633.24 | I23: 472.4367571 | J23: 472.431514 | K23: 201410.1272 | L23: 201407.9804 | M23: 5009.444287 | N23: 5009.394893 | O23: 12591.34211 | P23: 12591.23896 | Q23: 11354.43482 | R23: 11354.30804 | S23: 0.1267793951 | T23: 4625222.47 | U23: 4625171.733 | V23: 50.73683756 | W23: 106323.8559 | X23: 106322.7171 | Y23: 1.138833816 | Z23: 227055.1643 | AA23: 227052.7676 | AB23: 2.396720214 | AC23: 17795.82053 | AD23: 17795.66509 | AE23: 0.1554393862 | AF23: 7302784.617 | AG23: 7302721.965 | AH23: 62.65185094 | AI23: 171044.0625 | AJ23: 171042.6422 | AK23: 1.420243125 | AL23: 387244.4193 | AM23: 387241.4292 | AN23: 2.99008584
A24: age/sex breakdown: All
A25: Male <1 | B25: 0.5 | C25: male | D25: all | E25: 1 | F25: =F66+F109+F152+F195+F238 -> 663.58 | G25: =G66+G109+G152+G195+G238 -> 0 | H25: =H66+H109+H152+H195+H238 -> 663.58 | I25: =I66+I109+I152+I195+I238 -> 1.300949004 | J25: =J66+J109+J152+J195+J238 -> 1.294188911 | K25: =K66+K109+K152+K195+K238 -> 231.9288144 | L25: 566.0745953 | M25: 14.941574 | N25: =N66+N109+N152+N195+N238 -> 14.86405981 | O25: 43.82763729 | P25: 43.60105387 | Q25: 128.7939514 | R25: 128.1247022 | S25: 0.6692492704 | T25: 55439.07867 | U25: 55151.15138 | V25: 287.9272962 | W25: 1413.686033 | X25: 1406.351882 | Y25: 7.334150683 | Z25: 3869.720115 | AA25: 3849.710524 | AB25: 20.00959134 | AC25: 287.8007053 | AD25: 286.7642639 | AE25: 1.036441482 | AF25: 121664.9108 | AG25: 121227.0443 | AH25: 437.8665296 | AI25: 3007.998742 | AJ25: 2997.187247 | AK25: 10.81149559 | AL25: 7725.738124 | AM25: 7698.078627 | AN25: 27.65949669
A26: Male 1-4 | B26: 2.5 | C26: male | D26: all | E26: 1 | F26: 2513.7 | G26: =G67+G110+G153+G196+G239 -> 0 | H26: 2513.7 | I26: 5.603599258 | J26: 5.574756916 | K26: =K67+K110+K153+K196+K239 -> 2450.857372 | L26: 2438.25022 | M26: 64.34711068 | N26: 64.0165359 | O26: 188.6790025 | P26: 187.7135866 | Q26: 543.549128 | R26: 540.7514208 | S26: 2.797707209 | T26: 233878.9543 | U26: 232675.8803 | V26: 1203.073962 | W26: 5959.477975 | X26: 5928.860936 | Y26: 30.61703894 | Z26: 16282.19194 | AA26: 16198.86273 | AB26: 83.32921141 | AC26: 1157.414319 | AD26: 1153.312226 | AE26: 4.102092669 | AF26: 489261.7747 | AG26: 487529.0234 | AH26: 1732.751245 | AI26: 12095.12519 | AJ26: 12052.35471 | AK26: 42.7704866 | AL26: 31055.84915 | AM26: 30946.53034 | AN26: 109.3188103
A27: Male 5-9 | B27: 7.5 | C27: male | D27: all | E27: 1 | F27: 2915.54 | G27: =G68+G111+G154+G197+G240 -> 0 | H27: 2915.54 | I27: 9.680042708 | J27: 9.632646938 | K27: =K68+K111+K154+K197+K240 -> 4232.854988 | L27: 4212.149698 | M27: 111.0821848 | N27: 110.5399122 | O27: 325.2474087 | P27: 323.6696347 | Q27: 880.8838865 | R27: 876.5708713 | S27: 4.313015132 | T27: 378533.9765 | U27: 376682.3366 | V27: 1851.639956 | W27: 9621.45348 | X27: 9574.481604 | Y27: 46.97187651 | Z27: 26118.13462 | AA27: 25991.38956 | AB27: 126.7450534 | AC27: 1620.4625 | AD27: 1615.076683 | AE27: 5.385817481 | AF27: 684868.3161 | AG27: 682594.7042 | AH27: 2273.611813 | AI27: 16923.99974 | AJ27: 16867.94949 | AK27: 56.05024396 | AL27: 43402.87214 | AM27: 43260.15071 | AN27: 142.7214332
A28: Male 10-14 | B28: 12.5 | C28: male | D28: all | E28: 1 | F28: 3175.18 | G28: =G69+G112+G155+G198+G241 -> 0 | H28: 3175.18 | I28: 13.88430539 | J28: 13.81799604 | K28: =K69+K112+K155+K198+K241 -> 6070.013515 | L28: 6041.061198 | M28: 159.2244226 | N28: 158.4670186 | O28: 465.5675126 | P28: 463.3716082 | Q28: 1207.934569 | R28: 1202.165655 | S28: 5.768913752 | T28: 518547.5872 | U28: 516074.2259 | V28: 2473.361297 | W28: 13154.59215 | X28: 13092.01308 | Y28: 62.57907253 | Z28: 35526.84944 | AA28: 35359.19644 | AB28: 167.6530006 | AC28: 2012.461811 | AD28: 2005.973706 | AE28: 6.488105273 | AF28: 850383.532 | AG28: 847646.19 | AH28: 2737.342042 | AI28: 21006.06784 | AJ28: 20938.66639 | AK28: 67.40144897 | AL28: 53810.17839 | AM28: 53639.16943 | AN28: 171.0089563
A29: Male 15-19 | B29: 17.5 | C29: male | D29: all | E29: 1 | F29: 3679.74 | G29: =G70+G113+G156+G199+G242 -> 0 | H29: 3679.74 | I29: 25.06947194 | J29: 24.95017297 | K29: =K70+K113+K156+K199+K242 -> 10954.86468 | L29: 10902.83624 | M29: 287.0767019 | N29: 285.7189484 | O29: 836.8211562 | P29: 832.9147871 | Q29: 2030.627227 | R29: 2020.964011 | S29: 9.663216394 | T29: 870124.3907 | U29: 865991.7855 | V29: 4132.605216 | W29: 21995.53506 | X29: 21891.49186 | Y29: 104.0432022 | Z29: 58847.71874 | AA29: 58572.77345 | AB29: 274.9452847 | AC29: 2891.568889 | AD29: 2882.241747 | AE29: 9.327141168 | AF29: 1221339.329 | AG29: 1217409.158 | AH29: 3930.171251 | AI29: 30143.10776 | AJ29: 30046.58613 | AK29: 96.52162567 | AL29: 77015.75559 | AM29: 76772.76217 | AN29: 242.9934214
A30: Male 20-24 | B30: 22.5 | C30: male | D30: all | E30: 1 | F30: 4443.92 | G30: =G71+G114+G157+G200+G243 -> 0 | H30: 4443.92 | I30: 41.03086161 | J30: 40.83764019 | K30: =K71+K114+K157+K200+K243 -> 17921.60618 | L30: 17837.43176 | M30: 469.1979866 | N30: 467.0064497 | O30: 1363.668729 | P30: 1357.409318 | Q30: 3159.376344 | R30: 3144.498295 | S30: 14.87804949 | T30: 1351799.727 | U30: 1345450.398 | V30: 6349.328439 | W30: 34073.75352 | X30: 33914.57235 | Y30: 159.1811673 | Z30: 90461.15381 | AA30: 90045.41573 | AB30: 415.7380819 | AC30: 4050.91755 | AD30: 4037.903274 | AE30: 13.01427632 | AF30: 1710317.369 | AG30: 1704840.123 | AH30: 5477.245742 | AI30: 42175.51668 | AJ30: 42041.33145 | AK30: 134.1852344 | AL30: 107487.0955 | AM30: 107151.7729 | AN30: 335.3226126
A31: Male 25-29 | B31: 27.5 | C31: male | D31: all | E31: 1 | F31: 4384.26 | G31: =G72+G115+G158+G201+G244 -> 0 | H31: 4384.26 | I31: 63.42775229 | J31: 63.13131855 | K31: =K72+K115+K158+K201+K244 -> 27677.16906 | L31: 27548.3396 | M31: 723.1178614 | N31: 719.7805615 | O31: 2088.298895 | P31: 2078.916245 | Q31: 4503.370413 | R31: 4482.323617 | S31: 21.04679547 | T31: 1921605.975 | U31: 1912661.016 | V31: 8944.958839 | W31: 48178.56062 | X31: 47956.1411 | Y31: 222.4195217 | Z31: 126062.7584 | AA31: 125495.1746 | AB31: 567.5838269 | AC31: 4973.476126 | AD31: 4957.512603 | AE31: 15.96352321 | AF31: 2097947.894 | AG31: 2091246.824 | AH31: 6701.070088 | AI31: 51639.54956 | AJ31: 51476.256 | AK31: 163.2935641 | AL31: 130892.6448 | AM31: 130491.0658 | AN31: 401.5790446
A32: Male 30-34 | B32: 32.5 | C32: male | D32: all | E32: 1 | F32: 3661.96 | G32: =G73+G116+G159+G202+G245 -> 0 | H32: 3661.96 | I32: 70.98740756 | J32: 70.65683206 | K32: =K73+K116+K159+K202+K245 -> 30947.18325 | L32: 30803.84244 | M32: 806.9802878 | N32: 803.2848611 | O32: 2316.490282 | P32: 2306.255822 | Q32: 4756.156306 | R32: 4734.007748 | S32: 22.14855811 | T32: 2024875.205 | U32: 2015495.784 | V32: 9379.420749 | W32: 50541.81219 | X32: 50310.26382 | Y32: 231.5483747 | Z32: 130637.0235 | AA32: 130058.11 | AB32: 578.9134969 | AC32: 4787.590964 | AD32: 4772.253183 | AE32: 15.33778084 | AF32: 2017829.112 | AG32: 2011406.605 | AH32: 6422.506083 | AI32: 49581.63807 | AJ32: 49425.9266 | AK32: 155.7114644 | AL32: 125035.1433 | AM32: 124658.016 | AN32: 377.1273266
A33: Male 35-39 | B33: 37.5 | C33: male | D33: all | E33: 1 | F33: 3664 | G33: =G74+G117+G160+G203+G246 -> 0 | H33: 3664 | I33: 106.3549728 | J33: 105.8740261 | K33: =K74+K117+K160+K203+K246 -> 46277.65999 | L33: 46070.14374 | M33: 1201.936623 | N33: 1196.642142 | O33: 3408.21863 | P33: 3394.026066 | Q33: 6487.653342 | R33: 6458.315591 | S33: 29.33775137 | T33: 2750354.174 | U33: 2738019.733 | V33: 12334.44012 | W33: 68078.05849 | X33: 67777.94991 | Y33: 300.108576 | Z33: 171951.4599 | AA33: 171231.5428 | AB33: 719.9170548 | AC33: 5799.093091 | AD33: 5781.252057 | AE33: 17.84103447 | AF33: 2439990.307 | AG33: 2432559.549 | AH33: 7430.758058 | AI33: 59746.99944 | AJ33: 59568.82177 | AK33: 178.177668 | AL33: 149141.1829 | AM33: 148723.7393 | AN33: 417.4436701
A34: Male 40-44 | B34: 42.5 | C34: male | D34: all | E34: 1 | F34: 4009.86 | G34: =G75+G118+G161+G204+G247 -> 0 | H34: 4009.86 | I34: 151.63658 | J34: 150.9639934 | K34: =K75+K118+K161+K204+K247 -> 65863.89764 | L34: 65575.05826 | M34: 1704.309377 | N34: 1697.012962 | O34: 4778.499223 | P34: 4759.539632 | Q34: 8643.285059 | R34: 8604.947624 | S34: 38.33743438 | T34: 3651034.239 | U34: 3635020.325 | V34: 16013.91408 | W34: 89730.4859 | X34: 89345.90985 | Y34: 384.5760505 | Z34: 222226.8431 | AA34: 221337.9856 | AB34: 888.8575202 | AC34: 7190.12428 | AD34: 7168.626425 | AE34: 21.49785573 | AF34: 3020523.183 | AG34: 3011615.085 | AH34: 8908.098122 | AI34: 73726.3055 | AJ34: 73514.94577 | AK34: 211.3597259 | AL34: 182333.1419 | AM34: 181853.4518 | AN34: 479.690179
A35: Male 45-49 | B35: 47.5 | C35: male | D35: all | E35: 1 | F35: 4117.82 | G35: =G76+G119+G162+G205+G248 -> 0 | H35: 4117.82 | I35: 237.2594431 | J35: 236.2181272 | K35: =K76+K119+K162+K205+K248 -> 102652.3325 | L35: 102209.6774 | M35: 2634.732706 | N35: 2623.788507 | O35: 7208.456126 | P35: 7181.867742 | Q35: 12100.2316 | R35: 12047.12449 | S35: 53.1071081 | T35: 5074739.999 | U35: 5052850.419 | V35: 21889.58029 | W35: 122959.6688 | X35: 122447.9106 | Y35: 511.7582491 | Z35: 292832.0997 | AA35: 291735.7286 | AB35: 1096.37117 | AC35: 9037.654238 | AD35: 9011.00162 | AE35: 26.6526184 | AF35: 3783407.517 | AG35: 3772484.919 | AH35: 10922.59827 | AI35: 91695.46808 | AJ35: 91442.16199 | AK35: 253.3060847 | AL35: 222202.7989 | AM35: 221666.2333 | AN35: 536.5656275
A36: Male 50-54 | B36: 52.5 | C36: male | D36: all | E36: 1 | F36: 3686.16 | G36: =G77+G120+G163+G206+G249 -> 0 | H36: 3686.16 | I36: 282.3503784 | J36: 281.1047764 | K36: =K77+K120+K163+K206+K249 -> 121702.8865 | L36: 121178.5165 | M36: 3099.4977 | N36: 3086.796447 | O36: 8287.044437 | P36: 8258.105516 | Q36: 13270.46779 | R36: 13211.92449 | S36: 58.54329514 | T36: 5530087.575 | U36: 5506250.401 | V36: 23837.17456 | W36: 132310.0135 | X36: 131766.2432 | Y36: 543.770321 | Z36: 304434.6039 | AA36: 303346.7409 | AB36: 1087.863011 | AC36: 9280.474032 | AD36: 9252.962972 | AE36: 27.51106057 | AF36: 3872032.92 | AG36: 3860876.901 | AH36: 11156.01929 | AI36: 93210.99425 | AJ36: 92957.86367 | AK36: 253.1305815 | AL36: 221601.9209 | AM36: 221100.1025 | AN36: 501.8183505
A37: Male 55-59 | B37: 57.5 | C37: male | D37: all | E37: 1 | F37: 3165.88 | G37: =G78+G121+G164+G207+G250 -> 0 | H37: 3165.88 | I37: 373.233419 | J37: 371.587243 | K37: =K78+K121+K164+K207+K250 -> 159578.113 | L37: 158899.5337 | M37: 3997.138536 | N37: 3981.415059 | O37: 10187.03903 | P37: 10155.85184 | Q37: 15302.57018 | R37: 15235.07696 | S37: 67.49321615 | T37: 6294696.308 | U37: 6267908.532 | V37: 26787.77589 | W37: 146807.5427 | X37: 146226.9191 | Y37: 580.6236235 | Z37: 315569.5618 | AA37: 314558.04 | AB37: 1011.521817 | AC37: 9821.009129 | AD37: 9791.801571 | AE37: 29.20755722 | AF37: 4067879.834 | AG37: 4056302.833 | AH37: 11577.00033 | AI37: 96515.50846 | AJ37: 96264.96726 | AK37: 250.5411985 | AL37: 220482.6038 | AM37: 220052.8191 | AN37: 429.7847399
A38: Male 60-64 | B38: 62.5 | C38: male | D38: all | E38: 1 | F38: 2914.44 | G38: =G79+G122+G165+G208+G251 -> 0 | H38: 2914.44 | I38: 459.0874778 | J38: 457.0650459 | K38: =K79+K122+K165+K208+K251 -> 194774.9781 | L38: 193957.8301 | M38: 4803.018155 | N38: 4784.866559 | O38: 11718.85497 | P38: 11687.29794 | Q38: 16986.23668 | R38: 16911.4067 | S38: 74.82998245 | T38: 6905200.244 | U38: 6876197.025 | V38: 29003.21908 | W38: 157379.9253 | X38: 156780.1844 | Y38: 599.7409147 | Z38: 318812.2788 | AA38: 317886.5125 | AB38: 925.7663756 | AC38: 10411.27277 | AD38: 10380.20279 | AE38: 31.06997468 | AF38: 4282497.41 | AG38: 4270446.268 | AH38: 12051.1415 | AI38: 100224.6919 | AJ38: 99975.41402 | AK38: 249.2778594 | AL38: 220774.6877 | AM38: 220402.879 | AN38: 371.8086169
A39: Male 65-69 | B39: 67.5 | C39: male | D39: all | E39: 1 | F39: 2238.14 | G39: =G80+G123+G166+G209+G252 -> 0 | H39: 2238.14 | I39: 555.1582884 | J39: 552.6157474 | K39: =K80+K123+K166+K209+K252 -> 231472.9568 | L39: 230489.3033 | M39: 5513.837554 | N39: 5493.897299 | O39: 12277.45664 | P39: 12251.39222 | Q39: 17209.90694 | R39: 17131.08817 | S39: 78.81876954 | T39: 6820707.669 | U39: 6791659.609 | V39: 29048.06004 | W39: 148069.9909 | X39: 147525.593 | Y39: 544.3978944 | Z39: 266530.9562 | AA39: 265861.1141 | AB39: 669.8421321 | AC39: 10002.80056 | AD39: 9971.219136 | AE39: 31.58142666 | AF39: 4050103.047 | AG39: 4038414.755 | AH39: 11688.29223 | AI39: 91935.65993 | AJ39: 91716.5687 | AK39: 219.091238 | AL39: 187540.9032 | AM39: 187301.9242 | AN39: 238.979028
A40: Male 70-74 | B40: 72.5 | C40: male | D40: all | E40: 1 | F40: 1899.34 | G40: =G81+G124+G167+G210+G253 -> 0 | H40: 1899.34 | I40: =I81+I124+I167+I210+I253 -> 632.6398474 | J40: 629.7155002 | K40: =K81+K124+K167+K210+K253 -> 259519.7663 | L40: 258434.2294 | M40: 5989.925436 | N40: 5969.754909 | O40: 12346.33051 | P40: 12326.21915 | Q40: 17081.27588 | R40: 17002.31851 | S40: 78.95737345 | T40: 6612585.931 | U40: 6584831.35 | V40: 27754.58102 | W40: 137385.2629 | X40: 136909.8422 | Y40: 475.4207018 | Z40: 224264.8672 | AA40: 223770.0476 | AB40: 494.8196096 | AC40: 9819.281174 | AD40: 9787.635191 | AE40: 31.64598366 | AF40: 3917457.848 | AG40: 3906255.751 | AH40: 11202.097 | AI40: 86479.16852 | AJ40: 86288.12045 | AK40: 191.0480694 | AL40: 165313.5011 | AM40: 165161.4831 | AN40: 152.0179609
A41: Male 75-79 | B41: 77.5 | C41: male | D41: all | E41: 1 | F41: 1452.34 | G41: =G82+G125+G168+G211+G254 -> 0 | H41: 1452.34 | I41: 738.2237472 | J41: 734.8712954 | K41: =K82+K125+K168+K211+K254 -> 292805.5525 | L41: 291667.5449 | M41: 6348.221907 | N41: 6330.701705 | O41: 11424.53329 | P41: 11414.76883 | Q41: 15502.69869 | R41: 15432.2972 | S41: 70.40148711 | T41: 5712182.121 | U41: 5689819.31 | V41: 22362.81127 | W41: 108583.5457 | X41: 108264.2007 | Y41: 319.3449933 | Z41: 148977.2842 | AA41: 148702.5387 | AB41: 274.7455594 | AC41: 9249.450022 | AD41: 9219.70566 | AE41: 29.74436164 | AF41: 3579198.786 | AG41: 3569631.309 | AH41: 9567.47764 | AI41: 74766.06842 | AJ41: 74633.34907 | AK41: 132.7193547 | AL41: 127482.5758 | AM41: 127434.9971 | AN41: 47.5786477
A42: Male 80-84 | B42: 82.5 | C42: male | D42: all | E42: 1 | F42: =F83+F126+F169+F212+F255 -> 895.26 | G42: 0 | H42: 895.26 | I42: 596.4198749 | J42: 593.8164347 | K42: =K83+K126+K169+K212+K255 -> 229497.5718 | L42: 228685.7076 | M42: 4717.720876 | N42: 4707.260169 | O42: 7693.970741 | P42: 7690.58628 | Q42: 10139.13787 | R42: 10094.87939 | S42: 44.25848392 | T42: 3565103.871 | U42: 3552329.464 | V42: 12774.40789 | W42: 62532.43951 | X42: 62375.91639 | Y42: 156.5231164 | Z42: 74987.60858 | AA42: 74852.53337 | AB42: 135.0752055 | AC42: 6521.736212 | AD42: 6501.337592 | AE42: 20.39862026 | AF42: 2455274.516 | AG42: 2449278.257 | AH42: 5996.259336 | AI42: 48931.09613 | AJ42: 48862.90689 | AK42: 68.18924127 | AL42: 76732.0493 | AM42: 76724.83581 | AN42: 7.213492613
A43: Male 85-89 | B43: 87.5 | C43: male | D43: all | E43: 1 | F43: 431.38 | G43: 0 | H43: 431.38 | I43: 432.4014329 | J43: 430.6195862 | K43: =K84+K127+K170+K213+K256 -> 156163.4097 | L43: 155700.925 | M43: 2897.675436 | N43: 2893.615531 | O43: 4052.148705 | P43: 4051.729173 | Q43: 4756.415761 | R43: 4736.815449 | S43: 19.6003128 | T43: 1497588.653 | U43: 1492994.478 | V43: 4594.174228 | W43: 21916.42821 | X43: 21871.59995 | Y43: 44.82826023 | Z43: 20285.63198 | AA43: 20234.84309 | AB43: 50.78888716 | AC43: 3863.137734 | AD43: 3851.361113 | AE43: 11.7766211 | AF43: 1372463.009 | AG43: 1369605.59 | AH43: 2857.419455 | AI43: 24956.45792 | AJ43: 24935.52097 | AK43: 20.93694669 | AL43: 34226.20119 | AM43: 34230.0968 | AN43: -3.895617056
A44: Male 90+ | B44: 95 | C44: female | D44: all | E44: 1 | F44: 152.48 | G44: 0 | H44: 152.48 | I44: 247.4459198 | J44: 246.4395317 | K44: =K85+K128+K171+K214+K257 -> 79655.33656 | L44: 79470.48813 | M44: 1263.543521 | N44: 1262.752953 | O44: 1502.359058 | P44: 1502.347558 | Q44: 989.7836791 | R44: 985.7581267 | S44: 4.025552345 | T44: 214664.2539 | U44: 214038.3122 | V44: 625.9416578 | W44: 1382.189743 | X44: 1373.566738 | Y44: 8.623005035 | Z44: -497.6945415 | AA44: -511.9645014 | AB44: 14.26995994 | AC44: 1757.162755 | AD44: 1751.501136 | AE44: 5.661619262 | AF44: 561377.1543 | AG44: 560406.0051 | AH44: 971.1491478 | AI44: 8852.219999 | AJ44: 8849.148142 | AK44: 3.071856453 | AL44: 10487.56977 | AM44: 10488.86508 | AN44: -1.295313712
A45: Female <1 | B45: 0.5 | C45: female | D45: all | E45: 1 | F45: =F87+F130+F173+F216+F259 -> 637.62 | G45: =G86+G129+G172+G215+G258 -> 0 | H45: =H87+H130+H173+H216+H259 -> 637.62 | I45: 0.4328695543 | J45: 0.4306010249 | K45: =K87+K130+K173+K216+K259 -> 192.2514168 | L45: 191.244075 | M45: 5.18917364 | N45: 5.161994865 | O45: 16.20730083 | P45: 16.12252948 | Q45: 42.85408588 | R45: 42.62950147 | S45: 0.2245844059 | T45: 18728.22832 | U45: 18630.09768 | V45: 98.13064803 | W45: 490.6393901 | X45: 488.0695956 | Y45: 2.569794573 | Z45: 1426.578625 | AA45: 1419.116478 | AB45: 7.462147308 | AC45: 479.9547252 | AD45: 478.2100936 | AE45: 1.744631554 | AF45: 199765.6753 | AG45: 199039.688 | AH45: 725.987302 | AI45: 4807.834513 | AJ45: 4790.369895 | AK45: 17.46461725 | AL45: 11660.14889 | AM45: 11617.85294 | AN45: 42.29595673
A46: Female 1-4 | B46: 2.5 | C46: female | D46: all | E46: 1 | F46: =F88+F131+F174+F217+F260 -> 2396.88 | G46: =G87+G130+G173+G216+G259 -> 0 | H46: =H88+H131+H174+H217+H260 -> 2396.88 | I46: 1.878679991 | J46: 1.86902039 | K46: =K88+K131+K174+K217+K260 -> 834.3645083 | L46: 830.0753983 | M46: 22.51975432 | N46: 22.40404547 | O46: 70.324369 | P46: 69.96362042 | Q46: 182.2319591 | R46: 181.2949778 | S46: 0.9369812795 | T46: 79611.14968 | U46: 79201.90215 | V46: 409.2475212 | W46: 2084.218888 | X46: 2073.509825 | Y46: 10.70906299 | Z46: 6049.404406 | AA46: 6018.369713 | AB46: 31.034693 | AC46: 1872.535275 | AD46: 1865.910271 | AE46: 6.625004478 | AF46: 779367.6903 | AG46: 776611.0161 | AH46: 2756.674177 | AI46: 18756.59252 | AJ46: 18690.28524 | AK46: 66.30728118 | AL46: 45483.68545 | AM46: 45323.16401 | AN46: 160.521438
A47: Female 5-9 | B47: 7.5 | C47: female | D47: all | E47: 1 | F47: 2803.36 | G47: =G88+G131+G174+G217+G260 -> 0 | H47: =H89+H132+H175+H218+H261 -> 2803.36 | I47: 3.477637093 | J47: 3.460579382 | K47: =K89+K132+K175+K218+K261 -> 1544.354894 | L47: 1536.782623 | M47: 41.67415961 | N47: 41.46998556 | O47: 130.0504441 | P47: 129.414998 | Q47: 316.4649754 | R47: 314.9127238 | S47: 1.55225168 | T47: 138089.0892 | U47: 137412.0094 | V47: 677.0797973 | W47: 3606.947071 | X47: 3589.275192 | Y47: 17.67187953 | Z47: 10407.2173 | AA47: 10356.35853 | AB47: 50.85876208 | AC47: 2491.12334 | AD47: 2482.823008 | AE47: 8.300332181 | AF47: 1036746.38 | AG47: 1033293.467 | AH47: 3452.912283 | AI47: 24946.57729 | AJ47: 24863.56665 | AK47: 83.01064355 | AL47: 60462.57164 | AM47: 60261.93913 | AN47: 200.6325142
A48: Female 10-14 | B48: 12.5 | C48: female | D48: all | E48: 1 | F48: 3001 | G48: =G89+G132+G175+G218+G261 -> 0 | H48: =H90+H133+H176+H219+H262 -> 3001 | I48: 5.104068889 | J48: 5.079505671 | K48: =K90+K133+K176+K219+K262 -> 2266.41332 | L48: 2255.511769 | M48: 61.14635385 | N48: 60.85256319 | O48: 190.685547 | P48: 189.7727852 | Q48: 444.0539934 | R48: 441.9169934 | S48: 2.137000004 | T48: 193586.7379 | U48: 192655.5724 | V48: 931.1654476 | W48: 5047.731644 | X48: 5023.477985 | Y48: 24.2536583 | Z48: 14497.34266 | AA48: 14427.93258 | AB48: 69.4100805 | AC48: 2922.351819 | AD48: 2912.844256 | AE48: 9.507563156 | AF48: 1216114.708 | AG48: 1212160.584 | AH48: 3954.123882 | AI48: 29257.65745 | AJ48: 29162.64701 | AK48: 95.01043477 | AL48: 70874.21148 | AM48: 70644.94759 | AN48: 229.2638879
A49: Female 15-19 | B49: 17.5 | C49: female | D49: all | E49: 1 | F49: 3502.26 | G49: =G90+G133+G176+G219+G262 -> 0 | H49: 3502.26 | I49: 9.786871257 | J49: 9.740515226 | K49: =K91+K134+K177+K220+K263 -> 4344.835499 | L49: 4324.27295 | M49: 117.1657362 | N49: 116.612237 | O49: 364.8040947 | P49: 363.0912611 | Q49: 792.7365718 | R49: 788.9817333 | S49: 3.754838519 | T49: 345047.8622 | U49: 343414.8607 | V49: 1633.001491 | W49: 8969.357009 | X49: 8926.982803 | Y49: 42.37420559 | Z49: 25548.86149 | AA49: 25428.85766 | AB49: 120.0038211 | AC49: 3966.7147 | AD49: 3953.981706 | AE49: 12.73299374 | AF49: 1650404.874 | AG49: 1645112.332 | AH49: 5292.542115 | AI49: 39690.23655 | AJ49: 39563.21716 | AK49: 127.0193956 | AL49: 96028.84497 | AM49: 95723.46567 | AN49: 305.3793015
A50: Female 20-24 | B50: 22.5 | C50: female | D50: all | E50: 1 | F50: 4366.32 | G50: =G91+G134+G177+G220+G263 -> 0 | H50: 4366.32 | I50: 17.26893514 | J50: 17.18689981 | K50: =K92+K135+K178+K221+K264 -> 7664.775743 | L50: 7628.406055 | M50: 206.5937964 | N50: 205.6159503 | O50: 642.2009816 | P50: 639.1869381 | Q50: 1329.708006 | R50: 1323.391285 | S50: 6.316720582 | T50: 578045.2726 | U50: 575302.3897 | V50: 2742.882872 | W50: 14989.17571 | X50: 14918.22352 | Y50: 70.95219689 | Z50: 42412.00518 | AA50: 42212.83972 | AB50: 199.1654604 | AC50: 5521.247663 | AD50: 5503.322539 | AE50: 17.92512427 | AF50: 2296734.634 | AG50: 2289288.189 | AH50: 7446.445125 | AI50: 55210.9344 | AJ50: 55032.43369 | AK50: 178.5007072 | AL50: 133410.824 | AM50: 132983.2448 | AN50: 427.5791548
A51: Female 25-29 | B51: 27.5 | C51: female | D51: all | E51: 1 | F51: 4263.68 | G51: =G92+G135+G178+G221+G264 -> 0 | H51: 4263.68 | I51: 28.3282492 | J51: 28.19004303 | K51: =K93+K136+K179+K222+K265 -> 12567.00783 | L51: 12505.8096 | M51: 338.3482536 | N51: 336.7072364 | O51: 1047.813926 | P51: 1042.801056 | Q51: 2011.305693 | R51: 2001.493055 | S51: 9.812638263 | T51: 872354.1928 | U51: 868105.9523 | V51: 4248.240535 | W51: 22519.26018 | X51: 22410.0244 | Y51: 109.2357777 | Z51: 62929.89431 | AA51: 62628.52397 | AB51: 301.370342 | AC51: 6356.509148 | AD51: 6335.082079 | AE51: 21.42706893 | AF51: 2642974.789 | AG51: 2634085.061 | AH51: 8889.72791 | AI51: 63473.54002 | AJ51: 63261.01515 | AK51: 212.5248719 | AL51: 152926.107 | AM51: 152421.2512 | AN51: 504.8557956
A52: Female 30-34 | B52: 32.5 | C52: female | D52: all | E52: 1 | F52: 3634.92 | G52: =G93+G136+G179+G222+G265 -> 0 | H52: 3634.92 | I52: 32.98660953 | J52: 32.82911561 | K52: =K94+K137+K180+K223+K266 -> 14626.51889 | L52: 14556.86438 | M52: 393.3832419 | N52: 391.5204266 | O52: 1213.954544 | P52: 1208.314956 | Q52: 2210.102838 | R52: 2199.550746 | S52: 10.55209265 | T52: 956817.2535 | U52: 952260.5471 | V52: 4556.706426 | W52: 24609.62529 | X52: 24493.06501 | Y52: 116.5602801 | Z52: 68071.20497 | AA52: 67754.48755 | AB52: 316.7174197 | AC52: 5925.365349 | AD52: 5905.935796 | AE52: 19.42955297 | AF52: 2462663.929 | AG52: 2454613.316 | AH52: 8050.613313 | AI52: 59091.03981 | AJ52: 58899.09176 | AK52: 191.9480524 | AL52: 141981.9829 | AM52: 141529.7807 | AN52: 452.2021712
A53: Female 35-39 | B53: 37.5 | C53: female | D53: all | E53: 1 | F53: 3932.98 | G53: =G94+G137+G180+G223+G266 -> 0 | H53: 3932.98 | I53: 56.84164507 | J53: 56.57452216 | K53: =K95+K138+K181+K224+K267 -> 25176.74743 | L53: 25058.93309 | M53: 675.532545 | N53: 672.4007756 | O53: 2068.218253 | P53: 2058.928782 | Q53: 3467.340349 | R53: 3451.045852 | S53: 16.2944973 | T53: 1495938.886 | U53: 1488938.25 | V53: 7000.635644 | W53: 38211.11132 | X53: 38033.89602 | Y53: 177.2153037 | Z53: 103636.7025 | AA53: 103169.8809 | AB53: 466.8216389 | AC53: 7316.373994 | AD53: 7292.995082 | AE53: 23.37891218 | AF53: 3037902.959 | AG53: 3028244.341 | AH53: 9658.618432 | AI53: 72750.32008 | AJ53: 72521.43897 | AK53: 228.8811174 | AL53: 173751.7691 | AM53: 173222.6743 | AN53: 529.0948118
A54: Female 40-44 | B54: 42.5 | C54: female | D54: all | E54: 1 | F54: 4494.46 | G54: =G95+G138+G181+G224+G267 -> 0 | H54: 4494.46 | I54: 88.77582812 | J54: 88.3623618 | K54: =K96+K139+K182+K225+K268 -> 39279.05912 | L54: 39097.20191 | M54: 1051.451558 | N54: 1046.646516 | O54: 3194.133098 | P54: 3180.168246 | Q54: 5060.222203 | R54: 5036.654623 | S54: 23.56758038 | T54: 2176780.469 | U54: 2166701.372 | V54: 10079.09735 | W54: 55274.70892 | X54: 55021.96094 | Y54: 252.7479765 | Z54: 147390.3958 | AA54: 146743.1626 | AB54: 647.2331905 | AC54: 9144.778466 | AD54: 9115.983133 | AE54: 28.79533301 | AF54: 3793531.535 | AG54: 3781670.038 | AH54: 11861.49658 | AI54: 90669.27381 | AJ54: 90389.90487 | AK54: 279.3689462 | AL54: 215270.8377 | AM54: 214637.1277 | AN54: 633.7100613
A55: Female 45-49 | B55: 47.5 | C55: female | D55: all | E55: 1 | F55: 4542.4 | G55: =G96+G139+G182+G225+G268 -> 0 | H55: 4542.4 | I55: 144.9780084 | J55: 144.3135339 | K55: =K97+K140+K183+K226+K269 -> 63989.49792 | L55: 63699.05978 | M55: 1703.845104 | N55: 1696.275644 | O55: 5086.113691 | P55: 5065.109652 | Q55: 7393.87843 | R55: 7359.990228 | S55: 33.88820222 | T55: 3162381.018 | U55: 3148025.181 | V55: 14355.83721 | W55: 79369.11005 | X55: 79016.12185 | Y55: 352.9881999 | Z55: 204580.362 | AA55: 203728.2745 | AB55: 852.0875241 | AC55: 10647.22561 | AD55: 10614.34411 | AE55: 32.88150459 | AF55: 4407349.77 | AG55: 4393894.835 | AH55: 13454.93492 | AI55: 104875.2191 | AJ55: 104562.688 | AK55: 312.5310627 | AL55: 245700.2991 | AM55: 245021.1127 | AN55: 679.1864148
A56: Female 50-54 | B56: 52.5 | C56: female | D56: all | E56: 1 | F56: 3959.2 | G56: =G97+G140+G183+G226+G269 -> 0 | H56: 3959.2 | I56: 173.8341605 | J56: 173.048613 | K56: =K98+K141+K184+K227+K270 -> 76541.21978 | L56: 76199.99705 | M56: 2027.439856 | N56: 2018.667708 | O56: 5949.876655 | P56: 5926.633786 | Q56: 8170.205544 | R56: 8133.28481 | S56: 36.92073404 | T56: 3476675.029 | U56: 3461172.158 | V56: 15502.87164 | W56: 86358.07253 | X56: 85983.79874 | Y56: 374.2737962 | Z56: 215988.4236 | AA56: 215133.1678 | AB56: 855.2557185 | AC56: 10194.10681 | AD56: 10163.13334 | AE56: 30.97347242 | AF56: 4210886.155 | AG56: 4198295.756 | AH56: 12590.39957 | AI56: 99765.76005 | AJ56: 99477.3342 | AK56: 288.4258539 | AL56: 230725.4479 | AM56: 230124.8779 | AN56: 600.5699938
A57: Female 55-59 | B57: 57.5 | C57: female | D57: all | E57: 1 | F57: 3327.36 | G57: =G98+G141+G184+G227+G270 -> 0 | H57: 3327.36 | I57: 236.8759571 | J57: 235.8178355 | K57: =K99+K142+K185+K228+K271 -> 103729.6477 | L57: 103276.4989 | M57: 2715.377478 | N57: 2704.084724 | O57: 7673.530448 | P57: 7646.588899 | Q57: 9711.914242 | R57: 9668.531254 | S57: 43.38298754 | T57: 4089716.43 | U57: 4071842.01 | V57: 17874.42004 | W57: 99444.15152 | X57: 99029.22772 | Y57: 414.9237973 | Z57: 233872.7064 | AA57: 233028.0754 | AB57: 844.6309916 | AC57: 9893.585138 | AD57: 9863.876565 | AE57: 29.70857354 | AF57: 4067175.79 | AG57: 4055280.156 | AH57: 11895.63354 | AI57: 95419.16266 | AJ57: 95155.10787 | AK57: 264.0547908 | AL57: 214441.5875 | AM57: 213942.6424 | AN57: 498.945058
A58: Female 60-64 | B58: 62.5 | C58: female | D58: all | E58: 1 | F58: 3125.72 | G58: =G99+G142+G185+G228+G271 -> 0 | H58: 3125.72 | I58: 310.8155796 | J58: 309.4169086 | K58: =K100+K143+K186+K229+K272 -> 135349.4929 | L58: 134758.92 | M58: 3501.016759 | N58: 3486.749018 | O58: 9531.74329 | P58: 9501.084359 | Q58: 11500.17644 | R58: 11448.42562 | S58: 51.75082541 | T58: 4795598.083 | U58: 4774658.348 | V58: 20939.73492 | W58: 114312.2249 | X58: 113843.948 | Y58: 468.2768871 | Z58: 254089.1414 | AA58: 253232.0828 | AB58: 857.0585623 | AC58: 10307.46567 | AD58: 10276.10523 | AE58: 31.36043836 | AF58: 4216461.554 | AG58: 4204091.69 | AH58: 12369.86312 | AI58: 97936.35057 | AJ58: 97670.2771 | AK58: 266.0734668 | AL58: 213935.4877 | AM58: 213479.0964 | AN58: 456.3913463
A59: Female 65-69 | B59: 67.5 | C59: female | D59: all | E59: 1 | F59: 2624.9 | G59: =G100+G143+G186+G229+G272 -> 0 | H59: 2624.9 | I59: 438.2274662 | J59: 436.1484223 | K59: =K101+K144+K187+K230+K273 -> 188331.2034 | L59: 187481.2116 | M59: 4737.772866 | N59: 4718.639373 | O59: 11868.99216 | P59: 11836.58687 | Q59: 13585.05145 | R59: 13520.60109 | S59: 64.45036092 | T59: 5544843.732 | U59: 5519782.769 | V59: 25060.96236 | W59: 126587.1854 | X59: 126070.451 | Y59: 516.7344617 | Z59: 250155.8058 | AA59: 249392.5498 | AB59: 763.255975 | AC59: 10215.74145 | AD59: 10182.39294 | AE59: 33.34850183 | AF59: 4130233.376 | AG59: 4117521.403 | AH59: 12711.97261 | AI59: 93710.32521 | AJ59: 93455.85478 | AK59: 254.4704362 | AL59: 192103.0744 | AM59: 191752.9004 | AN59: 350.1740217
A60: Female 70-74 | B60: 72.5 | C60: female | D60: all | E60: 1 | F60: 2505.88 | G60: =G101+G144+G187+G230+G273 -> 0 | H60: 2505.88 | I60: 590.8087702 | J60: 587.9445591 | K60: =K102+K145+K188+K231+K274 -> 250571.0253 | L60: 249437.0819 | M60: 6133.504509 | N60: 6109.715501 | O60: 14227.25925 | P60: 14195.46282 | Q60: 15951.83679 | R60: 15874.50309 | S60: 77.33370005 | T60: 6377741.248 | U60: 6348812.759 | V60: 28928.48864 | W60: 139761.4034 | X60: 139209.4038 | Y60: 551.9996296 | Z60: 248821.1767 | AA60: 248136.9654 | AB60: 684.21126 | AC60: 10902.24189 | AD60: 10865.36513 | AE60: 36.87676333 | AF60: 4355949.589 | AG60: 4342362.438 | AH60: 13587.15179 | AI60: 96565.0543 | AJ60: 96311.9003 | AK60: 253.1540022 | AL60: 186627.0364 | AM60: 186347.2557 | AN60: 279.7806899
A61: Female 75-79 | B61: 77.5 | C61: female | D61: all | E61: 1 | F61: 2207.48 | G61: =G102+G145+G188+G231+G274 -> 0 | H61: 2207.48 | I61: 851.048422 | J61: 846.9403317 | K61: =K103+K146+K189+K232+K275 -> 350649.2097 | L61: 349137.3063 | M61: 8100.474487 | N61: 8073.440212 | O61: 16228.92572 | P61: 16207.76093 | Q61: 17872.01686 | R61: 17785.74697 | S61: 86.26989666 | T61: 6829536.745 | U61: 6799939.093 | V61: 29597.65169 | W61: 137182.2987 | X61: 136703.8146 | Y61: 478.4840541 | Z61: 200379.9421 | AA61: 199916.0673 | AB61: 463.8748088 | AC61: 11195.26049 | AD61: 11156.94487 | AE61: 38.31562717 | AF61: 4358976.566 | AG61: 4345903.013 | AH61: 13073.55268 | AI61: 92017.53557 | AJ61: 91810.65921 | AK61: 206.8763655 | AL61: 159115.7627 | AM61: 158976.7871 | AN61: 138.9756035
A62: Female 80-84 | B62: 82.5 | C62: female | D62: all | E62: 1 | F62: =F104+F147+F190+F233+F276 -> 1592.9 | G62: =G103+G146+G189+G232+G275 -> 0 | H62: 1592.9 | I62: 833.4895489 | J62: 829.6152826 | K62: =K104+K147+K190+K233+K276 -> 334267.1567 | L62: 332941.353 | M62: 7335.212123 | N62: 7314.990413 | O62: 13147.09243 | P62: 13137.75562 | Q62: 14169.32233 | R62: 14103.4598 | S62: 65.86252587 | T62: 5180989.275 | U62: 5160247.748 | V62: 20741.52739 | W62: 95891.61749 | X62: 95603.10628 | Y62: 288.5112015 | Z62: 119264.1707 | AA62: 118998.2405 | AB62: 265.9302647 | AC62: 8841.978394 | AD62: 8812.620388 | AE62: 29.35800665 | AF62: 3361271.601 | AG62: 3351987.617 | AH62: 9283.983364 | AI62: 67961.41711 | AJ62: 67836.62626 | AK62: 124.7908432 | AL62: 108066.5075 | AM62: 108015.6999 | AN62: 50.80757733
A63: Female 85-89 | B63: 87.5 | C63: female | D63: all | E63: 1 | F63: 983.06 | G63: =G104+G147+G190+G233+G276 -> 0 | H63: 983.06 | I63: 823.032928 | J63: 819.3307393 | K63: =K105+K148+K191+K234+K277 -> 310696.4248 | L63: 309622.6983 | M63: 6127.560455 | N63: 6116.143568 | O63: 9117.083349 | P63: 9115.459425 | Q63: 9053.362208 | R63: 9012.638133 | S63: 40.72407569 | T63: 2967636.284 | U63: 2957100.264 | V63: 10536.02019 | W63: 45208.33293 | X63: 45095.17154 | Y63: 113.1613913 | Z63: 40682.34001 | AA63: 40548.58489 | AB63: 133.7551233 | AC63: 6315.615046 | AD63: 6294.741931 | AE63: 20.87311491 | AF63: 2274479.509 | AG63: 2268914.39 | AH63: 5565.119011 | AI63: 42014.82073 | AJ63: 41963.23719 | AK63: 51.58354187 | AL63: 57966.28765 | AM63: 57960.21634 | AN63: 6.071304303
A64: Female 90+ | B64: 95 | C64: female | D64: all | E64: 1 | F64: 510.24 | G64: =G105+G148+G191+G234+G277 -> 0 | H64: 510.24 | I64: 780.5089374 | J64: 777.0956991 | K64: =K106+K149+K192+K235+K278 -> 254317.1301 | L64: 253688.2383 | M64: 4120.868513 | N64: 4118.144231 | O64: 5016.038585 | P64: 5015.994821 | Q64: 3122.03575 | R64: 3108.382796 | S64: 13.65295332 | T64: 682337.0986 | U64: 680210.6195 | V64: 2126.479047 | W64: 4191.093556 | X64: 4161.840469 | Y64: 29.25308678 | Z64: -2934.782878 | AA64: -2983.554527 | AB64: 48.77164902 | AC64: 4840.756333 | AD64: 4821.748191 | AE64: 19.0081421 | AF64: 1525836.115 | AG64: 1522580.716 | AH64: 3255.399206 | AI64: 23624.34816 | AJ64: 23614.02269 | AK64: 10.32546822 | AL64: 27503.67763 | AM64: 27507.7474 | AN64: -4.069775225
A65: age/sex breakdown: Q1
A66: Male <1 | B66: 0.5 | C66: male | D66: 1 | E66: 1 | F66: =HLOOKUP('III Tool Overview'!$H$6,LookUpData_Pop!$B$1:$AV$269,LookUpData_Pop!BB67,FALSE)/50 -> 288.38 | G66: ='III Tool Overview'!$H$9/110 -> 0 | H66: =F66 -> 288.38 | I66: =IF('III Tool Overview'!$H$6="Orkney Health Board",0,IF('III Tool Overview'!$H$6="Shetland Health Board",0,IF('III Tool Overview'!$H$6="Western Isles Health Board",0,IF('III Tool Overview'!$H$6="Orkney Islands Local Authority",0,IF('III Tool Overview'!$H$6="Shetland Islands Local Authority",0,IF('III Tool Overview'!$H$6="Eilean Siar Local Authority",0,new_ci(2,B66,C66,D66,$C$1,G66,1,F66,F66,SIMDrateratios,RateRatios!$B$3)*10)))))) -> 0.7785483515 | J66: =IF('III Tool Overview'!$H$6="Orkney Health Board",0,IF('III Tool Overview'!$H$6="Shetland Health Board",0,IF('III Tool Overview'!$H$6="Western Isles Health Board",0,IF('III Tool Overview'!$H$6="Orkney Islands Local Authority",0,IF('III Tool Overview'!$H$6="Shetland Islands Local Authority",0,IF('III Tool Overview'!$H$6="Eilean Siar Local Authority",0,new_ci(2,B66,C66,D66,$C$1,G66+H66,1,H66,H66,SIMDrateratios,RateRatios!$B$3)*10)))))) -> 0.772010487 | K66: =IF('III Tool Overview'!$H$6="Orkney Health Board",0,IF('III Tool Overview'!$H$6="Shetland Health Board",0,IF('III Tool Overview'!$H$6="Western Isles Health Board",0,IF('III Tool Overview'!$H$6="Orkney Islands Local Authority",0,IF('III Tool Overview'!$H$6="Shetland Islands Local Authority",0,IF('III Tool Overview'!$H$6="Eilean Siar Local Authority",0,new_ci(5,B66,C66,D66,$C$1,G66,1,F66,F66,SIMDrateratios,RateRatios!$B$3)*10)))))) -> 3.405061317 | L66: =IF('III Tool Overview'!$H$6="Orkney Health Board",0,IF('III Tool Overview'!$H$6="Shetland Health Board",0,IF('III Tool Overview'!$H$6="Western Isles Health Board",0,IF('III Tool Overview'!$H$6="Orkney Islands Local Authority",0,IF('III Tool Overview'!$H$6="Shetland Islands Local Authority",0,IF('III Tool Overview'!$H$6="Eilean Siar Local Authority",0,new_ci(5,B66,C66,D66,$C$1,G66+H66,1,F66,F66,SIMDrateratios,RateRatios!$B$3)*1000)))))) -> 337.6480213 | M66: =IF('III Tool Overview'!$H$6="Orkney Health Board",0,IF('III Tool Overview'!$H$6="Shetland Health Board",0,IF('III Tool Overview'!$H$6="Western Isles Health Board",0,IF('III Tool Overview'!$H$6="Orkney Islands Local Authority",0,IF('III Tool Overview'!$H$6="Shetland Islands Local Authority",0,IF('III Tool Overview'!$H$6="Eilean Siar Local Authority",0,new_ci(10,B66,C66,D66,$C$1,G66,1,F66,F66,SIMDrateratios,RateRatios!$B$3)*10)))))) -> 8.939462511 | N66: =IF('III Tool Overview'!$H$6="Orkney Health Board",0,IF('III Tool Overview'!$H$6="Shetland Health Board",0,IF('III Tool Overview'!$H$6="Western Isles Health Board",0,IF('III Tool Overview'!$H$6="Orkney Islands Local Authority",0,IF('III Tool Overview'!$H$6="Shetland Islands Local Authority",0,IF('III Tool Overview'!$H$6="Eilean Siar Local Authority",0,new_ci(10,B66,C66,D66,$C$1,G66+H66,1,F66,F66,SIMDrateratios,RateRatios!$B$3)*10)))))) -> 8.864498779 | O66: =IF('III Tool Overview'!$H$6="Orkney Health Board",0,IF('III Tool Overview'!$H$6="Shetland Health Board",0,IF('III Tool Overview'!$H$6="Western Isles Health Board",0,IF('III Tool Overview'!$H$6="Orkney Islands Local Authority",0,IF('III Tool Overview'!$H$6="Shetland Islands Local Authority",0,IF('III Tool Overview'!$H$6="Eilean Siar Local Authority",0,new_ci(20,B66,C66,D66,$C$1,G66,1,F66,F66,SIMDrateratios,RateRatios!$B$3)*10)))))) -> 26.20769826 | P66: =IF('III Tool Overview'!$H$6="Orkney Health Board",0,IF('III Tool Overview'!$H$6="Shetland Health Board",0,IF('III Tool Overview'!$H$6="Western Isles Health Board",0,IF('III Tool Overview'!$H$6="Orkney Islands Local Authority",0,IF('III Tool Overview'!$H$6="Shetland Islands Local Authority",0,IF('III Tool Overview'!$H$6="Eilean Siar Local Authority",0,new_ci(20,B66,C66,D66,$C$1,G66+H66,1,F66,F66,SIMDrateratios,RateRatios!$B$3)*10)))))) -> 25.98858428 | Q66: =IF('III Tool Overview'!$H$6="Orkney Health Board",0,IF('III Tool Overview'!$H$6="Shetland Health Board",0,IF('III Tool Overview'!$H$6="Western Isles Health Board",0,IF('III Tool Overview'!$H$6="Orkney Islands Local Authority",0,IF('III Tool Overview'!$H$6="Shetland Islands Local Authority",0,IF('III Tool Overview'!$H$6="Eilean Siar Local Authority",0,new_yll(2,B66,C66,D66,$C$1,G66,1,F66,F66,SIMDrateratios,RateRatios!$B$3)*10)))))) -> 77.0762868 | R66: =IF('III Tool Overview'!$H$6="Orkney Health Board",0,IF('III Tool Overview'!$H$6="Shetland Health Board",0,IF('III Tool Overview'!$H$6="Western Isles Health Board",0,IF('III Tool Overview'!$H$6="Orkney Islands Local Authority",0,IF('III Tool Overview'!$H$6="Shetland Islands Local Authority",0,IF('III Tool Overview'!$H$6="Eilean Siar Local Authority",0,new_yll(2,B66,C66,D66,$C$1,G66+H66,1,F66,F66,SIMDrateratios,RateRatios!$B$3)*10)))))) -> 76.42903821 | S66: =Q66-R66 -> 0.6472485919 | T66: =IF('III Tool Overview'!$H$6="Orkney Health Board",0,IF('III Tool Overview'!$H$6="Shetland Health Board",0,IF('III Tool Overview'!$H$6="Western Isles Health Board",0,IF('III Tool Overview'!$H$6="Orkney Islands Local Authority",0,IF('III Tool Overview'!$H$6="Shetland Islands Local Authority",0,IF('III Tool Overview'!$H$6="Eilean Siar Local Authority",0,new_yll(5,B66,C66,D66,$C$1,G66,1,F66,F66,SIMDrateratios,RateRatios!$B$3)*1000)))))) -> 33174.6355 | U66: =IF('III Tool Overview'!$H$6="Orkney Health Board",0,IF('III Tool Overview'!$H$6="Shetland Health Board",0,IF('III Tool Overview'!$H$6="Western Isles Health Board",0,IF('III Tool Overview'!$H$6="Orkney Islands Local Authority",0,IF('III Tool Overview'!$H$6="Shetland Islands Local Authority",0,IF('III Tool Overview'!$H$6="Eilean Siar Local Authority",0,new_yll(5,B66,C66,D66,$C$1,G66+H66,1,F66,F66,SIMDrateratios,RateRatios!$B$3)*1000)))))) -> 32896.17612 | V66: =T66-U66 -> 278.459374 | W66: =IF('III Tool Overview'!$H$6="Orkney Health Board",0,IF('III Tool Overview'!$H$6="Shetland Health Board",0,IF('III Tool Overview'!$H$6="Western Isles Health Board",0,IF('III Tool Overview'!$H$6="Orkney Islands Local Authority",0,IF('III Tool Overview'!$H$6="Shetland Islands Local Authority",0,IF('III Tool Overview'!$H$6="Eilean Siar Local Authority",0,new_yll(10,B66,C66,D66,$C$1,G66,1,F66,F66,SIMDrateratios,RateRatios!$B$3)*10)))))) -> 845.8043198 | X66: =IF('III Tool Overview'!$H$6="Orkney Health Board",0,IF('III Tool Overview'!$H$6="Shetland Health Board",0,IF('III Tool Overview'!$H$6="Western Isles Health Board",0,IF('III Tool Overview'!$H$6="Orkney Islands Local Authority",0,IF('III Tool Overview'!$H$6="Shetland Islands Local Authority",0,IF('III Tool Overview'!$H$6="Eilean Siar Local Authority",0,new_yll(10,B66,C66,D66,$C$1,G66+H66,1,F66,F66,SIMDrateratios,RateRatios!$B$3)*10)))))) -> 838.7114813 | Y66: =W66-X66 -> 7.092838493 | Z66: =IF('III Tool Overview'!$H$6="Orkney Health Board",0,IF('III Tool Overview'!$H$6="Shetland Health Board",0,IF('III Tool Overview'!$H$6="Western Isles Health Board",0,IF('III Tool Overview'!$H$6="Orkney Islands Local Authority",0,IF('III Tool Overview'!$H$6="Shetland Islands Local Authority",0,IF('III Tool Overview'!$H$6="Eilean Siar Local Authority",0,new_yll(20,B66,C66,D66,$C$1,G66,1,F66,F66,SIMDrateratios,RateRatios!$B$3)*10)))))) -> 2314.04923 | AA66: =IF('III Tool Overview'!$H$6="Orkney Health Board",0,IF('III Tool Overview'!$H$6="Shetland Health Board",0,IF('III Tool Overview'!$H$6="Western Isles Health Board",0,IF('III Tool Overview'!$H$6="Orkney Islands Local Authority",0,IF('III Tool Overview'!$H$6="Shetland Islands Local Authority",0,IF('III Tool Overview'!$H$6="Eilean Siar Local Authority",0,new_yll(20,B66,C66,D66,$C$1,G66+H66,1,F66,F66,SIMDrateratios,RateRatios!$B$3)*10)))))) -> 2294.6992 | AB66: =Z66-AA66 -> 19.35002952 | AC66: =IF('III Tool Overview'!$H$6="Orkney Health Board",0,IF('III Tool Overview'!$H$6="Shetland Health Board",0,IF('III Tool Overview'!$H$6="Western Isles Health Board",0,IF('III Tool Overview'!$H$6="Orkney Islands Local Authority",0,IF('III Tool Overview'!$H$6="Shetland Islands Local Authority",0,IF('III Tool Overview'!$H$6="Eilean Siar Local Authority",0,hosp_count(2,B66,C66,D66,$C$1,G66,1,F66,F66,SIMDRateRatios_hosp,SIMDrateratios,RateRatios!$B$3)*10)))))) -> 152.3668416 | AD66: =IF('III Tool Overview'!$H$6="Orkney Health Board",0,IF('III Tool Overview'!$H$6="Shetland Health Board",0,IF('III Tool Overview'!$H$6="Western Isles Health Board",0,IF('III Tool Overview'!$H$6="Orkney Islands Local Authority",0,IF('III Tool Overview'!$H$6="Shetland Islands Local Authority",0,IF('III Tool Overview'!$H$6="Eilean Siar Local Authority",0,hosp_count(2,B66,C66,D66,$C$1,G66+H66,1,F66,F66,SIMDRateRatios_hosp,SIMDrateratios,RateRatios!$B$3)*10)))))) -> 151.3710636 | AE66: =AC66-AD66 -> 0.9957779961 | AF66: =IF('III Tool Overview'!$H$6="Orkney Health Board",0,IF('III Tool Overview'!$H$6="Shetland Health Board",0,IF('III Tool Overview'!$H$6="Western Isles Health Board",0,IF('III Tool Overview'!$H$6="Orkney Islands Local Authority",0,IF('III Tool Overview'!$H$6="Shetland Islands Local Authority",0,IF('III Tool Overview'!$H$6="Eilean Siar Local Authority",0,hosp_count(5,B66,C66,D66,$C$1,G66,1,F66,F66,SIMDRateRatios_hosp,SIMDrateratios,RateRatios!$B$3)*1000)))))) -> 64405.48503 | AG66: =IF('III Tool Overview'!$H$6="Orkney Health Board",0,IF('III Tool Overview'!$H$6="Shetland Health Board",0,IF('III Tool Overview'!$H$6="Western Isles Health Board",0,IF('III Tool Overview'!$H$6="Orkney Islands Local Authority",0,IF('III Tool Overview'!$H$6="Shetland Islands Local Authority",0,IF('III Tool Overview'!$H$6="Eilean Siar Local Authority",0,hosp_count(5,B66,C66,D66,$C$1,G66+H66,1,F66,F66,SIMDRateRatios_hosp,SIMDrateratios,RateRatios!$B$3)*1000)))))) -> 63984.80301 | AH66: =AF66-AG66 -> 420.6820144 | AI66: =IF('III Tool Overview'!$H$6="Orkney Health Board",0,IF('III Tool Overview'!$H$6="Shetland Health Board",0,IF('III Tool Overview'!$H$6="Western Isles Health Board",0,IF('III Tool Overview'!$H$6="Orkney Islands Local Authority",0,IF('III Tool Overview'!$H$6="Shetland Islands Local Authority",0,IF('III Tool Overview'!$H$6="Eilean Siar Local Authority",0,hosp_count(10,B66,C66,D66,$C$1,G66,1,F66,F66,SIMDRateRatios_hosp,SIMDrateratios,RateRatios!$B$3)*10)))))) -> 1592.028148 | AJ66: =IF('III Tool Overview'!$H$6="Orkney Health Board",0,IF('III Tool Overview'!$H$6="Shetland Health Board",0,IF('III Tool Overview'!$H$6="Western Isles Health Board",0,IF('III Tool Overview'!$H$6="Orkney Islands Local Authority",0,IF('III Tool Overview'!$H$6="Shetland Islands Local Authority",0,IF('III Tool Overview'!$H$6="Eilean Siar Local Authority",0,hosp_count(10,B66,C66,D66,$C$1,G66+H66,1,F66,F66,SIMDRateRatios_hosp,SIMDrateratios,RateRatios!$B$3)*10)))))) -> 1581.641233 | AK66: =AI66-AJ66 -> 10.38691497 | AL66: =IF('III Tool Overview'!$H$6="Orkney Health Board",0,IF('III Tool Overview'!$H$6="Shetland Health Board",0,IF('III Tool Overview'!$H$6="Western Isles Health Board",0,IF('III Tool Overview'!$H$6="Orkney Islands Local Authority",0,IF('III Tool Overview'!$H$6="Shetland Islands Local Authority",0,IF('III Tool Overview'!$H$6="Eilean Siar Local Authority",0,hosp_count(20,B66,C66,D66,$C$1,G66,1,F66,F66,SIMDRateRatios_hosp,SIMDrateratios,RateRatios!$B$3)*10)))))) -> 4086.582433 | AM66: =IF('III Tool Overview'!$H$6="Orkney Health Board",0,IF('III Tool Overview'!$H$6="Shetland Health Board",0,IF('III Tool Overview'!$H$6="Western Isles Health Board",0,IF('III Tool Overview'!$H$6="Orkney Islands Local Authority",0,IF('III Tool Overview'!$H$6="Shetland Islands Local Authority",0,IF('III Tool Overview'!$H$6="Eilean Siar Local Authority",0,hosp_count(20,B66,C66,D66,$C$1,G66+H66,1,F66,F66,SIMDRateRatios_hosp,SIMDrateratios,RateRatios!$B$3)*10)))))) -> 4060.01125 | AN66: =AL66-AM66 -> 26.57118213
A67: Male 1-4 | B67: 2.5 | C67: male | D67: 1 | E67: 1 | F67: =HLOOKUP('III Tool Overview'!$H$6,LookUpData_Pop!$B$1:$AV$269,LookUpData_Pop!BB68,FALSE)/50 -> 1063.9 | G67: ='III Tool Overview'!$H$9/110 -> 0 | H67: =F67 -> 1063.9 | I67: =IF('III Tool Overview'!$H$6="Orkney Health Board",0,IF('III Tool Overview'!$H$6="Shetland Health Board",0,IF('III Tool Overview'!$H$6="Western Isles Health Board",0,IF('III Tool Overview'!$H$6="Orkney Islands Local Authority",0,IF('III Tool Overview'!$H$6="Shetland Islands Local Authority",0,IF('III Tool Overview'!$H$6="Eilean Siar Local Authority",0,new_ci(2,B67,C67,D67,$C$1,G67,1,F67,F67,SIMDrateratios,RateRatios!$B$3)*10)))))) -> 3.319697367 | J67: =IF('III Tool Overview'!$H$6="Orkney Health Board",0,IF('III Tool Overview'!$H$6="Shetland Health Board",0,IF('III Tool Overview'!$H$6="Western Isles Health Board",0,IF('III Tool Overview'!$H$6="Orkney Islands Local Authority",0,IF('III Tool Overview'!$H$6="Shetland Islands Local Authority",0,IF('III Tool Overview'!$H$6="Eilean Siar Local Authority",0,new_ci(2,B67,C67,D67,$C$1,G67+H67,1,H67,H67,SIMDrateratios,RateRatios!$B$3)*10)))))) -> 3.291781364 | K67: =IF('III Tool Overview'!$H$6="Orkney Health Board",0,IF('III Tool Overview'!$H$6="Shetland Health Board",0,IF('III Tool Overview'!$H$6="Western Isles Health Board",0,IF('III Tool Overview'!$H$6="Orkney Islands Local Authority",0,IF('III Tool Overview'!$H$6="Shetland Islands Local Authority",0,IF('III Tool Overview'!$H$6="Eilean Siar Local Authority",0,new_ci(5,B67,C67,D67,$C$1,G67,1,F67,F67,SIMDrateratios,RateRatios!$B$3)*1000)))))) -> 1451.800735 | L67: =IF('III Tool Overview'!$H$6="Orkney Health Board",0,IF('III Tool Overview'!$H$6="Shetland Health Board",0,IF('III Tool Overview'!$H$6="Western Isles Health Board",0,IF('III Tool Overview'!$H$6="Orkney Islands Local Authority",0,IF('III Tool Overview'!$H$6="Shetland Islands Local Authority",0,IF('III Tool Overview'!$H$6="Eilean Siar Local Authority",0,new_ci(5,B67,C67,D67,$C$1,G67+H67,1,F67,F67,SIMDrateratios,RateRatios!$B$3)*1000)))))) -> 1439.598626 | M67: =IF('III Tool Overview'!$H$6="Orkney Health Board",0,IF('III Tool Overview'!$H$6="Shetland Health Board",0,IF('III Tool Overview'!$H$6="Western Isles Health Board",0,IF('III Tool Overview'!$H$6="Orkney Islands Local Authority",0,IF('III Tool Overview'!$H$6="Shetland Islands Local Authority",0,IF('III Tool Overview'!$H$6="Eilean Siar Local Authority",0,new_ci(10,B67,C67,D67,$C$1,G67,1,F67,F67,SIMDrateratios,RateRatios!$B$3)*10)))))) -> 38.10907977 | N67: =IF('III Tool Overview'!$H$6="Orkney Health Board",0,IF('III Tool Overview'!$H$6="Shetland Health Board",0,IF('III Tool Overview'!$H$6="Western Isles Health Board",0,IF('III Tool Overview'!$H$6="Orkney Islands Local Authority",0,IF('III Tool Overview'!$H$6="Shetland Islands Local Authority",0,IF('III Tool Overview'!$H$6="Eilean Siar Local Authority",0,new_ci(10,B67,C67,D67,$C$1,G67+H67,1,F67,F67,SIMDrateratios,RateRatios!$B$3)*10)))))) -> 37.78913317 | O67: =IF('III Tool Overview'!$H$6="Orkney Health Board",0,IF('III Tool Overview'!$H$6="Shetland Health Board",0,IF('III Tool Overview'!$H$6="Western Isles Health Board",0,IF('III Tool Overview'!$H$6="Orkney Islands Local Authority",0,IF('III Tool Overview'!$H$6="Shetland Islands Local Authority",0,IF('III Tool Overview'!$H$6="Eilean Siar Local Authority",0,new_ci(20,B67,C67,D67,$C$1,G67,1,F67,F67,SIMDrateratios,RateRatios!$B$3)*10)))))) -> 111.6715497 | P67: =IF('III Tool Overview'!$H$6="Orkney Health Board",0,IF('III Tool Overview'!$H$6="Shetland Health Board",0,IF('III Tool Overview'!$H$6="Western Isles Health Board",0,IF('III Tool Overview'!$H$6="Orkney Islands Local Authority",0,IF('III Tool Overview'!$H$6="Shetland Islands Local Authority",0,IF('III Tool Overview'!$H$6="Eilean Siar Local Authority",0,new_ci(20,B67,C67,D67,$C$1,G67+H67,1,F67,F67,SIMDrateratios,RateRatios!$B$3)*10)))))) -> 110.737241 | Q67: =IF('III Tool Overview'!$H$6="Orkney Health Board",0,IF('III Tool Overview'!$H$6="Shetland Health Board",0,IF('III Tool Overview'!$H$6="Western Isles Health Board",0,IF('III Tool Overview'!$H$6="Orkney Islands Local Authority",0,IF('III Tool Overview'!$H$6="Shetland Islands Local Authority",0,IF('III Tool Overview'!$H$6="Eilean Siar Local Authority",0,new_yll(2,B67,C67,D67,$C$1,G67,1,F67,F67,SIMDrateratios,RateRatios!$B$3)*10)))))) -> 322.0106446 | R67: =IF('III Tool Overview'!$H$6="Orkney Health Board",0,IF('III Tool Overview'!$H$6="Shetland Health Board",0,IF('III Tool Overview'!$H$6="Western Isles Health Board",0,IF('III Tool Overview'!$H$6="Orkney Islands Local Authority",0,IF('III Tool Overview'!$H$6="Shetland Islands Local Authority",0,IF('III Tool Overview'!$H$6="Eilean Siar Local Authority",0,new_yll(2,B67,C67,D67,$C$1,G67+H67,1,F67,F67,SIMDrateratios,RateRatios!$B$3)*10)))))) -> 319.3027923 | S67: =Q67-R67 -> 2.707852276 | T67: =IF('III Tool Overview'!$H$6="Orkney Health Board",0,IF('III Tool Overview'!$H$6="Shetland Health Board",0,IF('III Tool Overview'!$H$6="Western Isles Health Board",0,IF('III Tool Overview'!$H$6="Orkney Islands Local Authority",0,IF('III Tool Overview'!$H$6="Shetland Islands Local Authority",0,IF('III Tool Overview'!$H$6="Eilean Siar Local Authority",0,new_yll(5,B67,C67,D67,$C$1,G67,1,F67,F67,SIMDrateratios,RateRatios!$B$3)*1000)))))) -> 138541.6886 | U67: =IF('III Tool Overview'!$H$6="Orkney Health Board",0,IF('III Tool Overview'!$H$6="Shetland Health Board",0,IF('III Tool Overview'!$H$6="Western Isles Health Board",0,IF('III Tool Overview'!$H$6="Orkney Islands Local Authority",0,IF('III Tool Overview'!$H$6="Shetland Islands Local Authority",0,IF('III Tool Overview'!$H$6="Eilean Siar Local Authority",0,new_yll(5,B67,C67,D67,$C$1,G67+H67,1,F67,F67,SIMDrateratios,RateRatios!$B$3)*1000)))))) -> 137377.267 | V67: =T67-U67 -> 1164.421663 | W67: =IF('III Tool Overview'!$H$6="Orkney Health Board",0,IF('III Tool Overview'!$H$6="Shetland Health Board",0,IF('III Tool Overview'!$H$6="Western Isles Health Board",0,IF('III Tool Overview'!$H$6="Orkney Islands Local Authority",0,IF('III Tool Overview'!$H$6="Shetland Islands Local Authority",0,IF('III Tool Overview'!$H$6="Eilean Siar Local Authority",0,new_yll(10,B67,C67,D67,$C$1,G67,1,F67,F67,SIMDrateratios,RateRatios!$B$3)*10)))))) -> 3529.473478 | X67: =IF('III Tool Overview'!$H$6="Orkney Health Board",0,IF('III Tool Overview'!$H$6="Shetland Health Board",0,IF('III Tool Overview'!$H$6="Western Isles Health Board",0,IF('III Tool Overview'!$H$6="Orkney Islands Local Authority",0,IF('III Tool Overview'!$H$6="Shetland Islands Local Authority",0,IF('III Tool Overview'!$H$6="Eilean Siar Local Authority",0,new_yll(10,B67,C67,D67,$C$1,G67+H67,1,F67,F67,SIMDrateratios,RateRatios!$B$3)*10)))))) -> 3499.840778 | Y67: =W67-X67 -> 29.63270005 | Z67: =IF('III Tool Overview'!$H$6="Orkney Health Board",0,IF('III Tool Overview'!$H$6="Shetland Health Board",0,IF('III Tool Overview'!$H$6="Western Isles Health Board",0,IF('III Tool Overview'!$H$6="Orkney Islands Local Authority",0,IF('III Tool Overview'!$H$6="Shetland Islands Local Authority",0,IF('III Tool Overview'!$H$6="Eilean Siar Local Authority",0,new_yll(20,B67,C67,D67,$C$1,G67,1,F67,F67,SIMDrateratios,RateRatios!$B$3)*10)))))) -> 9637.109946 | AA67: =IF('III Tool Overview'!$H$6="Orkney Health Board",0,IF('III Tool Overview'!$H$6="Shetland Health Board",0,IF('III Tool Overview'!$H$6="Western Isles Health Board",0,IF('III Tool Overview'!$H$6="Orkney Islands Local Authority",0,IF('III Tool Overview'!$H$6="Shetland Islands Local Authority",0,IF('III Tool Overview'!$H$6="Eilean Siar Local Authority",0,new_yll(20,B67,C67,D67,$C$1,G67+H67,1,F67,F67,SIMDrateratios,RateRatios!$B$3)*10)))))) -> 9556.465405 | AB67: =Z67-AA67 -> 80.64454091 | AC67: =IF('III Tool Overview'!$H$6="Orkney Health Board",0,IF('III Tool Overview'!$H$6="Shetland Health Board",0,IF('III Tool Overview'!$H$6="Western Isles Health Board",0,IF('III Tool Overview'!$H$6="Orkney Islands Local Authority",0,IF('III Tool Overview'!$H$6="Shetland Islands Local Authority",0,IF('III Tool Overview'!$H$6="Eilean Siar Local Authority",0,hosp_count(2,B67,C67,D67,$C$1,G67,1,F67,F67,SIMDRateRatios_hosp,SIMDrateratios,RateRatios!$B$3)*10)))))) -> 602.7441561 | AD67: =IF('III Tool Overview'!$H$6="Orkney Health Board",0,IF('III Tool Overview'!$H$6="Shetland Health Board",0,IF('III Tool Overview'!$H$6="Western Isles Health Board",0,IF('III Tool Overview'!$H$6="Orkney Islands Local Authority",0,IF('III Tool Overview'!$H$6="Shetland Islands Local Authority",0,IF('III Tool Overview'!$H$6="Eilean Siar Local Authority",0,hosp_count(2,B67,C67,D67,$C$1,G67+H67,1,F67,F67,SIMDRateRatios_hosp,SIMDrateratios,RateRatios!$B$3)*10)))))) -> 598.7994147 | AE67: =AC67-AD67 -> 3.944741394 | AF67: =IF('III Tool Overview'!$H$6="Orkney Health Board",0,IF('III Tool Overview'!$H$6="Shetland Health Board",0,IF('III Tool Overview'!$H$6="Western Isles Health Board",0,IF('III Tool Overview'!$H$6="Orkney Islands Local Authority",0,IF('III Tool Overview'!$H$6="Shetland Islands Local Authority",0,IF('III Tool Overview'!$H$6="Eilean Siar Local Authority",0,hosp_count(5,B67,C67,D67,$C$1,G67,1,F67,F67,SIMDRateRatios_hosp,SIMDrateratios,RateRatios!$B$3)*1000)))))) -> 254762.7913 | AG67: =IF('III Tool Overview'!$H$6="Orkney Health Board",0,IF('III Tool Overview'!$H$6="Shetland Health Board",0,IF('III Tool Overview'!$H$6="Western Isles Health Board",0,IF('III Tool Overview'!$H$6="Orkney Islands Local Authority",0,IF('III Tool Overview'!$H$6="Shetland Islands Local Authority",0,IF('III Tool Overview'!$H$6="Eilean Siar Local Authority",0,hosp_count(5,B67,C67,D67,$C$1,G67+H67,1,F67,F67,SIMDRateRatios_hosp,SIMDrateratios,RateRatios!$B$3)*1000)))))) -> 253096.5304 | AH67: =AF67-AG67 -> 1666.260924 | AI67: =IF('III Tool Overview'!$H$6="Orkney Health Board",0,IF('III Tool Overview'!$H$6="Shetland Health Board",0,IF('III Tool Overview'!$H$6="Western Isles Health Board",0,IF('III Tool Overview'!$H$6="Orkney Islands Local Authority",0,IF('III Tool Overview'!$H$6="Shetland Islands Local Authority",0,IF('III Tool Overview'!$H$6="Eilean Siar Local Authority",0,hosp_count(10,B67,C67,D67,$C$1,G67,1,F67,F67,SIMDRateRatios_hosp,SIMDrateratios,RateRatios!$B$3)*10)))))) -> 6296.562455 | AJ67: =IF('III Tool Overview'!$H$6="Orkney Health Board",0,IF('III Tool Overview'!$H$6="Shetland Health Board",0,IF('III Tool Overview'!$H$6="Western Isles Health Board",0,IF('III Tool Overview'!$H$6="Orkney Islands Local Authority",0,IF('III Tool Overview'!$H$6="Shetland Islands Local Authority",0,IF('III Tool Overview'!$H$6="Eilean Siar Local Authority",0,hosp_count(10,B67,C67,D67,$C$1,G67+H67,1,F67,F67,SIMDRateRatios_hosp,SIMDrateratios,RateRatios!$B$3)*10)))))) -> 6255.43441 | AK67: =AI67-AJ67 -> 41.12804526 | AL67: =IF('III Tool Overview'!$H$6="Orkney Health Board",0,IF('III Tool Overview'!$H$6="Shetland Health Board",0,IF('III Tool Overview'!$H$6="Western Isles Health Board",0,IF('III Tool Overview'!$H$6="Orkney Islands Local Authority",0,IF('III Tool Overview'!$H$6="Shetland Islands Local Authority",0,IF('III Tool Overview'!$H$6="Eilean Siar Local Authority",0,hosp_count(20,B67,C67,D67,$C$1,G67,1,F67,F67,SIMDRateRatios_hosp,SIMDrateratios,RateRatios!$B$3)*10)))))) -> 16155.94738 | AM67: =IF('III Tool Overview'!$H$6="Orkney Health Board",0,IF('III Tool Overview'!$H$6="Shetland Health Board",0,IF('III Tool Overview'!$H$6="Western Isles Health Board",0,IF('III Tool Overview'!$H$6="Orkney Islands Local Authority",0,IF('III Tool Overview'!$H$6="Shetland Islands Local Authority",0,IF('III Tool Overview'!$H$6="Eilean Siar Local Authority",0,hosp_count(20,B67,C67,D67,$C$1,G67+H67,1,F67,F67,SIMDRateRatios_hosp,SIMDrateratios,RateRatios!$B$3)*10)))))) -> 16050.83593 | AN67: =AL67-AM67 -> 105.1114464
A68: Male 5-9 | B68: 7.5 | C68: male | D68: 1 | E68: 1 | F68: =HLOOKUP('III Tool Overview'!$H$6,LookUpData_Pop!$B$1:$AV$269,LookUpData_Pop!BB69,FALSE)/50 -> 1129.74 | G68: ='III Tool Overview'!$H$9/110 -> 0 | H68: 1129.74 | I68: =IF('III Tool Overview'!$H$6="Orkney Health Board",0,IF('III Tool Overview'!$H$6="Shetland Health Board",0,IF('III Tool Overview'!$H$6="Western Isles Health Board",0,IF('III Tool Overview'!$H$6="Orkney Islands Local Authority",0,IF('III Tool Overview'!$H$6="Shetland Islands Local Authority",0,IF('III Tool Overview'!$H$6="Eilean Siar Local Authority",0,new_ci(2,B68,C68,D68,$C$1,G68,1,F68,F68,SIMDrateratios,RateRatios!$B$3)*10)))))) -> 5.442499894 | J68: =IF('III Tool Overview'!$H$6="Orkney Health Board",0,IF('III Tool Overview'!$H$6="Shetland Health Board",0,IF('III Tool Overview'!$H$6="Western Isles Health Board",0,IF('III Tool Overview'!$H$6="Orkney Islands Local Authority",0,IF('III Tool Overview'!$H$6="Shetland Islands Local Authority",0,IF('III Tool Overview'!$H$6="Eilean Siar Local Authority",0,new_ci(2,B68,C68,D68,$C$1,G68+H68,1,H68,H68,SIMDrateratios,RateRatios!$B$3)*10)))))) -> 5.39673044 | K68: =IF('III Tool Overview'!$H$6="Orkney Health Board",0,IF('III Tool Overview'!$H$6="Shetland Health Board",0,IF('III Tool Overview'!$H$6="Western Isles Health Board",0,IF('III Tool Overview'!$H$6="Orkney Islands Local Authority",0,IF('III Tool Overview'!$H$6="Shetland Islands Local Authority",0,IF('III Tool Overview'!$H$6="Eilean Siar Local Authority",0,new_ci(5,B68,C68,D68,$C$1,G68,1,F68,F68,SIMDrateratios,RateRatios!$B$3)*1000)))))) -> 2379.482632 | L68: =IF('III Tool Overview'!$H$6="Orkney Health Board",0,IF('III Tool Overview'!$H$6="Shetland Health Board",0,IF('III Tool Overview'!$H$6="Western Isles Health Board",0,IF('III Tool Overview'!$H$6="Orkney Islands Local Authority",0,IF('III Tool Overview'!$H$6="Shetland Islands Local Authority",0,IF('III Tool Overview'!$H$6="Eilean Siar Local Authority",0,new_ci(5,B68,C68,D68,$C$1,G68+H68,1,F68,F68,SIMDrateratios,RateRatios!$B$3)*1000)))))) -> 2359.488179 | M68: =IF('III Tool Overview'!$H$6="Orkney Health Board",0,IF('III Tool Overview'!$H$6="Shetland Health Board",0,IF('III Tool Overview'!$H$6="Western Isles Health Board",0,IF('III Tool Overview'!$H$6="Orkney Islands Local Authority",0,IF('III Tool Overview'!$H$6="Shetland Islands Local Authority",0,IF('III Tool Overview'!$H$6="Eilean Siar Local Authority",0,new_ci(10,B68,C68,D68,$C$1,G68,1,F68,F68,SIMDrateratios,RateRatios!$B$3)*10)))))) -> 62.42257162 | N68: =IF('III Tool Overview'!$H$6="Orkney Health Board",0,IF('III Tool Overview'!$H$6="Shetland Health Board",0,IF('III Tool Overview'!$H$6="Western Isles Health Board",0,IF('III Tool Overview'!$H$6="Orkney Islands Local Authority",0,IF('III Tool Overview'!$H$6="Shetland Islands Local Authority",0,IF('III Tool Overview'!$H$6="Eilean Siar Local Authority",0,new_ci(10,B68,C68,D68,$C$1,G68+H68,1,F68,F68,SIMDrateratios,RateRatios!$B$3)*10)))))) -> 61.89893606 | O68: =IF('III Tool Overview'!$H$6="Orkney Health Board",0,IF('III Tool Overview'!$H$6="Shetland Health Board",0,IF('III Tool Overview'!$H$6="Western Isles Health Board",0,IF('III Tool Overview'!$H$6="Orkney Islands Local Authority",0,IF('III Tool Overview'!$H$6="Shetland Islands Local Authority",0,IF('III Tool Overview'!$H$6="Eilean Siar Local Authority",0,new_ci(20,B68,C68,D68,$C$1,G68,1,F68,F68,SIMDrateratios,RateRatios!$B$3)*10)))))) -> 182.5725829 | P68: =IF('III Tool Overview'!$H$6="Orkney Health Board",0,IF('III Tool Overview'!$H$6="Shetland Health Board",0,IF('III Tool Overview'!$H$6="Western Isles Health Board",0,IF('III Tool Overview'!$H$6="Orkney Islands Local Authority",0,IF('III Tool Overview'!$H$6="Shetland Islands Local Authority",0,IF('III Tool Overview'!$H$6="Eilean Siar Local Authority",0,new_ci(20,B68,C68,D68,$C$1,G68+H68,1,F68,F68,SIMDrateratios,RateRatios!$B$3)*10)))))) -> 181.0492189 | Q68: =IF('III Tool Overview'!$H$6="Orkney Health Board",0,IF('III Tool Overview'!$H$6="Shetland Health Board",0,IF('III Tool Overview'!$H$6="Western Isles Health Board",0,IF('III Tool Overview'!$H$6="Orkney Islands Local Authority",0,IF('III Tool Overview'!$H$6="Shetland Islands Local Authority",0,IF('III Tool Overview'!$H$6="Eilean Siar Local Authority",0,new_yll(2,B68,C68,D68,$C$1,G68,1,F68,F68,SIMDrateratios,RateRatios!$B$3)*10)))))) -> 495.2674903 | R68: =IF('III Tool Overview'!$H$6="Orkney Health Board",0,IF('III Tool Overview'!$H$6="Shetland Health Board",0,IF('III Tool Overview'!$H$6="Western Isles Health Board",0,IF('III Tool Overview'!$H$6="Orkney Islands Local Authority",0,IF('III Tool Overview'!$H$6="Shetland Islands Local Authority",0,IF('III Tool Overview'!$H$6="Eilean Siar Local Authority",0,new_yll(2,B68,C68,D68,$C$1,G68+H68,1,F68,F68,SIMDrateratios,RateRatios!$B$3)*10)))))) -> 491.1024701 | S68: 4.165020272 | T68: =IF('III Tool Overview'!$H$6="Orkney Health Board",0,IF('III Tool Overview'!$H$6="Shetland Health Board",0,IF('III Tool Overview'!$H$6="Western Isles Health Board",0,IF('III Tool Overview'!$H$6="Orkney Islands Local Authority",0,IF('III Tool Overview'!$H$6="Shetland Islands Local Authority",0,IF('III Tool Overview'!$H$6="Eilean Siar Local Authority",0,new_yll(5,B68,C68,D68,$C$1,G68,1,F68,F68,SIMDrateratios,RateRatios!$B$3)*1000)))))) -> 212791.6917 | U68: =IF('III Tool Overview'!$H$6="Orkney Health Board",0,IF('III Tool Overview'!$H$6="Shetland Health Board",0,IF('III Tool Overview'!$H$6="Western Isles Health Board",0,IF('III Tool Overview'!$H$6="Orkney Islands Local Authority",0,IF('III Tool Overview'!$H$6="Shetland Islands Local Authority",0,IF('III Tool Overview'!$H$6="Eilean Siar Local Authority",0,new_yll(5,B68,C68,D68,$C$1,G68+H68,1,F68,F68,SIMDrateratios,RateRatios!$B$3)*1000)))))) -> 211003.6204 | V68: 1788.071255 | W68: =IF('III Tool Overview'!$H$6="Orkney Health Board",0,IF('III Tool Overview'!$H$6="Shetland Health Board",0,IF('III Tool Overview'!$H$6="Western Isles Health Board",0,IF('III Tool Overview'!$H$6="Orkney Islands Local Authority",0,IF('III Tool Overview'!$H$6="Shetland Islands Local Authority",0,IF('III Tool Overview'!$H$6="Eilean Siar Local Authority",0,new_yll(10,B68,C68,D68,$C$1,G68,1,F68,F68,SIMDrateratios,RateRatios!$B$3)*10)))))) -> 5406.822186 | X68: =IF('III Tool Overview'!$H$6="Orkney Health Board",0,IF('III Tool Overview'!$H$6="Shetland Health Board",0,IF('III Tool Overview'!$H$6="Western Isles Health Board",0,IF('III Tool Overview'!$H$6="Orkney Islands Local Authority",0,IF('III Tool Overview'!$H$6="Shetland Islands Local Authority",0,IF('III Tool Overview'!$H$6="Eilean Siar Local Authority",0,new_yll(10,B68,C68,D68,$C$1,G68+H68,1,F68,F68,SIMDrateratios,RateRatios!$B$3)*10)))))) -> 5361.464612 | Y68: 45.35757484 | Z68: =IF('III Tool Overview'!$H$6="Orkney Health Board",0,IF('III Tool Overview'!$H$6="Shetland Health Board",0,IF('III Tool Overview'!$H$6="Western Isles Health Board",0,IF('III Tool Overview'!$H$6="Orkney Islands Local Authority",0,IF('III Tool Overview'!$H$6="Shetland Islands Local Authority",0,IF('III Tool Overview'!$H$6="Eilean Siar Local Authority",0,new_yll(20,B68,C68,D68,$C$1,G68,1,F68,F68,SIMDrateratios,RateRatios!$B$3)*10)))))) -> 14661.93161 | AA68: =IF('III Tool Overview'!$H$6="Orkney Health Board",0,IF('III Tool Overview'!$H$6="Shetland Health Board",0,IF('III Tool Overview'!$H$6="Western Isles Health Board",0,IF('III Tool Overview'!$H$6="Orkney Islands Local Authority",0,IF('III Tool Overview'!$H$6="Shetland Islands Local Authority",0,IF('III Tool Overview'!$H$6="Eilean Siar Local Authority",0,new_yll(20,B68,C68,D68,$C$1,G68+H68,1,F68,F68,SIMDrateratios,RateRatios!$B$3)*10)))))) -> 14539.55655 | AB68: 122.3750602 | AC68: =IF('III Tool Overview'!$H$6="Orkney Health Board",0,IF('III Tool Overview'!$H$6="Shetland Health Board",0,IF('III Tool Overview'!$H$6="Western Isles Health Board",0,IF('III Tool Overview'!$H$6="Orkney Islands Local Authority",0,IF('III Tool Overview'!$H$6="Shetland Islands Local Authority",0,IF('III Tool Overview'!$H$6="Eilean Siar Local Authority",0,hosp_count(2,B68,C68,D68,$C$1,G68,1,F68,F68,SIMDRateRatios_hosp,SIMDrateratios,RateRatios!$B$3)*10)))))) -> 789.098687 | AD68: =IF('III Tool Overview'!$H$6="Orkney Health Board",0,IF('III Tool Overview'!$H$6="Shetland Health Board",0,IF('III Tool Overview'!$H$6="Western Isles Health Board",0,IF('III Tool Overview'!$H$6="Orkney Islands Local Authority",0,IF('III Tool Overview'!$H$6="Shetland Islands Local Authority",0,IF('III Tool Overview'!$H$6="Eilean Siar Local Authority",0,hosp_count(2,B68,C68,D68,$C$1,G68+H68,1,F68,F68,SIMDRateRatios_hosp,SIMDrateratios,RateRatios!$B$3)*10)))))) -> 783.9336199 | AE68: 5.165067105 | AF68: =IF('III Tool Overview'!$H$6="Orkney Health Board",0,IF('III Tool Overview'!$H$6="Shetland Health Board",0,IF('III Tool Overview'!$H$6="Western Isles Health Board",0,IF('III Tool Overview'!$H$6="Orkney Islands Local Authority",0,IF('III Tool Overview'!$H$6="Shetland Islands Local Authority",0,IF('III Tool Overview'!$H$6="Eilean Siar Local Authority",0,hosp_count(5,B68,C68,D68,$C$1,G68,1,F68,F68,SIMDRateRatios_hosp,SIMDrateratios,RateRatios!$B$3)*1000)))))) -> 333438.445 | AG68: =IF('III Tool Overview'!$H$6="Orkney Health Board",0,IF('III Tool Overview'!$H$6="Shetland Health Board",0,IF('III Tool Overview'!$H$6="Western Isles Health Board",0,IF('III Tool Overview'!$H$6="Orkney Islands Local Authority",0,IF('III Tool Overview'!$H$6="Shetland Islands Local Authority",0,IF('III Tool Overview'!$H$6="Eilean Siar Local Authority",0,hosp_count(5,B68,C68,D68,$C$1,G68+H68,1,F68,F68,SIMDRateRatios_hosp,SIMDrateratios,RateRatios!$B$3)*1000)))))) -> 331258.0747 | AH68: 2180.370334 | AI68: =IF('III Tool Overview'!$H$6="Orkney Health Board",0,IF('III Tool Overview'!$H$6="Shetland Health Board",0,IF('III Tool Overview'!$H$6="Western Isles Health Board",0,IF('III Tool Overview'!$H$6="Orkney Islands Local Authority",0,IF('III Tool Overview'!$H$6="Shetland Islands Local Authority",0,IF('III Tool Overview'!$H$6="Eilean Siar Local Authority",0,hosp_count(10,B68,C68,D68,$C$1,G68,1,F68,F68,SIMDRateRatios_hosp,SIMDrateratios,RateRatios!$B$3)*10)))))) -> 8236.441531 | AJ68: =IF('III Tool Overview'!$H$6="Orkney Health Board",0,IF('III Tool Overview'!$H$6="Shetland Health Board",0,IF('III Tool Overview'!$H$6="Western Isles Health Board",0,IF('III Tool Overview'!$H$6="Orkney Islands Local Authority",0,IF('III Tool Overview'!$H$6="Shetland Islands Local Authority",0,IF('III Tool Overview'!$H$6="Eilean Siar Local Authority",0,hosp_count(10,B68,C68,D68,$C$1,G68+H68,1,F68,F68,SIMDRateRatios_hosp,SIMDrateratios,RateRatios!$B$3)*10)))))) -> 8182.692568 | AK68: 53.74896235 | AL68: =IF('III Tool Overview'!$H$6="Orkney Health Board",0,IF('III Tool Overview'!$H$6="Shetland Health Board",0,IF('III Tool Overview'!$H$6="Western Isles Health Board",0,IF('III Tool Overview'!$H$6="Orkney Islands Local Authority",0,IF('III Tool Overview'!$H$6="Shetland Islands Local Authority",0,IF('III Tool Overview'!$H$6="Eilean Siar Local Authority",0,hosp_count(20,B68,C68,D68,$C$1,G68,1,F68,F68,SIMDRateRatios_hosp,SIMDrateratios,RateRatios!$B$3)*10)))))) -> 21097.95066 | AM68: =IF('III Tool Overview'!$H$6="Orkney Health Board",0,IF('III Tool Overview'!$H$6="Shetland Health Board",0,IF('III Tool Overview'!$H$6="Western Isles Health Board",0,IF('III Tool Overview'!$H$6="Orkney Islands Local Authority",0,IF('III Tool Overview'!$H$6="Shetland Islands Local Authority",0,IF('III Tool Overview'!$H$6="Eilean Siar Local Authority",0,hosp_count(20,B68,C68,D68,$C$1,G68+H68,1,F68,F68,SIMDRateRatios_hosp,SIMDrateratios,RateRatios!$B$3)*10)))))) -> 20961.10924 | AN68: 136.8414165
A69: Male 10-14 | B69: 12.5 | C69: male | D69: 1 | E69: 1 | F69: =HLOOKUP('III Tool Overview'!$H$6,LookUpData_Pop!$B$1:$AV$269,LookUpData_Pop!BB70,FALSE)/50 -> 1182.22 | G69: ='III Tool Overview'!$H$9/110 -> 0 | H69: 1182.22 | I69: =IF('III Tool Overview'!$H$6="Orkney Health Board",0,IF('III Tool Overview'!$H$6="Shetland Health Board",0,IF('III Tool Overview'!$H$6="Western Isles Health Board",0,IF('III Tool Overview'!$H$6="Orkney Islands Local Authority",0,IF('III Tool Overview'!$H$6="Shetland Islands Local Authority",0,IF('III Tool Overview'!$H$6="Eilean Siar Local Authority",0,new_ci(2,B69,C69,D69,$C$1,G69,1,F69,F69,SIMDrateratios,RateRatios!$B$3)*10)))))) -> 7.607742741 | J69: =IF('III Tool Overview'!$H$6="Orkney Health Board",0,IF('III Tool Overview'!$H$6="Shetland Health Board",0,IF('III Tool Overview'!$H$6="Western Isles Health Board",0,IF('III Tool Overview'!$H$6="Orkney Islands Local Authority",0,IF('III Tool Overview'!$H$6="Shetland Islands Local Authority",0,IF('III Tool Overview'!$H$6="Eilean Siar Local Authority",0,new_ci(2,B69,C69,D69,$C$1,G69+H69,1,H69,H69,SIMDrateratios,RateRatios!$B$3)*10)))))) -> 7.543796135 | K69: =IF('III Tool Overview'!$H$6="Orkney Health Board",0,IF('III Tool Overview'!$H$6="Shetland Health Board",0,IF('III Tool Overview'!$H$6="Western Isles Health Board",0,IF('III Tool Overview'!$H$6="Orkney Islands Local Authority",0,IF('III Tool Overview'!$H$6="Shetland Islands Local Authority",0,IF('III Tool Overview'!$H$6="Eilean Siar Local Authority",0,new_ci(5,B69,C69,D69,$C$1,G69,1,F69,F69,SIMDrateratios,RateRatios!$B$3)*1000)))))) -> 3325.227375 | L69: =IF('III Tool Overview'!$H$6="Orkney Health Board",0,IF('III Tool Overview'!$H$6="Shetland Health Board",0,IF('III Tool Overview'!$H$6="Western Isles Health Board",0,IF('III Tool Overview'!$H$6="Orkney Islands Local Authority",0,IF('III Tool Overview'!$H$6="Shetland Islands Local Authority",0,IF('III Tool Overview'!$H$6="Eilean Siar Local Authority",0,new_ci(5,B69,C69,D69,$C$1,G69+H69,1,F69,F69,SIMDrateratios,RateRatios!$B$3)*1000)))))) -> 3297.307401 | M69: =IF('III Tool Overview'!$H$6="Orkney Health Board",0,IF('III Tool Overview'!$H$6="Shetland Health Board",0,IF('III Tool Overview'!$H$6="Western Isles Health Board",0,IF('III Tool Overview'!$H$6="Orkney Islands Local Authority",0,IF('III Tool Overview'!$H$6="Shetland Islands Local Authority",0,IF('III Tool Overview'!$H$6="Eilean Siar Local Authority",0,new_ci(10,B69,C69,D69,$C$1,G69,1,F69,F69,SIMDrateratios,RateRatios!$B$3)*10)))))) -> 87.18273533 | N69: =IF('III Tool Overview'!$H$6="Orkney Health Board",0,IF('III Tool Overview'!$H$6="Shetland Health Board",0,IF('III Tool Overview'!$H$6="Western Isles Health Board",0,IF('III Tool Overview'!$H$6="Orkney Islands Local Authority",0,IF('III Tool Overview'!$H$6="Shetland Islands Local Authority",0,IF('III Tool Overview'!$H$6="Eilean Siar Local Authority",0,new_ci(10,B69,C69,D69,$C$1,G69+H69,1,F69,F69,SIMDrateratios,RateRatios!$B$3)*10)))))) -> 86.45237693 | O69: =IF('III Tool Overview'!$H$6="Orkney Health Board",0,IF('III Tool Overview'!$H$6="Shetland Health Board",0,IF('III Tool Overview'!$H$6="Western Isles Health Board",0,IF('III Tool Overview'!$H$6="Orkney Islands Local Authority",0,IF('III Tool Overview'!$H$6="Shetland Islands Local Authority",0,IF('III Tool Overview'!$H$6="Eilean Siar Local Authority",0,new_ci(20,B69,C69,D69,$C$1,G69,1,F69,F69,SIMDrateratios,RateRatios!$B$3)*10)))))) -> 254.5326485 | P69: =IF('III Tool Overview'!$H$6="Orkney Health Board",0,IF('III Tool Overview'!$H$6="Shetland Health Board",0,IF('III Tool Overview'!$H$6="Western Isles Health Board",0,IF('III Tool Overview'!$H$6="Orkney Islands Local Authority",0,IF('III Tool Overview'!$H$6="Shetland Islands Local Authority",0,IF('III Tool Overview'!$H$6="Eilean Siar Local Authority",0,new_ci(20,B69,C69,D69,$C$1,G69+H69,1,F69,F69,SIMDrateratios,RateRatios!$B$3)*10)))))) -> 252.4155128 | Q69: =IF('III Tool Overview'!$H$6="Orkney Health Board",0,IF('III Tool Overview'!$H$6="Shetland Health Board",0,IF('III Tool Overview'!$H$6="Western Isles Health Board",0,IF('III Tool Overview'!$H$6="Orkney Islands Local Authority",0,IF('III Tool Overview'!$H$6="Shetland Islands Local Authority",0,IF('III Tool Overview'!$H$6="Eilean Siar Local Authority",0,new_yll(2,B69,C69,D69,$C$1,G69,1,F69,F69,SIMDrateratios,RateRatios!$B$3)*10)))))) -> 661.8736185 | R69: =IF('III Tool Overview'!$H$6="Orkney Health Board",0,IF('III Tool Overview'!$H$6="Shetland Health Board",0,IF('III Tool Overview'!$H$6="Western Isles Health Board",0,IF('III Tool Overview'!$H$6="Orkney Islands Local Authority",0,IF('III Tool Overview'!$H$6="Shetland Islands Local Authority",0,IF('III Tool Overview'!$H$6="Eilean Siar Local Authority",0,new_yll(2,B69,C69,D69,$C$1,G69+H69,1,F69,F69,SIMDrateratios,RateRatios!$B$3)*10)))))) -> 656.3102638 | S69: 5.563354717 | T69: =IF('III Tool Overview'!$H$6="Orkney Health Board",0,IF('III Tool Overview'!$H$6="Shetland Health Board",0,IF('III Tool Overview'!$H$6="Western Isles Health Board",0,IF('III Tool Overview'!$H$6="Orkney Islands Local Authority",0,IF('III Tool Overview'!$H$6="Shetland Islands Local Authority",0,IF('III Tool Overview'!$H$6="Eilean Siar Local Authority",0,new_yll(5,B69,C69,D69,$C$1,G69,1,F69,F69,SIMDrateratios,RateRatios!$B$3)*1000)))))) -> 284067.3067 | U69: =IF('III Tool Overview'!$H$6="Orkney Health Board",0,IF('III Tool Overview'!$H$6="Shetland Health Board",0,IF('III Tool Overview'!$H$6="Western Isles Health Board",0,IF('III Tool Overview'!$H$6="Orkney Islands Local Authority",0,IF('III Tool Overview'!$H$6="Shetland Islands Local Authority",0,IF('III Tool Overview'!$H$6="Eilean Siar Local Authority",0,new_yll(5,B69,C69,D69,$C$1,G69+H69,1,F69,F69,SIMDrateratios,RateRatios!$B$3)*1000)))))) -> 281682.1366 | V69: 2385.170073 | W69: =IF('III Tool Overview'!$H$6="Orkney Health Board",0,IF('III Tool Overview'!$H$6="Shetland Health Board",0,IF('III Tool Overview'!$H$6="Western Isles Health Board",0,IF('III Tool Overview'!$H$6="Orkney Islands Local Authority",0,IF('III Tool Overview'!$H$6="Shetland Islands Local Authority",0,IF('III Tool Overview'!$H$6="Eilean Siar Local Authority",0,new_yll(10,B69,C69,D69,$C$1,G69,1,F69,F69,SIMDrateratios,RateRatios!$B$3)*10)))))) -> 7202.848039 | X69: =IF('III Tool Overview'!$H$6="Orkney Health Board",0,IF('III Tool Overview'!$H$6="Shetland Health Board",0,IF('III Tool Overview'!$H$6="Western Isles Health Board",0,IF('III Tool Overview'!$H$6="Orkney Islands Local Authority",0,IF('III Tool Overview'!$H$6="Shetland Islands Local Authority",0,IF('III Tool Overview'!$H$6="Eilean Siar Local Authority",0,new_yll(10,B69,C69,D69,$C$1,G69+H69,1,F69,F69,SIMDrateratios,RateRatios!$B$3)*10)))))) -> 7142.503468 | Y69: 60.34457078 | Z69: =IF('III Tool Overview'!$H$6="Orkney Health Board",0,IF('III Tool Overview'!$H$6="Shetland Health Board",0,IF('III Tool Overview'!$H$6="Western Isles Health Board",0,IF('III Tool Overview'!$H$6="Orkney Islands Local Authority",0,IF('III Tool Overview'!$H$6="Shetland Islands Local Authority",0,IF('III Tool Overview'!$H$6="Eilean Siar Local Authority",0,new_yll(20,B69,C69,D69,$C$1,G69,1,F69,F69,SIMDrateratios,RateRatios!$B$3)*10)))))) -> 19424.84115 | AA69: =IF('III Tool Overview'!$H$6="Orkney Health Board",0,IF('III Tool Overview'!$H$6="Shetland Health Board",0,IF('III Tool Overview'!$H$6="Western Isles Health Board",0,IF('III Tool Overview'!$H$6="Orkney Islands Local Authority",0,IF('III Tool Overview'!$H$6="Shetland Islands Local Authority",0,IF('III Tool Overview'!$H$6="Eilean Siar Local Authority",0,new_yll(20,B69,C69,D69,$C$1,G69+H69,1,F69,F69,SIMDrateratios,RateRatios!$B$3)*10)))))) -> 19263.20032 | AB69: 161.6408251 | AC69: =IF('III Tool Overview'!$H$6="Orkney Health Board",0,IF('III Tool Overview'!$H$6="Shetland Health Board",0,IF('III Tool Overview'!$H$6="Western Isles Health Board",0,IF('III Tool Overview'!$H$6="Orkney Islands Local Authority",0,IF('III Tool Overview'!$H$6="Shetland Islands Local Authority",0,IF('III Tool Overview'!$H$6="Eilean Siar Local Authority",0,hosp_count(2,B69,C69,D69,$C$1,G69,1,F69,F69,SIMDRateRatios_hosp,SIMDrateratios,RateRatios!$B$3)*10)))))) -> 949.4341762 | AD69: =IF('III Tool Overview'!$H$6="Orkney Health Board",0,IF('III Tool Overview'!$H$6="Shetland Health Board",0,IF('III Tool Overview'!$H$6="Western Isles Health Board",0,IF('III Tool Overview'!$H$6="Orkney Islands Local Authority",0,IF('III Tool Overview'!$H$6="Shetland Islands Local Authority",0,IF('III Tool Overview'!$H$6="Eilean Siar Local Authority",0,hosp_count(2,B69,C69,D69,$C$1,G69+H69,1,F69,F69,SIMDRateRatios_hosp,SIMDrateratios,RateRatios!$B$3)*10)))))) -> 943.2222149 | AE69: 6.211961351 | AF69: =IF('III Tool Overview'!$H$6="Orkney Health Board",0,IF('III Tool Overview'!$H$6="Shetland Health Board",0,IF('III Tool Overview'!$H$6="Western Isles Health Board",0,IF('III Tool Overview'!$H$6="Orkney Islands Local Authority",0,IF('III Tool Overview'!$H$6="Shetland Islands Local Authority",0,IF('III Tool Overview'!$H$6="Eilean Siar Local Authority",0,hosp_count(5,B69,C69,D69,$C$1,G69,1,F69,F69,SIMDRateRatios_hosp,SIMDrateratios,RateRatios!$B$3)*1000)))))) -> 401084.7311 | AG69: =IF('III Tool Overview'!$H$6="Orkney Health Board",0,IF('III Tool Overview'!$H$6="Shetland Health Board",0,IF('III Tool Overview'!$H$6="Western Isles Health Board",0,IF('III Tool Overview'!$H$6="Orkney Islands Local Authority",0,IF('III Tool Overview'!$H$6="Shetland Islands Local Authority",0,IF('III Tool Overview'!$H$6="Eilean Siar Local Authority",0,hosp_count(5,B69,C69,D69,$C$1,G69+H69,1,F69,F69,SIMDRateRatios_hosp,SIMDrateratios,RateRatios!$B$3)*1000)))))) -> 398463.9818 | AH69: 2620.749365 | AI69: =IF('III Tool Overview'!$H$6="Orkney Health Board",0,IF('III Tool Overview'!$H$6="Shetland Health Board",0,IF('III Tool Overview'!$H$6="Western Isles Health Board",0,IF('III Tool Overview'!$H$6="Orkney Islands Local Authority",0,IF('III Tool Overview'!$H$6="Shetland Islands Local Authority",0,IF('III Tool Overview'!$H$6="Eilean Siar Local Authority",0,hosp_count(10,B69,C69,D69,$C$1,G69,1,F69,F69,SIMDRateRatios_hosp,SIMDrateratios,RateRatios!$B$3)*10)))))) -> 9902.115431 | AJ69: =IF('III Tool Overview'!$H$6="Orkney Health Board",0,IF('III Tool Overview'!$H$6="Shetland Health Board",0,IF('III Tool Overview'!$H$6="Western Isles Health Board",0,IF('III Tool Overview'!$H$6="Orkney Islands Local Authority",0,IF('III Tool Overview'!$H$6="Shetland Islands Local Authority",0,IF('III Tool Overview'!$H$6="Eilean Siar Local Authority",0,hosp_count(10,B69,C69,D69,$C$1,G69+H69,1,F69,F69,SIMDRateRatios_hosp,SIMDrateratios,RateRatios!$B$3)*10)))))) -> 9837.589252 | AK69: 64.52617924 | AL69: =IF('III Tool Overview'!$H$6="Orkney Health Board",0,IF('III Tool Overview'!$H$6="Shetland Health Board",0,IF('III Tool Overview'!$H$6="Western Isles Health Board",0,IF('III Tool Overview'!$H$6="Orkney Islands Local Authority",0,IF('III Tool Overview'!$H$6="Shetland Islands Local Authority",0,IF('III Tool Overview'!$H$6="Eilean Siar Local Authority",0,hosp_count(20,B69,C69,D69,$C$1,G69,1,F69,F69,SIMDRateRatios_hosp,SIMDrateratios,RateRatios!$B$3)*10)))))) -> 25324.1753 | AM69: =IF('III Tool Overview'!$H$6="Orkney Health Board",0,IF('III Tool Overview'!$H$6="Shetland Health Board",0,IF('III Tool Overview'!$H$6="Western Isles Health Board",0,IF('III Tool Overview'!$H$6="Orkney Islands Local Authority",0,IF('III Tool Overview'!$H$6="Shetland Islands Local Authority",0,IF('III Tool Overview'!$H$6="Eilean Siar Local Authority",0,hosp_count(20,B69,C69,D69,$C$1,G69+H69,1,F69,F69,SIMDRateRatios_hosp,SIMDrateratios,RateRatios!$B$3)*10)))))) -> 25160.49507 | AN69: 163.6802315
A70: Male 15-19 | B70: 17.5 | C70: male | D70: 1 | E70: 1 | F70: =HLOOKUP('III Tool Overview'!$H$6,LookUpData_Pop!$B$1:$AV$269,LookUpData_Pop!BB71,FALSE)/50 -> 1374.8 | G70: ='III Tool Overview'!$H$9/110 -> 0 | H70: 1374.8 | I70: =IF('III Tool Overview'!$H$6="Orkney Health Board",0,IF('III Tool Overview'!$H$6="Shetland Health Board",0,IF('III Tool Overview'!$H$6="Western Isles Health Board",0,IF('III Tool Overview'!$H$6="Orkney Islands Local Authority",0,IF('III Tool Overview'!$H$6="Shetland Islands Local Authority",0,IF('III Tool Overview'!$H$6="Eilean Siar Local Authority",0,new_ci(2,B70,C70,D70,$C$1,G70,1,F70,F70,SIMDrateratios,RateRatios!$B$3)*10)))))) -> 13.65777981 | J70: =IF('III Tool Overview'!$H$6="Orkney Health Board",0,IF('III Tool Overview'!$H$6="Shetland Health Board",0,IF('III Tool Overview'!$H$6="Western Isles Health Board",0,IF('III Tool Overview'!$H$6="Orkney Islands Local Authority",0,IF('III Tool Overview'!$H$6="Shetland Islands Local Authority",0,IF('III Tool Overview'!$H$6="Eilean Siar Local Authority",0,new_ci(2,B70,C70,D70,$C$1,G70+H70,1,H70,H70,SIMDrateratios,RateRatios!$B$3)*10)))))) -> 13.54296171 | K70: =IF('III Tool Overview'!$H$6="Orkney Health Board",0,IF('III Tool Overview'!$H$6="Shetland Health Board",0,IF('III Tool Overview'!$H$6="Western Isles Health Board",0,IF('III Tool Overview'!$H$6="Orkney Islands Local Authority",0,IF('III Tool Overview'!$H$6="Shetland Islands Local Authority",0,IF('III Tool Overview'!$H$6="Eilean Siar Local Authority",0,new_ci(5,B70,C70,D70,$C$1,G70,1,F70,F70,SIMDrateratios,RateRatios!$B$3)*1000)))))) -> 5966.080637 | L70: =IF('III Tool Overview'!$H$6="Orkney Health Board",0,IF('III Tool Overview'!$H$6="Shetland Health Board",0,IF('III Tool Overview'!$H$6="Western Isles Health Board",0,IF('III Tool Overview'!$H$6="Orkney Islands Local Authority",0,IF('III Tool Overview'!$H$6="Shetland Islands Local Authority",0,IF('III Tool Overview'!$H$6="Eilean Siar Local Authority",0,new_ci(5,B70,C70,D70,$C$1,G70+H70,1,F70,F70,SIMDrateratios,RateRatios!$B$3)*1000)))))) -> 5916.008442 | M70: =IF('III Tool Overview'!$H$6="Orkney Health Board",0,IF('III Tool Overview'!$H$6="Shetland Health Board",0,IF('III Tool Overview'!$H$6="Western Isles Health Board",0,IF('III Tool Overview'!$H$6="Orkney Islands Local Authority",0,IF('III Tool Overview'!$H$6="Shetland Islands Local Authority",0,IF('III Tool Overview'!$H$6="Eilean Siar Local Authority",0,new_ci(10,B70,C70,D70,$C$1,G70,1,F70,F70,SIMDrateratios,RateRatios!$B$3)*10)))))) -> 156.2275989 | N70: =IF('III Tool Overview'!$H$6="Orkney Health Board",0,IF('III Tool Overview'!$H$6="Shetland Health Board",0,IF('III Tool Overview'!$H$6="Western Isles Health Board",0,IF('III Tool Overview'!$H$6="Orkney Islands Local Authority",0,IF('III Tool Overview'!$H$6="Shetland Islands Local Authority",0,IF('III Tool Overview'!$H$6="Eilean Siar Local Authority",0,new_ci(10,B70,C70,D70,$C$1,G70+H70,1,F70,F70,SIMDrateratios,RateRatios!$B$3)*10)))))) -> 154.9210104 | O70: =IF('III Tool Overview'!$H$6="Orkney Health Board",0,IF('III Tool Overview'!$H$6="Shetland Health Board",0,IF('III Tool Overview'!$H$6="Western Isles Health Board",0,IF('III Tool Overview'!$H$6="Orkney Islands Local Authority",0,IF('III Tool Overview'!$H$6="Shetland Islands Local Authority",0,IF('III Tool Overview'!$H$6="Eilean Siar Local Authority",0,new_ci(20,B70,C70,D70,$C$1,G70,1,F70,F70,SIMDrateratios,RateRatios!$B$3)*10)))))) -> 454.3435899 | P70: =IF('III Tool Overview'!$H$6="Orkney Health Board",0,IF('III Tool Overview'!$H$6="Shetland Health Board",0,IF('III Tool Overview'!$H$6="Western Isles Health Board",0,IF('III Tool Overview'!$H$6="Orkney Islands Local Authority",0,IF('III Tool Overview'!$H$6="Shetland Islands Local Authority",0,IF('III Tool Overview'!$H$6="Eilean Siar Local Authority",0,new_ci(20,B70,C70,D70,$C$1,G70+H70,1,F70,F70,SIMDrateratios,RateRatios!$B$3)*10)))))) -> 450.5854573 | Q70: =IF('III Tool Overview'!$H$6="Orkney Health Board",0,IF('III Tool Overview'!$H$6="Shetland Health Board",0,IF('III Tool Overview'!$H$6="Western Isles Health Board",0,IF('III Tool Overview'!$H$6="Orkney Islands Local Authority",0,IF('III Tool Overview'!$H$6="Shetland Islands Local Authority",0,IF('III Tool Overview'!$H$6="Eilean Siar Local Authority",0,new_yll(2,B70,C70,D70,$C$1,G70,1,F70,F70,SIMDrateratios,RateRatios!$B$3)*10)))))) -> 1106.280165 | R70: =IF('III Tool Overview'!$H$6="Orkney Health Board",0,IF('III Tool Overview'!$H$6="Shetland Health Board",0,IF('III Tool Overview'!$H$6="Western Isles Health Board",0,IF('III Tool Overview'!$H$6="Orkney Islands Local Authority",0,IF('III Tool Overview'!$H$6="Shetland Islands Local Authority",0,IF('III Tool Overview'!$H$6="Eilean Siar Local Authority",0,new_yll(2,B70,C70,D70,$C$1,G70+H70,1,F70,F70,SIMDrateratios,RateRatios!$B$3)*10)))))) -> 1096.979898 | S70: 9.300266386 | T70: =IF('III Tool Overview'!$H$6="Orkney Health Board",0,IF('III Tool Overview'!$H$6="Shetland Health Board",0,IF('III Tool Overview'!$H$6="Western Isles Health Board",0,IF('III Tool Overview'!$H$6="Orkney Islands Local Authority",0,IF('III Tool Overview'!$H$6="Shetland Islands Local Authority",0,IF('III Tool Overview'!$H$6="Eilean Siar Local Authority",0,new_yll(5,B70,C70,D70,$C$1,G70,1,F70,F70,SIMDrateratios,RateRatios!$B$3)*1000)))))) -> 473876.3132 | U70: =IF('III Tool Overview'!$H$6="Orkney Health Board",0,IF('III Tool Overview'!$H$6="Shetland Health Board",0,IF('III Tool Overview'!$H$6="Western Isles Health Board",0,IF('III Tool Overview'!$H$6="Orkney Islands Local Authority",0,IF('III Tool Overview'!$H$6="Shetland Islands Local Authority",0,IF('III Tool Overview'!$H$6="Eilean Siar Local Authority",0,new_yll(5,B70,C70,D70,$C$1,G70+H70,1,F70,F70,SIMDrateratios,RateRatios!$B$3)*1000)))))) -> 469899.0907 | V70: 3977.222443 | W70: =IF('III Tool Overview'!$H$6="Orkney Health Board",0,IF('III Tool Overview'!$H$6="Shetland Health Board",0,IF('III Tool Overview'!$H$6="Western Isles Health Board",0,IF('III Tool Overview'!$H$6="Orkney Islands Local Authority",0,IF('III Tool Overview'!$H$6="Shetland Islands Local Authority",0,IF('III Tool Overview'!$H$6="Eilean Siar Local Authority",0,new_yll(10,B70,C70,D70,$C$1,G70,1,F70,F70,SIMDrateratios,RateRatios!$B$3)*10)))))) -> 11970.28061 | X70: =IF('III Tool Overview'!$H$6="Orkney Health Board",0,IF('III Tool Overview'!$H$6="Shetland Health Board",0,IF('III Tool Overview'!$H$6="Western Isles Health Board",0,IF('III Tool Overview'!$H$6="Orkney Islands Local Authority",0,IF('III Tool Overview'!$H$6="Shetland Islands Local Authority",0,IF('III Tool Overview'!$H$6="Eilean Siar Local Authority",0,new_yll(10,B70,C70,D70,$C$1,G70+H70,1,F70,F70,SIMDrateratios,RateRatios!$B$3)*10)))))) -> 11870.15785 | Y70: 100.1227625 | Z70: =IF('III Tool Overview'!$H$6="Orkney Health Board",0,IF('III Tool Overview'!$H$6="Shetland Health Board",0,IF('III Tool Overview'!$H$6="Western Isles Health Board",0,IF('III Tool Overview'!$H$6="Orkney Islands Local Authority",0,IF('III Tool Overview'!$H$6="Shetland Islands Local Authority",0,IF('III Tool Overview'!$H$6="Eilean Siar Local Authority",0,new_yll(20,B70,C70,D70,$C$1,G70,1,F70,F70,SIMDrateratios,RateRatios!$B$3)*10)))))) -> 31955.65982 | AA70: =IF('III Tool Overview'!$H$6="Orkney Health Board",0,IF('III Tool Overview'!$H$6="Shetland Health Board",0,IF('III Tool Overview'!$H$6="Western Isles Health Board",0,IF('III Tool Overview'!$H$6="Orkney Islands Local Authority",0,IF('III Tool Overview'!$H$6="Shetland Islands Local Authority",0,IF('III Tool Overview'!$H$6="Eilean Siar Local Authority",0,new_yll(20,B70,C70,D70,$C$1,G70+H70,1,F70,F70,SIMDrateratios,RateRatios!$B$3)*10)))))) -> 31691.14316 | AB70: 264.5166603 | AC70: =IF('III Tool Overview'!$H$6="Orkney Health Board",0,IF('III Tool Overview'!$H$6="Shetland Health Board",0,IF('III Tool Overview'!$H$6="Western Isles Health Board",0,IF('III Tool Overview'!$H$6="Orkney Islands Local Authority",0,IF('III Tool Overview'!$H$6="Shetland Islands Local Authority",0,IF('III Tool Overview'!$H$6="Eilean Siar Local Authority",0,hosp_count(2,B70,C70,D70,$C$1,G70,1,F70,F70,SIMDRateRatios_hosp,SIMDrateratios,RateRatios!$B$3)*10)))))) -> 1361.21491 | AD70: =IF('III Tool Overview'!$H$6="Orkney Health Board",0,IF('III Tool Overview'!$H$6="Shetland Health Board",0,IF('III Tool Overview'!$H$6="Western Isles Health Board",0,IF('III Tool Overview'!$H$6="Orkney Islands Local Authority",0,IF('III Tool Overview'!$H$6="Shetland Islands Local Authority",0,IF('III Tool Overview'!$H$6="Eilean Siar Local Authority",0,hosp_count(2,B70,C70,D70,$C$1,G70+H70,1,F70,F70,SIMDRateRatios_hosp,SIMDrateratios,RateRatios!$B$3)*10)))))) -> 1352.305795 | AE70: 8.909115352 | AF70: =IF('III Tool Overview'!$H$6="Orkney Health Board",0,IF('III Tool Overview'!$H$6="Shetland Health Board",0,IF('III Tool Overview'!$H$6="Western Isles Health Board",0,IF('III Tool Overview'!$H$6="Orkney Islands Local Authority",0,IF('III Tool Overview'!$H$6="Shetland Islands Local Authority",0,IF('III Tool Overview'!$H$6="Eilean Siar Local Authority",0,hosp_count(5,B70,C70,D70,$C$1,G70,1,F70,F70,SIMDRateRatios_hosp,SIMDrateratios,RateRatios!$B$3)*1000)))))) -> 574716.0715 | AG70: =IF('III Tool Overview'!$H$6="Orkney Health Board",0,IF('III Tool Overview'!$H$6="Shetland Health Board",0,IF('III Tool Overview'!$H$6="Western Isles Health Board",0,IF('III Tool Overview'!$H$6="Orkney Islands Local Authority",0,IF('III Tool Overview'!$H$6="Shetland Islands Local Authority",0,IF('III Tool Overview'!$H$6="Eilean Siar Local Authority",0,hosp_count(5,B70,C70,D70,$C$1,G70+H70,1,F70,F70,SIMDRateRatios_hosp,SIMDrateratios,RateRatios!$B$3)*1000)))))) -> 570962.2459 | AH70: 3753.825559 | AI70: =IF('III Tool Overview'!$H$6="Orkney Health Board",0,IF('III Tool Overview'!$H$6="Shetland Health Board",0,IF('III Tool Overview'!$H$6="Western Isles Health Board",0,IF('III Tool Overview'!$H$6="Orkney Islands Local Authority",0,IF('III Tool Overview'!$H$6="Shetland Islands Local Authority",0,IF('III Tool Overview'!$H$6="Eilean Siar Local Authority",0,hosp_count(10,B70,C70,D70,$C$1,G70,1,F70,F70,SIMDRateRatios_hosp,SIMDrateratios,RateRatios!$B$3)*10)))))) -> 14172.39868 | AJ70: =IF('III Tool Overview'!$H$6="Orkney Health Board",0,IF('III Tool Overview'!$H$6="Shetland Health Board",0,IF('III Tool Overview'!$H$6="Western Isles Health Board",0,IF('III Tool Overview'!$H$6="Orkney Islands Local Authority",0,IF('III Tool Overview'!$H$6="Shetland Islands Local Authority",0,IF('III Tool Overview'!$H$6="Eilean Siar Local Authority",0,hosp_count(10,B70,C70,D70,$C$1,G70+H70,1,F70,F70,SIMDRateRatios_hosp,SIMDrateratios,RateRatios!$B$3)*10)))))) -> 14080.21819 | AK70: 92.18048918 | AL70: =IF('III Tool Overview'!$H$6="Orkney Health Board",0,IF('III Tool Overview'!$H$6="Shetland Health Board",0,IF('III Tool Overview'!$H$6="Western Isles Health Board",0,IF('III Tool Overview'!$H$6="Orkney Islands Local Authority",0,IF('III Tool Overview'!$H$6="Shetland Islands Local Authority",0,IF('III Tool Overview'!$H$6="Eilean Siar Local Authority",0,hosp_count(20,B70,C70,D70,$C$1,G70,1,F70,F70,SIMDRateRatios_hosp,SIMDrateratios,RateRatios!$B$3)*10)))))) -> 36120.48989 | AM70: =IF('III Tool Overview'!$H$6="Orkney Health Board",0,IF('III Tool Overview'!$H$6="Shetland Health Board",0,IF('III Tool Overview'!$H$6="Western Isles Health Board",0,IF('III Tool Overview'!$H$6="Orkney Islands Local Authority",0,IF('III Tool Overview'!$H$6="Shetland Islands Local Authority",0,IF('III Tool Overview'!$H$6="Eilean Siar Local Authority",0,hosp_count(20,B70,C70,D70,$C$1,G70+H70,1,F70,F70,SIMDRateRatios_hosp,SIMDrateratios,RateRatios!$B$3)*10)))))) -> 35888.50296 | AN70: 231.9869369
A71: Male 20-24 | B71: 22.5 | C71: male | D71: 1 | E71: 1 | F71: =HLOOKUP('III Tool Overview'!$H$6,LookUpData_Pop!$B$1:$AV$269,LookUpData_Pop!BB72,FALSE)/50 -> 1661.88 | G71: ='III Tool Overview'!$H$9/110 -> 0 | H71: 1661.88 | I71: =IF('III Tool Overview'!$H$6="Orkney Health Board",0,IF('III Tool Overview'!$H$6="Shetland Health Board",0,IF('III Tool Overview'!$H$6="Western Isles Health Board",0,IF('III Tool Overview'!$H$6="Orkney Islands Local Authority",0,IF('III Tool Overview'!$H$6="Shetland Islands Local Authority",0,IF('III Tool Overview'!$H$6="Eilean Siar Local Authority",0,new_ci(2,B71,C71,D71,$C$1,G71,1,F71,F71,SIMDrateratios,RateRatios!$B$3)*10)))))) -> 22.05161992 | J71: =IF('III Tool Overview'!$H$6="Orkney Health Board",0,IF('III Tool Overview'!$H$6="Shetland Health Board",0,IF('III Tool Overview'!$H$6="Western Isles Health Board",0,IF('III Tool Overview'!$H$6="Orkney Islands Local Authority",0,IF('III Tool Overview'!$H$6="Shetland Islands Local Authority",0,IF('III Tool Overview'!$H$6="Eilean Siar Local Authority",0,new_ci(2,B71,C71,D71,$C$1,G71+H71,1,H71,H71,SIMDrateratios,RateRatios!$B$3)*10)))))) -> 21.86628083 | K71: =IF('III Tool Overview'!$H$6="Orkney Health Board",0,IF('III Tool Overview'!$H$6="Shetland Health Board",0,IF('III Tool Overview'!$H$6="Western Isles Health Board",0,IF('III Tool Overview'!$H$6="Orkney Islands Local Authority",0,IF('III Tool Overview'!$H$6="Shetland Islands Local Authority",0,IF('III Tool Overview'!$H$6="Eilean Siar Local Authority",0,new_ci(5,B71,C71,D71,$C$1,G71,1,F71,F71,SIMDrateratios,RateRatios!$B$3)*1000)))))) -> 9627.312006 | L71: =IF('III Tool Overview'!$H$6="Orkney Health Board",0,IF('III Tool Overview'!$H$6="Shetland Health Board",0,IF('III Tool Overview'!$H$6="Western Isles Health Board",0,IF('III Tool Overview'!$H$6="Orkney Islands Local Authority",0,IF('III Tool Overview'!$H$6="Shetland Islands Local Authority",0,IF('III Tool Overview'!$H$6="Eilean Siar Local Authority",0,new_ci(5,B71,C71,D71,$C$1,G71+H71,1,F71,F71,SIMDrateratios,RateRatios!$B$3)*1000)))))) -> 9546.576248 | M71: =IF('III Tool Overview'!$H$6="Orkney Health Board",0,IF('III Tool Overview'!$H$6="Shetland Health Board",0,IF('III Tool Overview'!$H$6="Western Isles Health Board",0,IF('III Tool Overview'!$H$6="Orkney Islands Local Authority",0,IF('III Tool Overview'!$H$6="Shetland Islands Local Authority",0,IF('III Tool Overview'!$H$6="Eilean Siar Local Authority",0,new_ci(10,B71,C71,D71,$C$1,G71,1,F71,F71,SIMDrateratios,RateRatios!$B$3)*10)))))) -> 251.8018332 | N71: =IF('III Tool Overview'!$H$6="Orkney Health Board",0,IF('III Tool Overview'!$H$6="Shetland Health Board",0,IF('III Tool Overview'!$H$6="Western Isles Health Board",0,IF('III Tool Overview'!$H$6="Orkney Islands Local Authority",0,IF('III Tool Overview'!$H$6="Shetland Islands Local Authority",0,IF('III Tool Overview'!$H$6="Eilean Siar Local Authority",0,new_ci(10,B71,C71,D71,$C$1,G71+H71,1,F71,F71,SIMDrateratios,RateRatios!$B$3)*10)))))) -> 249.7000897 | O71: =IF('III Tool Overview'!$H$6="Orkney Health Board",0,IF('III Tool Overview'!$H$6="Shetland Health Board",0,IF('III Tool Overview'!$H$6="Western Isles Health Board",0,IF('III Tool Overview'!$H$6="Orkney Islands Local Authority",0,IF('III Tool Overview'!$H$6="Shetland Islands Local Authority",0,IF('III Tool Overview'!$H$6="Eilean Siar Local Authority",0,new_ci(20,B71,C71,D71,$C$1,G71,1,F71,F71,SIMDrateratios,RateRatios!$B$3)*10)))))) -> 729.5954191 | P71: =IF('III Tool Overview'!$H$6="Orkney Health Board",0,IF('III Tool Overview'!$H$6="Shetland Health Board",0,IF('III Tool Overview'!$H$6="Western Isles Health Board",0,IF('III Tool Overview'!$H$6="Orkney Islands Local Authority",0,IF('III Tool Overview'!$H$6="Shetland Islands Local Authority",0,IF('III Tool Overview'!$H$6="Eilean Siar Local Authority",0,new_ci(20,B71,C71,D71,$C$1,G71+H71,1,F71,F71,SIMDrateratios,RateRatios!$B$3)*10)))))) -> 723.5948652 | Q71: =IF('III Tool Overview'!$H$6="Orkney Health Board",0,IF('III Tool Overview'!$H$6="Shetland Health Board",0,IF('III Tool Overview'!$H$6="Western Isles Health Board",0,IF('III Tool Overview'!$H$6="Orkney Islands Local Authority",0,IF('III Tool Overview'!$H$6="Shetland Islands Local Authority",0,IF('III Tool Overview'!$H$6="Eilean Siar Local Authority",0,new_yll(2,B71,C71,D71,$C$1,G71,1,F71,F71,SIMDrateratios,RateRatios!$B$3)*10)))))) -> 1697.974734 | R71: =IF('III Tool Overview'!$H$6="Orkney Health Board",0,IF('III Tool Overview'!$H$6="Shetland Health Board",0,IF('III Tool Overview'!$H$6="Western Isles Health Board",0,IF('III Tool Overview'!$H$6="Orkney Islands Local Authority",0,IF('III Tool Overview'!$H$6="Shetland Islands Local Authority",0,IF('III Tool Overview'!$H$6="Eilean Siar Local Authority",0,new_yll(2,B71,C71,D71,$C$1,G71+H71,1,F71,F71,SIMDrateratios,RateRatios!$B$3)*10)))))) -> 1683.703624 | S71: 14.2711105 | T71: =IF('III Tool Overview'!$H$6="Orkney Health Board",0,IF('III Tool Overview'!$H$6="Shetland Health Board",0,IF('III Tool Overview'!$H$6="Western Isles Health Board",0,IF('III Tool Overview'!$H$6="Orkney Islands Local Authority",0,IF('III Tool Overview'!$H$6="Shetland Islands Local Authority",0,IF('III Tool Overview'!$H$6="Eilean Siar Local Authority",0,new_yll(5,B71,C71,D71,$C$1,G71,1,F71,F71,SIMDrateratios,RateRatios!$B$3)*1000)))))) -> 726177.2457 | U71: =IF('III Tool Overview'!$H$6="Orkney Health Board",0,IF('III Tool Overview'!$H$6="Shetland Health Board",0,IF('III Tool Overview'!$H$6="Western Isles Health Board",0,IF('III Tool Overview'!$H$6="Orkney Islands Local Authority",0,IF('III Tool Overview'!$H$6="Shetland Islands Local Authority",0,IF('III Tool Overview'!$H$6="Eilean Siar Local Authority",0,new_yll(5,B71,C71,D71,$C$1,G71+H71,1,F71,F71,SIMDrateratios,RateRatios!$B$3)*1000)))))) -> 720087.2934 | V71: 6089.952282 | W71: =IF('III Tool Overview'!$H$6="Orkney Health Board",0,IF('III Tool Overview'!$H$6="Shetland Health Board",0,IF('III Tool Overview'!$H$6="Western Isles Health Board",0,IF('III Tool Overview'!$H$6="Orkney Islands Local Authority",0,IF('III Tool Overview'!$H$6="Shetland Islands Local Authority",0,IF('III Tool Overview'!$H$6="Eilean Siar Local Authority",0,new_yll(10,B71,C71,D71,$C$1,G71,1,F71,F71,SIMDrateratios,RateRatios!$B$3)*10)))))) -> 18286.75511 | X71: =IF('III Tool Overview'!$H$6="Orkney Health Board",0,IF('III Tool Overview'!$H$6="Shetland Health Board",0,IF('III Tool Overview'!$H$6="Western Isles Health Board",0,IF('III Tool Overview'!$H$6="Orkney Islands Local Authority",0,IF('III Tool Overview'!$H$6="Shetland Islands Local Authority",0,IF('III Tool Overview'!$H$6="Eilean Siar Local Authority",0,new_yll(10,B71,C71,D71,$C$1,G71+H71,1,F71,F71,SIMDrateratios,RateRatios!$B$3)*10)))))) -> 18134.09541 | Y71: 152.6597064 | Z71: =IF('III Tool Overview'!$H$6="Orkney Health Board",0,IF('III Tool Overview'!$H$6="Shetland Health Board",0,IF('III Tool Overview'!$H$6="Western Isles Health Board",0,IF('III Tool Overview'!$H$6="Orkney Islands Local Authority",0,IF('III Tool Overview'!$H$6="Shetland Islands Local Authority",0,IF('III Tool Overview'!$H$6="Eilean Siar Local Authority",0,new_yll(20,B71,C71,D71,$C$1,G71,1,F71,F71,SIMDrateratios,RateRatios!$B$3)*10)))))) -> 48409.25868 | AA71: =IF('III Tool Overview'!$H$6="Orkney Health Board",0,IF('III Tool Overview'!$H$6="Shetland Health Board",0,IF('III Tool Overview'!$H$6="Western Isles Health Board",0,IF('III Tool Overview'!$H$6="Orkney Islands Local Authority",0,IF('III Tool Overview'!$H$6="Shetland Islands Local Authority",0,IF('III Tool Overview'!$H$6="Eilean Siar Local Authority",0,new_yll(20,B71,C71,D71,$C$1,G71+H71,1,F71,F71,SIMDrateratios,RateRatios!$B$3)*10)))))) -> 48010.70208 | AB71: 398.5566013 | AC71: =IF('III Tool Overview'!$H$6="Orkney Health Board",0,IF('III Tool Overview'!$H$6="Shetland Health Board",0,IF('III Tool Overview'!$H$6="Western Isles Health Board",0,IF('III Tool Overview'!$H$6="Orkney Islands Local Authority",0,IF('III Tool Overview'!$H$6="Shetland Islands Local Authority",0,IF('III Tool Overview'!$H$6="Eilean Siar Local Authority",0,hosp_count(2,B71,C71,D71,$C$1,G71,1,F71,F71,SIMDRateRatios_hosp,SIMDrateratios,RateRatios!$B$3)*10)))))) -> 1891.910462 | AD71: =IF('III Tool Overview'!$H$6="Orkney Health Board",0,IF('III Tool Overview'!$H$6="Shetland Health Board",0,IF('III Tool Overview'!$H$6="Western Isles Health Board",0,IF('III Tool Overview'!$H$6="Orkney Islands Local Authority",0,IF('III Tool Overview'!$H$6="Shetland Islands Local Authority",0,IF('III Tool Overview'!$H$6="Eilean Siar Local Authority",0,hosp_count(2,B71,C71,D71,$C$1,G71+H71,1,F71,F71,SIMDRateRatios_hosp,SIMDrateratios,RateRatios!$B$3)*10)))))) -> 1879.528866 | AE71: 12.3815965 | AF71: =IF('III Tool Overview'!$H$6="Orkney Health Board",0,IF('III Tool Overview'!$H$6="Shetland Health Board",0,IF('III Tool Overview'!$H$6="Western Isles Health Board",0,IF('III Tool Overview'!$H$6="Orkney Islands Local Authority",0,IF('III Tool Overview'!$H$6="Shetland Islands Local Authority",0,IF('III Tool Overview'!$H$6="Eilean Siar Local Authority",0,hosp_count(5,B71,C71,D71,$C$1,G71,1,F71,F71,SIMDRateRatios_hosp,SIMDrateratios,RateRatios!$B$3)*1000)))))) -> 798351.4018 | AG71: =IF('III Tool Overview'!$H$6="Orkney Health Board",0,IF('III Tool Overview'!$H$6="Shetland Health Board",0,IF('III Tool Overview'!$H$6="Western Isles Health Board",0,IF('III Tool Overview'!$H$6="Orkney Islands Local Authority",0,IF('III Tool Overview'!$H$6="Shetland Islands Local Authority",0,IF('III Tool Overview'!$H$6="Eilean Siar Local Authority",0,hosp_count(5,B71,C71,D71,$C$1,G71+H71,1,F71,F71,SIMDRateRatios_hosp,SIMDrateratios,RateRatios!$B$3)*1000)))))) -> 793140.835 | AH71: 5210.566824 | AI71: =IF('III Tool Overview'!$H$6="Orkney Health Board",0,IF('III Tool Overview'!$H$6="Shetland Health Board",0,IF('III Tool Overview'!$H$6="Western Isles Health Board",0,IF('III Tool Overview'!$H$6="Orkney Islands Local Authority",0,IF('III Tool Overview'!$H$6="Shetland Islands Local Authority",0,IF('III Tool Overview'!$H$6="Eilean Siar Local Authority",0,hosp_count(10,B71,C71,D71,$C$1,G71,1,F71,F71,SIMDRateRatios_hosp,SIMDrateratios,RateRatios!$B$3)*10)))))) -> 19665.55225 | AJ71: =IF('III Tool Overview'!$H$6="Orkney Health Board",0,IF('III Tool Overview'!$H$6="Shetland Health Board",0,IF('III Tool Overview'!$H$6="Western Isles Health Board",0,IF('III Tool Overview'!$H$6="Orkney Islands Local Authority",0,IF('III Tool Overview'!$H$6="Shetland Islands Local Authority",0,IF('III Tool Overview'!$H$6="Eilean Siar Local Authority",0,hosp_count(10,B71,C71,D71,$C$1,G71+H71,1,F71,F71,SIMDRateRatios_hosp,SIMDrateratios,RateRatios!$B$3)*10)))))) -> 19537.92082 | AK71: 127.6314321 | AL71: =IF('III Tool Overview'!$H$6="Orkney Health Board",0,IF('III Tool Overview'!$H$6="Shetland Health Board",0,IF('III Tool Overview'!$H$6="Western Isles Health Board",0,IF('III Tool Overview'!$H$6="Orkney Islands Local Authority",0,IF('III Tool Overview'!$H$6="Shetland Islands Local Authority",0,IF('III Tool Overview'!$H$6="Eilean Siar Local Authority",0,hosp_count(20,B71,C71,D71,$C$1,G71,1,F71,F71,SIMDRateRatios_hosp,SIMDrateratios,RateRatios!$B$3)*10)))))) -> 49956.63987 | AM71: =IF('III Tool Overview'!$H$6="Orkney Health Board",0,IF('III Tool Overview'!$H$6="Shetland Health Board",0,IF('III Tool Overview'!$H$6="Western Isles Health Board",0,IF('III Tool Overview'!$H$6="Orkney Islands Local Authority",0,IF('III Tool Overview'!$H$6="Shetland Islands Local Authority",0,IF('III Tool Overview'!$H$6="Eilean Siar Local Authority",0,hosp_count(20,B71,C71,D71,$C$1,G71+H71,1,F71,F71,SIMDRateRatios_hosp,SIMDrateratios,RateRatios!$B$3)*10)))))) -> 49637.84972 | AN71: 318.7901462
A72: Male 25-29 | B72: 27.5 | C72: male | D72: 1 | E72: 1 | F72: =HLOOKUP('III Tool Overview'!$H$6,LookUpData_Pop!$B$1:$AV$269,LookUpData_Pop!BB73,FALSE)/50 -> 1647.22 | G72: ='III Tool Overview'!$H$9/110 -> 0 | H72: 1647.22 | I72: =IF('III Tool Overview'!$H$6="Orkney Health Board",0,IF('III Tool Overview'!$H$6="Shetland Health Board",0,IF('III Tool Overview'!$H$6="Western Isles Health Board",0,IF('III Tool Overview'!$H$6="Orkney Islands Local Authority",0,IF('III Tool Overview'!$H$6="Shetland Islands Local Authority",0,IF('III Tool Overview'!$H$6="Eilean Siar Local Authority",0,new_ci(2,B72,C72,D72,$C$1,G72,1,F72,F72,SIMDrateratios,RateRatios!$B$3)*10)))))) -> 33.73608878 | J72: =IF('III Tool Overview'!$H$6="Orkney Health Board",0,IF('III Tool Overview'!$H$6="Shetland Health Board",0,IF('III Tool Overview'!$H$6="Western Isles Health Board",0,IF('III Tool Overview'!$H$6="Orkney Islands Local Authority",0,IF('III Tool Overview'!$H$6="Shetland Islands Local Authority",0,IF('III Tool Overview'!$H$6="Eilean Siar Local Authority",0,new_ci(2,B72,C72,D72,$C$1,G72+H72,1,H72,H72,SIMDrateratios,RateRatios!$B$3)*10)))))) -> 33.45270412 | K72: =IF('III Tool Overview'!$H$6="Orkney Health Board",0,IF('III Tool Overview'!$H$6="Shetland Health Board",0,IF('III Tool Overview'!$H$6="Western Isles Health Board",0,IF('III Tool Overview'!$H$6="Orkney Islands Local Authority",0,IF('III Tool Overview'!$H$6="Shetland Islands Local Authority",0,IF('III Tool Overview'!$H$6="Eilean Siar Local Authority",0,new_ci(5,B72,C72,D72,$C$1,G72,1,F72,F72,SIMDrateratios,RateRatios!$B$3)*1000)))))) -> 14710.60655 | L72: =IF('III Tool Overview'!$H$6="Orkney Health Board",0,IF('III Tool Overview'!$H$6="Shetland Health Board",0,IF('III Tool Overview'!$H$6="Western Isles Health Board",0,IF('III Tool Overview'!$H$6="Orkney Islands Local Authority",0,IF('III Tool Overview'!$H$6="Shetland Islands Local Authority",0,IF('III Tool Overview'!$H$6="Eilean Siar Local Authority",0,new_ci(5,B72,C72,D72,$C$1,G72+H72,1,F72,F72,SIMDrateratios,RateRatios!$B$3)*1000)))))) -> 14587.46045 | M72: =IF('III Tool Overview'!$H$6="Orkney Health Board",0,IF('III Tool Overview'!$H$6="Shetland Health Board",0,IF('III Tool Overview'!$H$6="Western Isles Health Board",0,IF('III Tool Overview'!$H$6="Orkney Islands Local Authority",0,IF('III Tool Overview'!$H$6="Shetland Islands Local Authority",0,IF('III Tool Overview'!$H$6="Eilean Siar Local Authority",0,new_ci(10,B72,C72,D72,$C$1,G72,1,F72,F72,SIMDrateratios,RateRatios!$B$3)*10)))))) -> 383.7709572 | N72: =IF('III Tool Overview'!$H$6="Orkney Health Board",0,IF('III Tool Overview'!$H$6="Shetland Health Board",0,IF('III Tool Overview'!$H$6="Western Isles Health Board",0,IF('III Tool Overview'!$H$6="Orkney Islands Local Authority",0,IF('III Tool Overview'!$H$6="Shetland Islands Local Authority",0,IF('III Tool Overview'!$H$6="Eilean Siar Local Authority",0,new_ci(10,B72,C72,D72,$C$1,G72+H72,1,F72,F72,SIMDrateratios,RateRatios!$B$3)*10)))))) -> 380.5815555 | O72: =IF('III Tool Overview'!$H$6="Orkney Health Board",0,IF('III Tool Overview'!$H$6="Shetland Health Board",0,IF('III Tool Overview'!$H$6="Western Isles Health Board",0,IF('III Tool Overview'!$H$6="Orkney Islands Local Authority",0,IF('III Tool Overview'!$H$6="Shetland Islands Local Authority",0,IF('III Tool Overview'!$H$6="Eilean Siar Local Authority",0,new_ci(20,B72,C72,D72,$C$1,G72,1,F72,F72,SIMDrateratios,RateRatios!$B$3)*10)))))) -> 1103.163527 | P72: =IF('III Tool Overview'!$H$6="Orkney Health Board",0,IF('III Tool Overview'!$H$6="Shetland Health Board",0,IF('III Tool Overview'!$H$6="Western Isles Health Board",0,IF('III Tool Overview'!$H$6="Orkney Islands Local Authority",0,IF('III Tool Overview'!$H$6="Shetland Islands Local Authority",0,IF('III Tool Overview'!$H$6="Eilean Siar Local Authority",0,new_ci(20,B72,C72,D72,$C$1,G72+H72,1,F72,F72,SIMDrateratios,RateRatios!$B$3)*10)))))) -> 1094.202657 | Q72: =IF('III Tool Overview'!$H$6="Orkney Health Board",0,IF('III Tool Overview'!$H$6="Shetland Health Board",0,IF('III Tool Overview'!$H$6="Western Isles Health Board",0,IF('III Tool Overview'!$H$6="Orkney Islands Local Authority",0,IF('III Tool Overview'!$H$6="Shetland Islands Local Authority",0,IF('III Tool Overview'!$H$6="Eilean Siar Local Authority",0,new_yll(2,B72,C72,D72,$C$1,G72,1,F72,F72,SIMDrateratios,RateRatios!$B$3)*10)))))) -> 2395.262303 | R72: =IF('III Tool Overview'!$H$6="Orkney Health Board",0,IF('III Tool Overview'!$H$6="Shetland Health Board",0,IF('III Tool Overview'!$H$6="Western Isles Health Board",0,IF('III Tool Overview'!$H$6="Orkney Islands Local Authority",0,IF('III Tool Overview'!$H$6="Shetland Islands Local Authority",0,IF('III Tool Overview'!$H$6="Eilean Siar Local Authority",0,new_yll(2,B72,C72,D72,$C$1,G72+H72,1,F72,F72,SIMDrateratios,RateRatios!$B$3)*10)))))) -> 2375.141993 | S72: 20.12031024 | T72: =IF('III Tool Overview'!$H$6="Orkney Health Board",0,IF('III Tool Overview'!$H$6="Shetland Health Board",0,IF('III Tool Overview'!$H$6="Western Isles Health Board",0,IF('III Tool Overview'!$H$6="Orkney Islands Local Authority",0,IF('III Tool Overview'!$H$6="Shetland Islands Local Authority",0,IF('III Tool Overview'!$H$6="Eilean Siar Local Authority",0,new_yll(5,B72,C72,D72,$C$1,G72,1,F72,F72,SIMDrateratios,RateRatios!$B$3)*1000)))))) -> 1021355.259 | U72: =IF('III Tool Overview'!$H$6="Orkney Health Board",0,IF('III Tool Overview'!$H$6="Shetland Health Board",0,IF('III Tool Overview'!$H$6="Western Isles Health Board",0,IF('III Tool Overview'!$H$6="Orkney Islands Local Authority",0,IF('III Tool Overview'!$H$6="Shetland Islands Local Authority",0,IF('III Tool Overview'!$H$6="Eilean Siar Local Authority",0,new_yll(5,B72,C72,D72,$C$1,G72+H72,1,F72,F72,SIMDrateratios,RateRatios!$B$3)*1000)))))) -> 1012804.9 | V72: 8550.358754 | W72: =IF('III Tool Overview'!$H$6="Orkney Health Board",0,IF('III Tool Overview'!$H$6="Shetland Health Board",0,IF('III Tool Overview'!$H$6="Western Isles Health Board",0,IF('III Tool Overview'!$H$6="Orkney Islands Local Authority",0,IF('III Tool Overview'!$H$6="Shetland Islands Local Authority",0,IF('III Tool Overview'!$H$6="Eilean Siar Local Authority",0,new_yll(10,B72,C72,D72,$C$1,G72,1,F72,F72,SIMDrateratios,RateRatios!$B$3)*10)))))) -> 25570.54156 | X72: =IF('III Tool Overview'!$H$6="Orkney Health Board",0,IF('III Tool Overview'!$H$6="Shetland Health Board",0,IF('III Tool Overview'!$H$6="Western Isles Health Board",0,IF('III Tool Overview'!$H$6="Orkney Islands Local Authority",0,IF('III Tool Overview'!$H$6="Shetland Islands Local Authority",0,IF('III Tool Overview'!$H$6="Eilean Siar Local Authority",0,new_yll(10,B72,C72,D72,$C$1,G72+H72,1,F72,F72,SIMDrateratios,RateRatios!$B$3)*10)))))) -> 25357.97732 | Y72: 212.5642357 | Z72: =IF('III Tool Overview'!$H$6="Orkney Health Board",0,IF('III Tool Overview'!$H$6="Shetland Health Board",0,IF('III Tool Overview'!$H$6="Western Isles Health Board",0,IF('III Tool Overview'!$H$6="Orkney Islands Local Authority",0,IF('III Tool Overview'!$H$6="Shetland Islands Local Authority",0,IF('III Tool Overview'!$H$6="Eilean Siar Local Authority",0,new_yll(20,B72,C72,D72,$C$1,G72,1,F72,F72,SIMDrateratios,RateRatios!$B$3)*10)))))) -> 66617.76275 | AA72: =IF('III Tool Overview'!$H$6="Orkney Health Board",0,IF('III Tool Overview'!$H$6="Shetland Health Board",0,IF('III Tool Overview'!$H$6="Western Isles Health Board",0,IF('III Tool Overview'!$H$6="Orkney Islands Local Authority",0,IF('III Tool Overview'!$H$6="Shetland Islands Local Authority",0,IF('III Tool Overview'!$H$6="Eilean Siar Local Authority",0,new_yll(20,B72,C72,D72,$C$1,G72+H72,1,F72,F72,SIMDrateratios,RateRatios!$B$3)*10)))))) -> 66075.66512 | AB72: 542.097636 | AC72: =IF('III Tool Overview'!$H$6="Orkney Health Board",0,IF('III Tool Overview'!$H$6="Shetland Health Board",0,IF('III Tool Overview'!$H$6="Western Isles Health Board",0,IF('III Tool Overview'!$H$6="Orkney Islands Local Authority",0,IF('III Tool Overview'!$H$6="Shetland Islands Local Authority",0,IF('III Tool Overview'!$H$6="Eilean Siar Local Authority",0,hosp_count(2,B72,C72,D72,$C$1,G72,1,F72,F72,SIMDRateRatios_hosp,SIMDrateratios,RateRatios!$B$3)*10)))))) -> 2311.921798 | AD72: =IF('III Tool Overview'!$H$6="Orkney Health Board",0,IF('III Tool Overview'!$H$6="Shetland Health Board",0,IF('III Tool Overview'!$H$6="Western Isles Health Board",0,IF('III Tool Overview'!$H$6="Orkney Islands Local Authority",0,IF('III Tool Overview'!$H$6="Shetland Islands Local Authority",0,IF('III Tool Overview'!$H$6="Eilean Siar Local Authority",0,hosp_count(2,B72,C72,D72,$C$1,G72+H72,1,F72,F72,SIMDRateRatios_hosp,SIMDrateratios,RateRatios!$B$3)*10)))))) -> 2296.794553 | AE72: 15.12724505 | AF72: =IF('III Tool Overview'!$H$6="Orkney Health Board",0,IF('III Tool Overview'!$H$6="Shetland Health Board",0,IF('III Tool Overview'!$H$6="Western Isles Health Board",0,IF('III Tool Overview'!$H$6="Orkney Islands Local Authority",0,IF('III Tool Overview'!$H$6="Shetland Islands Local Authority",0,IF('III Tool Overview'!$H$6="Eilean Siar Local Authority",0,hosp_count(5,B72,C72,D72,$C$1,G72,1,F72,F72,SIMDRateRatios_hosp,SIMDrateratios,RateRatios!$B$3)*1000)))))) -> 974456.5002 | AG72: =IF('III Tool Overview'!$H$6="Orkney Health Board",0,IF('III Tool Overview'!$H$6="Shetland Health Board",0,IF('III Tool Overview'!$H$6="Western Isles Health Board",0,IF('III Tool Overview'!$H$6="Orkney Islands Local Authority",0,IF('III Tool Overview'!$H$6="Shetland Islands Local Authority",0,IF('III Tool Overview'!$H$6="Eilean Siar Local Authority",0,hosp_count(5,B72,C72,D72,$C$1,G72+H72,1,F72,F72,SIMDRateRatios_hosp,SIMDrateratios,RateRatios!$B$3)*1000)))))) -> 968107.3009 | AH72: 6349.199351 | AI72: =IF('III Tool Overview'!$H$6="Orkney Health Board",0,IF('III Tool Overview'!$H$6="Shetland Health Board",0,IF('III Tool Overview'!$H$6="Western Isles Health Board",0,IF('III Tool Overview'!$H$6="Orkney Islands Local Authority",0,IF('III Tool Overview'!$H$6="Shetland Islands Local Authority",0,IF('III Tool Overview'!$H$6="Eilean Siar Local Authority",0,hosp_count(10,B72,C72,D72,$C$1,G72,1,F72,F72,SIMDRateRatios_hosp,SIMDrateratios,RateRatios!$B$3)*10)))))) -> 23946.48644 | AJ72: =IF('III Tool Overview'!$H$6="Orkney Health Board",0,IF('III Tool Overview'!$H$6="Shetland Health Board",0,IF('III Tool Overview'!$H$6="Western Isles Health Board",0,IF('III Tool Overview'!$H$6="Orkney Islands Local Authority",0,IF('III Tool Overview'!$H$6="Shetland Islands Local Authority",0,IF('III Tool Overview'!$H$6="Eilean Siar Local Authority",0,hosp_count(10,B72,C72,D72,$C$1,G72+H72,1,F72,F72,SIMDRateRatios_hosp,SIMDrateratios,RateRatios!$B$3)*10)))))) -> 23791.80876 | AK72: 154.6776799 | AL72: =IF('III Tool Overview'!$H$6="Orkney Health Board",0,IF('III Tool Overview'!$H$6="Shetland Health Board",0,IF('III Tool Overview'!$H$6="Western Isles Health Board",0,IF('III Tool Overview'!$H$6="Orkney Islands Local Authority",0,IF('III Tool Overview'!$H$6="Shetland Islands Local Authority",0,IF('III Tool Overview'!$H$6="Eilean Siar Local Authority",0,hosp_count(20,B72,C72,D72,$C$1,G72,1,F72,F72,SIMDRateRatios_hosp,SIMDrateratios,RateRatios!$B$3)*10)))))) -> 60403.57903 | AM72: =IF('III Tool Overview'!$H$6="Orkney Health Board",0,IF('III Tool Overview'!$H$6="Shetland Health Board",0,IF('III Tool Overview'!$H$6="Western Isles Health Board",0,IF('III Tool Overview'!$H$6="Orkney Islands Local Authority",0,IF('III Tool Overview'!$H$6="Shetland Islands Local Authority",0,IF('III Tool Overview'!$H$6="Eilean Siar Local Authority",0,hosp_count(20,B72,C72,D72,$C$1,G72+H72,1,F72,F72,SIMDRateRatios_hosp,SIMDrateratios,RateRatios!$B$3)*10)))))) -> 60023.49712 | AN72: 380.0819096
A73: Male 30-34 | B73: 32.5 | C73: male | D73: 1 | E73: 1 | F73: =HLOOKUP('III Tool Overview'!$H$6,LookUpData_Pop!$B$1:$AV$269,LookUpData_Pop!BB74,FALSE)/50 -> 1373.48 | G73: ='III Tool Overview'!$H$9/110 -> 0 | H73: 1373.48 | I73: =IF('III Tool Overview'!$H$6="Orkney Health Board",0,IF('III Tool Overview'!$H$6="Shetland Health Board",0,IF('III Tool Overview'!$H$6="Western Isles Health Board",0,IF('III Tool Overview'!$H$6="Orkney Islands Local Authority",0,IF('III Tool Overview'!$H$6="Shetland Islands Local Authority",0,IF('III Tool Overview'!$H$6="Eilean Siar Local Authority",0,new_ci(2,B73,C73,D73,$C$1,G73,1,F73,F73,SIMDrateratios,RateRatios!$B$3)*10)))))) -> 37.56546102 | J73: =IF('III Tool Overview'!$H$6="Orkney Health Board",0,IF('III Tool Overview'!$H$6="Shetland Health Board",0,IF('III Tool Overview'!$H$6="Western Isles Health Board",0,IF('III Tool Overview'!$H$6="Orkney Islands Local Authority",0,IF('III Tool Overview'!$H$6="Shetland Islands Local Authority",0,IF('III Tool Overview'!$H$6="Eilean Siar Local Authority",0,new_ci(2,B73,C73,D73,$C$1,G73+H73,1,H73,H73,SIMDrateratios,RateRatios!$B$3)*10)))))) -> 37.25008535 | K73: =IF('III Tool Overview'!$H$6="Orkney Health Board",0,IF('III Tool Overview'!$H$6="Shetland Health Board",0,IF('III Tool Overview'!$H$6="Western Isles Health Board",0,IF('III Tool Overview'!$H$6="Orkney Islands Local Authority",0,IF('III Tool Overview'!$H$6="Shetland Islands Local Authority",0,IF('III Tool Overview'!$H$6="Eilean Siar Local Authority",0,new_ci(5,B73,C73,D73,$C$1,G73,1,F73,F73,SIMDrateratios,RateRatios!$B$3)*1000)))))) -> 16361.41572 | L73: =IF('III Tool Overview'!$H$6="Orkney Health Board",0,IF('III Tool Overview'!$H$6="Shetland Health Board",0,IF('III Tool Overview'!$H$6="Western Isles Health Board",0,IF('III Tool Overview'!$H$6="Orkney Islands Local Authority",0,IF('III Tool Overview'!$H$6="Shetland Islands Local Authority",0,IF('III Tool Overview'!$H$6="Eilean Siar Local Authority",0,new_ci(5,B73,C73,D73,$C$1,G73+H73,1,F73,F73,SIMDrateratios,RateRatios!$B$3)*1000)))))) -> 16224.68465 | M73: =IF('III Tool Overview'!$H$6="Orkney Health Board",0,IF('III Tool Overview'!$H$6="Shetland Health Board",0,IF('III Tool Overview'!$H$6="Western Isles Health Board",0,IF('III Tool Overview'!$H$6="Orkney Islands Local Authority",0,IF('III Tool Overview'!$H$6="Shetland Islands Local Authority",0,IF('III Tool Overview'!$H$6="Eilean Siar Local Authority",0,new_ci(10,B73,C73,D73,$C$1,G73,1,F73,F73,SIMDrateratios,RateRatios!$B$3)*10)))))) -> 425.7983922 | N73: =IF('III Tool Overview'!$H$6="Orkney Health Board",0,IF('III Tool Overview'!$H$6="Shetland Health Board",0,IF('III Tool Overview'!$H$6="Western Isles Health Board",0,IF('III Tool Overview'!$H$6="Orkney Islands Local Authority",0,IF('III Tool Overview'!$H$6="Shetland Islands Local Authority",0,IF('III Tool Overview'!$H$6="Eilean Siar Local Authority",0,new_ci(10,B73,C73,D73,$C$1,G73+H73,1,F73,F73,SIMDrateratios,RateRatios!$B$3)*10)))))) -> 422.2744038 | O73: =IF('III Tool Overview'!$H$6="Orkney Health Board",0,IF('III Tool Overview'!$H$6="Shetland Health Board",0,IF('III Tool Overview'!$H$6="Western Isles Health Board",0,IF('III Tool Overview'!$H$6="Orkney Islands Local Authority",0,IF('III Tool Overview'!$H$6="Shetland Islands Local Authority",0,IF('III Tool Overview'!$H$6="Eilean Siar Local Authority",0,new_ci(20,B73,C73,D73,$C$1,G73,1,F73,F73,SIMDrateratios,RateRatios!$B$3)*10)))))) -> 1214.774055 | P73: =IF('III Tool Overview'!$H$6="Orkney Health Board",0,IF('III Tool Overview'!$H$6="Shetland Health Board",0,IF('III Tool Overview'!$H$6="Western Isles Health Board",0,IF('III Tool Overview'!$H$6="Orkney Islands Local Authority",0,IF('III Tool Overview'!$H$6="Shetland Islands Local Authority",0,IF('III Tool Overview'!$H$6="Eilean Siar Local Authority",0,new_ci(20,B73,C73,D73,$C$1,G73+H73,1,F73,F73,SIMDrateratios,RateRatios!$B$3)*10)))))) -> 1205.023481 | Q73: =IF('III Tool Overview'!$H$6="Orkney Health Board",0,IF('III Tool Overview'!$H$6="Shetland Health Board",0,IF('III Tool Overview'!$H$6="Western Isles Health Board",0,IF('III Tool Overview'!$H$6="Orkney Islands Local Authority",0,IF('III Tool Overview'!$H$6="Shetland Islands Local Authority",0,IF('III Tool Overview'!$H$6="Eilean Siar Local Authority",0,new_yll(2,B73,C73,D73,$C$1,G73,1,F73,F73,SIMDrateratios,RateRatios!$B$3)*10)))))) -> 2516.885888 | R73: =IF('III Tool Overview'!$H$6="Orkney Health Board",0,IF('III Tool Overview'!$H$6="Shetland Health Board",0,IF('III Tool Overview'!$H$6="Western Isles Health Board",0,IF('III Tool Overview'!$H$6="Orkney Islands Local Authority",0,IF('III Tool Overview'!$H$6="Shetland Islands Local Authority",0,IF('III Tool Overview'!$H$6="Eilean Siar Local Authority",0,new_yll(2,B73,C73,D73,$C$1,G73+H73,1,F73,F73,SIMDrateratios,RateRatios!$B$3)*10)))))) -> 2495.755719 | S73: 21.13016971 | T73: =IF('III Tool Overview'!$H$6="Orkney Health Board",0,IF('III Tool Overview'!$H$6="Shetland Health Board",0,IF('III Tool Overview'!$H$6="Western Isles Health Board",0,IF('III Tool Overview'!$H$6="Orkney Islands Local Authority",0,IF('III Tool Overview'!$H$6="Shetland Islands Local Authority",0,IF('III Tool Overview'!$H$6="Eilean Siar Local Authority",0,new_yll(5,B73,C73,D73,$C$1,G73,1,F73,F73,SIMDrateratios,RateRatios!$B$3)*1000)))))) -> 1070540.409 | U73: =IF('III Tool Overview'!$H$6="Orkney Health Board",0,IF('III Tool Overview'!$H$6="Shetland Health Board",0,IF('III Tool Overview'!$H$6="Western Isles Health Board",0,IF('III Tool Overview'!$H$6="Orkney Islands Local Authority",0,IF('III Tool Overview'!$H$6="Shetland Islands Local Authority",0,IF('III Tool Overview'!$H$6="Eilean Siar Local Authority",0,new_yll(5,B73,C73,D73,$C$1,G73+H73,1,F73,F73,SIMDrateratios,RateRatios!$B$3)*1000)))))) -> 1061593.477 | V73: 8946.932086 | W73: =IF('III Tool Overview'!$H$6="Orkney Health Board",0,IF('III Tool Overview'!$H$6="Shetland Health Board",0,IF('III Tool Overview'!$H$6="Western Isles Health Board",0,IF('III Tool Overview'!$H$6="Orkney Islands Local Authority",0,IF('III Tool Overview'!$H$6="Shetland Islands Local Authority",0,IF('III Tool Overview'!$H$6="Eilean Siar Local Authority",0,new_yll(10,B73,C73,D73,$C$1,G73,1,F73,F73,SIMDrateratios,RateRatios!$B$3)*10)))))) -> 26670.09804 | X73: =IF('III Tool Overview'!$H$6="Orkney Health Board",0,IF('III Tool Overview'!$H$6="Shetland Health Board",0,IF('III Tool Overview'!$H$6="Western Isles Health Board",0,IF('III Tool Overview'!$H$6="Orkney Islands Local Authority",0,IF('III Tool Overview'!$H$6="Shetland Islands Local Authority",0,IF('III Tool Overview'!$H$6="Eilean Siar Local Authority",0,new_yll(10,B73,C73,D73,$C$1,G73+H73,1,F73,F73,SIMDrateratios,RateRatios!$B$3)*10)))))) -> 26449.28917 | Y73: 220.8088653 | Z73: =IF('III Tool Overview'!$H$6="Orkney Health Board",0,IF('III Tool Overview'!$H$6="Shetland Health Board",0,IF('III Tool Overview'!$H$6="Western Isles Health Board",0,IF('III Tool Overview'!$H$6="Orkney Islands Local Authority",0,IF('III Tool Overview'!$H$6="Shetland Islands Local Authority",0,IF('III Tool Overview'!$H$6="Eilean Siar Local Authority",0,new_yll(20,B73,C73,D73,$C$1,G73,1,F73,F73,SIMDrateratios,RateRatios!$B$3)*10)))))) -> 68541.59501 | AA73: =IF('III Tool Overview'!$H$6="Orkney Health Board",0,IF('III Tool Overview'!$H$6="Shetland Health Board",0,IF('III Tool Overview'!$H$6="Western Isles Health Board",0,IF('III Tool Overview'!$H$6="Orkney Islands Local Authority",0,IF('III Tool Overview'!$H$6="Shetland Islands Local Authority",0,IF('III Tool Overview'!$H$6="Eilean Siar Local Authority",0,new_yll(20,B73,C73,D73,$C$1,G73+H73,1,F73,F73,SIMDrateratios,RateRatios!$B$3)*10)))))) -> 67990.00854 | AB73: 551.5864694 | AC73: =IF('III Tool Overview'!$H$6="Orkney Health Board",0,IF('III Tool Overview'!$H$6="Shetland Health Board",0,IF('III Tool Overview'!$H$6="Western Isles Health Board",0,IF('III Tool Overview'!$H$6="Orkney Islands Local Authority",0,IF('III Tool Overview'!$H$6="Shetland Islands Local Authority",0,IF('III Tool Overview'!$H$6="Eilean Siar Local Authority",0,hosp_count(2,B73,C73,D73,$C$1,G73,1,F73,F73,SIMDRateRatios_hosp,SIMDrateratios,RateRatios!$B$3)*10)))))) -> 2216.448355 | AD73: =IF('III Tool Overview'!$H$6="Orkney Health Board",0,IF('III Tool Overview'!$H$6="Shetland Health Board",0,IF('III Tool Overview'!$H$6="Western Isles Health Board",0,IF('III Tool Overview'!$H$6="Orkney Islands Local Authority",0,IF('III Tool Overview'!$H$6="Shetland Islands Local Authority",0,IF('III Tool Overview'!$H$6="Eilean Siar Local Authority",0,hosp_count(2,B73,C73,D73,$C$1,G73+H73,1,F73,F73,SIMDRateRatios_hosp,SIMDrateratios,RateRatios!$B$3)*10)))))) -> 2201.948939 | AE73: 14.49941645 | AF73: =IF('III Tool Overview'!$H$6="Orkney Health Board",0,IF('III Tool Overview'!$H$6="Shetland Health Board",0,IF('III Tool Overview'!$H$6="Western Isles Health Board",0,IF('III Tool Overview'!$H$6="Orkney Islands Local Authority",0,IF('III Tool Overview'!$H$6="Shetland Islands Local Authority",0,IF('III Tool Overview'!$H$6="Eilean Siar Local Authority",0,hosp_count(5,B73,C73,D73,$C$1,G73,1,F73,F73,SIMDRateRatios_hosp,SIMDrateratios,RateRatios!$B$3)*1000)))))) -> 933182.4842 | AG73: =IF('III Tool Overview'!$H$6="Orkney Health Board",0,IF('III Tool Overview'!$H$6="Shetland Health Board",0,IF('III Tool Overview'!$H$6="Western Isles Health Board",0,IF('III Tool Overview'!$H$6="Orkney Islands Local Authority",0,IF('III Tool Overview'!$H$6="Shetland Islands Local Authority",0,IF('III Tool Overview'!$H$6="Eilean Siar Local Authority",0,hosp_count(5,B73,C73,D73,$C$1,G73+H73,1,F73,F73,SIMDRateRatios_hosp,SIMDrateratios,RateRatios!$B$3)*1000)))))) -> 927112.1267 | AH73: 6070.357433 | AI73: =IF('III Tool Overview'!$H$6="Orkney Health Board",0,IF('III Tool Overview'!$H$6="Shetland Health Board",0,IF('III Tool Overview'!$H$6="Western Isles Health Board",0,IF('III Tool Overview'!$H$6="Orkney Islands Local Authority",0,IF('III Tool Overview'!$H$6="Shetland Islands Local Authority",0,IF('III Tool Overview'!$H$6="Eilean Siar Local Authority",0,hosp_count(10,B73,C73,D73,$C$1,G73,1,F73,F73,SIMDRateRatios_hosp,SIMDrateratios,RateRatios!$B$3)*10)))))) -> 22880.38359 | AJ73: =IF('III Tool Overview'!$H$6="Orkney Health Board",0,IF('III Tool Overview'!$H$6="Shetland Health Board",0,IF('III Tool Overview'!$H$6="Western Isles Health Board",0,IF('III Tool Overview'!$H$6="Orkney Islands Local Authority",0,IF('III Tool Overview'!$H$6="Shetland Islands Local Authority",0,IF('III Tool Overview'!$H$6="Eilean Siar Local Authority",0,hosp_count(10,B73,C73,D73,$C$1,G73+H73,1,F73,F73,SIMDRateRatios_hosp,SIMDrateratios,RateRatios!$B$3)*10)))))) -> 22733.26469 | AK73: 147.1189078 | AL73: =IF('III Tool Overview'!$H$6="Orkney Health Board",0,IF('III Tool Overview'!$H$6="Shetland Health Board",0,IF('III Tool Overview'!$H$6="Western Isles Health Board",0,IF('III Tool Overview'!$H$6="Orkney Islands Local Authority",0,IF('III Tool Overview'!$H$6="Shetland Islands Local Authority",0,IF('III Tool Overview'!$H$6="Eilean Siar Local Authority",0,hosp_count(20,B73,C73,D73,$C$1,G73,1,F73,F73,SIMDRateRatios_hosp,SIMDrateratios,RateRatios!$B$3)*10)))))) -> 57329.47105 | AM73: =IF('III Tool Overview'!$H$6="Orkney Health Board",0,IF('III Tool Overview'!$H$6="Shetland Health Board",0,IF('III Tool Overview'!$H$6="Western Isles Health Board",0,IF('III Tool Overview'!$H$6="Orkney Islands Local Authority",0,IF('III Tool Overview'!$H$6="Shetland Islands Local Authority",0,IF('III Tool Overview'!$H$6="Eilean Siar Local Authority",0,hosp_count(20,B73,C73,D73,$C$1,G73+H73,1,F73,F73,SIMDRateRatios_hosp,SIMDrateratios,RateRatios!$B$3)*10)))))) -> 56973.55858 | AN73: 355.9124751
A74: Male 35-39 | B74: 37.5 | C74: male | D74: 1 | E74: 1 | F74: =HLOOKUP('III Tool Overview'!$H$6,LookUpData_Pop!$B$1:$AV$269,LookUpData_Pop!BB75,FALSE)/50 -> 1296.82 | G74: ='III Tool Overview'!$H$9/110 -> 0 | H74: 1296.82 | I74: =IF('III Tool Overview'!$H$6="Orkney Health Board",0,IF('III Tool Overview'!$H$6="Shetland Health Board",0,IF('III Tool Overview'!$H$6="Western Isles Health Board",0,IF('III Tool Overview'!$H$6="Orkney Islands Local Authority",0,IF('III Tool Overview'!$H$6="Shetland Islands Local Authority",0,IF('III Tool Overview'!$H$6="Eilean Siar Local Authority",0,new_ci(2,B74,C74,D74,$C$1,G74,1,F74,F74,SIMDrateratios,RateRatios!$B$3)*10)))))) -> 54.72450227 | J74: =IF('III Tool Overview'!$H$6="Orkney Health Board",0,IF('III Tool Overview'!$H$6="Shetland Health Board",0,IF('III Tool Overview'!$H$6="Western Isles Health Board",0,IF('III Tool Overview'!$H$6="Orkney Islands Local Authority",0,IF('III Tool Overview'!$H$6="Shetland Islands Local Authority",0,IF('III Tool Overview'!$H$6="Eilean Siar Local Authority",0,new_ci(2,B74,C74,D74,$C$1,G74+H74,1,H74,H74,SIMDrateratios,RateRatios!$B$3)*10)))))) -> 54.26518547 | K74: =IF('III Tool Overview'!$H$6="Orkney Health Board",0,IF('III Tool Overview'!$H$6="Shetland Health Board",0,IF('III Tool Overview'!$H$6="Western Isles Health Board",0,IF('III Tool Overview'!$H$6="Orkney Islands Local Authority",0,IF('III Tool Overview'!$H$6="Shetland Islands Local Authority",0,IF('III Tool Overview'!$H$6="Eilean Siar Local Authority",0,new_ci(5,B74,C74,D74,$C$1,G74,1,F74,F74,SIMDrateratios,RateRatios!$B$3)*1000)))))) -> 23775.25567 | L74: =IF('III Tool Overview'!$H$6="Orkney Health Board",0,IF('III Tool Overview'!$H$6="Shetland Health Board",0,IF('III Tool Overview'!$H$6="Western Isles Health Board",0,IF('III Tool Overview'!$H$6="Orkney Islands Local Authority",0,IF('III Tool Overview'!$H$6="Shetland Islands Local Authority",0,IF('III Tool Overview'!$H$6="Eilean Siar Local Authority",0,new_ci(5,B74,C74,D74,$C$1,G74+H74,1,F74,F74,SIMDrateratios,RateRatios!$B$3)*1000)))))) -> 23577.11384 | M74: =IF('III Tool Overview'!$H$6="Orkney Health Board",0,IF('III Tool Overview'!$H$6="Shetland Health Board",0,IF('III Tool Overview'!$H$6="Western Isles Health Board",0,IF('III Tool Overview'!$H$6="Orkney Islands Local Authority",0,IF('III Tool Overview'!$H$6="Shetland Islands Local Authority",0,IF('III Tool Overview'!$H$6="Eilean Siar Local Authority",0,new_ci(10,B74,C74,D74,$C$1,G74,1,F74,F74,SIMDrateratios,RateRatios!$B$3)*10)))))) -> 615.4955622 | N74: =IF('III Tool Overview'!$H$6="Orkney Health Board",0,IF('III Tool Overview'!$H$6="Shetland Health Board",0,IF('III Tool Overview'!$H$6="Western Isles Health Board",0,IF('III Tool Overview'!$H$6="Orkney Islands Local Authority",0,IF('III Tool Overview'!$H$6="Shetland Islands Local Authority",0,IF('III Tool Overview'!$H$6="Eilean Siar Local Authority",0,new_ci(10,B74,C74,D74,$C$1,G74+H74,1,F74,F74,SIMDrateratios,RateRatios!$B$3)*10)))))) -> 610.4425132 | O74: =IF('III Tool Overview'!$H$6="Orkney Health Board",0,IF('III Tool Overview'!$H$6="Shetland Health Board",0,IF('III Tool Overview'!$H$6="Western Isles Health Board",0,IF('III Tool Overview'!$H$6="Orkney Islands Local Authority",0,IF('III Tool Overview'!$H$6="Shetland Islands Local Authority",0,IF('III Tool Overview'!$H$6="Eilean Siar Local Authority",0,new_ci(20,B74,C74,D74,$C$1,G74,1,F74,F74,SIMDrateratios,RateRatios!$B$3)*10)))))) -> 1727.773451 | P74: =IF('III Tool Overview'!$H$6="Orkney Health Board",0,IF('III Tool Overview'!$H$6="Shetland Health Board",0,IF('III Tool Overview'!$H$6="Western Isles Health Board",0,IF('III Tool Overview'!$H$6="Orkney Islands Local Authority",0,IF('III Tool Overview'!$H$6="Shetland Islands Local Authority",0,IF('III Tool Overview'!$H$6="Eilean Siar Local Authority",0,new_ci(20,B74,C74,D74,$C$1,G74+H74,1,F74,F74,SIMDrateratios,RateRatios!$B$3)*10)))))) -> 1714.247401 | Q74: =IF('III Tool Overview'!$H$6="Orkney Health Board",0,IF('III Tool Overview'!$H$6="Shetland Health Board",0,IF('III Tool Overview'!$H$6="Western Isles Health Board",0,IF('III Tool Overview'!$H$6="Orkney Islands Local Authority",0,IF('III Tool Overview'!$H$6="Shetland Islands Local Authority",0,IF('III Tool Overview'!$H$6="Eilean Siar Local Authority",0,new_yll(2,B74,C74,D74,$C$1,G74,1,F74,F74,SIMDrateratios,RateRatios!$B$3)*10)))))) -> 3338.194639 | R74: =IF('III Tool Overview'!$H$6="Orkney Health Board",0,IF('III Tool Overview'!$H$6="Shetland Health Board",0,IF('III Tool Overview'!$H$6="Western Isles Health Board",0,IF('III Tool Overview'!$H$6="Orkney Islands Local Authority",0,IF('III Tool Overview'!$H$6="Shetland Islands Local Authority",0,IF('III Tool Overview'!$H$6="Eilean Siar Local Authority",0,new_yll(2,B74,C74,D74,$C$1,G74+H74,1,F74,F74,SIMDrateratios,RateRatios!$B$3)*10)))))) -> 3310.176313 | S74: 28.01832523 | T74: =IF('III Tool Overview'!$H$6="Orkney Health Board",0,IF('III Tool Overview'!$H$6="Shetland Health Board",0,IF('III Tool Overview'!$H$6="Western Isles Health Board",0,IF('III Tool Overview'!$H$6="Orkney Islands Local Authority",0,IF('III Tool Overview'!$H$6="Shetland Islands Local Authority",0,IF('III Tool Overview'!$H$6="Eilean Siar Local Authority",0,new_yll(5,B74,C74,D74,$C$1,G74,1,F74,F74,SIMDrateratios,RateRatios!$B$3)*1000)))))) -> 1413030.643 | U74: =IF('III Tool Overview'!$H$6="Orkney Health Board",0,IF('III Tool Overview'!$H$6="Shetland Health Board",0,IF('III Tool Overview'!$H$6="Western Isles Health Board",0,IF('III Tool Overview'!$H$6="Orkney Islands Local Authority",0,IF('III Tool Overview'!$H$6="Shetland Islands Local Authority",0,IF('III Tool Overview'!$H$6="Eilean Siar Local Authority",0,new_yll(5,B74,C74,D74,$C$1,G74+H74,1,F74,F74,SIMDrateratios,RateRatios!$B$3)*1000)))))) -> 1401253.37 | V74: 11777.27338 | W74: =IF('III Tool Overview'!$H$6="Orkney Health Board",0,IF('III Tool Overview'!$H$6="Shetland Health Board",0,IF('III Tool Overview'!$H$6="Western Isles Health Board",0,IF('III Tool Overview'!$H$6="Orkney Islands Local Authority",0,IF('III Tool Overview'!$H$6="Shetland Islands Local Authority",0,IF('III Tool Overview'!$H$6="Eilean Siar Local Authority",0,new_yll(10,B74,C74,D74,$C$1,G74,1,F74,F74,SIMDrateratios,RateRatios!$B$3)*10)))))) -> 34866.64519 | X74: =IF('III Tool Overview'!$H$6="Orkney Health Board",0,IF('III Tool Overview'!$H$6="Shetland Health Board",0,IF('III Tool Overview'!$H$6="Western Isles Health Board",0,IF('III Tool Overview'!$H$6="Orkney Islands Local Authority",0,IF('III Tool Overview'!$H$6="Shetland Islands Local Authority",0,IF('III Tool Overview'!$H$6="Eilean Siar Local Authority",0,new_yll(10,B74,C74,D74,$C$1,G74+H74,1,F74,F74,SIMDrateratios,RateRatios!$B$3)*10)))))) -> 34580.21632 | Y74: 286.4288705 | Z74: =IF('III Tool Overview'!$H$6="Orkney Health Board",0,IF('III Tool Overview'!$H$6="Shetland Health Board",0,IF('III Tool Overview'!$H$6="Western Isles Health Board",0,IF('III Tool Overview'!$H$6="Orkney Islands Local Authority",0,IF('III Tool Overview'!$H$6="Shetland Islands Local Authority",0,IF('III Tool Overview'!$H$6="Eilean Siar Local Authority",0,new_yll(20,B74,C74,D74,$C$1,G74,1,F74,F74,SIMDrateratios,RateRatios!$B$3)*10)))))) -> 87252.54512 | AA74: =IF('III Tool Overview'!$H$6="Orkney Health Board",0,IF('III Tool Overview'!$H$6="Shetland Health Board",0,IF('III Tool Overview'!$H$6="Western Isles Health Board",0,IF('III Tool Overview'!$H$6="Orkney Islands Local Authority",0,IF('III Tool Overview'!$H$6="Shetland Islands Local Authority",0,IF('III Tool Overview'!$H$6="Eilean Siar Local Authority",0,new_yll(20,B74,C74,D74,$C$1,G74+H74,1,F74,F74,SIMDrateratios,RateRatios!$B$3)*10)))))) -> 86566.34073 | AB74: 686.2043833 | AC74: =IF('III Tool Overview'!$H$6="Orkney Health Board",0,IF('III Tool Overview'!$H$6="Shetland Health Board",0,IF('III Tool Overview'!$H$6="Western Isles Health Board",0,IF('III Tool Overview'!$H$6="Orkney Islands Local Authority",0,IF('III Tool Overview'!$H$6="Shetland Islands Local Authority",0,IF('III Tool Overview'!$H$6="Eilean Siar Local Authority",0,hosp_count(2,B74,C74,D74,$C$1,G74,1,F74,F74,SIMDRateRatios_hosp,SIMDrateratios,RateRatios!$B$3)*10)))))) -> 2580.094374 | AD74: =IF('III Tool Overview'!$H$6="Orkney Health Board",0,IF('III Tool Overview'!$H$6="Shetland Health Board",0,IF('III Tool Overview'!$H$6="Western Isles Health Board",0,IF('III Tool Overview'!$H$6="Orkney Islands Local Authority",0,IF('III Tool Overview'!$H$6="Shetland Islands Local Authority",0,IF('III Tool Overview'!$H$6="Eilean Siar Local Authority",0,hosp_count(2,B74,C74,D74,$C$1,G74+H74,1,F74,F74,SIMDRateRatios_hosp,SIMDrateratios,RateRatios!$B$3)*10)))))) -> 2563.207838 | AE74: 16.88653631 | AF74: =IF('III Tool Overview'!$H$6="Orkney Health Board",0,IF('III Tool Overview'!$H$6="Shetland Health Board",0,IF('III Tool Overview'!$H$6="Western Isles Health Board",0,IF('III Tool Overview'!$H$6="Orkney Islands Local Authority",0,IF('III Tool Overview'!$H$6="Shetland Islands Local Authority",0,IF('III Tool Overview'!$H$6="Eilean Siar Local Authority",0,hosp_count(5,B74,C74,D74,$C$1,G74,1,F74,F74,SIMDRateRatios_hosp,SIMDrateratios,RateRatios!$B$3)*1000)))))) -> 1083692.82 | AG74: =IF('III Tool Overview'!$H$6="Orkney Health Board",0,IF('III Tool Overview'!$H$6="Shetland Health Board",0,IF('III Tool Overview'!$H$6="Western Isles Health Board",0,IF('III Tool Overview'!$H$6="Orkney Islands Local Authority",0,IF('III Tool Overview'!$H$6="Shetland Islands Local Authority",0,IF('III Tool Overview'!$H$6="Eilean Siar Local Authority",0,hosp_count(5,B74,C74,D74,$C$1,G74+H74,1,F74,F74,SIMDRateRatios_hosp,SIMDrateratios,RateRatios!$B$3)*1000)))))) -> 1076661.534 | AH74: 7031.285945 | AI74: =IF('III Tool Overview'!$H$6="Orkney Health Board",0,IF('III Tool Overview'!$H$6="Shetland Health Board",0,IF('III Tool Overview'!$H$6="Western Isles Health Board",0,IF('III Tool Overview'!$H$6="Orkney Islands Local Authority",0,IF('III Tool Overview'!$H$6="Shetland Islands Local Authority",0,IF('III Tool Overview'!$H$6="Eilean Siar Local Authority",0,hosp_count(10,B74,C74,D74,$C$1,G74,1,F74,F74,SIMDRateRatios_hosp,SIMDrateratios,RateRatios!$B$3)*10)))))) -> 26441.31483 | AJ74: =IF('III Tool Overview'!$H$6="Orkney Health Board",0,IF('III Tool Overview'!$H$6="Shetland Health Board",0,IF('III Tool Overview'!$H$6="Western Isles Health Board",0,IF('III Tool Overview'!$H$6="Orkney Islands Local Authority",0,IF('III Tool Overview'!$H$6="Shetland Islands Local Authority",0,IF('III Tool Overview'!$H$6="Eilean Siar Local Authority",0,hosp_count(10,B74,C74,D74,$C$1,G74+H74,1,F74,F74,SIMDRateRatios_hosp,SIMDrateratios,RateRatios!$B$3)*10)))))) -> 26272.81164 | AK74: 168.5031829 | AL74: =IF('III Tool Overview'!$H$6="Orkney Health Board",0,IF('III Tool Overview'!$H$6="Shetland Health Board",0,IF('III Tool Overview'!$H$6="Western Isles Health Board",0,IF('III Tool Overview'!$H$6="Orkney Islands Local Authority",0,IF('III Tool Overview'!$H$6="Shetland Islands Local Authority",0,IF('III Tool Overview'!$H$6="Eilean Siar Local Authority",0,hosp_count(20,B74,C74,D74,$C$1,G74,1,F74,F74,SIMDRateRatios_hosp,SIMDrateratios,RateRatios!$B$3)*10)))))) -> 65307.85189 | AM74: =IF('III Tool Overview'!$H$6="Orkney Health Board",0,IF('III Tool Overview'!$H$6="Shetland Health Board",0,IF('III Tool Overview'!$H$6="Western Isles Health Board",0,IF('III Tool Overview'!$H$6="Orkney Islands Local Authority",0,IF('III Tool Overview'!$H$6="Shetland Islands Local Authority",0,IF('III Tool Overview'!$H$6="Eilean Siar Local Authority",0,hosp_count(20,B74,C74,D74,$C$1,G74+H74,1,F74,F74,SIMDRateRatios_hosp,SIMDrateratios,RateRatios!$B$3)*10)))))) -> 64913.76265 | AN74: 394.0892399
A75: Male 40-44 | B75: 42.5 | C75: male | D75: 1 | E75: 1 | F75: =HLOOKUP('III Tool Overview'!$H$6,LookUpData_Pop!$B$1:$AV$269,LookUpData_Pop!BB76,FALSE)/50 -> 1362.22 | G75: ='III Tool Overview'!$H$9/110 -> 0 | H75: 1362.22 | I75: =IF('III Tool Overview'!$H$6="Orkney Health Board",0,IF('III Tool Overview'!$H$6="Shetland Health Board",0,IF('III Tool Overview'!$H$6="Western Isles Health Board",0,IF('III Tool Overview'!$H$6="Orkney Islands Local Authority",0,IF('III Tool Overview'!$H$6="Shetland Islands Local Authority",0,IF('III Tool Overview'!$H$6="Eilean Siar Local Authority",0,new_ci(2,B75,C75,D75,$C$1,G75,1,F75,F75,SIMDrateratios,RateRatios!$B$3)*10)))))) -> 76.73860791 | J75: =IF('III Tool Overview'!$H$6="Orkney Health Board",0,IF('III Tool Overview'!$H$6="Shetland Health Board",0,IF('III Tool Overview'!$H$6="Western Isles Health Board",0,IF('III Tool Overview'!$H$6="Orkney Islands Local Authority",0,IF('III Tool Overview'!$H$6="Shetland Islands Local Authority",0,IF('III Tool Overview'!$H$6="Eilean Siar Local Authority",0,new_ci(2,B75,C75,D75,$C$1,G75+H75,1,H75,H75,SIMDrateratios,RateRatios!$B$3)*10)))))) -> 76.09516813 | K75: =IF('III Tool Overview'!$H$6="Orkney Health Board",0,IF('III Tool Overview'!$H$6="Shetland Health Board",0,IF('III Tool Overview'!$H$6="Western Isles Health Board",0,IF('III Tool Overview'!$H$6="Orkney Islands Local Authority",0,IF('III Tool Overview'!$H$6="Shetland Islands Local Authority",0,IF('III Tool Overview'!$H$6="Eilean Siar Local Authority",0,new_ci(5,B75,C75,D75,$C$1,G75,1,F75,F75,SIMDrateratios,RateRatios!$B$3)*1000)))))) -> 33259.88239 | L75: =IF('III Tool Overview'!$H$6="Orkney Health Board",0,IF('III Tool Overview'!$H$6="Shetland Health Board",0,IF('III Tool Overview'!$H$6="Western Isles Health Board",0,IF('III Tool Overview'!$H$6="Orkney Islands Local Authority",0,IF('III Tool Overview'!$H$6="Shetland Islands Local Authority",0,IF('III Tool Overview'!$H$6="Eilean Siar Local Authority",0,new_ci(5,B75,C75,D75,$C$1,G75+H75,1,F75,F75,SIMDrateratios,RateRatios!$B$3)*1000)))))) -> 32983.63505 | M75: =IF('III Tool Overview'!$H$6="Orkney Health Board",0,IF('III Tool Overview'!$H$6="Shetland Health Board",0,IF('III Tool Overview'!$H$6="Western Isles Health Board",0,IF('III Tool Overview'!$H$6="Orkney Islands Local Authority",0,IF('III Tool Overview'!$H$6="Shetland Islands Local Authority",0,IF('III Tool Overview'!$H$6="Eilean Siar Local Authority",0,new_ci(10,B75,C75,D75,$C$1,G75,1,F75,F75,SIMDrateratios,RateRatios!$B$3)*10)))))) -> 856.7460547 | N75: =IF('III Tool Overview'!$H$6="Orkney Health Board",0,IF('III Tool Overview'!$H$6="Shetland Health Board",0,IF('III Tool Overview'!$H$6="Western Isles Health Board",0,IF('III Tool Overview'!$H$6="Orkney Islands Local Authority",0,IF('III Tool Overview'!$H$6="Shetland Islands Local Authority",0,IF('III Tool Overview'!$H$6="Eilean Siar Local Authority",0,new_ci(10,B75,C75,D75,$C$1,G75+H75,1,F75,F75,SIMDrateratios,RateRatios!$B$3)*10)))))) -> 849.7717668 | O75: =IF('III Tool Overview'!$H$6="Orkney Health Board",0,IF('III Tool Overview'!$H$6="Shetland Health Board",0,IF('III Tool Overview'!$H$6="Western Isles Health Board",0,IF('III Tool Overview'!$H$6="Orkney Islands Local Authority",0,IF('III Tool Overview'!$H$6="Shetland Islands Local Authority",0,IF('III Tool Overview'!$H$6="Eilean Siar Local Authority",0,new_ci(20,B75,C75,D75,$C$1,G75,1,F75,F75,SIMDrateratios,RateRatios!$B$3)*10)))))) -> 2368.580548 | P75: =IF('III Tool Overview'!$H$6="Orkney Health Board",0,IF('III Tool Overview'!$H$6="Shetland Health Board",0,IF('III Tool Overview'!$H$6="Western Isles Health Board",0,IF('III Tool Overview'!$H$6="Orkney Islands Local Authority",0,IF('III Tool Overview'!$H$6="Shetland Islands Local Authority",0,IF('III Tool Overview'!$H$6="Eilean Siar Local Authority",0,new_ci(20,B75,C75,D75,$C$1,G75+H75,1,F75,F75,SIMDrateratios,RateRatios!$B$3)*10)))))) -> 2350.491718 | Q75: =IF('III Tool Overview'!$H$6="Orkney Health Board",0,IF('III Tool Overview'!$H$6="Shetland Health Board",0,IF('III Tool Overview'!$H$6="Western Isles Health Board",0,IF('III Tool Overview'!$H$6="Orkney Islands Local Authority",0,IF('III Tool Overview'!$H$6="Shetland Islands Local Authority",0,IF('III Tool Overview'!$H$6="Eilean Siar Local Authority",0,new_yll(2,B75,C75,D75,$C$1,G75,1,F75,F75,SIMDrateratios,RateRatios!$B$3)*10)))))) -> 4374.100651 | R75: =IF('III Tool Overview'!$H$6="Orkney Health Board",0,IF('III Tool Overview'!$H$6="Shetland Health Board",0,IF('III Tool Overview'!$H$6="Western Isles Health Board",0,IF('III Tool Overview'!$H$6="Orkney Islands Local Authority",0,IF('III Tool Overview'!$H$6="Shetland Islands Local Authority",0,IF('III Tool Overview'!$H$6="Eilean Siar Local Authority",0,new_yll(2,B75,C75,D75,$C$1,G75+H75,1,F75,F75,SIMDrateratios,RateRatios!$B$3)*10)))))) -> 4337.424583 | S75: 36.67606736 | T75: =IF('III Tool Overview'!$H$6="Orkney Health Board",0,IF('III Tool Overview'!$H$6="Shetland Health Board",0,IF('III Tool Overview'!$H$6="Western Isles Health Board",0,IF('III Tool Overview'!$H$6="Orkney Islands Local Authority",0,IF('III Tool Overview'!$H$6="Shetland Islands Local Authority",0,IF('III Tool Overview'!$H$6="Eilean Siar Local Authority",0,new_yll(5,B75,C75,D75,$C$1,G75,1,F75,F75,SIMDrateratios,RateRatios!$B$3)*1000)))))) -> 1843753.758 | U75: =IF('III Tool Overview'!$H$6="Orkney Health Board",0,IF('III Tool Overview'!$H$6="Shetland Health Board",0,IF('III Tool Overview'!$H$6="Western Isles Health Board",0,IF('III Tool Overview'!$H$6="Orkney Islands Local Authority",0,IF('III Tool Overview'!$H$6="Shetland Islands Local Authority",0,IF('III Tool Overview'!$H$6="Eilean Siar Local Authority",0,new_yll(5,B75,C75,D75,$C$1,G75+H75,1,F75,F75,SIMDrateratios,RateRatios!$B$3)*1000)))))) -> 1828437.913 | V75: 15315.84483 | W75: =IF('III Tool Overview'!$H$6="Orkney Health Board",0,IF('III Tool Overview'!$H$6="Shetland Health Board",0,IF('III Tool Overview'!$H$6="Western Isles Health Board",0,IF('III Tool Overview'!$H$6="Orkney Islands Local Authority",0,IF('III Tool Overview'!$H$6="Shetland Islands Local Authority",0,IF('III Tool Overview'!$H$6="Eilean Siar Local Authority",0,new_yll(10,B75,C75,D75,$C$1,G75,1,F75,F75,SIMDrateratios,RateRatios!$B$3)*10)))))) -> 45116.31542 | X75: =IF('III Tool Overview'!$H$6="Orkney Health Board",0,IF('III Tool Overview'!$H$6="Shetland Health Board",0,IF('III Tool Overview'!$H$6="Western Isles Health Board",0,IF('III Tool Overview'!$H$6="Orkney Islands Local Authority",0,IF('III Tool Overview'!$H$6="Shetland Islands Local Authority",0,IF('III Tool Overview'!$H$6="Eilean Siar Local Authority",0,new_yll(10,B75,C75,D75,$C$1,G75+H75,1,F75,F75,SIMDrateratios,RateRatios!$B$3)*10)))))) -> 44748.70799 | Y75: 367.6074281 | Z75: =IF('III Tool Overview'!$H$6="Orkney Health Board",0,IF('III Tool Overview'!$H$6="Shetland Health Board",0,IF('III Tool Overview'!$H$6="Western Isles Health Board",0,IF('III Tool Overview'!$H$6="Orkney Islands Local Authority",0,IF('III Tool Overview'!$H$6="Shetland Islands Local Authority",0,IF('III Tool Overview'!$H$6="Eilean Siar Local Authority",0,new_yll(20,B75,C75,D75,$C$1,G75,1,F75,F75,SIMDrateratios,RateRatios!$B$3)*10)))))) -> 110312.2712 | AA75: =IF('III Tool Overview'!$H$6="Orkney Health Board",0,IF('III Tool Overview'!$H$6="Shetland Health Board",0,IF('III Tool Overview'!$H$6="Western Isles Health Board",0,IF('III Tool Overview'!$H$6="Orkney Islands Local Authority",0,IF('III Tool Overview'!$H$6="Shetland Islands Local Authority",0,IF('III Tool Overview'!$H$6="Eilean Siar Local Authority",0,new_yll(20,B75,C75,D75,$C$1,G75+H75,1,F75,F75,SIMDrateratios,RateRatios!$B$3)*10)))))) -> 109464.0639 | AB75: 848.2073005 | AC75: =IF('III Tool Overview'!$H$6="Orkney Health Board",0,IF('III Tool Overview'!$H$6="Shetland Health Board",0,IF('III Tool Overview'!$H$6="Western Isles Health Board",0,IF('III Tool Overview'!$H$6="Orkney Islands Local Authority",0,IF('III Tool Overview'!$H$6="Shetland Islands Local Authority",0,IF('III Tool Overview'!$H$6="Eilean Siar Local Authority",0,hosp_count(2,B75,C75,D75,$C$1,G75,1,F75,F75,SIMDRateRatios_hosp,SIMDrateratios,RateRatios!$B$3)*10)))))) -> 3116.139475 | AD75: =IF('III Tool Overview'!$H$6="Orkney Health Board",0,IF('III Tool Overview'!$H$6="Shetland Health Board",0,IF('III Tool Overview'!$H$6="Western Isles Health Board",0,IF('III Tool Overview'!$H$6="Orkney Islands Local Authority",0,IF('III Tool Overview'!$H$6="Shetland Islands Local Authority",0,IF('III Tool Overview'!$H$6="Eilean Siar Local Authority",0,hosp_count(2,B75,C75,D75,$C$1,G75+H75,1,F75,F75,SIMDRateRatios_hosp,SIMDrateratios,RateRatios!$B$3)*10)))))) -> 3095.750685 | AE75: 20.38879002 | AF75: =IF('III Tool Overview'!$H$6="Orkney Health Board",0,IF('III Tool Overview'!$H$6="Shetland Health Board",0,IF('III Tool Overview'!$H$6="Western Isles Health Board",0,IF('III Tool Overview'!$H$6="Orkney Islands Local Authority",0,IF('III Tool Overview'!$H$6="Shetland Islands Local Authority",0,IF('III Tool Overview'!$H$6="Eilean Siar Local Authority",0,hosp_count(5,B75,C75,D75,$C$1,G75,1,F75,F75,SIMDRateRatios_hosp,SIMDrateratios,RateRatios!$B$3)*1000)))))) -> 1305866.815 | AG75: =IF('III Tool Overview'!$H$6="Orkney Health Board",0,IF('III Tool Overview'!$H$6="Shetland Health Board",0,IF('III Tool Overview'!$H$6="Western Isles Health Board",0,IF('III Tool Overview'!$H$6="Orkney Islands Local Authority",0,IF('III Tool Overview'!$H$6="Shetland Islands Local Authority",0,IF('III Tool Overview'!$H$6="Eilean Siar Local Authority",0,hosp_count(5,B75,C75,D75,$C$1,G75+H75,1,F75,F75,SIMDRateRatios_hosp,SIMDrateratios,RateRatios!$B$3)*1000)))))) -> 1297421.275 | AH75: 8445.539714 | AI75: =IF('III Tool Overview'!$H$6="Orkney Health Board",0,IF('III Tool Overview'!$H$6="Shetland Health Board",0,IF('III Tool Overview'!$H$6="Western Isles Health Board",0,IF('III Tool Overview'!$H$6="Orkney Islands Local Authority",0,IF('III Tool Overview'!$H$6="Shetland Islands Local Authority",0,IF('III Tool Overview'!$H$6="Eilean Siar Local Authority",0,hosp_count(10,B75,C75,D75,$C$1,G75,1,F75,F75,SIMDRateRatios_hosp,SIMDrateratios,RateRatios!$B$3)*10)))))) -> 31714.85982 | AJ75: =IF('III Tool Overview'!$H$6="Orkney Health Board",0,IF('III Tool Overview'!$H$6="Shetland Health Board",0,IF('III Tool Overview'!$H$6="Western Isles Health Board",0,IF('III Tool Overview'!$H$6="Orkney Islands Local Authority",0,IF('III Tool Overview'!$H$6="Shetland Islands Local Authority",0,IF('III Tool Overview'!$H$6="Eilean Siar Local Authority",0,hosp_count(10,B75,C75,D75,$C$1,G75+H75,1,F75,F75,SIMDRateRatios_hosp,SIMDrateratios,RateRatios!$B$3)*10)))))) -> 31514.62292 | AK75: 200.2368971 | AL75: =IF('III Tool Overview'!$H$6="Orkney Health Board",0,IF('III Tool Overview'!$H$6="Shetland Health Board",0,IF('III Tool Overview'!$H$6="Western Isles Health Board",0,IF('III Tool Overview'!$H$6="Orkney Islands Local Authority",0,IF('III Tool Overview'!$H$6="Shetland Islands Local Authority",0,IF('III Tool Overview'!$H$6="Eilean Siar Local Authority",0,hosp_count(20,B75,C75,D75,$C$1,G75,1,F75,F75,SIMDRateRatios_hosp,SIMDrateratios,RateRatios!$B$3)*10)))))) -> 77281.4081 | AM75: =IF('III Tool Overview'!$H$6="Orkney Health Board",0,IF('III Tool Overview'!$H$6="Shetland Health Board",0,IF('III Tool Overview'!$H$6="Western Isles Health Board",0,IF('III Tool Overview'!$H$6="Orkney Islands Local Authority",0,IF('III Tool Overview'!$H$6="Shetland Islands Local Authority",0,IF('III Tool Overview'!$H$6="Eilean Siar Local Authority",0,hosp_count(20,B75,C75,D75,$C$1,G75+H75,1,F75,F75,SIMDRateRatios_hosp,SIMDrateratios,RateRatios!$B$3)*10)))))) -> 76827.99996 | AN75: 453.4081387
A76: Male 45-49 | B76: 47.5 | C76: male | D76: 1 | E76: 1 | F76: =HLOOKUP('III Tool Overview'!$H$6,LookUpData_Pop!$B$1:$AV$269,LookUpData_Pop!BB77,FALSE)/50 -> 1370.88 | G76: ='III Tool Overview'!$H$9/110 -> 0 | H76: 1370.88 | I76: =IF('III Tool Overview'!$H$6="Orkney Health Board",0,IF('III Tool Overview'!$H$6="Shetland Health Board",0,IF('III Tool Overview'!$H$6="Western Isles Health Board",0,IF('III Tool Overview'!$H$6="Orkney Islands Local Authority",0,IF('III Tool Overview'!$H$6="Shetland Islands Local Authority",0,IF('III Tool Overview'!$H$6="Eilean Siar Local Authority",0,new_ci(2,B76,C76,D76,$C$1,G76,1,F76,F76,SIMDrateratios,RateRatios!$B$3)*10)))))) -> 119.0580098 | J76: =IF('III Tool Overview'!$H$6="Orkney Health Board",0,IF('III Tool Overview'!$H$6="Shetland Health Board",0,IF('III Tool Overview'!$H$6="Western Isles Health Board",0,IF('III Tool Overview'!$H$6="Orkney Islands Local Authority",0,IF('III Tool Overview'!$H$6="Shetland Islands Local Authority",0,IF('III Tool Overview'!$H$6="Eilean Siar Local Authority",0,new_ci(2,B76,C76,D76,$C$1,G76+H76,1,H76,H76,SIMDrateratios,RateRatios!$B$3)*10)))))) -> 118.0610028 | K76: =IF('III Tool Overview'!$H$6="Orkney Health Board",0,IF('III Tool Overview'!$H$6="Shetland Health Board",0,IF('III Tool Overview'!$H$6="Western Isles Health Board",0,IF('III Tool Overview'!$H$6="Orkney Islands Local Authority",0,IF('III Tool Overview'!$H$6="Shetland Islands Local Authority",0,IF('III Tool Overview'!$H$6="Eilean Siar Local Authority",0,new_ci(5,B76,C76,D76,$C$1,G76,1,F76,F76,SIMDrateratios,RateRatios!$B$3)*1000)))))) -> 51336.59699 | L76: =IF('III Tool Overview'!$H$6="Orkney Health Board",0,IF('III Tool Overview'!$H$6="Shetland Health Board",0,IF('III Tool Overview'!$H$6="Western Isles Health Board",0,IF('III Tool Overview'!$H$6="Orkney Islands Local Authority",0,IF('III Tool Overview'!$H$6="Shetland Islands Local Authority",0,IF('III Tool Overview'!$H$6="Eilean Siar Local Authority",0,new_ci(5,B76,C76,D76,$C$1,G76+H76,1,F76,F76,SIMDrateratios,RateRatios!$B$3)*1000)))))) -> 50912.95239 | M76: =IF('III Tool Overview'!$H$6="Orkney Health Board",0,IF('III Tool Overview'!$H$6="Shetland Health Board",0,IF('III Tool Overview'!$H$6="Western Isles Health Board",0,IF('III Tool Overview'!$H$6="Orkney Islands Local Authority",0,IF('III Tool Overview'!$H$6="Shetland Islands Local Authority",0,IF('III Tool Overview'!$H$6="Eilean Siar Local Authority",0,new_ci(10,B76,C76,D76,$C$1,G76,1,F76,F76,SIMDrateratios,RateRatios!$B$3)*10)))))) -> 1308.263102 | N76: =IF('III Tool Overview'!$H$6="Orkney Health Board",0,IF('III Tool Overview'!$H$6="Shetland Health Board",0,IF('III Tool Overview'!$H$6="Western Isles Health Board",0,IF('III Tool Overview'!$H$6="Orkney Islands Local Authority",0,IF('III Tool Overview'!$H$6="Shetland Islands Local Authority",0,IF('III Tool Overview'!$H$6="Eilean Siar Local Authority",0,new_ci(10,B76,C76,D76,$C$1,G76+H76,1,F76,F76,SIMDrateratios,RateRatios!$B$3)*10)))))) -> 1297.798183 | O76: =IF('III Tool Overview'!$H$6="Orkney Health Board",0,IF('III Tool Overview'!$H$6="Shetland Health Board",0,IF('III Tool Overview'!$H$6="Western Isles Health Board",0,IF('III Tool Overview'!$H$6="Orkney Islands Local Authority",0,IF('III Tool Overview'!$H$6="Shetland Islands Local Authority",0,IF('III Tool Overview'!$H$6="Eilean Siar Local Authority",0,new_ci(20,B76,C76,D76,$C$1,G76,1,F76,F76,SIMDrateratios,RateRatios!$B$3)*10)))))) -> 3501.440845 | P76: =IF('III Tool Overview'!$H$6="Orkney Health Board",0,IF('III Tool Overview'!$H$6="Shetland Health Board",0,IF('III Tool Overview'!$H$6="Western Isles Health Board",0,IF('III Tool Overview'!$H$6="Orkney Islands Local Authority",0,IF('III Tool Overview'!$H$6="Shetland Islands Local Authority",0,IF('III Tool Overview'!$H$6="Eilean Siar Local Authority",0,new_ci(20,B76,C76,D76,$C$1,G76+H76,1,F76,F76,SIMDrateratios,RateRatios!$B$3)*10)))))) -> 3476.090216 | Q76: =IF('III Tool Overview'!$H$6="Orkney Health Board",0,IF('III Tool Overview'!$H$6="Shetland Health Board",0,IF('III Tool Overview'!$H$6="Western Isles Health Board",0,IF('III Tool Overview'!$H$6="Orkney Islands Local Authority",0,IF('III Tool Overview'!$H$6="Shetland Islands Local Authority",0,IF('III Tool Overview'!$H$6="Eilean Siar Local Authority",0,new_yll(2,B76,C76,D76,$C$1,G76,1,F76,F76,SIMDrateratios,RateRatios!$B$3)*10)))))) -> 6071.958499 | R76: =IF('III Tool Overview'!$H$6="Orkney Health Board",0,IF('III Tool Overview'!$H$6="Shetland Health Board",0,IF('III Tool Overview'!$H$6="Western Isles Health Board",0,IF('III Tool Overview'!$H$6="Orkney Islands Local Authority",0,IF('III Tool Overview'!$H$6="Shetland Islands Local Authority",0,IF('III Tool Overview'!$H$6="Eilean Siar Local Authority",0,new_yll(2,B76,C76,D76,$C$1,G76+H76,1,F76,F76,SIMDrateratios,RateRatios!$B$3)*10)))))) -> 6021.111144 | S76: 50.84735501 | T76: =IF('III Tool Overview'!$H$6="Orkney Health Board",0,IF('III Tool Overview'!$H$6="Shetland Health Board",0,IF('III Tool Overview'!$H$6="Western Isles Health Board",0,IF('III Tool Overview'!$H$6="Orkney Islands Local Authority",0,IF('III Tool Overview'!$H$6="Shetland Islands Local Authority",0,IF('III Tool Overview'!$H$6="Eilean Siar Local Authority",0,new_yll(5,B76,C76,D76,$C$1,G76,1,F76,F76,SIMDrateratios,RateRatios!$B$3)*1000)))))) -> 2538027.926 | U76: =IF('III Tool Overview'!$H$6="Orkney Health Board",0,IF('III Tool Overview'!$H$6="Shetland Health Board",0,IF('III Tool Overview'!$H$6="Western Isles Health Board",0,IF('III Tool Overview'!$H$6="Orkney Islands Local Authority",0,IF('III Tool Overview'!$H$6="Shetland Islands Local Authority",0,IF('III Tool Overview'!$H$6="Eilean Siar Local Authority",0,new_yll(5,B76,C76,D76,$C$1,G76+H76,1,F76,F76,SIMDrateratios,RateRatios!$B$3)*1000)))))) -> 2517078.28 | V76: 20949.64555 | W76: =IF('III Tool Overview'!$H$6="Orkney Health Board",0,IF('III Tool Overview'!$H$6="Shetland Health Board",0,IF('III Tool Overview'!$H$6="Western Isles Health Board",0,IF('III Tool Overview'!$H$6="Orkney Islands Local Authority",0,IF('III Tool Overview'!$H$6="Shetland Islands Local Authority",0,IF('III Tool Overview'!$H$6="Eilean Siar Local Authority",0,new_yll(10,B76,C76,D76,$C$1,G76,1,F76,F76,SIMDrateratios,RateRatios!$B$3)*10)))))) -> 61077.6225 | X76: =IF('III Tool Overview'!$H$6="Orkney Health Board",0,IF('III Tool Overview'!$H$6="Shetland Health Board",0,IF('III Tool Overview'!$H$6="Western Isles Health Board",0,IF('III Tool Overview'!$H$6="Orkney Islands Local Authority",0,IF('III Tool Overview'!$H$6="Shetland Islands Local Authority",0,IF('III Tool Overview'!$H$6="Eilean Siar Local Authority",0,new_yll(10,B76,C76,D76,$C$1,G76+H76,1,F76,F76,SIMDrateratios,RateRatios!$B$3)*10)))))) -> 60588.25253 | Y76: 489.3699664 | Z76: =IF('III Tool Overview'!$H$6="Orkney Health Board",0,IF('III Tool Overview'!$H$6="Shetland Health Board",0,IF('III Tool Overview'!$H$6="Western Isles Health Board",0,IF('III Tool Overview'!$H$6="Orkney Islands Local Authority",0,IF('III Tool Overview'!$H$6="Shetland Islands Local Authority",0,IF('III Tool Overview'!$H$6="Eilean Siar Local Authority",0,new_yll(20,B76,C76,D76,$C$1,G76,1,F76,F76,SIMDrateratios,RateRatios!$B$3)*10)))))) -> 142619.4616 | AA76: =IF('III Tool Overview'!$H$6="Orkney Health Board",0,IF('III Tool Overview'!$H$6="Shetland Health Board",0,IF('III Tool Overview'!$H$6="Western Isles Health Board",0,IF('III Tool Overview'!$H$6="Orkney Islands Local Authority",0,IF('III Tool Overview'!$H$6="Shetland Islands Local Authority",0,IF('III Tool Overview'!$H$6="Eilean Siar Local Authority",0,new_yll(20,B76,C76,D76,$C$1,G76+H76,1,F76,F76,SIMDrateratios,RateRatios!$B$3)*10)))))) -> 141573.7309 | AB76: 1045.730696 | AC76: =IF('III Tool Overview'!$H$6="Orkney Health Board",0,IF('III Tool Overview'!$H$6="Shetland Health Board",0,IF('III Tool Overview'!$H$6="Western Isles Health Board",0,IF('III Tool Overview'!$H$6="Orkney Islands Local Authority",0,IF('III Tool Overview'!$H$6="Shetland Islands Local Authority",0,IF('III Tool Overview'!$H$6="Eilean Siar Local Authority",0,hosp_count(2,B76,C76,D76,$C$1,G76,1,F76,F76,SIMDRateRatios_hosp,SIMDrateratios,RateRatios!$B$3)*10)))))) -> 3866.247851 | AD76: =IF('III Tool Overview'!$H$6="Orkney Health Board",0,IF('III Tool Overview'!$H$6="Shetland Health Board",0,IF('III Tool Overview'!$H$6="Western Isles Health Board",0,IF('III Tool Overview'!$H$6="Orkney Islands Local Authority",0,IF('III Tool Overview'!$H$6="Shetland Islands Local Authority",0,IF('III Tool Overview'!$H$6="Eilean Siar Local Authority",0,hosp_count(2,B76,C76,D76,$C$1,G76+H76,1,F76,F76,SIMDRateRatios_hosp,SIMDrateratios,RateRatios!$B$3)*10)))))) -> 3840.944828 | AE76: 25.30302333 | AF76: =IF('III Tool Overview'!$H$6="Orkney Health Board",0,IF('III Tool Overview'!$H$6="Shetland Health Board",0,IF('III Tool Overview'!$H$6="Western Isles Health Board",0,IF('III Tool Overview'!$H$6="Orkney Islands Local Authority",0,IF('III Tool Overview'!$H$6="Shetland Islands Local Authority",0,IF('III Tool Overview'!$H$6="Eilean Siar Local Authority",0,hosp_count(5,B76,C76,D76,$C$1,G76,1,F76,F76,SIMDRateRatios_hosp,SIMDrateratios,RateRatios!$B$3)*1000)))))) -> 1612266.588 | AG76: =IF('III Tool Overview'!$H$6="Orkney Health Board",0,IF('III Tool Overview'!$H$6="Shetland Health Board",0,IF('III Tool Overview'!$H$6="Western Isles Health Board",0,IF('III Tool Overview'!$H$6="Orkney Islands Local Authority",0,IF('III Tool Overview'!$H$6="Shetland Islands Local Authority",0,IF('III Tool Overview'!$H$6="Eilean Siar Local Authority",0,hosp_count(5,B76,C76,D76,$C$1,G76+H76,1,F76,F76,SIMDRateRatios_hosp,SIMDrateratios,RateRatios!$B$3)*1000)))))) -> 1601902.657 | AH76: 10363.93141 | AI76: =IF('III Tool Overview'!$H$6="Orkney Health Board",0,IF('III Tool Overview'!$H$6="Shetland Health Board",0,IF('III Tool Overview'!$H$6="Western Isles Health Board",0,IF('III Tool Overview'!$H$6="Orkney Islands Local Authority",0,IF('III Tool Overview'!$H$6="Shetland Islands Local Authority",0,IF('III Tool Overview'!$H$6="Eilean Siar Local Authority",0,hosp_count(10,B76,C76,D76,$C$1,G76,1,F76,F76,SIMDRateRatios_hosp,SIMDrateratios,RateRatios!$B$3)*10)))))) -> 38767.86262 | AJ76: =IF('III Tool Overview'!$H$6="Orkney Health Board",0,IF('III Tool Overview'!$H$6="Shetland Health Board",0,IF('III Tool Overview'!$H$6="Western Isles Health Board",0,IF('III Tool Overview'!$H$6="Orkney Islands Local Authority",0,IF('III Tool Overview'!$H$6="Shetland Islands Local Authority",0,IF('III Tool Overview'!$H$6="Eilean Siar Local Authority",0,hosp_count(10,B76,C76,D76,$C$1,G76+H76,1,F76,F76,SIMDRateRatios_hosp,SIMDrateratios,RateRatios!$B$3)*10)))))) -> 38527.78418 | AK76: 240.0784336 | AL76: =IF('III Tool Overview'!$H$6="Orkney Health Board",0,IF('III Tool Overview'!$H$6="Shetland Health Board",0,IF('III Tool Overview'!$H$6="Western Isles Health Board",0,IF('III Tool Overview'!$H$6="Orkney Islands Local Authority",0,IF('III Tool Overview'!$H$6="Shetland Islands Local Authority",0,IF('III Tool Overview'!$H$6="Eilean Siar Local Authority",0,hosp_count(20,B76,C76,D76,$C$1,G76,1,F76,F76,SIMDRateRatios_hosp,SIMDrateratios,RateRatios!$B$3)*10)))))) -> 91795.10637 | AM76: =IF('III Tool Overview'!$H$6="Orkney Health Board",0,IF('III Tool Overview'!$H$6="Shetland Health Board",0,IF('III Tool Overview'!$H$6="Western Isles Health Board",0,IF('III Tool Overview'!$H$6="Orkney Islands Local Authority",0,IF('III Tool Overview'!$H$6="Shetland Islands Local Authority",0,IF('III Tool Overview'!$H$6="Eilean Siar Local Authority",0,hosp_count(20,B76,C76,D76,$C$1,G76+H76,1,F76,F76,SIMDRateRatios_hosp,SIMDrateratios,RateRatios!$B$3)*10)))))) -> 91288.37349 | AN76: 506.732878
